Workbook

Sheet Inputs
E2: Generators tariffs are excluded | O2: Version 6.10 09 March 2021
B4: Tariff Input Sheet
B6: Please enter the required information below:
D8: Customer Name | I8: Enter the customer name as it is displayed on the rates bill.
D9: Account number | I9: Enter the account number as it is displayed on the rates bill.
D10: Point of delivery ID | I10: Enter the Point of Delivery ID as it is displayed on the rates bill.
D11: Number of PODs | H11: 1
D13: Select your tariff category | I13: Select either Non-Local Authority (Eskom), Local Authority (Municipality)
D15: Select customer classification | I15: Select the appropriate customer category - Small Power User (SPU) or Large Power User (LPU)
D17: Select supply size | I17: Select the appropriate customer supply size (kVA)
D19: Select tariff | I19: Drop box selection driven by the supply voltage inputs
D21: Select supply voltage | I21: Select the appropriate supply voltage (V)
D23: Select transmission zone | I23: =IF(Selected_Customer_Category_ID=1,"Not Applicable to Small Power Users but used for LPU tariff conversions","Select the appropriate transmission zone (km)") -> Not Applicable to Small Power Users but used for LPU tariff conversions
P24: =IF(D30<=TOU_Period,YEAR(TOU_Period),YEAR(TOU_Period)+1) -> 2022
B25: Please enter your consumption data in the table below
G27: Peak energy | H27: Standard energy | I27: Off-peak energy | J27: Chargeable demand | K27: Utilised capacity | L27: Excess reactive energy | M27: Total energy | O27: Year | P27: ESKOM Financial Year | Q27: Municipal Financial Year | R27: Month ID
D28: Month | E28: Season | G28: kWh | H28: kWh | I28: kWh | J28: kVA | K28: kVA | L28: kVArh | M28: kWh
C30: =D30-EOMONTH(D30,-1) -> 30 | D30: =DATE(YEAR(Period)-1,R30+1,) -> 2021-04-30 | E30: =INDEX(List_Seasons,R30,0) -> Low Demand | M30: =SUM($G30:$I30) -> 0 | O30: =INDEX(P30:Q30,0,Selected_Tariff_Category_ID) -> 2022 | P30: =IF(D30<=TOU_Period,YEAR(TOU_Period),YEAR(TOU_Period)+1) -> 2022 | Q30: =IF(Selected_Tariff_Category_ID = 2, YEAR(Municipality_Period), IF(D30<=EOMONTH(Municipality_Period,-12),YEAR(Municipality_Period)-1,YEAR(Municipality_Period))) -> 2021 | R30: =MONTH(Period)+IF(Selected_Tariff_Category_ID=2, 4, 1) -> 4 | S30: =IF(Selected_Tariff_Category_ID = 2, "Apr " & YEAR(Municipality_Period), "") -> 
C31: =D31-EOMONTH(D31,-1) -> 31 | D31: =EOMONTH(D30,1) -> 2021-05-31 | E31: =INDEX(List_Seasons,R31,0) -> Low Demand | M31: =SUM($G31:$I31) -> 0 | O31: 2022 | P31: 2022 | Q31: =IF(Selected_Tariff_Category_ID = 2, YEAR(Municipality_Period), IF(D31<=EOMONTH(Municipality_Period,-12),YEAR(Municipality_Period)-1,YEAR(Municipality_Period))) -> 2021 | R31: =MONTH(D31) -> 5 | S31: =IF(Selected_Tariff_Category_ID = 2, "May " & YEAR(Municipality_Period), "") -> 
C32: 30 | D32: =EOMONTH(D31,1) -> 2021-06-30 | E32: High Demand | M32: 0 | O32: 2022 | P32: 2022 | Q32: =IF(Selected_Tariff_Category_ID = 2, YEAR(Municipality_Period), IF(D32<=EOMONTH(Municipality_Period,-12),YEAR(Municipality_Period)-1,YEAR(Municipality_Period))) -> 2021 | R32: 6 | S32: =IF(Selected_Tariff_Category_ID = 2, "Jun " & YEAR(Municipality_Period), "") -> 
C33: 31 | D33: 2021-07-31 | E33: High Demand | M33: 0 | O33: 2022 | P33: 2022 | Q33: =IF(D33<=EOMONTH(Municipality_Period,-12),YEAR(Municipality_Period)-1,YEAR(Municipality_Period)) -> 2022 | R33: 7
C34: 31 | D34: 2021-08-31 | E34: High Demand | M34: 0 | O34: 2022 | P34: 2022 | Q34: 2022 | R34: 8
C35: 30 | D35: 2021-09-30 | E35: Low Demand | M35: 0 | O35: 2022 | P35: 2022 | Q35: 2022 | R35: 9
C36: 31 | D36: 2021-10-31 | E36: Low Demand | M36: 0 | O36: 2022 | P36: 2022 | Q36: 2022 | R36: 10
C37: 30 | D37: 2021-11-30 | E37: Low Demand | M37: 0 | O37: 2022 | P37: 2022 | Q37: 2022 | R37: 11
C38: 31 | D38: 2021-12-31 | E38: Low Demand | M38: 0 | O38: 2022 | P38: 2022 | Q38: 2022 | R38: 12
C39: 31 | D39: 2022-01-31 | E39: Low Demand | M39: 0 | O39: 2022 | P39: 2022 | Q39: 2022 | R39: 1
C40: 28 | D40: 2022-02-28 | E40: Low Demand | M40: 0 | O40: 2022 | P40: 2022 | Q40: 2022 | R40: 2
C41: 31 | D41: 2022-03-31 | E41: Low Demand | M41: 0 | O41: 2022 | P41: 2022 | Q41: 2022 | R41: 3
D43: Total | G43: =SUM(G30:G41) -> 0 | H43: =SUM(H30:H41) -> 0 | I43: 0 | L43: 0 | M43: 0
B45: Consumption Data Summary
D47: Season | E47: Days | G47: =G$27 -> Peak energy | H47: =H$27 -> Standard energy | I47: Off-peak energy | J47: Chargeable demand | K47: Utilised capacity | L47: Excess reactive energy | M47: Total energy
D49: Low Demand | E49: =SUMIFS(C$30:C$41,$E$30:$E$41,$D49,$O$30:$O$41,$P49) -> 273 | G49: =SUMIFS(G$30:G$41,$E$30:$E$41,$D49,$O$30:$O$41,$P49) -> 0 | H49: 0 | I49: 0 | J49: 0 | K49: 0 | L49: 0 | M49: 0 | P49: =YEAR(TOU_Period) -> 2022 | Q49: =COUNTIF($E$30:$E$41,D49) -> 9
D50: High Demand | E50: =SUMIFS(C$30:C$41,$E$30:$E$41,$D50,$O$30:$O$41,$P50) -> 92 | G50: 0 | H50: 0 | I50: 0 | J50: 0 | K50: 0 | L50: 0 | M50: 0 | P50: =YEAR(TOU_Period) -> 2022 | Q50: =COUNTIF($E$30:$E$41,D50) -> 3
D52: Total | E52: =SUM(E49:E50) -> 365 | G52: =SUM(G49:G50) -> 0 | H52: =SUM(H49:H50) -> 0 | I52: 0 | L52: 0 | M52: 0
C55: Note
C56: Calculations are based on the average number of days per month: Ave days per month = Total number of days in year (365) / months (12) = 30.416667

Sheet Bill Comparison
B4: ="High demand vs low demand cost comparison for "&New_Period&" rates" -> High demand vs low demand cost comparison for 2021/2022 rates | I4: =D10 -> Businessrate 1 | K4: =B4 -> High demand vs low demand cost comparison for 2021/2022 rates | R4: =I4 -> Businessrate 1
B6: High Demand | K6: Low Demand
B8: Customer Name: | D8: =Customer_Name -> 0 | F8: High Demand Consumption Data | K8: =B8 -> Customer Name: | M8: =D8 -> 0 | O8: Low Demand Consumption Data
B9: =Inputs!D10 -> Point of delivery ID | D9: =Delivery_ID -> 0 | F9: Sum of Utilised Capacity | H9: =TOU_High_UC -> 0 | I9: kVA | K9: =B9 -> Point of delivery ID | M9: 0 | O9: Sum of Utilised Capacity | Q9: =TOU_Low_UC -> 0 | R9: kVA
C10: Tariff | D10: =Selected_Base_Tariff -> Businessrate 1 | F10: Sum of Chargeable Demands | H10: =TOU_High_Demand -> 0 | I10: kVA | L10: =C10 -> Tariff | M10: Businessrate 1 | O10: Sum of Chargeable Demands | Q10: =TOU_Low_Demand -> 0 | R10: kVA
C11: Tariff Category | D11: =INDEX(Full_Tariff_Type,MATCH(D10,Full_Tariff_List,0)) -> Urban | F11: Peak Consumption | H11: =TOU_High_Peak -> 0 | I11: kWh | L11: Tariff Category | M11: Urban | O11: Peak Consumption | Q11: =TOU_Low_Peak -> 0 | R11: kWh
C12: Supply voltage | D12: =Selected_Supply_Voltage -> < 500V | F12: Standard Consumption | H12: =TOU_High_Standard -> 0 | I12: kWh | L12: Supply voltage | M12: < 500V | O12: Standard Consumption | Q12: =TOU_Low_Standard -> 0 | R12: kWh
C13: Transmission zone | D13: =Selected_Transmission -> [301 - 600km] | F13: Off Peak Consumption | H13: =TOU_High_OffPeak -> 0 | I13: kWh | L13: Transmission zone | M13: [301 - 600km] | O13: Off Peak Consumption | Q13: =TOU_Low_OffPeak -> 0 | R13: kWh
C14: Tariff Classification | D14: =Selected_Tariff_Category -> Non-Local Authority | F14: Total Consumption | H14: =SUM(H11:H13) -> 0 | I14: kWh | L14: Tariff Classification | M14: Non-Local Authority | O14: Total Consumption | Q14: =SUM(Q11:Q13) -> 0 | R14: kWh
C15: No of PODS | D15: =PODs -> 1 | F15: Excess Reactive Energy | H15: =TOU_High_Excess_RE -> 0 | I15: kVArh | L15: No of PODS | M15: 1 | O15: Excess Reactive Energy | Q15: =TOU_Low_Excess_RE -> 0 | R15: kVArh
C16: Size of supply | D16: =Selected_Supply_Size -> 5kVA, 16kVA, 20A or 60A | F16: Days | H16: =TOU_High_Days -> 92 | I16: days | L16: Size of supply | M16: 5kVA, 16kVA, 20A or 60A | O16: Days | Q16: =TOU_Low_Days -> 273 | R16: days
B18: Network charges | D18: Units | E18: =Current_Period &" Rates" -> 2020/2021 Rates | F18: =New_Period &" Rates" -> 2021/2022 Rates | G18: =Current_Period&" Charges" -> 2020/2021 Charges | H18: =New_Period&" Charges" -> 2021/2022 Charges | I18: % Change | K18: Network charges | M18: Units | N18: =Current_Period &" Rates" -> 2020/2021 Rates | O18: =New_Period &" Rates" -> 2021/2022 Rates | P18: =Current_Period&" Charges" -> 2020/2021 Charges | Q18: =New_Period&" Charges" -> 2021/2022 Charges | R18: % Change
A20: =IF(COUNTIF(B20:R20,"n/a")>0,"n/a","") -> n/a | C20: Transmission network charge | D20: R/kVA | E20: ='Rates Table'!E10 -> n/a | F20: ='Rates Table'!AI10 -> n/a | G20: =IFERROR(E20*High_Utilised_Capacity,0) -> 0 | H20: =IFERROR(F20*High_Utilised_Capacity,0) -> 0 | I20: =IFERROR(H20/G20-1,0) -> 0 | L20: =C20 -> Transmission network charge | M20: =D20 -> R/kVA | N20: =E20 -> n/a | O20: =F20 -> n/a | P20: =IFERROR(N20*Low_Utilised_Capacity,0) -> 0 | Q20: =IFERROR(O20*Low_Utilised_Capacity,0) -> 0 | R20: =IFERROR(Q20/P20-1,0) -> 0
A21: =IF(COUNTIF(B21:R21,"n/a")>0,"n/a","") -> n/a | C21: Distribution network capacity charge | D21: R/kVA | E21: ='Rates Table'!E11 -> n/a | F21: ='Rates Table'!AI11 -> n/a | G21: =IFERROR(E21*High_Utilised_Capacity,0) -> 0 | H21: =IFERROR(F21*High_Utilised_Capacity,0) -> 0 | I21: =IFERROR(H21/G21-1,0) -> 0 | L21: =C21 -> Distribution network capacity charge | M21: =D21 -> R/kVA | N21: =E21 -> n/a | O21: n/a | P21: =IFERROR(N21*Low_Utilised_Capacity,0) -> 0 | Q21: =IFERROR(O21*Low_Utilised_Capacity,0) -> 0 | R21: =IFERROR(Q21/P21-1,0) -> 0
A22: n/a | C22: Distribution network demand charge | D22: R/kVA | E22: ='Rates Table'!E12 -> n/a | F22: ='Rates Table'!AI12 -> n/a | G22: =IFERROR(E22*High_Demand,0) -> 0 | H22: =IFERROR(F22*High_Demand,0) -> 0 | I22: 0 | L22: Distribution network demand charge | M22: R/kVA | N22: n/a | O22: n/a | P22: =IFERROR(N22*Low_Demand,0) -> 0 | Q22: =IFERROR(O22*Low_Demand,0) -> 0 | R22: 0
C23: Network demand charge | D23: c/kWh | E23: ='Rates Table'!E13 -> 17.53 | F23: ='Rates Table'!AI13 -> 20.17 | G23: =IFERROR(E23*IF($D$10="Miniflex",(High_Peak+High_Standard),High_Total_Energy),0)/100 -> 0 | H23: =IFERROR(F23*IF($D$10="Miniflex",(High_Peak+High_Standard),High_Total_Energy),0)/100 -> 0 | I23: =IFERROR(H23/G23-1,0) -> 0 | L23: Network demand charge | M23: c/kWh | N23: 17.53 | O23: 20.17 | P23: =IFERROR(N23*IF($M$10="Miniflex",(Low_Peak+Low_Standard),Low_Total_Energy),0)/100 -> 0 | Q23: =IFERROR(O23*IF($M$10="Miniflex",(Low_Peak+Low_Standard),Low_Total_Energy),0)/100 -> 0 | R23: 0
A24: n/a | C24: LV Subsidy Charge | D24: R/kVA | E24: ='Rates Table'!E14 -> n/a | F24: ='Rates Table'!AI14 -> n/a | G24: =IFERROR(E24*High_Utilised_Capacity,0) -> 0 | H24: =IFERROR(F24*High_Utilised_Capacity,0) -> 0 | I24: 0 | L24: LV Subsidy Charge | M24: R/kVA | N24: n/a | O24: n/a | P24: =IFERROR(N24*Low_Utilised_Capacity,0) -> 0 | Q24: =IFERROR(O24*Low_Utilised_Capacity,0) -> 0 | R24: 0
C25: Network capacity charge | D25: =IF(Table_1=1,"R/kVA","R/day") -> R/day | E25: ='Rates Table'!E15 -> 25.18 | F25: ='Rates Table'!AI15 -> 28.97 | G25: =IFERROR(IF(Table_1=1,E25*High_Utilised_Capacity,E25*PODs*High_Days),0) -> 2316.56 | H25: =IFERROR(IF(Table_1=1,F25*High_Utilised_Capacity,F25*PODs*High_Days),0) -> 2665.24 | I25: 0.1505162828 | L25: Network capacity charge | M25: R/day | N25: 25.18 | O25: 28.97 | P25: =IFERROR(IF(Table_1=1,N25*Low_Utilised_Capacity,N25*PODs*Low_Days),0) -> 6874.14 | Q25: =IFERROR(IF(Table_1=1,O25*Low_Utilised_Capacity,O25*PODs*Low_Days),0) -> 7908.81 | R25: 0.1505162828
B27: Total network charges | G27: =SUM(G20:G25) -> 2316.56 | H27: =SUM(H20:H25) -> 2665.24 | I27: 0.1505162828 | K27: Total network charges | P27: =SUM(P20:P25) -> 6874.14 | Q27: =SUM(Q20:Q25) -> 7908.81 | R27: =IFERROR(Q27/P27-1,0) -> 0.1505162828
B29: Energy charges | D29: Units | E29: =E18 -> 2020/2021 Rates | F29: =F18 -> 2021/2022 Rates | G29: 2020/2021 Charges | H29: 2021/2022 Charges | I29: % Change | K29: Energy charges | M29: Units | N29: =N18 -> 2020/2021 Rates | O29: =O18 -> 2021/2022 Rates | P29: 2020/2021 Charges | Q29: 2021/2022 Charges | R29: % Change
A31: n/a | C31: Peak | D31: c/kWh | E31: ='Rates Table'!E21 -> n/a | F31: ='Rates Table'!AI21 -> n/a | G31: =IFERROR(E31*High_Peak,0)/100 -> 0 | H31: =IFERROR(F31*High_Peak,0)/100 -> 0 | I31: =IFERROR(H31/G31-1,0) -> 0 | L31: Peak consumption | M31: =D31 -> c/kWh | N31: ='Rates Table'!E34 -> n/a | O31: ='Rates Table'!AI34 -> n/a | P31: =IFERROR(N31*Low_Peak,0)/100 -> 0 | Q31: =IFERROR(O31*Low_Peak,0)/100 -> 0 | R31: =IFERROR(Q31/P31-1,0) -> 0
A32: n/a | C32: Standard | D32: c/kWh | E32: ='Rates Table'!E22 -> n/a | F32: ='Rates Table'!AI22 -> n/a | G32: =IFERROR(E32*High_Standard,0)/100 -> 0 | H32: =IFERROR(F32*High_Standard,0)/100 -> 0 | I32: 0 | L32: Standard consumption | M32: c/kWh | N32: ='Rates Table'!E35 -> n/a | O32: ='Rates Table'!AI35 -> n/a | P32: =IFERROR(N32*Low_Standard,0)/100 -> 0 | Q32: =IFERROR(O32*Low_Standard,0)/100 -> 0 | R32: 0
A33: n/a | C33: Off-Peak | D33: c/kWh | E33: ='Rates Table'!E23 -> n/a | F33: ='Rates Table'!AI23 -> n/a | G33: =IFERROR(E33*High_OffPeak,0)/100 -> 0 | H33: =IFERROR(F33*High_OffPeak,0)/100 -> 0 | I33: 0 | L33: Off-Peak consumption | M33: c/kWh | N33: ='Rates Table'!E36 -> n/a | O33: ='Rates Table'!AI36 -> n/a | P33: =IFERROR(N33*Low_OffPeak,0)/100 -> 0 | Q33: =IFERROR(O33*Low_OffPeak,0)/100 -> 0 | R33: 0
A34: =A33 -> n/a
A35: =A34 -> n/a | C35: Sub Total (TOU) | G35: =SUM(G31:G33) -> 0 | H35: =SUM(H31:H33) -> 0 | I35: =IFERROR(H35/G35-1,0) -> 0 | L35: =C35 -> Sub Total (TOU) | P35: =SUM(P31:P33) -> 0 | Q35: =SUM(Q31:Q33) -> 0 | R35: =IFERROR(Q35/P35-1,0) -> 0
C37: Sub Total (non-TOU) | D37: c/kWh | E37: ='Rates Table'!E25 -> 124.19 | F37: ='Rates Table'!AI25 -> 142.89 | G37: =IFERROR(E37*(High_Total_Energy),0)/100 -> 0 | H37: =IFERROR(F37*(High_Total_Energy),0)/100 -> 0 | I37: =IFERROR(H37/G37-1,0) -> 0 | L37: =C37 -> Sub Total (non-TOU) | M37: =D37 -> c/kWh | N37: ='Rates Table'!E38 -> 124.19 | O37: ='Rates Table'!AI38 -> 142.89 | P37: =IFERROR(N37*(Low_Total_Energy),0)/100 -> 0 | Q37: =IFERROR(O37*(Low_Total_Energy),0)/100 -> 0 | R37: =IFERROR(Q37/P37-1,0) -> 0
C38: Energy - Block 1 | D38: c/kWh | E38: ='Rates Table'!E26 -> 0 | F38: ='Rates Table'!AI26 -> 0 | G38: =IFERROR(E38*(High_Block_1),0)/100 -> 0 | H38: =IFERROR(F38*(High_Block_1),0)/100 -> 0 | I38: =IFERROR(H38/G38-1,0) -> 0 | L38: =C38 -> Energy - Block 1 | M38: c/kWh | N38: ='Rates Table'!E39 -> 0 | O38: ='Rates Table'!AI39 -> 0 | P38: =IFERROR(N38*(Low_Block_1),0)/100 -> 0 | Q38: =IFERROR(O38*(Low_Block_1),0)/100 -> 0 | R38: 0
C39: Energy - Block 2 | D39: c/kWh | E39: ='Rates Table'!E27 -> 0 | F39: ='Rates Table'!AI27 -> 0 | G39: =IFERROR(E39*(High_Block_2),0)/100 -> 0 | H39: =IFERROR(F39*(High_Block_2),0)/100 -> 0 | I39: =IFERROR(H39/G39-1,0) -> 0 | L39: Energy - Block 2 | M39: c/kWh | N39: ='Rates Table'!E40 -> 0 | O39: ='Rates Table'!AI40 -> 0 | P39: =IFERROR(N39*(Low_Block_2),0)/100 -> 0 | Q39: =IFERROR(O39*(Low_Block_2),0)/100 -> 0 | R39: 0
A40: n/a | C40: Energy Demand | D40: R/kVA | E40: ='Rates Table'!E28 -> n/a | F40: ='Rates Table'!AI28 -> n/a | G40: =IFERROR(E40*High_Demand,0) -> 0 | H40: =IFERROR(F40*High_Demand,0) -> 0 | I40: 0 | L40: Energy Demand | M40: R/kVA | N40: ='Rates Table'!E41 -> n/a | O40: ='Rates Table'!AI41 -> n/a | P40: =IFERROR(N40*Low_Demand,0) -> 0 | Q40: =IFERROR(O40*Low_Demand,0) -> 0 | R40: 0
B42: Total energy charges | G42: =SUM(G35:G40) -> 0 | H42: =SUM(H35:H40) -> 0 | I42: =IFERROR(H42/G42-1,0) -> 0 | K42: Total energy charges | P42: =SUM(P35:P40) -> 0 | Q42: =SUM(Q35:Q40) -> 0 | R42: =IFERROR(Q42/P42-1,0) -> 0
B44: Other charges | D44: Units | E44: =E18 -> 2020/2021 Rates | F44: =F18 -> 2021/2022 Rates | G44: =G18 -> 2020/2021 Charges | H44: =H18 -> 2021/2022 Charges | I44: % Change | K44: Other charges | M44: Units | N44: =N18 -> 2020/2021 Rates | O44: =O18 -> 2021/2022 Rates | P44: =P18 -> 2020/2021 Charges | Q44: =Q18 -> 2021/2022 Charges | R44: % Change
C46: Ancillary service charge | D46: c/kWh | E46: ='Rates Table'!E47 -> 0.48 | F46: ='Rates Table'!AI47 -> 0.55 | G46: =IFERROR(High_Total_Energy*E46,0)/100 -> 0 | H46: =IFERROR(High_Total_Energy*F46,0)/100 -> 0 | I46: =IFERROR(H46/G46-1,0) -> 0 | L46: =C46 -> Ancillary service charge | M46: =D46 -> c/kWh | N46: =E46 -> 0.48 | O46: =F46 -> 0.55 | P46: =IFERROR(Low_Total_Energy*N46,0)/100 -> 0 | Q46: =IFERROR(Low_Total_Energy*O46,0)/100 -> 0 | R46: =IFERROR(Q46/P46-1,0) -> 0
A47: n/a | C47: Reactive energy charge | D47: c/kVArh | E47: ='Rates Table'!E48 -> n/a | F47: ='Rates Table'!AI48 -> n/a | G47: =IFERROR(High_Excess_RE*E47,0)/100 -> 0 | H47: =IFERROR(High_Excess_RE*F47,0)/100 -> 0 | I47: 0 | L47: =C47 -> Reactive energy charge | M47: c/kVArh | N47: 0 | O47: 0 | P47: =IFERROR(Low_Excess_RE*N47,0)/100 -> 0 | Q47: =IFERROR(Low_Excess_RE*O47,0)/100 -> 0 | R47: 0
A48: n/a | C48: Electrification and rural subsidy charge | D48: c/kWh | E48: ='Rates Table'!E49 -> n/a | F48: ='Rates Table'!AI49 -> n/a | G48: =IFERROR(High_Total_Energy*E48,0)/100 -> 0 | H48: 0 | I48: 0 | L48: Electrification and rural subsidy charge | M48: c/kWh | N48: =E48 -> n/a | O48: =F48 -> n/a | P48: =IFERROR(Low_Total_Energy*N48,0)/100 -> 0 | Q48: 0 | R48: 0
A49: n/a | C49: Affordability subsidy charge | D49: c/kWh | E49: ='Rates Table'!E50 -> n/a | F49: ='Rates Table'!AI50 -> n/a | G49: 0 | H49: 0 | I49: 0 | L49: Affordability subsidy charge | M49: c/kWh | N49: n/a | O49: n/a | P49: 0 | Q49: 0 | R49: 0
A50: n/a | C50: Administration charge | D50: R/day | E50: ='Rates Table'!E51 -> n/a | F50: ='Rates Table'!AI51 -> n/a | G50: =IFERROR(E50*PODs*High_Days,0) -> 0 | H50: =IFERROR(F50*PODs*High_Days,0) -> 0 | I50: =IFERROR(H50/G50-1,0) -> 0 | L50: Administration charge | M50: R/day | N50: n/a | O50: n/a | P50: =IFERROR(N50*PODs*Low_Days,0) -> 0 | Q50: =IFERROR(O50*PODs*Low_Days,0) -> 0 | R50: 0
C51: Service charge | D51: =IF(Table_1=1,"R/day","R/day") -> R/day | E51: ='Rates Table'!E52 -> 21.75 | F51: ='Rates Table'!AI52 -> 25.03 | G51: =IFERROR(IF(Table_1=1,E51*1*High_Days,E51*PODs*High_Days),0) -> 2001 | H51: =IFERROR(IF(Table_1=1,F51*1*High_Days,F51*PODs*High_Days),0) -> 2302.76 | I51: 0.1508045977 | L51: Service charge | M51: R/day | N51: 21.75 | O51: 25.03 | P51: =IFERROR(IF(Table_1=1,N51*1*Low_Days,N51*PODs*Low_Days),0) -> 5937.75 | Q51: =IFERROR(IF(Table_1=1,O51*1*Low_Days,O51*PODs*Low_Days),0) -> 6833.19 | R51: 0.1508045977
B53: Total other charges | G53: =SUM(G46:G51) -> 2001 | H53: =SUM(H46:H51) -> 2302.76 | I53: =IFERROR(H53/G53-1,0) -> 0.1508045977 | K53: Total other charges | P53: =SUM(P46:P51) -> 5937.75 | Q53: =SUM(Q46:Q51) -> 6833.19 | R53: =IFERROR(Q53/P53-1,0) -> 0.1508045977
B55: Total excl VAT | G55: =G53+G42+G27 -> 4317.56 | H55: =H53+H42+H27 -> 4968 | I55: =IFERROR(H55/G55-1,0) -> 0.1506499041 | K55: Total excl VAT | P55: =P53+P42+P27 -> 12811.89 | Q55: =Q53+Q42+Q27 -> 14742 | R55: =IFERROR(Q55/P55-1,0) -> 0.1506499041
B56: VAT | D56: =VAT -> 0.15 | G56: =G55*$D56 -> 647.634 | H56: =H55*$D56 -> 745.2 | K56: VAT | M56: =VAT -> 0.15 | P56: =P55*$D56 -> 1921.7835 | Q56: =Q55*$D56 -> 2211.3
B58: Total account | G58: =SUM(G55:G56) -> 4965.194 | H58: =SUM(H55:H56) -> 5713.2 | I58: =IFERROR(H58/G58-1,0) -> 0.1506499041 | K58: Total account | P58: =SUM(P55:P56) -> 14733.6735 | Q58: =SUM(Q55:Q56) -> 16953.3 | R58: =IFERROR(Q58/P58-1,0) -> 0.1506499041
B60: Average price | D60: c/kWh | G60: =IFERROR(G55/High_Total_Energy*100,0) -> 0 | H60: =IFERROR(H55/High_Total_Energy*100,0) -> 0 | I60: =IFERROR(H60/G60-1,0) -> 0 | K60: Average price | M60: c/kWh | P60: =IFERROR(P55/Low_Total_Energy*100,0) -> 0 | Q60: =IFERROR(Q55/Low_Total_Energy*100,0) -> 0 | R60: =IFERROR(Q60/P60-1,0) -> 0
B62: Annual
B64: Network charges | D64: Units | E64: =E$18 -> 2020/2021 Rates | F64: =F$18 -> 2021/2022 Rates | G64: 2020/2021 Charges | H64: 2021/2022 Charges | I64: % Change
A66: =A20 -> n/a | C66: =C20 -> Transmission network charge | D66: =D20 -> R/kVA | G66: =G20+P20 -> 0 | H66: 0 | I66: =IFERROR(H66/G66-1,0) -> 0
A67: =A21 -> n/a | C67: =C21 -> Distribution network capacity charge | D67: R/kVA | G67: 0 | H67: 0 | I67: =IFERROR(H67/G67-1,0) -> 0
A68: n/a | C68: =C22 -> Distribution network demand charge | D68: R/kVA | G68: 0 | H68: 0 | I68: 0
C69: Network demand charge | D69: c/kWh | G69: 0 | H69: 0 | I69: 0
A70: n/a | C70: LV Subsidy Charge | D70: R/kVA | G70: 0 | H70: 0 | I70: 0
C71: Network capacity charge | D71: R/day | G71: 9190.7 | H71: 10574.05 | I71: 0.1505162828
B73: Total network charges | G73: =SUM(G66:G71) -> 9190.7 | H73: =SUM(H66:H71) -> 10574.05 | I73: =IFERROR(H73/G73-1,0) -> 0.1505162828
B75: Energy charges | D75: Units | E75: =E$18 -> 2020/2021 Rates | F75: =F$18 -> 2021/2022 Rates | G75: 2020/2021 Charges | H75: 2021/2022 Charges | I75: % Change
A77: n/a | C77: Peak consumption | D77: =D31 -> c/kWh | G77: =G31+P31 -> 0 | H77: 0 | I77: =IFERROR(H77/G77-1,0) -> 0
A78: n/a | C78: Standard consumption | D78: =D32 -> c/kWh | G78: 0 | H78: 0 | I78: 0
A79: n/a | C79: Off-Peak consumption | D79: =D33 -> c/kWh | G79: 0 | H79: 0 | I79: 0
A80: n/a
A81: n/a | C81: Sub Total (TOU) | G81: =SUM(G77:G79) -> 0 | H81: =SUM(H77:H79) -> 0 | I81: =IFERROR(H81/G81-1,0) -> 0
C83: =C37 -> Sub Total (non-TOU) | D83: =D37 -> c/kWh | G83: =G37+P37 -> 0 | H83: 0 | I83: =IFERROR(H83/G83-1,0) -> 0
C84: Energy - Block 1 | D84: =D38 -> c/kWh | G84: 0 | H84: 0 | I84: 0
C85: Energy - Block 2 | D85: =D39 -> c/kWh | G85: 0 | H85: 0 | I85: 0
A86: n/a | C86: =C40 -> Energy Demand | D86: =D40 -> R/kVA | G86: =G40+P40 -> 0 | H86: 0 | I86: 0
B88: Total energy charges | G88: =SUM(G81:G86) -> 0 | H88: =SUM(H81:H86) -> 0 | I88: =IFERROR(H88/G88-1,0) -> 0
B90: Other charges | D90: Units | E90: =E$18 -> 2020/2021 Rates | F90: =F$18 -> 2021/2022 Rates | G90: 2020/2021 Charges | H90: 2021/2022 Charges | I90: % Change
C92: Ancillary service charge | D92: =D46 -> c/kWh | G92: =G46+P46 -> 0 | H92: 0 | I92: =IFERROR(H92/G92-1,0) -> 0
A93: n/a | C93: Reactive energy charge | D93: c/kVArh | G93: 0 | H93: 0 | I93: 0
A94: n/a | C94: Electrification and rural subsidy | D94: c/kWh | G94: 0 | H94: 0 | I94: 0
A95: n/a | C95: Affordability subsidy | D95: c/kWh | G95: 0 | H95: 0 | I95: 0
A96: n/a | C96: Administration charge | D96: R/day | G96: 0 | H96: 0 | I96: 0
C97: Service charge | D97: R/day | G97: 7938.75 | H97: 9135.95 | I97: 0.1508045977
B99: Total other charges | G99: =SUM(G92:G97) -> 7938.75 | H99: =SUM(H92:H97) -> 9135.95 | I99: =IFERROR(H99/G99-1,0) -> 0.1508045977
B101: Total excl VAT | G101: =G99+G88+G73 -> 17129.45 | H101: =H99+H88+H73 -> 19710 | I101: =IFERROR(H101/G101-1,0) -> 0.1506499041
B102: VAT | D102: =VAT -> 0.15 | G102: =G101*$D102 -> 2569.4175 | H102: =H101*$D102 -> 2956.5
B104: Total account | G104: =SUM(G101:G102) -> 19698.8675 | H104: =SUM(H101:H102) -> 22666.5 | I104: =IFERROR(H104/G104-1,0) -> 0.1506499041
B106: Average price | D106: c/kWh | G106: =IFERROR(G101/(High_Total_Energy+Low_Total_Energy)*100,0) -> 0 | H106: =IFERROR(H101/(High_Total_Energy+Low_Total_Energy)*100,0) -> 0 | I106: =IFERROR(H106/G106-1,0) -> 0
B108: Summary | E108: =G108 -> 2020/2021 | F108: =H108 -> 2021/2022 | G108: =Current_Period -> 2020/2021 | H108: =New_Period -> 2021/2022 | I108: % Change
C110: High Demand | E110: =G110 -> 4965.194 | F110: =H110 -> 5713.2 | G110: =G58 -> 4965.194 | H110: =H58 -> 5713.2 | I110: =IFERROR(H110/G110-1,0) -> 0.1506499041
C111: Low Demand | E111: =G111 -> 14733.6735 | F111: =H111 -> 16953.3 | G111: =P58 -> 14733.6735 | H111: =Q58 -> 16953.3 | I111: =IFERROR(H111/G111-1,0) -> 0.1506499041
C112: Total | G112: =SUM(G110:G111) -> 19698.8675 | H112: =SUM(H110:H111) -> 22666.5 | I112: =IFERROR(H112/G112-1,0) -> 0.1506499041
B114: Blocks
C115: Block 1 | D115: =IF(High_Total_Energy / High_Months > Block_1_Upper, Block_1_Upper * High_Months, High_Total_Energy) -> 0 | E115: =IF(D10 = Lists!B21, Block1_max_HL20A, Block1_max_HL60A) -> 600 | L115: Block 1 | M115: =IF(Low_Total_Energy / Low_Months > Block_1_Upper, Block_1_Upper * Low_Months, Low_Total_Energy) -> 0
C116: Block 2 | D116: =High_Total_Energy - D115 -> 0 | L116: Block 2 | M116: =Low_Total_Energy - M115 -> 0

Sheet Monthly Comparison
B4: ="Cost comparison for " & New_Period & " rates" -> Cost comparison for 2021/2022 rates | Q4: =D8 -> Businessrate 1
C6: Customer Name: | D6: =Customer_Name -> 0 | J6: Consumption Data
C7: =Inputs!D10 -> Point of delivery ID | D7: =Delivery_ID -> 0 | J7: Sum of Utilised Capacity | L7: =TOU_High_UC + TOU_Low_UC -> 0 | M7: kVA | N7: Peak Consumption | P7: =TOU_High_Peak + TOU_Low_Peak -> 0 | Q7: kWh
C8: Tariff | D8: =Selected_Base_Tariff -> Businessrate 1 | F8: Tariff Classification | H8: =Selected_Tariff_Category -> Non-Local Authority | J8: Sum of Chargeable Demands | L8: =TOU_High_Demand + TOU_Low_Demand -> 0 | M8: kVA | N8: Standard Consumption | P8: =TOU_High_Standard + TOU_Low_Standard -> 0 | Q8: kWh
C9: Tariff Category | D9: =INDEX(Full_Tariff_Type,MATCH(D8,Full_Tariff_List,0)) -> Urban | F9: No of PODS | H9: =PODs -> 1 | J9: Excess Reactive Energy | L9: =TOU_High_Excess_RE + TOU_Low_Excess_RE -> 0 | M9: kVArh | N9: Off Peak Consumption | P9: =TOU_High_OffPeak + TOU_Low_OffPeak -> 0 | Q9: kWh
C10: Supply voltage | D10: =Selected_Supply_Voltage -> < 500V | F10: Size of supply | H10: =Selected_Supply_Size -> 5kVA, 16kVA, 20A or 60A | J10: Days | L10: =TOU_High_Days + TOU_Low_Days -> 365 | M10: days | N10: Total Consumption | P10: =SUM(P7:P9) -> 0 | Q10: kWh
C11: Transmission zone | D11: =Selected_Transmission -> [301 - 600km]
B13: Network charges | E13: =Inputs!D30 -> 2021-04-30 | F13: =Inputs!D31 -> 2021-05-31 | G13: =Inputs!D32 -> 2021-06-30 | H13: =Inputs!D33 -> 2021-07-31 | I13: =Inputs!D34 -> 2021-08-31 | J13: =Inputs!D35 -> 2021-09-30 | K13: =Inputs!D36 -> 2021-10-31 | L13: =Inputs!D37 -> 2021-11-30 | M13: =Inputs!D38 -> 2021-12-31 | N13: =Inputs!D39 -> 2022-01-31 | O13: =Inputs!D40 -> 2022-02-28 | P13: =Inputs!D41 -> 2022-03-31 | Q13: Total | AA13: check | AB13: =SUM(AB14:AB87) -> -5.456968211e-12
C14: Transmission network charge - R/kVA | D14: =New_Period -> 2021/2022 | E14: =IFERROR(Inputs!$K$30 * 'Rates Table'!$AI$10, 0) -> 0 | F14: =IFERROR(Inputs!$K$31 * 'Rates Table'!$AI$10, 0) -> 0 | G14: =IFERROR(Inputs!$K$32 * 'Rates Table'!$AI$10, 0) -> 0 | H14: =IFERROR(Inputs!$K$33 * 'Rates Table'!$AI$10, 0) -> 0 | I14: =IFERROR(Inputs!$K$34 * 'Rates Table'!$AI$10, 0) -> 0 | J14: =IFERROR(Inputs!$K$35 * 'Rates Table'!$AI$10, 0) -> 0 | K14: =IFERROR(Inputs!$K$36 * 'Rates Table'!$AI$10, 0) -> 0 | L14: =IFERROR(Inputs!$K$37 * 'Rates Table'!$AI$10, 0) -> 0 | M14: =IFERROR(Inputs!$K$38 * 'Rates Table'!$AI$10, 0) -> 0 | N14: =IFERROR(Inputs!$K$39 * 'Rates Table'!$AI$10, 0) -> 0 | O14: =IFERROR(Inputs!$K$40 * 'Rates Table'!$AI$10, 0) -> 0 | P14: =IFERROR(Inputs!$K$41 * 'Rates Table'!$AI$10, 0) -> 0 | Q14: =SUM(E14:P14) -> 0 | AA14: ='Bill Comparison'!H66 -> 0 | AB14: =IFERROR(Q14 - AA14, "") -> 0
D15: =Current_Period -> 2020/2021 | E15: =IFERROR(Inputs!$K$30 * 'Rates Table'!$E$10, 0) -> 0 | F15: =IFERROR(Inputs!$K$31 * 'Rates Table'!$E$10, 0) -> 0 | G15: =IFERROR(Inputs!$K$32 * 'Rates Table'!$E$10, 0) -> 0 | H15: =IFERROR(Inputs!$K$33 * 'Rates Table'!$E$10, 0) -> 0 | I15: =IFERROR(Inputs!$K$34 * 'Rates Table'!$E$10, 0) -> 0 | J15: =IFERROR(Inputs!$K$35 * 'Rates Table'!$E$10, 0) -> 0 | K15: =IFERROR(Inputs!$K$36 * 'Rates Table'!$E$10, 0) -> 0 | L15: =IFERROR(Inputs!$K$37 * 'Rates Table'!$E$10, 0) -> 0 | M15: =IFERROR(Inputs!$K$38 * 'Rates Table'!$E$10, 0) -> 0 | N15: =IFERROR(Inputs!$K$39 * 'Rates Table'!$E$10, 0) -> 0 | O15: =IFERROR(Inputs!$K$40 * 'Rates Table'!$E$10, 0) -> 0 | P15: =IFERROR(Inputs!$K$41 * 'Rates Table'!$E$10, 0) -> 0 | Q15: =SUM(E15:P15) -> 0 | AA15: ='Bill Comparison'!G66 -> 0 | AB15: =IFERROR(Q15 - AA15, "") -> 0
D16: % change | E16: =IFERROR((E14 - E15) / E15, "") ->  | F16: =IFERROR((F14 - F15) / F15, "") -> 
C17: Distribution network capacity charge | D17: =New_Period -> 2021/2022 | E17: =IFERROR('Rates Table'!$AI$11*Inputs!$K$30,0) -> 0 | F17: =IFERROR('Rates Table'!$AI$11*Inputs!$K$31,0) -> 0 | G17: =IFERROR('Rates Table'!$AI$11*Inputs!$K$32,0) -> 0 | H17: =IFERROR('Rates Table'!$AI$11*Inputs!$K$33,0) -> 0 | I17: =IFERROR('Rates Table'!$AI$11*Inputs!$K$34,0) -> 0 | J17: =IFERROR('Rates Table'!$AI$11*Inputs!$K$35,0) -> 0 | K17: =IFERROR('Rates Table'!$AI$11*Inputs!$K$36,0) -> 0 | L17: =IFERROR('Rates Table'!$AI$11*Inputs!$K$37,0) -> 0 | M17: =IFERROR('Rates Table'!$AI$11*Inputs!$K$38,0) -> 0 | N17: =IFERROR('Rates Table'!$AI$11*Inputs!$K$39,0) -> 0 | O17: =IFERROR('Rates Table'!$AI$11*Inputs!$K$40,0) -> 0 | P17: =IFERROR('Rates Table'!$AI$11*Inputs!$K$41,0) -> 0 | Q17: =SUM(E17:P17) -> 0 | AA17: ='Bill Comparison'!H67 -> 0 | AB17: =IFERROR(Q17 - AA17, "") -> 0
D18: =Current_Period -> 2020/2021 | E18: =IFERROR('Rates Table'!$E$11*Inputs!$K$30,0) -> 0 | F18: =IFERROR('Rates Table'!$E$11*Inputs!$K$31,0) -> 0 | G18: =IFERROR('Rates Table'!$E$11*Inputs!$K$32,0) -> 0 | H18: =IFERROR('Rates Table'!$E$11*Inputs!$K$33,0) -> 0 | I18: =IFERROR('Rates Table'!$E$11*Inputs!$K$34,0) -> 0 | J18: =IFERROR('Rates Table'!$E$11*Inputs!$K$35,0) -> 0 | K18: =IFERROR('Rates Table'!$E$11*Inputs!$K$36,0) -> 0 | L18: =IFERROR('Rates Table'!$E$11*Inputs!$K$37,0) -> 0 | M18: =IFERROR('Rates Table'!$E$11*Inputs!$K$38,0) -> 0 | N18: =IFERROR('Rates Table'!$E$11*Inputs!$K$39,0) -> 0 | O18: =IFERROR('Rates Table'!$E$11*Inputs!$K$40,0) -> 0 | P18: =IFERROR('Rates Table'!$E$11*Inputs!$K$41,0) -> 0 | Q18: =SUM(E18:P18) -> 0 | AA18: ='Bill Comparison'!G67 -> 0 | AB18: =IFERROR(Q18 - AA18, "") -> 0
D19: % change | E19: =IFERROR((E17 - E18) / E18, "") ->  | F19: =IFERROR((F17 - F18) / F18, "") ->  | G19: =IFERROR((G17 - G18) / G18, "") ->  | H19: =IFERROR((H17 - H18) / H18, "") ->  | I19: =IFERROR((I17 - I18) / I18, "") ->  | J19: =IFERROR((J17 - J18) / J18, "") ->  | K19: =IFERROR((K17 - K18) / K18, "") ->  | L19: =IFERROR((L17 - L18) / L18, "") ->  | M19: =IFERROR((M17 - M18) / M18, "") ->  | N19: =IFERROR((N17 - N18) / N18, "") ->  | O19: =IFERROR((O17 - O18) / O18, "") ->  | P19: =IFERROR((P17 - P18) / P18, "") ->  | Q19: =IFERROR((Q17 - Q18) / Q18, "") -> 
C20: Distribution network demand charge - R/kVA | D20: =New_Period -> 2021/2022 | E20: =IFERROR(Inputs!$J$30 * 'Rates Table'!$AI$12, 0) -> 0 | F20: =IFERROR(Inputs!$J$31 * 'Rates Table'!$AI$12, 0) -> 0 | G20: =IFERROR(Inputs!$J$32 * 'Rates Table'!$AI$12, 0) -> 0 | H20: =IFERROR(Inputs!$J$33 * 'Rates Table'!$AI$12, 0) -> 0 | I20: =IFERROR(Inputs!$J$34 * 'Rates Table'!$AI$12, 0) -> 0 | J20: =IFERROR(Inputs!$J$35 * 'Rates Table'!$AI$12, 0) -> 0 | K20: =IFERROR(Inputs!$J$36 * 'Rates Table'!$AI$12, 0) -> 0 | L20: =IFERROR(Inputs!$J$37 * 'Rates Table'!$AI$12, 0) -> 0 | M20: =IFERROR(Inputs!$J$38 * 'Rates Table'!$AI$12, 0) -> 0 | N20: =IFERROR(Inputs!$J$39 * 'Rates Table'!$AI$12, 0) -> 0 | O20: =IFERROR(Inputs!$J$40 * 'Rates Table'!$AI$12, 0) -> 0 | P20: =IFERROR(Inputs!$J$41 * 'Rates Table'!$AI$12, 0) -> 0 | Q20: =SUM(E20:P20) -> 0 | AA20: ='Bill Comparison'!H68 -> 0 | AB20: =IFERROR(Q20 - AA20, "") -> 0
D21: =Current_Period -> 2020/2021 | E21: =IFERROR(Inputs!$J$30 * 'Rates Table'!$E$12, 0) -> 0 | F21: =IFERROR(Inputs!$J$31 * 'Rates Table'!$E$12, 0) -> 0 | G21: =IFERROR(Inputs!$J$32 * 'Rates Table'!$E$12, 0) -> 0 | H21: =IFERROR(Inputs!$J$33 * 'Rates Table'!$E$12, 0) -> 0 | I21: =IFERROR(Inputs!$J$34 * 'Rates Table'!$E$12, 0) -> 0 | J21: =IFERROR(Inputs!$J$35 * 'Rates Table'!$E$12, 0) -> 0 | K21: =IFERROR(Inputs!$J$36 * 'Rates Table'!$E$12, 0) -> 0 | L21: =IFERROR(Inputs!$J$37 * 'Rates Table'!$E$12, 0) -> 0 | M21: =IFERROR(Inputs!$J$38 * 'Rates Table'!$E$12, 0) -> 0 | N21: =IFERROR(Inputs!$J$39 * 'Rates Table'!$E$12, 0) -> 0 | O21: =IFERROR(Inputs!$J$40 * 'Rates Table'!$E$12, 0) -> 0 | P21: =IFERROR(Inputs!$J$41 * 'Rates Table'!$E$12, 0) -> 0 | Q21: =SUM(E21:P21) -> 0 | AA21: ='Bill Comparison'!G68 -> 0 | AB21: =IFERROR(Q21 - AA21, "") -> 0
D22: % change | E22: =IFERROR((E20 - E21) / E21, "") ->  | F22: =IFERROR((F20 - F21) / F21, "") ->  | G22: =IFERROR((G20 - G21) / G21, "") ->  | H22: =IFERROR((H20 - H21) / H21, "") ->  | I22: =IFERROR((I20 - I21) / I21, "") ->  | J22: =IFERROR((J20 - J21) / J21, "") ->  | K22: =IFERROR((K20 - K21) / K21, "") ->  | L22: =IFERROR((L20 - L21) / L21, "") ->  | M22: =IFERROR((M20 - M21) / M21, "") ->  | N22: =IFERROR((N20 - N21) / N21, "") ->  | O22: =IFERROR((O20 - O21) / O21, "") ->  | P22: =IFERROR((P20 - P21) / P21, "") ->  | Q22: =IFERROR((Q20 - Q21) / Q21, "") -> 
C23: Network demand charge - c/kWh | D23: =New_Period -> 2021/2022 | E23: =IFERROR('Rates Table'!$AI$13*IF($D$8="Miniflex",Inputs!$G$30+Inputs!$H$30,Inputs!$M$30),0)/100 -> 0 | F23: =IFERROR('Rates Table'!$AI$13*IF($D$8="Miniflex",Inputs!$G$31+Inputs!$H$31,Inputs!$M$31),0)/100 -> 0 | G23: =IFERROR('Rates Table'!$AI$13*IF($D$8="Miniflex",Inputs!$G$32+Inputs!$H$32,Inputs!$M$32),0)/100 -> 0 | H23: =IFERROR('Rates Table'!$AI$13*IF($D$8="Miniflex",Inputs!$G$33+Inputs!$H$33,Inputs!$M$33),0)/100 -> 0 | I23: =IFERROR('Rates Table'!$AI$13*IF($D$8="Miniflex",Inputs!$G$34+Inputs!$H$34,Inputs!$M$34),0)/100 -> 0 | J23: =IFERROR('Rates Table'!$AI$13*IF($D$8="Miniflex",Inputs!$G$35+Inputs!$H$35,Inputs!$M$35),0)/100 -> 0 | K23: =IFERROR('Rates Table'!$AI$13*IF($D$8="Miniflex",Inputs!$G$36+Inputs!$H$36,Inputs!$M$36),0)/100 -> 0 | L23: =IFERROR('Rates Table'!$AI$13*IF($D$8="Miniflex",Inputs!$G$37+Inputs!$H$37,Inputs!$M$37),0)/100 -> 0 | M23: =IFERROR('Rates Table'!$AI$13*IF($D$8="Miniflex",Inputs!$G$38+Inputs!$H$38,Inputs!$M$38),0)/100 -> 0 | N23: =IFERROR('Rates Table'!$AI$13*IF($D$8="Miniflex",Inputs!$G$39+Inputs!$H$39,Inputs!$M$39),0)/100 -> 0 | O23: =IFERROR('Rates Table'!$AI$13*IF($D$8="Miniflex",Inputs!$G$40+Inputs!$H$40,Inputs!$M$40),0)/100 -> 0 | P23: =IFERROR('Rates Table'!$AI$13*IF($D$8="Miniflex",Inputs!$G$41+Inputs!$H$41,Inputs!$M$41),0)/100 -> 0 | Q23: =SUM(E23:P23) -> 0 | AA23: ='Bill Comparison'!H69 -> 0 | AB23: =IFERROR(Q23 - AA23, "") -> 0
D24: =Current_Period -> 2020/2021 | E24: =IFERROR('Rates Table'!$E$13*IF($D$8="Miniflex",Inputs!$G$30+Inputs!$H$30,Inputs!$M$30),0)/100 -> 0 | F24: =IFERROR('Rates Table'!$E$13*IF($D$8="Miniflex",Inputs!$G$31+Inputs!$H$31,Inputs!$M$31),0)/100 -> 0 | G24: =IFERROR('Rates Table'!$E$13*IF($D$8="Miniflex",Inputs!$G$32+Inputs!$H$32,Inputs!$M$32),0)/100 -> 0 | H24: =IFERROR('Rates Table'!$E$13*IF($D$8="Miniflex",Inputs!$G$33+Inputs!$H$33,Inputs!$M$33),0)/100 -> 0 | I24: =IFERROR('Rates Table'!$E$13*IF($D$8="Miniflex",Inputs!$G$34+Inputs!$H$34,Inputs!$M$34),0)/100 -> 0 | J24: =IFERROR('Rates Table'!$E$13*IF($D$8="Miniflex",Inputs!$G$35+Inputs!$H$35,Inputs!$M$35),0)/100 -> 0 | K24: =IFERROR('Rates Table'!$E$13*IF($D$8="Miniflex",Inputs!$G$36+Inputs!$H$36,Inputs!$M$36),0)/100 -> 0 | L24: =IFERROR('Rates Table'!$E$13*IF($D$8="Miniflex",Inputs!$G$37+Inputs!$H$37,Inputs!$M$37),0)/100 -> 0 | M24: =IFERROR('Rates Table'!$E$13*IF($D$8="Miniflex",Inputs!$G$38+Inputs!$H$38,Inputs!$M$38),0)/100 -> 0 | N24: =IFERROR('Rates Table'!$E$13*IF($D$8="Miniflex",Inputs!$G$39+Inputs!$H$39,Inputs!$M$39),0)/100 -> 0 | O24: =IFERROR('Rates Table'!$E$13*IF($D$8="Miniflex",Inputs!$G$40+Inputs!$H$40,Inputs!$M$40),0)/100 -> 0 | P24: =IFERROR('Rates Table'!$E$13*IF($D$8="Miniflex",Inputs!$G$41+Inputs!$H$41,Inputs!$M$41),0)/100 -> 0 | Q24: =SUM(E24:P24) -> 0 | AA24: ='Bill Comparison'!G69 -> 0 | AB24: =IFERROR(Q24 - AA24, "") -> 0
D25: % change | E25: =IFERROR((E23 - E24) / E24, "") ->  | F25: =IFERROR((F23 - F24) / F24, "") ->  | Q25: =IFERROR((Q23 - Q24) / Q24, "") -> 
C26: LV subsidy charge | D26: =New_Period -> 2021/2022 | E26: =IFERROR(Inputs!$K$30 * 'Rates Table'!$AI$14, 0) -> 0 | F26: =IFERROR(Inputs!$K$31 * 'Rates Table'!$AI$14, 0) -> 0 | G26: =IFERROR(Inputs!$K$32 * 'Rates Table'!$AI$14, 0) -> 0 | H26: =IFERROR(Inputs!$K$33 * 'Rates Table'!$AI$14, 0) -> 0 | I26: =IFERROR(Inputs!$K$34 * 'Rates Table'!$AI$14, 0) -> 0 | J26: =IFERROR(Inputs!$K$35 * 'Rates Table'!$AI$14, 0) -> 0 | K26: =IFERROR(Inputs!$K$36 * 'Rates Table'!$AI$14, 0) -> 0 | L26: =IFERROR(Inputs!$K$37 * 'Rates Table'!$AI$14, 0) -> 0 | M26: =IFERROR(Inputs!$K$38 * 'Rates Table'!$AI$14, 0) -> 0 | N26: =IFERROR(Inputs!$K$39 * 'Rates Table'!$AI$14, 0) -> 0 | O26: =IFERROR(Inputs!$K$40 * 'Rates Table'!$AI$14, 0) -> 0 | P26: =IFERROR(Inputs!$K$41 * 'Rates Table'!$AI$14, 0) -> 0 | Q26: =SUM(E26:P26) -> 0 | AB26: =IFERROR(Q26 - AA26, "") -> 0
D27: =Current_Period -> 2020/2021 | E27: =IFERROR(Inputs!$K$30 * 'Rates Table'!$E$14, 0) -> 0 | F27: =IFERROR(Inputs!$K$31 * 'Rates Table'!$E$14, 0) -> 0 | G27: =IFERROR(Inputs!$K$32 * 'Rates Table'!$E$14, 0) -> 0 | H27: =IFERROR(Inputs!$K$33 * 'Rates Table'!$E$14, 0) -> 0 | I27: =IFERROR(Inputs!$K$34 * 'Rates Table'!$E$14, 0) -> 0 | J27: =IFERROR(Inputs!$K$35 * 'Rates Table'!$E$14, 0) -> 0 | K27: =IFERROR(Inputs!$K$36 * 'Rates Table'!$E$14, 0) -> 0 | L27: =IFERROR(Inputs!$K$37 * 'Rates Table'!$E$14, 0) -> 0 | M27: =IFERROR(Inputs!$K$38 * 'Rates Table'!$E$14, 0) -> 0 | N27: =IFERROR(Inputs!$K$39 * 'Rates Table'!$E$14, 0) -> 0 | O27: =IFERROR(Inputs!$K$40 * 'Rates Table'!$E$14, 0) -> 0 | P27: =IFERROR(Inputs!$K$41 * 'Rates Table'!$E$14, 0) -> 0 | Q27: =SUM(E27:P27) -> 0 | AB27: =IFERROR(Q27 - AA27, "") -> 0
D28: % change | E28: =IFERROR((E26 - E27) / E27, "") ->  | F28: =IFERROR((F26 - F27) / F27, "") ->  | Q28: =IFERROR((Q26 - Q27) / Q27, "") -> 
C29: Network capacity charge - R/kVA | D29: =New_Period -> 2021/2022 | E29: =IFERROR(IF(Table_1=1,'Rates Table'!$AI$15*Inputs!$K$30,'Rates Table'!$AI$15*PODs*(TOU_High_Days + TOU_Low_Days)/12),0) -> 881.1708333 | F29: =IFERROR(IF(Table_1=1,'Rates Table'!$AI$15*Inputs!$K$31,'Rates Table'!$AI$15*PODs*(TOU_High_Days + TOU_Low_Days)/12),0) -> 881.1708333 | G29: =IFERROR(IF(Table_1=1,'Rates Table'!$AI$15*Inputs!$K$32,'Rates Table'!$AI$15*PODs*(TOU_High_Days + TOU_Low_Days)/12),0) -> 881.1708333 | H29: =IFERROR(IF(Table_1=1,'Rates Table'!$AI$15*Inputs!$K$33,'Rates Table'!$AI$15*PODs*(TOU_High_Days + TOU_Low_Days)/12),0) -> 881.1708333 | I29: =IFERROR(IF(Table_1=1,'Rates Table'!$AI$15*Inputs!$K$34,'Rates Table'!$AI$15*PODs*(TOU_High_Days + TOU_Low_Days)/12),0) -> 881.1708333 | J29: =IFERROR(IF(Table_1=1,'Rates Table'!$AI$15*Inputs!$K$35,'Rates Table'!$AI$15*PODs*(TOU_High_Days + TOU_Low_Days)/12),0) -> 881.1708333 | K29: =IFERROR(IF(Table_1=1,'Rates Table'!$AI$15*Inputs!$K$36,'Rates Table'!$AI$15*PODs*(TOU_High_Days + TOU_Low_Days)/12),0) -> 881.1708333 | L29: =IFERROR(IF(Table_1=1,'Rates Table'!$AI$15*Inputs!$K$37,'Rates Table'!$AI$15*PODs*(TOU_High_Days + TOU_Low_Days)/12),0) -> 881.1708333 | M29: =IFERROR(IF(Table_1=1,'Rates Table'!$AI$15*Inputs!$K$38,'Rates Table'!$AI$15*PODs*(TOU_High_Days + TOU_Low_Days)/12),0) -> 881.1708333 | N29: =IFERROR(IF(Table_1=1,'Rates Table'!$AI$15*Inputs!$K$39,'Rates Table'!$AI$15*PODs*(TOU_High_Days + TOU_Low_Days)/12),0) -> 881.1708333 | O29: =IFERROR(IF(Table_1=1,'Rates Table'!$AI$15*Inputs!$K$40,'Rates Table'!$AI$15*PODs*(TOU_High_Days + TOU_Low_Days)/12),0) -> 881.1708333 | P29: =IFERROR(IF(Table_1=1,'Rates Table'!$AI$15*Inputs!$K$41,'Rates Table'!$AI$15*PODs*(TOU_High_Days + TOU_Low_Days)/12),0) -> 881.1708333 | Q29: =SUM(E29:P29) -> 10574.05 | AA29: ='Bill Comparison'!H71 -> 10574.05 | AB29: =IFERROR(Q29 - AA29, "") -> 1.818989404e-12
D30: =Current_Period -> 2020/2021 | E30: =IFERROR(IF(Table_1=1,'Rates Table'!$E$15*Inputs!$K$30,'Rates Table'!$E$15*PODs*(TOU_High_Days + TOU_Low_Days)/12),0) -> 765.8916667 | F30: =IFERROR(IF(Table_1=1,'Rates Table'!$E$15*Inputs!$K$31,'Rates Table'!$E$15*PODs*(TOU_High_Days + TOU_Low_Days)/12),0) -> 765.8916667 | G30: =IFERROR(IF(Table_1=1,'Rates Table'!$E$15*Inputs!$K$32,'Rates Table'!$E$15*PODs*(TOU_High_Days + TOU_Low_Days)/12),0) -> 765.8916667 | H30: =IFERROR(IF(Table_1=1,'Rates Table'!$E$15*Inputs!$K$33,'Rates Table'!$E$15*PODs*(TOU_High_Days + TOU_Low_Days)/12),0) -> 765.8916667 | I30: =IFERROR(IF(Table_1=1,'Rates Table'!$E$15*Inputs!$K$34,'Rates Table'!$E$15*PODs*(TOU_High_Days + TOU_Low_Days)/12),0) -> 765.8916667 | J30: =IFERROR(IF(Table_1=1,'Rates Table'!$E$15*Inputs!$K$35,'Rates Table'!$E$15*PODs*(TOU_High_Days + TOU_Low_Days)/12),0) -> 765.8916667 | K30: =IFERROR(IF(Table_1=1,'Rates Table'!$E$15*Inputs!$K$36,'Rates Table'!$E$15*PODs*(TOU_High_Days + TOU_Low_Days)/12),0) -> 765.8916667 | L30: =IFERROR(IF(Table_1=1,'Rates Table'!$E$15*Inputs!$K$37,'Rates Table'!$E$15*PODs*(TOU_High_Days + TOU_Low_Days)/12),0) -> 765.8916667 | M30: =IFERROR(IF(Table_1=1,'Rates Table'!$E$15*Inputs!$K$38,'Rates Table'!$E$15*PODs*(TOU_High_Days + TOU_Low_Days)/12),0) -> 765.8916667 | N30: =IFERROR(IF(Table_1=1,'Rates Table'!$E$15*Inputs!$K$39,'Rates Table'!$E$15*PODs*(TOU_High_Days + TOU_Low_Days)/12),0) -> 765.8916667 | O30: =IFERROR(IF(Table_1=1,'Rates Table'!$E$15*Inputs!$K$40,'Rates Table'!$E$15*PODs*(TOU_High_Days + TOU_Low_Days)/12),0) -> 765.8916667 | P30: =IFERROR(IF(Table_1=1,'Rates Table'!$E$15*Inputs!$K$41,'Rates Table'!$E$15*PODs*(TOU_High_Days + TOU_Low_Days)/12),0) -> 765.8916667 | Q30: =SUM(E30:P30) -> 9190.7 | AA30: ='Bill Comparison'!G71 -> 9190.7 | AB30: =IFERROR(Q30 - AA30, "") -> -1.818989404e-12
D31: % change | E31: =IFERROR((E29 - E30) / E30, "") -> 0.1505162828 | F31: =IFERROR((F29 - F30) / F30, "") -> 0.1505162828 | G31: 0.1505162828 | H31: 0.1505162828 | I31: 0.1505162828 | J31: 0.1505162828 | K31: 0.1505162828 | L31: 0.1505162828 | M31: 0.1505162828 | N31: 0.1505162828 | O31: 0.1505162828 | P31: 0.1505162828 | Q31: =IFERROR((Q29 - Q30) / Q30, "") -> 0.1505162828
C32: Total network charges | D32: =New_Period -> 2021/2022 | E32: =SUM(E17,E20,E23,E26,E29,E14) -> 881.1708333 | F32: =SUM(F17,F20,F23,F26,F29,F14) -> 881.1708333 | G32: 881.1708333 | H32: 881.1708333 | I32: 881.1708333 | J32: 881.1708333 | K32: 881.1708333 | L32: 881.1708333 | M32: 881.1708333 | N32: 881.1708333 | O32: 881.1708333 | P32: 881.1708333 | Q32: =SUM(Q17,Q20,Q23,Q26,Q29,Q14) -> 10574.05
D33: =Current_Period -> 2020/2021 | E33: =SUM(E18,E21,E24,E27,E30,E15) -> 765.8916667 | F33: =SUM(F18,F21,F24,F27,F30,F15) -> 765.8916667 | G33: 765.8916667 | H33: 765.8916667 | I33: 765.8916667 | J33: 765.8916667 | K33: 765.8916667 | L33: 765.8916667 | M33: 765.8916667 | N33: 765.8916667 | O33: 765.8916667 | P33: 765.8916667 | Q33: =SUM(Q18,Q21,Q24,Q27,Q30,Q15) -> 9190.7
D34: % change | E34: =IFERROR((E32 - E33) / E33, "") -> 0.1505162828 | F34: =IFERROR((F32 - F33) / F33, "") -> 0.1505162828 | G34: =IFERROR((G32 - G33) / G33, "") -> 0.1505162828 | H34: =IFERROR((H32 - H33) / H33, "") -> 0.1505162828 | I34: =IFERROR((I32 - I33) / I33, "") -> 0.1505162828 | J34: =IFERROR((J32 - J33) / J33, "") -> 0.1505162828 | K34: =IFERROR((K32 - K33) / K33, "") -> 0.1505162828 | L34: =IFERROR((L32 - L33) / L33, "") -> 0.1505162828 | M34: =IFERROR((M32 - M33) / M33, "") -> 0.1505162828 | N34: =IFERROR((N32 - N33) / N33, "") -> 0.1505162828 | O34: =IFERROR((O32 - O33) / O33, "") -> 0.1505162828 | P34: =IFERROR((P32 - P33) / P33, "") -> 0.1505162828 | Q34: =IFERROR((Q32 - Q33) / Q33, "") -> 0.1505162828
B36: Energy charges | E36: =E$13 -> 2021-04-30 | F36: =F$13 -> 2021-05-31 | G36: 2021-06-30 | H36: 2021-07-31 | I36: 2021-08-31 | J36: 2021-09-30 | K36: 2021-10-31 | L36: 2021-11-30 | M36: 2021-12-31 | N36: 2022-01-31 | O36: 2022-02-28 | P36: 2022-03-31 | Q36: Total
C37: Peak energy charge | D37: =New_Period -> 2021/2022 | E37: =IF(TOU_indicator = "Y", Inputs!$G$30 * IF(Inputs!$E$30 = "High Demand", NewRate_kWh_P_high, NewRate_kWh_P_low) / 100, "") ->  | F37: =IF(TOU_indicator = "Y", Inputs!$G$31 * IF(Inputs!$E$31 = "High Demand", NewRate_kWh_P_high, NewRate_kWh_P_low) / 100, "") ->  | G37: =IF(TOU_indicator = "Y", Inputs!$G$32 * IF(Inputs!$E$32 = "High Demand", NewRate_kWh_P_high, NewRate_kWh_P_low) / 100, "") ->  | H37: =IF(TOU_indicator = "Y", Inputs!$G$33 * IF(Inputs!$E$33 = "High Demand", NewRate_kWh_P_high, NewRate_kWh_P_low) / 100, "") ->  | I37: =IF(TOU_indicator = "Y", Inputs!$G$34 * IF(Inputs!$E$34 = "High Demand", NewRate_kWh_P_high, NewRate_kWh_P_low) / 100, "") ->  | J37: =IF(TOU_indicator = "Y", Inputs!$G$35 * IF(Inputs!$E$35 = "High Demand", NewRate_kWh_P_high, NewRate_kWh_P_low) / 100, "") ->  | K37: =IF(TOU_indicator = "Y", Inputs!$G$36 * IF(Inputs!$E$36 = "High Demand", NewRate_kWh_P_high, NewRate_kWh_P_low) / 100, "") ->  | L37: =IF(TOU_indicator = "Y", Inputs!$G$37 * IF(Inputs!$E$37 = "High Demand", NewRate_kWh_P_high, NewRate_kWh_P_low) / 100, "") ->  | M37: =IF(TOU_indicator = "Y", Inputs!$G$38 * IF(Inputs!$E$38 = "High Demand", NewRate_kWh_P_high, NewRate_kWh_P_low) / 100, "") ->  | N37: =IF(TOU_indicator = "Y", Inputs!$G$39 * IF(Inputs!$E$39 = "High Demand", NewRate_kWh_P_high, NewRate_kWh_P_low) / 100, "") ->  | O37: =IF(TOU_indicator = "Y", Inputs!$G$40 * IF(Inputs!$E$40 = "High Demand", NewRate_kWh_P_high, NewRate_kWh_P_low) / 100, "") ->  | P37: =IF(TOU_indicator = "Y", Inputs!$G$41 * IF(Inputs!$E$41 = "High Demand", NewRate_kWh_P_high, NewRate_kWh_P_low) / 100, "") ->  | Q37: =IF(E37 = "", "", SUM(E37:P37)) ->  | AA37: ='Bill Comparison'!H77 -> 0 | AB37: =IFERROR(Q37 - AA37, "") -> 
D38: =Current_Period -> 2020/2021 | E38: =IF(TOU_indicator = "Y", Inputs!$G$30 * IF(Inputs!$E$30 = "High Demand", CurrRate_kWh_P_high, CurrRate_kWh_P_low) / 100, "") ->  | F38: =IF(TOU_indicator = "Y", Inputs!$G$31 * IF(Inputs!$E$31 = "High Demand", CurrRate_kWh_P_high, CurrRate_kWh_P_low) / 100, "") ->  | G38: =IF(TOU_indicator = "Y", Inputs!$G$32 * IF(Inputs!$E$32 = "High Demand", CurrRate_kWh_P_high, CurrRate_kWh_P_low) / 100, "") ->  | H38: =IF(TOU_indicator = "Y", Inputs!$G$33 * IF(Inputs!$E$33 = "High Demand", CurrRate_kWh_P_high, CurrRate_kWh_P_low) / 100, "") ->  | I38: =IF(TOU_indicator = "Y", Inputs!$G$34 * IF(Inputs!$E$34 = "High Demand", CurrRate_kWh_P_high, CurrRate_kWh_P_low) / 100, "") ->  | J38: =IF(TOU_indicator = "Y", Inputs!$G$35 * IF(Inputs!$E$35 = "High Demand", CurrRate_kWh_P_high, CurrRate_kWh_P_low) / 100, "") ->  | K38: =IF(TOU_indicator = "Y", Inputs!$G$36 * IF(Inputs!$E$36 = "High Demand", CurrRate_kWh_P_high, CurrRate_kWh_P_low) / 100, "") ->  | L38: =IF(TOU_indicator = "Y", Inputs!$G$37 * IF(Inputs!$E$37 = "High Demand", CurrRate_kWh_P_high, CurrRate_kWh_P_low) / 100, "") ->  | M38: =IF(TOU_indicator = "Y", Inputs!$G$38 * IF(Inputs!$E$38 = "High Demand", CurrRate_kWh_P_high, CurrRate_kWh_P_low) / 100, "") ->  | N38: =IF(TOU_indicator = "Y", Inputs!$G$39 * IF(Inputs!$E$39 = "High Demand", CurrRate_kWh_P_high, CurrRate_kWh_P_low) / 100, "") ->  | O38: =IF(TOU_indicator = "Y", Inputs!$G$40 * IF(Inputs!$E$40 = "High Demand", CurrRate_kWh_P_high, CurrRate_kWh_P_low) / 100, "") ->  | P38: =IF(TOU_indicator = "Y", Inputs!$G$41 * IF(Inputs!$E$41 = "High Demand", CurrRate_kWh_P_high, CurrRate_kWh_P_low) / 100, "") ->  | AA38: ='Bill Comparison'!G77 -> 0 | AB38: =IFERROR(Q38 - AA38, "") -> 
D39: % change | E39: =IFERROR((E37 - E38) / E38, "") ->  | F39: =IFERROR((F37 - F38) / F38, "") -> 
C40: Standard energy charge | D40: =New_Period -> 2021/2022 | E40: =IF(TOU_indicator = "Y", Inputs!$H$30 * IF(Inputs!$E$30 = "High Demand", NewRate_kWh_S_high, NewRate_kWh_S_low) / 100, "") ->  | F40: =IF(TOU_indicator = "Y", Inputs!$H$31 * IF(Inputs!$E$31 = "High Demand", NewRate_kWh_S_high, NewRate_kWh_S_low) / 100, "") ->  | G40: =IF(TOU_indicator = "Y", Inputs!$H$32 * IF(Inputs!$E$32 = "High Demand", NewRate_kWh_S_high, NewRate_kWh_S_low) / 100, "") ->  | H40: =IF(TOU_indicator = "Y", Inputs!$H$33 * IF(Inputs!$E$33 = "High Demand", NewRate_kWh_S_high, NewRate_kWh_S_low) / 100, "") ->  | I40: =IF(TOU_indicator = "Y", Inputs!$H$34 * IF(Inputs!$E$34 = "High Demand", NewRate_kWh_S_high, NewRate_kWh_S_low) / 100, "") ->  | J40: =IF(TOU_indicator = "Y", Inputs!$H$35 * IF(Inputs!$E$35 = "High Demand", NewRate_kWh_S_high, NewRate_kWh_S_low) / 100, "") ->  | K40: =IF(TOU_indicator = "Y", Inputs!$H$36 * IF(Inputs!$E$36 = "High Demand", NewRate_kWh_S_high, NewRate_kWh_S_low) / 100, "") ->  | L40: =IF(TOU_indicator = "Y", Inputs!$H$37 * IF(Inputs!$E$37 = "High Demand", NewRate_kWh_S_high, NewRate_kWh_S_low) / 100, "") ->  | M40: =IF(TOU_indicator = "Y", Inputs!$H$38 * IF(Inputs!$E$38 = "High Demand", NewRate_kWh_S_high, NewRate_kWh_S_low) / 100, "") ->  | N40: =IF(TOU_indicator = "Y", Inputs!$H$39 * IF(Inputs!$E$39 = "High Demand", NewRate_kWh_S_high, NewRate_kWh_S_low) / 100, "") ->  | O40: =IF(TOU_indicator = "Y", Inputs!$H$40 * IF(Inputs!$E$40 = "High Demand", NewRate_kWh_S_high, NewRate_kWh_S_low) / 100, "") ->  | P40: =IF(TOU_indicator = "Y", Inputs!$H$41 * IF(Inputs!$E$41 = "High Demand", NewRate_kWh_S_high, NewRate_kWh_S_low) / 100, "") ->  | Q40: =IF(E40 = "", "", SUM(E40:P40)) ->  | AA40: ='Bill Comparison'!H78 -> 0 | AB40: =IFERROR(Q40 - AA40, "") -> 
D41: =Current_Period -> 2020/2021 | E41: =IF(TOU_indicator = "Y", Inputs!$H$30 * IF(Inputs!$E$30 = "High Demand", CurrRate_kWh_S_high, CurrRate_kWh_S_low) / 100, "") ->  | F41: =IF(TOU_indicator = "Y", Inputs!$H$31 * IF(Inputs!$E$31 = "High Demand", CurrRate_kWh_S_high, CurrRate_kWh_S_low) / 100, "") ->  | G41: =IF(TOU_indicator = "Y", Inputs!$H$32 * IF(Inputs!$E$32 = "High Demand", CurrRate_kWh_S_high, CurrRate_kWh_S_low) / 100, "") ->  | H41: =IF(TOU_indicator = "Y", Inputs!$H$33 * IF(Inputs!$E$33 = "High Demand", CurrRate_kWh_S_high, CurrRate_kWh_S_low) / 100, "") ->  | I41: =IF(TOU_indicator = "Y", Inputs!$H$34 * IF(Inputs!$E$34 = "High Demand", CurrRate_kWh_S_high, CurrRate_kWh_S_low) / 100, "") ->  | J41: =IF(TOU_indicator = "Y", Inputs!$H$35 * IF(Inputs!$E$35 = "High Demand", CurrRate_kWh_S_high, CurrRate_kWh_S_low) / 100, "") ->  | K41: =IF(TOU_indicator = "Y", Inputs!$H$36 * IF(Inputs!$E$36 = "High Demand", CurrRate_kWh_S_high, CurrRate_kWh_S_low) / 100, "") ->  | L41: =IF(TOU_indicator = "Y", Inputs!$H$37 * IF(Inputs!$E$37 = "High Demand", CurrRate_kWh_S_high, CurrRate_kWh_S_low) / 100, "") ->  | M41: =IF(TOU_indicator = "Y", Inputs!$H$38 * IF(Inputs!$E$38 = "High Demand", CurrRate_kWh_S_high, CurrRate_kWh_S_low) / 100, "") ->  | N41: =IF(TOU_indicator = "Y", Inputs!$H$39 * IF(Inputs!$E$39 = "High Demand", CurrRate_kWh_S_high, CurrRate_kWh_S_low) / 100, "") ->  | O41: =IF(TOU_indicator = "Y", Inputs!$H$40 * IF(Inputs!$E$40 = "High Demand", CurrRate_kWh_S_high, CurrRate_kWh_S_low) / 100, "") ->  | P41: =IF(TOU_indicator = "Y", Inputs!$H$41 * IF(Inputs!$E$41 = "High Demand", CurrRate_kWh_S_high, CurrRate_kWh_S_low) / 100, "") ->  | AA41: ='Bill Comparison'!G78 -> 0 | AB41: =IFERROR(Q41 - AA41, "") -> 
D42: % change | E42: =IFERROR((E40 - E41) / E41, "") ->  | F42: =IFERROR((F40 - F41) / F41, "") ->  | G42: =IFERROR((G40 - G41) / G41, "") ->  | H42: =IFERROR((H40 - H41) / H41, "") ->  | I42: =IFERROR((I40 - I41) / I41, "") ->  | J42: =IFERROR((J40 - J41) / J41, "") ->  | K42: =IFERROR((K40 - K41) / K41, "") ->  | L42: =IFERROR((L40 - L41) / L41, "") ->  | M42: =IFERROR((M40 - M41) / M41, "") ->  | N42: =IFERROR((N40 - N41) / N41, "") ->  | O42: =IFERROR((O40 - O41) / O41, "") ->  | P42: =IFERROR((P40 - P41) / P41, "") ->  | Q42: =IFERROR((Q40 - Q41) / Q41, "") -> 
C43: Off-Peak energy charge | D43: =New_Period -> 2021/2022 | E43: =IF(TOU_indicator = "Y", Inputs!$I$30 * IF(Inputs!$E$30 = "High Demand", NewRate_kWh_O_high, NewRate_kWh_O_low) / 100, "") ->  | F43: =IF(TOU_indicator = "Y", Inputs!$I$31 * IF(Inputs!$E$31 = "High Demand", NewRate_kWh_O_high, NewRate_kWh_O_low) / 100, "") ->  | G43: =IF(TOU_indicator = "Y", Inputs!$I$32 * IF(Inputs!$E$32 = "High Demand", NewRate_kWh_O_high, NewRate_kWh_O_low) / 100, "") ->  | H43: =IF(TOU_indicator = "Y", Inputs!$I$33 * IF(Inputs!$E$33 = "High Demand", NewRate_kWh_O_high, NewRate_kWh_O_low) / 100, "") ->  | I43: =IF(TOU_indicator = "Y", Inputs!$I$34 * IF(Inputs!$E$34 = "High Demand", NewRate_kWh_O_high, NewRate_kWh_O_low) / 100, "") ->  | J43: =IF(TOU_indicator = "Y", Inputs!$I$35 * IF(Inputs!$E$35 = "High Demand", NewRate_kWh_O_high, NewRate_kWh_O_low) / 100, "") ->  | K43: =IF(TOU_indicator = "Y", Inputs!$I$36 * IF(Inputs!$E$36 = "High Demand", NewRate_kWh_O_high, NewRate_kWh_O_low) / 100, "") ->  | L43: =IF(TOU_indicator = "Y", Inputs!$I$37 * IF(Inputs!$E$37 = "High Demand", NewRate_kWh_O_high, NewRate_kWh_O_low) / 100, "") ->  | M43: =IF(TOU_indicator = "Y", Inputs!$I$38 * IF(Inputs!$E$38 = "High Demand", NewRate_kWh_O_high, NewRate_kWh_O_low) / 100, "") ->  | N43: =IF(TOU_indicator = "Y", Inputs!$I$39 * IF(Inputs!$E$39 = "High Demand", NewRate_kWh_O_high, NewRate_kWh_O_low) / 100, "") ->  | O43: =IF(TOU_indicator = "Y", Inputs!$I$40 * IF(Inputs!$E$40 = "High Demand", NewRate_kWh_O_high, NewRate_kWh_O_low) / 100, "") ->  | P43: =IF(TOU_indicator = "Y", Inputs!$I$41 * IF(Inputs!$E$41 = "High Demand", NewRate_kWh_O_high, NewRate_kWh_O_low) / 100, "") ->  | Q43: =IF(E43 = "", "", SUM(E43:P43)) ->  | AA43: ='Bill Comparison'!H79 -> 0 | AB43: =IFERROR(Q43 - AA43, "") -> 
D44: =Current_Period -> 2020/2021 | E44: =IF(TOU_indicator = "Y", Inputs!$I$30 * IF(Inputs!$E$30 = "High Demand", CurrRate_kWh_O_high, CurrRate_kWh_O_low) / 100, "") ->  | F44: =IF(TOU_indicator = "Y", Inputs!$I$31 * IF(Inputs!$E$31 = "High Demand", CurrRate_kWh_O_high, CurrRate_kWh_O_low) / 100, "") ->  | G44: =IF(TOU_indicator = "Y", Inputs!$I$32 * IF(Inputs!$E$32 = "High Demand", CurrRate_kWh_O_high, CurrRate_kWh_O_low) / 100, "") ->  | H44: =IF(TOU_indicator = "Y", Inputs!$I$33 * IF(Inputs!$E$33 = "High Demand", CurrRate_kWh_O_high, CurrRate_kWh_O_low) / 100, "") ->  | I44: =IF(TOU_indicator = "Y", Inputs!$I$34 * IF(Inputs!$E$34 = "High Demand", CurrRate_kWh_O_high, CurrRate_kWh_O_low) / 100, "") ->  | J44: =IF(TOU_indicator = "Y", Inputs!$I$35 * IF(Inputs!$E$35 = "High Demand", CurrRate_kWh_O_high, CurrRate_kWh_O_low) / 100, "") ->  | K44: =IF(TOU_indicator = "Y", Inputs!$I$36 * IF(Inputs!$E$36 = "High Demand", CurrRate_kWh_O_high, CurrRate_kWh_O_low) / 100, "") ->  | L44: =IF(TOU_indicator = "Y", Inputs!$I$37 * IF(Inputs!$E$37 = "High Demand", CurrRate_kWh_O_high, CurrRate_kWh_O_low) / 100, "") ->  | M44: =IF(TOU_indicator = "Y", Inputs!$I$38 * IF(Inputs!$E$38 = "High Demand", CurrRate_kWh_O_high, CurrRate_kWh_O_low) / 100, "") ->  | N44: =IF(TOU_indicator = "Y", Inputs!$I$39 * IF(Inputs!$E$39 = "High Demand", CurrRate_kWh_O_high, CurrRate_kWh_O_low) / 100, "") ->  | O44: =IF(TOU_indicator = "Y", Inputs!$I$40 * IF(Inputs!$E$40 = "High Demand", CurrRate_kWh_O_high, CurrRate_kWh_O_low) / 100, "") ->  | P44: =IF(TOU_indicator = "Y", Inputs!$I$41 * IF(Inputs!$E$41 = "High Demand", CurrRate_kWh_O_high, CurrRate_kWh_O_low) / 100, "") ->  | AA44: ='Bill Comparison'!G79 -> 0 | AB44: =IFERROR(Q44 - AA44, "") -> 
D45: % change | E45: =IFERROR((E43 - E44) / E44, "") ->  | F45: =IFERROR((F43 - F44) / F44, "") ->  | G45: =IFERROR((G43 - G44) / G44, "") ->  | H45: =IFERROR((H43 - H44) / H44, "") ->  | I45: =IFERROR((I43 - I44) / I44, "") ->  | J45: =IFERROR((J43 - J44) / J44, "") ->  | K45: =IFERROR((K43 - K44) / K44, "") ->  | L45: =IFERROR((L43 - L44) / L44, "") ->  | M45: =IFERROR((M43 - M44) / M44, "") ->  | N45: =IFERROR((N43 - N44) / N44, "") ->  | O45: =IFERROR((O43 - O44) / O44, "") ->  | P45: =IFERROR((P43 - P44) / P44, "") ->  | Q45: =IFERROR((Q43 - Q44) / Q44, "") -> 
C46: Non-TOU energy charge | D46: =New_Period -> 2021/2022 | E46: =IF(TOU_indicator = "N", Inputs!$M$30 * IF(Inputs!$E$30 = "High Demand", NewRate_kWh_H_nontou, NewRate_kWh_L_nontou) / 100, "") -> 0 | F46: =IF(TOU_indicator = "N", Inputs!$M$31 * IF(Inputs!$E$31 = "High Demand", NewRate_kWh_H_nontou, NewRate_kWh_L_nontou) / 100, "") -> 0 | G46: =IF(TOU_indicator = "N", Inputs!$M$32 * IF(Inputs!$E$32 = "High Demand", NewRate_kWh_H_nontou, NewRate_kWh_L_nontou) / 100, "") -> 0 | H46: =IF(TOU_indicator = "N", Inputs!$M$33 * IF(Inputs!$E$33 = "High Demand", NewRate_kWh_H_nontou, NewRate_kWh_L_nontou) / 100, "") -> 0 | I46: =IF(TOU_indicator = "N", Inputs!$M$34 * IF(Inputs!$E$34 = "High Demand", NewRate_kWh_H_nontou, NewRate_kWh_L_nontou) / 100, "") -> 0 | J46: =IF(TOU_indicator = "N", Inputs!$M$35 * IF(Inputs!$E$35 = "High Demand", NewRate_kWh_H_nontou, NewRate_kWh_L_nontou) / 100, "") -> 0 | K46: =IF(TOU_indicator = "N", Inputs!$M$36 * IF(Inputs!$E$36 = "High Demand", NewRate_kWh_H_nontou, NewRate_kWh_L_nontou) / 100, "") -> 0 | L46: =IF(TOU_indicator = "N", Inputs!$M$37 * IF(Inputs!$E$37 = "High Demand", NewRate_kWh_H_nontou, NewRate_kWh_L_nontou) / 100, "") -> 0 | M46: =IF(TOU_indicator = "N", Inputs!$M$38 * IF(Inputs!$E$38 = "High Demand", NewRate_kWh_H_nontou, NewRate_kWh_L_nontou) / 100, "") -> 0 | N46: =IF(TOU_indicator = "N", Inputs!$M$39 * IF(Inputs!$E$39 = "High Demand", NewRate_kWh_H_nontou, NewRate_kWh_L_nontou) / 100, "") -> 0 | O46: =IF(TOU_indicator = "N", Inputs!$M$40 * IF(Inputs!$E$40 = "High Demand", NewRate_kWh_H_nontou, NewRate_kWh_L_nontou) / 100, "") -> 0 | P46: =IF(TOU_indicator = "N", Inputs!$M$41 * IF(Inputs!$E$41 = "High Demand", NewRate_kWh_H_nontou, NewRate_kWh_L_nontou) / 100, "") -> 0 | Q46: =IF(E46 = "", "", SUM(E46:P46)) -> 0 | AA46: ='Bill Comparison'!H83 -> 0 | AB46: =IFERROR(Q46 - AA46, "") -> 0
D47: =Current_Period -> 2020/2021 | E47: =IF(TOU_indicator = "N", Inputs!$M$30 * IF(Inputs!$E$30 = "High Demand", CurrRate_kWh_H_nontou, CurrRate_kWh_L_nontou) / 100, "") -> 0 | F47: =IF(TOU_indicator = "N", Inputs!$M$31 * IF(Inputs!$E$31 = "High Demand", CurrRate_kWh_H_nontou, CurrRate_kWh_L_nontou) / 100, "") -> 0 | G47: =IF(TOU_indicator = "N", Inputs!$M$32 * IF(Inputs!$E$32 = "High Demand", CurrRate_kWh_H_nontou, CurrRate_kWh_L_nontou) / 100, "") -> 0 | H47: =IF(TOU_indicator = "N", Inputs!$M$33 * IF(Inputs!$E$33 = "High Demand", CurrRate_kWh_H_nontou, CurrRate_kWh_L_nontou) / 100, "") -> 0 | I47: =IF(TOU_indicator = "N", Inputs!$M$34 * IF(Inputs!$E$34 = "High Demand", CurrRate_kWh_H_nontou, CurrRate_kWh_L_nontou) / 100, "") -> 0 | J47: =IF(TOU_indicator = "N", Inputs!$M$35 * IF(Inputs!$E$35 = "High Demand", CurrRate_kWh_H_nontou, CurrRate_kWh_L_nontou) / 100, "") -> 0 | K47: =IF(TOU_indicator = "N", Inputs!$M$36 * IF(Inputs!$E$36 = "High Demand", CurrRate_kWh_H_nontou, CurrRate_kWh_L_nontou) / 100, "") -> 0 | L47: =IF(TOU_indicator = "N", Inputs!$M$37 * IF(Inputs!$E$37 = "High Demand", CurrRate_kWh_H_nontou, CurrRate_kWh_L_nontou) / 100, "") -> 0 | M47: =IF(TOU_indicator = "N", Inputs!$M$38 * IF(Inputs!$E$38 = "High Demand", CurrRate_kWh_H_nontou, CurrRate_kWh_L_nontou) / 100, "") -> 0 | N47: =IF(TOU_indicator = "N", Inputs!$M$39 * IF(Inputs!$E$39 = "High Demand", CurrRate_kWh_H_nontou, CurrRate_kWh_L_nontou) / 100, "") -> 0 | O47: =IF(TOU_indicator = "N", Inputs!$M$40 * IF(Inputs!$E$40 = "High Demand", CurrRate_kWh_H_nontou, CurrRate_kWh_L_nontou) / 100, "") -> 0 | P47: =IF(TOU_indicator = "N", Inputs!$M$41 * IF(Inputs!$E$41 = "High Demand", CurrRate_kWh_H_nontou, CurrRate_kWh_L_nontou) / 100, "") -> 0 | Q47: =IF(E47 = "", "", SUM(E47:P47)) -> 0 | AA47: ='Bill Comparison'!G83 -> 0 | AB47: =IFERROR(Q47 - AA47, "") -> 0
D48: % change | E48: =IFERROR((E46 - E47) / E47, "") ->  | F48: =IFERROR((F46 - F47) / F47, "") -> 
C49: Energy demand charge | D49: =New_Period -> 2021/2022 | E49: =IFERROR(Inputs!$J$30 * IF(Inputs!$E$30 = "High Demand", NewRate_EDC_H, NewRate_EDC_L), "") ->  | F49: =IFERROR(Inputs!$J$31 * IF(Inputs!$E$31 = "High Demand", NewRate_EDC_H, NewRate_EDC_L), "") ->  | G49: =IFERROR(Inputs!$J$32 * IF(Inputs!$E$32 = "High Demand", NewRate_EDC_H, NewRate_EDC_L), "") ->  | H49: =IFERROR(Inputs!$J$33 * IF(Inputs!$E$33 = "High Demand", NewRate_EDC_H, NewRate_EDC_L), "") ->  | I49: =IFERROR(Inputs!$J$34 * IF(Inputs!$E$34 = "High Demand", NewRate_EDC_H, NewRate_EDC_L), "") ->  | J49: =IFERROR(Inputs!$J$35 * IF(Inputs!$E$35 = "High Demand", NewRate_EDC_H, NewRate_EDC_L), "") ->  | K49: =IFERROR(Inputs!$J$36 * IF(Inputs!$E$36 = "High Demand", NewRate_EDC_H, NewRate_EDC_L), "") ->  | L49: =IFERROR(Inputs!$J$37 * IF(Inputs!$E$37 = "High Demand", NewRate_EDC_H, NewRate_EDC_L), "") ->  | M49: =IFERROR(Inputs!$J$38 * IF(Inputs!$E$38 = "High Demand", NewRate_EDC_H, NewRate_EDC_L), "") ->  | N49: =IFERROR(Inputs!$J$39 * IF(Inputs!$E$39 = "High Demand", NewRate_EDC_H, NewRate_EDC_L), "") ->  | O49: =IFERROR(Inputs!$J$40 * IF(Inputs!$E$40 = "High Demand", NewRate_EDC_H, NewRate_EDC_L), "") ->  | P49: =IFERROR(Inputs!$J$41 * IF(Inputs!$E$41 = "High Demand", NewRate_EDC_H, NewRate_EDC_L), "") ->  | Q49: =IF(E49 = "", "", SUM(E49:P49)) ->  | AA49: ='Bill Comparison'!H86 -> 0 | AB49: =IFERROR(Q49 - AA49, "") -> 
D50: =Current_Period -> 2020/2021 | E50: =IFERROR(Inputs!$J$30 * IF(Inputs!$E$30 = "High Demand", CurrRate_EDC_H, CurrRate_EDC_L), "") ->  | F50: =IFERROR(Inputs!$J$31 * IF(Inputs!$E$31 = "High Demand", CurrRate_EDC_H, CurrRate_EDC_L), "") ->  | G50: =IFERROR(Inputs!$J$32 * IF(Inputs!$E$32 = "High Demand", CurrRate_EDC_H, CurrRate_EDC_L), "") ->  | H50: =IFERROR(Inputs!$J$33 * IF(Inputs!$E$33 = "High Demand", CurrRate_EDC_H, CurrRate_EDC_L), "") ->  | I50: =IFERROR(Inputs!$J$34 * IF(Inputs!$E$34 = "High Demand", CurrRate_EDC_H, CurrRate_EDC_L), "") ->  | J50: =IFERROR(Inputs!$J$35 * IF(Inputs!$E$35 = "High Demand", CurrRate_EDC_H, CurrRate_EDC_L), "") ->  | K50: =IFERROR(Inputs!$J$36 * IF(Inputs!$E$36 = "High Demand", CurrRate_EDC_H, CurrRate_EDC_L), "") ->  | L50: =IFERROR(Inputs!$J$37 * IF(Inputs!$E$37 = "High Demand", CurrRate_EDC_H, CurrRate_EDC_L), "") ->  | M50: =IFERROR(Inputs!$J$38 * IF(Inputs!$E$38 = "High Demand", CurrRate_EDC_H, CurrRate_EDC_L), "") ->  | N50: =IFERROR(Inputs!$J$39 * IF(Inputs!$E$39 = "High Demand", CurrRate_EDC_H, CurrRate_EDC_L), "") ->  | O50: =IFERROR(Inputs!$J$40 * IF(Inputs!$E$40 = "High Demand", CurrRate_EDC_H, CurrRate_EDC_L), "") ->  | P50: =IFERROR(Inputs!$J$41 * IF(Inputs!$E$41 = "High Demand", CurrRate_EDC_H, CurrRate_EDC_L), "") ->  | AA50: ='Bill Comparison'!G86 -> 0 | AB50: =IFERROR(Q50 - AA50, "") -> 
D51: % change | E51: =IFERROR((E49 - E50) / E50, "") ->  | F51: =IFERROR((F49 - F50) / F50, "") ->  | G51: =IFERROR((G49 - G50) / G50, "") ->  | H51: =IFERROR((H49 - H50) / H50, "") ->  | I51: =IFERROR((I49 - I50) / I50, "") ->  | J51: =IFERROR((J49 - J50) / J50, "") ->  | K51: =IFERROR((K49 - K50) / K50, "") ->  | L51: =IFERROR((L49 - L50) / L50, "") ->  | M51: =IFERROR((M49 - M50) / M50, "") ->  | N51: =IFERROR((N49 - N50) / N50, "") ->  | O51: =IFERROR((O49 - O50) / O50, "") ->  | P51: =IFERROR((P49 - P50) / P50, "") ->  | Q51: =IFERROR((Q49 - Q50) / Q50, "") -> 
C52: Energy - Block 1 | D52: =New_Period -> 2021/2022 | E52: =IFERROR('Rates Table'!$AI$26*( IF(Inputs!$M$30 > 600, 600 *1, Inputs!$M$30)),0)/100 -> 0 | F52: =IFERROR('Rates Table'!$AI$26*( IF(Inputs!$M$31 > 600, 600 *1, Inputs!$M$31)),0)/100 -> 0 | G52: =IFERROR('Rates Table'!$AI$26*( IF(Inputs!$M$32 > 600, 600 *1, Inputs!$M$32)),0)/100 -> 0 | H52: =IFERROR('Rates Table'!$AI$26*( IF(Inputs!$M$33 > 600, 600 *1, Inputs!$M$33)),0)/100 -> 0 | I52: =IFERROR('Rates Table'!$AI$26*( IF(Inputs!$M$34 > 600, 600 *1, Inputs!$M$34)),0)/100 -> 0 | J52: =IFERROR('Rates Table'!$AI$26*( IF(Inputs!$M$35> 600, 600 *1, Inputs!$M$35)),0)/100 -> 0 | K52: =IFERROR('Rates Table'!$AI$26*( IF(Inputs!$M$36> 600, 600 *1, Inputs!$M$36)),0)/100 -> 0 | L52: =IFERROR('Rates Table'!$AI$26*( IF(Inputs!$M$37> 600, 600 *1, Inputs!$M$37)),0)/100 -> 0 | M52: =IFERROR('Rates Table'!$AI$26*( IF(Inputs!$M$38> 600, 600 *1, Inputs!$M$38)),0)/100 -> 0 | N52: =IFERROR('Rates Table'!$AI$26*( IF(Inputs!$M$39> 600, 600 *1, Inputs!$M$39)),0)/100 -> 0 | O52: =IFERROR('Rates Table'!$AI$26*( IF(Inputs!$M$40> 600, 600 *1, Inputs!$M$40)),0)/100 -> 0 | P52: =IFERROR('Rates Table'!$AI$26*( IF(Inputs!$M$41> 600, 600 *1, Inputs!$M$41)),0)/100 -> 0 | Q52: =IF(E52 = "", "", SUM(E52:P52)) -> 0 | AB52: =IFERROR(Q52 - AA52, "") -> 0
D53: =Current_Period -> 2020/2021 | E53: =IFERROR('Rates Table'!$E$26*( IF(Inputs!$M$30 > 600, 600 *1, Inputs!$M$30)),0)/100 -> 0 | F53: =IFERROR('Rates Table'!$E$26*( IF(Inputs!$M$31 > 600, 600 *1, Inputs!$M$31)),0)/100 -> 0 | G53: =IFERROR('Rates Table'!$E$26*( IF(Inputs!$M$32 > 600, 600 *1, Inputs!$M$32)),0)/100 -> 0 | H53: =IFERROR('Rates Table'!$E$26*( IF(Inputs!$M$33 > 600, 600 *1, Inputs!$M$33)),0)/100 -> 0 | I53: =IFERROR('Rates Table'!$E$26*( IF(Inputs!$M$34 > 600, 600 *1, Inputs!$M$34)),0)/100 -> 0 | J53: =IFERROR('Rates Table'!$E$26*( IF(Inputs!$M$35> 600, 600 *1, Inputs!$M$35)),0)/100 -> 0 | K53: =IFERROR('Rates Table'!$E$26*( IF(Inputs!$M$36> 600, 600 *1, Inputs!$M$36)),0)/100 -> 0 | L53: =IFERROR('Rates Table'!$E$26*( IF(Inputs!$M$37> 600, 600 *1, Inputs!$M$37)),0)/100 -> 0 | M53: =IFERROR('Rates Table'!$E$26*( IF(Inputs!$M$38> 600, 600 *1, Inputs!$M$38)),0)/100 -> 0 | N53: =IFERROR('Rates Table'!$E$26*( IF(Inputs!$M$39> 600, 600 *1, Inputs!$M$39)),0)/100 -> 0 | O53: =IFERROR('Rates Table'!$E$26*( IF(Inputs!$M$40> 600, 600 *1, Inputs!$M$40)),0)/100 -> 0 | P53: =IFERROR('Rates Table'!$E$26*( IF(Inputs!$M$41> 600, 600 *1, Inputs!$M$41)),0)/100 -> 0 | Q53: =IF(E53 = "", "", SUM(E53:P53)) -> 0 | AB53: =IFERROR(Q53 - AA53, "") -> 0
D54: % change | E54: =IFERROR((E52 - E53) / E53, "") ->  | F54: =IFERROR((F52 - F53) / F53, "") ->  | Q54: =IFERROR((Q52 - Q53) / Q53, "") -> 
C55: Energy - Block 2 | D55: =New_Period -> 2021/2022 | E55: =IFERROR('Rates Table'!$AI$27*(Inputs!$M$30 - IF(Inputs!$M$30 > 600, 600 *1, Inputs!$M$30)),0)/100 -> 0 | F55: =IFERROR('Rates Table'!$AI$27*(Inputs!$M$31 - IF(Inputs!$M$31 > 600, 600 *1, Inputs!$M$31)),0)/100 -> 0 | G55: =IFERROR('Rates Table'!$AI$27*(Inputs!$M$32 - IF(Inputs!$M$32 > 600, 600 *1, Inputs!$M$32)),0)/100 -> 0 | H55: =IFERROR('Rates Table'!$AI$27*(Inputs!$M$33 - IF(Inputs!$M$33 > 600, 600 *1, Inputs!$M$33)),0)/100 -> 0 | I55: =IFERROR('Rates Table'!$AI$27*(Inputs!$M$34 - IF(Inputs!$M$34 > 600, 600 *1, Inputs!$M$34)),0)/100 -> 0 | J55: =IFERROR('Rates Table'!$AI$27*(Inputs!$M$35 - IF(Inputs!$M$35 > 600, 600 *1, Inputs!$M$35)),0)/100 -> 0 | K55: =IFERROR('Rates Table'!$AI$27*(Inputs!$M$36 - IF(Inputs!$M$36 > 600, 600 *1, Inputs!$M$36)),0)/100 -> 0 | L55: =IFERROR('Rates Table'!$AI$27*(Inputs!$M$37 - IF(Inputs!$M$37 > 600, 600 *1, Inputs!$M$37)),0)/100 -> 0 | M55: =IFERROR('Rates Table'!$AI$27*(Inputs!$M$38 - IF(Inputs!$M$38 > 600, 600 *1, Inputs!$M$38)),0)/100 -> 0 | N55: =IFERROR('Rates Table'!$AI$27*(Inputs!$M$39 - IF(Inputs!$M$39 > 600, 600 *1, Inputs!$M$39)),0)/100 -> 0 | O55: =IFERROR('Rates Table'!$AI$40*(Inputs!$M$39 - IF(Inputs!$M$40 > 600, 600 *1, Inputs!$M$40)),0)/100 -> 0 | P55: =IFERROR('Rates Table'!$AI$40*(Inputs!$M$41 - IF(Inputs!$M$41 > 600, 600 *1, Inputs!$M$41)),0)/100 -> 0 | Q55: =IF(E55 = "", "", SUM(E55:P55)) -> 0 | AB55: =IFERROR(Q55 - AA55, "") -> 0
D56: =Current_Period -> 2020/2021 | E56: =IFERROR('Rates Table'!$E$27*(Inputs!$M$30 - IF(Inputs!$M$30 > 600, 600 *1, Inputs!$M$30)),0)/100 -> 0 | F56: =IFERROR('Rates Table'!$E$27*(Inputs!$M$31 - IF(Inputs!$M$31 > 600, 600 *1, Inputs!$M$31)),0)/100 -> 0 | G56: =IFERROR('Rates Table'!$E$27*(Inputs!$M$32 - IF(Inputs!$M$32 > 600, 600 *1, Inputs!$M$32)),0)/100 -> 0 | H56: =IFERROR('Rates Table'!$E$27*(Inputs!$M$33 - IF(Inputs!$M$33 > 600, 600 *1, Inputs!$M$33)),0)/100 -> 0 | I56: =IFERROR('Rates Table'!$E$27*(Inputs!$M$34 - IF(Inputs!$M$34 > 600, 600 *1, Inputs!$M$34)),0)/100 -> 0 | J56: =IFERROR('Rates Table'!$E$27*(Inputs!$M$35 - IF(Inputs!$M$35 > 600, 600 *1, Inputs!$M$35)),0)/100 -> 0 | K56: =IFERROR('Rates Table'!$E$27*(Inputs!$M$36 - IF(Inputs!$M$36 > 600, 600 *1, Inputs!$M$36)),0)/100 -> 0 | L56: =IFERROR('Rates Table'!$E$27*(Inputs!$M$37 - IF(Inputs!$M$37 > 600, 600 *1, Inputs!$M$37)),0)/100 -> 0 | M56: =IFERROR('Rates Table'!$E$27*(Inputs!$M$38 - IF(Inputs!$M$38 > 600, 600 *1, Inputs!$M$38)),0)/100 -> 0 | N56: =IFERROR('Rates Table'!$E$27*(Inputs!$M$39 - IF(Inputs!$M$39 > 600, 600 *1, Inputs!$M$39)),0)/100 -> 0 | O56: =IFERROR('Rates Table'!$E$40*(Inputs!$M$39 - IF(Inputs!$M$40 > 600, 600 *1, Inputs!$M$40)),0)/100 -> 0 | P56: =IFERROR('Rates Table'!$E$40*(Inputs!$M$41 - IF(Inputs!$M$41 > 600, 600 *1, Inputs!$M$41)),0)/100 -> 0 | Q56: 0 | AB56: =IFERROR(Q56 - AA56, "") -> 0
D57: % change | E57: =IFERROR((E55 - E56) / E56, "") ->  | F57: =IFERROR((F55 - F56) / F56, "") -> 
C58: Total energy charges | D58: =New_Period -> 2021/2022 | E58: =SUM(E37,E40,E43,E46,E49,E52,E55) -> 0 | F58: =SUM(F37,F40,F43,F46,F49,F52,F55) -> 0 | G58: 0 | H58: 0 | I58: 0 | J58: 0 | K58: 0 | L58: 0 | M58: 0 | N58: 0 | O58: 0 | P58: 0 | Q58: =IF(E58 = "", "", SUM(E58:P58)) -> 0
D59: =Current_Period -> 2020/2021 | E59: =SUM(E38,E41,E44,E47,E50,E53,E56) -> 0 | F59: =SUM(F38,F41,F44,F47,F50,F53,F56) -> 0 | G59: 0 | H59: 0 | I59: 0 | J59: 0 | K59: 0 | L59: 0 | M59: 0 | N59: 0 | O59: 0 | P59: =SUM(P38,P41,P44,P47,P50,P53,P56) -> 0 | Q59: =IF(E59 = "", "", SUM(E59:P59)) -> 0
D60: % change | E60: =IFERROR((E58 - E59) / E59, "") ->  | F60: =IFERROR((F58 - F59) / F59, "") ->  | G60: =IFERROR((G58 - G59) / G59, "") ->  | H60: =IFERROR((H58 - H59) / H59, "") ->  | I60: =IFERROR((I58 - I59) / I59, "") ->  | J60: =IFERROR((J58 - J59) / J59, "") ->  | K60: =IFERROR((K58 - K59) / K59, "") ->  | L60: =IFERROR((L58 - L59) / L59, "") ->  | M60: =IFERROR((M58 - M59) / M59, "") ->  | N60: =IFERROR((N58 - N59) / N59, "") ->  | O60: =IFERROR((O58 - O59) / O59, "") ->  | P60: =IFERROR((P58 - P59) / P59, "") ->  | Q60: =IFERROR((Q58 - Q59) / Q59, "") -> 
B62: Other charges | E62: =E$13 -> 2021-04-30 | F62: =F$13 -> 2021-05-31 | G62: 2021-06-30 | H62: 2021-07-31 | I62: 2021-08-31 | J62: 2021-09-30 | K62: 2021-10-31 | L62: 2021-11-30 | M62: 2021-12-31 | N62: 2022-01-31 | O62: 2022-02-28 | P62: 2022-03-31 | Q62: Total
C63: Ancillary service charge | D63: =New_Period -> 2021/2022 | E63: =IFERROR(Inputs!$M$30 * 'Rates Table'!$AI$47/100, "") -> 0 | F63: =IFERROR(Inputs!$M$31 * 'Rates Table'!$AI$47/100, "") -> 0 | G63: =IFERROR(Inputs!$M$32 * 'Rates Table'!$AI$47/100, "") -> 0 | H63: =IFERROR(Inputs!$M$33 * 'Rates Table'!$AI$47/100, "") -> 0 | I63: =IFERROR(Inputs!$M$34 * 'Rates Table'!$AI$47/100, "") -> 0 | J63: =IFERROR(Inputs!$M$35 * 'Rates Table'!$AI$47/100, "") -> 0 | K63: =IFERROR(Inputs!$M$36 * 'Rates Table'!$AI$47/100, "") -> 0 | L63: =IFERROR(Inputs!$M$37 * 'Rates Table'!$AI$47/100, "") -> 0 | M63: =IFERROR(Inputs!$M$38 * 'Rates Table'!$AI$47/100, "") -> 0 | N63: =IFERROR(Inputs!$M$39 * 'Rates Table'!$AI$47/100, "") -> 0 | O63: =IFERROR(Inputs!$M$40 * 'Rates Table'!$AI$47/100, "") -> 0 | P63: =IFERROR(Inputs!$M$41 * 'Rates Table'!$AI$47/100, "") -> 0 | Q63: =SUM(E63:P63) -> 0 | AA63: ='Bill Comparison'!H92 -> 0 | AB63: =IFERROR(Q63 - AA63, "") -> 0
D64: =Current_Period -> 2020/2021 | E64: =IFERROR(Inputs!$M$30 * 'Rates Table'!$E$47/100, "") -> 0 | F64: =IFERROR(Inputs!$M$31 * 'Rates Table'!$E$47/100, "") -> 0 | G64: =IFERROR(Inputs!$M$32 * 'Rates Table'!$E$47/100, "") -> 0 | H64: =IFERROR(Inputs!$M$33 * 'Rates Table'!$E$47/100, "") -> 0 | I64: =IFERROR(Inputs!$M$34 * 'Rates Table'!$E$47/100, "") -> 0 | J64: =IFERROR(Inputs!$M$35 * 'Rates Table'!$E$47/100, "") -> 0 | K64: =IFERROR(Inputs!$M$36 * 'Rates Table'!$E$47/100, "") -> 0 | L64: =IFERROR(Inputs!$M$37 * 'Rates Table'!$E$47/100, "") -> 0 | M64: =IFERROR(Inputs!$M$38 * 'Rates Table'!$E$47/100, "") -> 0 | N64: =IFERROR(Inputs!$M$39 * 'Rates Table'!$E$47/100, "") -> 0 | O64: =IFERROR(Inputs!$M$40 * 'Rates Table'!$E$47/100, "") -> 0 | P64: =IFERROR(Inputs!$M$41 * 'Rates Table'!$E$47/100, "") -> 0 | Q64: =SUM(E64:P64) -> 0 | AA64: ='Bill Comparison'!G92 -> 0 | AB64: =IFERROR(Q64 - AA64, "") -> 0
D65: % change | E65: =IFERROR((E63 - E64) / E64, "") ->  | F65: =IFERROR((F63 - F64) / F64, "") ->  | G65: =IFERROR((G63 - G64) / G64, "") ->  | H65: =IFERROR((H63 - H64) / H64, "") ->  | I65: =IFERROR((I63 - I64) / I64, "") ->  | J65: =IFERROR((J63 - J64) / J64, "") ->  | K65: =IFERROR((K63 - K64) / K64, "") ->  | L65: =IFERROR((L63 - L64) / L64, "") ->  | M65: =IFERROR((M63 - M64) / M64, "") ->  | N65: =IFERROR((N63 - N64) / N64, "") ->  | O65: =IFERROR((O63 - O64) / O64, "") ->  | P65: =IFERROR((P63 - P64) / P64, "") ->  | Q65: =IFERROR((Q63 - Q64) / Q64, "") -> 
C66: Reactive energy charge | D66: =New_Period -> 2021/2022 | E66: =IFERROR(Inputs!$L$30 * IF(Inputs!$E$30 = "High Demand", 'Rates Table'!$AI$48/100, 0), 0) -> 0 | F66: =IFERROR(Inputs!$L$31 * IF(Inputs!$E$31 = "High Demand", 'Rates Table'!$AI$48/100, 0), 0) -> 0 | G66: =IFERROR(Inputs!$L$32 * IF(Inputs!$E$32 = "High Demand", 'Rates Table'!$AI$48/100, 0), 0) -> 0 | H66: =IFERROR(Inputs!$L$33 * IF(Inputs!$E$33 = "High Demand", 'Rates Table'!$AI$48/100, 0), 0) -> 0 | I66: =IFERROR(Inputs!$L$34 * IF(Inputs!$E$34 = "High Demand", 'Rates Table'!$AI$48/100, 0), 0) -> 0 | J66: =IFERROR(Inputs!$L$35 * IF(Inputs!$E$35 = "High Demand", 'Rates Table'!$AI$48/100, 0), 0) -> 0 | K66: =IFERROR(Inputs!$L$36 * IF(Inputs!$E$36 = "High Demand", 'Rates Table'!$AI$48/100, 0), 0) -> 0 | L66: =IFERROR(Inputs!$L$37 * IF(Inputs!$E$37 = "High Demand", 'Rates Table'!$AI$48/100, 0), 0) -> 0 | M66: =IFERROR(Inputs!$L$38 * IF(Inputs!$E$38 = "High Demand", 'Rates Table'!$AI$48/100, 0), 0) -> 0 | N66: =IFERROR(Inputs!$L$39 * IF(Inputs!$E$39 = "High Demand", 'Rates Table'!$AI$48/100, 0), 0) -> 0 | O66: =IFERROR(Inputs!$L$40 * IF(Inputs!$E$40 = "High Demand", 'Rates Table'!$AI$48/100, 0), 0) -> 0 | P66: =IFERROR(Inputs!$L$41 * IF(Inputs!$E$41 = "High Demand", 'Rates Table'!$AI$48/100, 0), 0) -> 0 | Q66: =SUM(E66:P66) -> 0 | AA66: ='Bill Comparison'!H93 -> 0 | AB66: =IFERROR(Q66 - AA66, "") -> 0
D67: =Current_Period -> 2020/2021 | E67: =IFERROR(Inputs!$L$30 * IF(Inputs!$E$30 = "High Demand", 'Rates Table'!$E$48/100, 0), 0) -> 0 | F67: =IFERROR(Inputs!$L$31 * IF(Inputs!$E$31 = "High Demand", 'Rates Table'!$E$48/100, 0), 0) -> 0 | G67: =IFERROR(Inputs!$L$32 * IF(Inputs!$E$32 = "High Demand", 'Rates Table'!$E$48/100, 0), 0) -> 0 | H67: =IFERROR(Inputs!$L$33 * IF(Inputs!$E$33 = "High Demand", 'Rates Table'!$E$48/100, 0), 0) -> 0 | I67: =IFERROR(Inputs!$L$34 * IF(Inputs!$E$34 = "High Demand", 'Rates Table'!$E$48/100, 0), 0) -> 0 | J67: =IFERROR(Inputs!$L$35 * IF(Inputs!$E$35 = "High Demand", 'Rates Table'!$E$48/100, 0), 0) -> 0 | K67: =IFERROR(Inputs!$L$36 * IF(Inputs!$E$36 = "High Demand", 'Rates Table'!$E$48/100, 0), 0) -> 0 | L67: =IFERROR(Inputs!$L$37 * IF(Inputs!$E$37 = "High Demand", 'Rates Table'!$E$48/100, 0), 0) -> 0 | M67: =IFERROR(Inputs!$L$38 * IF(Inputs!$E$38 = "High Demand", 'Rates Table'!$E$48/100, 0), 0) -> 0 | N67: =IFERROR(Inputs!$L$39 * IF(Inputs!$E$39 = "High Demand", 'Rates Table'!$E$48/100, 0), 0) -> 0 | O67: =IFERROR(Inputs!$L$40 * IF(Inputs!$E$40 = "High Demand", 'Rates Table'!$E$48/100, 0), 0) -> 0 | P67: =IFERROR(Inputs!$L$41 * IF(Inputs!$E$41 = "High Demand", 'Rates Table'!$E$48/100, 0), 0) -> 0 | Q67: =SUM(E67:P67) -> 0 | AA67: ='Bill Comparison'!G93 -> 0 | AB67: =IFERROR(Q67 - AA67, "") -> 0
D68: % change | E68: =IFERROR((E66 - E67) / E67, "") ->  | F68: =IFERROR((F66 - F67) / F67, "") ->  | G68: =IFERROR((G66 - G67) / G67, "") ->  | H68: =IFERROR((H66 - H67) / H67, "") ->  | I68: =IFERROR((I66 - I67) / I67, "") ->  | J68: =IFERROR((J66 - J67) / J67, "") ->  | K68: =IFERROR((K66 - K67) / K67, "") ->  | L68: =IFERROR((L66 - L67) / L67, "") ->  | M68: =IFERROR((M66 - M67) / M67, "") ->  | N68: =IFERROR((N66 - N67) / N67, "") ->  | O68: =IFERROR((O66 - O67) / O67, "") ->  | P68: =IFERROR((P66 - P67) / P67, "") ->  | Q68: =IFERROR((Q66 - Q67) / Q67, "") -> 
C69: Electrification and rural subsidy charge | D69: =New_Period -> 2021/2022 | E69: =IFERROR(Inputs!$M$30 * 'Rates Table'!$AI$49/100, 0) -> 0 | F69: =IFERROR(Inputs!$M$31 * 'Rates Table'!$AI$49/100, 0) -> 0 | G69: =IFERROR(Inputs!$M$32 * 'Rates Table'!$AI$49/100, 0) -> 0 | H69: =IFERROR(Inputs!$M$33 * 'Rates Table'!$AI$49/100, 0) -> 0 | I69: =IFERROR(Inputs!$M$34 * 'Rates Table'!$AI$49/100, 0) -> 0 | J69: =IFERROR(Inputs!$M$35 * 'Rates Table'!$AI$49/100, 0) -> 0 | K69: =IFERROR(Inputs!$M$36 * 'Rates Table'!$AI$49/100, 0) -> 0 | L69: =IFERROR(Inputs!$M$37 * 'Rates Table'!$AI$49/100, 0) -> 0 | M69: =IFERROR(Inputs!$M$38 * 'Rates Table'!$AI$49/100, 0) -> 0 | N69: =IFERROR(Inputs!$M$39 * 'Rates Table'!$AI$49/100, 0) -> 0 | O69: =IFERROR(Inputs!$M$40 * 'Rates Table'!$AI$49/100, 0) -> 0 | P69: =IFERROR(Inputs!$M$41 * 'Rates Table'!$AI$49/100, 0) -> 0 | Q69: =SUM(E69:P69) -> 0 | AA69: ='Bill Comparison'!H94 -> 0 | AB69: =IFERROR(Q69 - AA69, "") -> 0
D70: =Current_Period -> 2020/2021 | E70: =IFERROR(Inputs!$M$30 * 'Rates Table'!$E$49/100, 0) -> 0 | F70: =IFERROR(Inputs!$M$31 * 'Rates Table'!$E$49/100, 0) -> 0 | G70: =IFERROR(Inputs!$M$32 * 'Rates Table'!$E$49/100, 0) -> 0 | H70: =IFERROR(Inputs!$M$33 * 'Rates Table'!$E$49/100, 0) -> 0 | I70: =IFERROR(Inputs!$M$34 * 'Rates Table'!$E$49/100, 0) -> 0 | J70: =IFERROR(Inputs!$M$35 * 'Rates Table'!$E$49/100, 0) -> 0 | K70: =IFERROR(Inputs!$M$36 * 'Rates Table'!$E$49/100, 0) -> 0 | L70: =IFERROR(Inputs!$M$37 * 'Rates Table'!$E$49/100, 0) -> 0 | M70: =IFERROR(Inputs!$M$38 * 'Rates Table'!$E$49/100, 0) -> 0 | N70: =IFERROR(Inputs!$M$39 * 'Rates Table'!$E$49/100, 0) -> 0 | O70: =IFERROR(Inputs!$M$40 * 'Rates Table'!$E$49/100, 0) -> 0 | P70: =IFERROR(Inputs!$M$41 * 'Rates Table'!$E$49/100, 0) -> 0 | Q70: =SUM(E70:P70) -> 0 | AA70: ='Bill Comparison'!G94 -> 0 | AB70: =IFERROR(Q70 - AA70, "") -> 0
D71: % change | E71: =IFERROR((E69 - E70) / E70, "") ->  | F71: =IFERROR((F69 - F70) / F70, "") ->  | G71: =IFERROR((G69 - G70) / G70, "") ->  | H71: =IFERROR((H69 - H70) / H70, "") ->  | I71: =IFERROR((I69 - I70) / I70, "") ->  | J71: =IFERROR((J69 - J70) / J70, "") ->  | K71: =IFERROR((K69 - K70) / K70, "") ->  | L71: =IFERROR((L69 - L70) / L70, "") ->  | M71: =IFERROR((M69 - M70) / M70, "") ->  | N71: =IFERROR((N69 - N70) / N70, "") ->  | O71: =IFERROR((O69 - O70) / O70, "") ->  | P71: =IFERROR((P69 - P70) / P70, "") ->  | Q71: =IFERROR((Q69 - Q70) / Q70, "") -> 
C72: Affordability charge | D72: =New_Period -> 2021/2022 | E72: =IFERROR(Inputs!$M$30 * 'Rates Table'!$AI$50/100, 0) -> 0 | F72: =IFERROR(Inputs!$M$31 * 'Rates Table'!$AI$50/100, 0) -> 0 | G72: =IFERROR(Inputs!$M$32 * 'Rates Table'!$AI$50/100, 0) -> 0 | H72: =IFERROR(Inputs!$M$33 * 'Rates Table'!$AI$50/100, 0) -> 0 | I72: =IFERROR(Inputs!$M$34 * 'Rates Table'!$AI$50/100, 0) -> 0 | J72: =IFERROR(Inputs!$M$35 * 'Rates Table'!$AI$50/100, 0) -> 0 | K72: =IFERROR(Inputs!$M$36 * 'Rates Table'!$AI$50/100, 0) -> 0 | L72: =IFERROR(Inputs!$M$37 * 'Rates Table'!$AI$50/100, 0) -> 0 | M72: =IFERROR(Inputs!$M$38 * 'Rates Table'!$AI$50/100, 0) -> 0 | N72: =IFERROR(Inputs!$M$39 * 'Rates Table'!$AI$50/100, 0) -> 0 | O72: =IFERROR(Inputs!$M$40 * 'Rates Table'!$AI$50/100, 0) -> 0 | P72: =IFERROR(Inputs!$M$41 * 'Rates Table'!$AI$50/100, 0) -> 0 | Q72: =SUM(E72:P72) -> 0 | AA72: ='Bill Comparison'!H95 -> 0 | AB72: =IFERROR(Q72 - AA72, "") -> 0
D73: =Current_Period -> 2020/2021 | E73: =IFERROR(Inputs!$M$30 * 'Rates Table'!$E$50/100, 0) -> 0 | F73: =IFERROR(Inputs!$M$31 * 'Rates Table'!$E$50/100, 0) -> 0 | G73: =IFERROR(Inputs!$M$32 * 'Rates Table'!$E$50/100, 0) -> 0 | H73: =IFERROR(Inputs!$M$33 * 'Rates Table'!$E$50/100, 0) -> 0 | I73: =IFERROR(Inputs!$M$34 * 'Rates Table'!$E$50/100, 0) -> 0 | J73: =IFERROR(Inputs!$M$35 * 'Rates Table'!$E$50/100, 0) -> 0 | K73: =IFERROR(Inputs!$M$36 * 'Rates Table'!$E$50/100, 0) -> 0 | L73: =IFERROR(Inputs!$M$37 * 'Rates Table'!$E$50/100, 0) -> 0 | M73: =IFERROR(Inputs!$M$38 * 'Rates Table'!$E$50/100, 0) -> 0 | N73: =IFERROR(Inputs!$M$39 * 'Rates Table'!$E$50/100, 0) -> 0 | O73: =IFERROR(Inputs!$M$40 * 'Rates Table'!$E$50/100, 0) -> 0 | P73: =IFERROR(Inputs!$M$41 * 'Rates Table'!$E$50/100, 0) -> 0 | Q73: =SUM(E73:P73) -> 0 | AA73: ='Bill Comparison'!G95 -> 0 | AB73: =IFERROR(Q73 - AA73, "") -> 0
D74: % change | E74: =IFERROR((E72 - E73) / E73, "") ->  | F74: =IFERROR((F72 - F73) / F73, "") ->  | G74: =IFERROR((G72 - G73) / G73, "") ->  | H74: =IFERROR((H72 - H73) / H73, "") ->  | I74: =IFERROR((I72 - I73) / I73, "") ->  | J74: =IFERROR((J72 - J73) / J73, "") ->  | K74: =IFERROR((K72 - K73) / K73, "") ->  | L74: =IFERROR((L72 - L73) / L73, "") ->  | M74: =IFERROR((M72 - M73) / M73, "") ->  | N74: =IFERROR((N72 - N73) / N73, "") ->  | O74: =IFERROR((O72 - O73) / O73, "") ->  | P74: =IFERROR((P72 - P73) / P73, "") ->  | Q74: =IFERROR((Q72 - Q73) / Q73, "") -> 
C75: Administration charge | D75: =New_Period -> 2021/2022 | E75: =IFERROR('Rates Table'!$AI$51*PODs*(TOU_High_Days + TOU_Low_Days)/12,0) -> 0 | F75: =IFERROR('Rates Table'!$AI$51*PODs*(TOU_High_Days + TOU_Low_Days)/12,0) -> 0 | G75: =IFERROR('Rates Table'!$AI$51*PODs*(TOU_High_Days + TOU_Low_Days)/12,0) -> 0 | H75: =IFERROR('Rates Table'!$AI$51*PODs*(TOU_High_Days + TOU_Low_Days)/12,0) -> 0 | I75: =IFERROR('Rates Table'!$AI$51*PODs*(TOU_High_Days + TOU_Low_Days)/12,0) -> 0 | J75: =IFERROR('Rates Table'!$AI$51*PODs*(TOU_High_Days + TOU_Low_Days)/12,0) -> 0 | K75: =IFERROR('Rates Table'!$AI$51*PODs*(TOU_High_Days + TOU_Low_Days)/12,0) -> 0 | L75: =IFERROR('Rates Table'!$AI$51*PODs*(TOU_High_Days + TOU_Low_Days)/12,0) -> 0 | M75: =IFERROR('Rates Table'!$AI$51*PODs*(TOU_High_Days + TOU_Low_Days)/12,0) -> 0 | N75: =IFERROR('Rates Table'!$AI$51*PODs*(TOU_High_Days + TOU_Low_Days)/12,0) -> 0 | O75: =IFERROR('Rates Table'!$AI$51*PODs*(TOU_High_Days + TOU_Low_Days)/12,0) -> 0 | P75: =IFERROR('Rates Table'!$AI$51*PODs*(TOU_High_Days + TOU_Low_Days)/12,0) -> 0 | Q75: =SUM(E75:P75) -> 0 | AA75: ='Bill Comparison'!H96 -> 0 | AB75: =IFERROR(Q75 - AA75, "") -> 0
D76: =Current_Period -> 2020/2021 | E76: =IFERROR('Rates Table'!$E$51*PODs*(TOU_High_Days + TOU_Low_Days)/12,0) -> 0 | F76: =IFERROR('Rates Table'!$E$51*PODs*(TOU_High_Days + TOU_Low_Days)/12,0) -> 0 | G76: =IFERROR('Rates Table'!$E$51*PODs*(TOU_High_Days + TOU_Low_Days)/12,0) -> 0 | H76: =IFERROR('Rates Table'!$E$51*PODs*(TOU_High_Days + TOU_Low_Days)/12,0) -> 0 | I76: =IFERROR('Rates Table'!$E$51*PODs*(TOU_High_Days + TOU_Low_Days)/12,0) -> 0 | J76: =IFERROR('Rates Table'!$E$51*PODs*(TOU_High_Days + TOU_Low_Days)/12,0) -> 0 | K76: =IFERROR('Rates Table'!$E$51*PODs*(TOU_High_Days + TOU_Low_Days)/12,0) -> 0 | L76: =IFERROR('Rates Table'!$E$51*PODs*(TOU_High_Days + TOU_Low_Days)/12,0) -> 0 | M76: =IFERROR('Rates Table'!$E$51*PODs*(TOU_High_Days + TOU_Low_Days)/12,0) -> 0 | N76: =IFERROR('Rates Table'!$E$51*PODs*(TOU_High_Days + TOU_Low_Days)/12,0) -> 0 | O76: =IFERROR('Rates Table'!$E$51*PODs*(TOU_High_Days + TOU_Low_Days)/12,0) -> 0 | P76: =IFERROR('Rates Table'!$E$51*PODs*(TOU_High_Days + TOU_Low_Days)/12,0) -> 0 | Q76: =SUM(E76:P76) -> 0 | AA76: ='Bill Comparison'!G96 -> 0 | AB76: =IFERROR(Q76 - AA76, "") -> 0
D77: % change | E77: =IFERROR((E75 - E76) / E76, "") ->  | F77: =IFERROR((F75 - F76) / F76, "") ->  | G77: =IFERROR((G75 - G76) / G76, "") ->  | H77: =IFERROR((H75 - H76) / H76, "") ->  | I77: =IFERROR((I75 - I76) / I76, "") ->  | J77: =IFERROR((J75 - J76) / J76, "") ->  | K77: =IFERROR((K75 - K76) / K76, "") ->  | L77: =IFERROR((L75 - L76) / L76, "") ->  | M77: =IFERROR((M75 - M76) / M76, "") ->  | N77: =IFERROR((N75 - N76) / N76, "") ->  | O77: =IFERROR((O75 - O76) / O76, "") ->  | P77: =IFERROR((P75 - P76) / P76, "") ->  | Q77: =IFERROR((Q75 - Q76) / Q76, "") -> 
C78: Service charge | D78: =New_Period -> 2021/2022 | E78: =IFERROR(IF(Table_1=1,'Rates Table'!$AI$52*1*(TOU_High_Days + TOU_Low_Days)/12,'Rates Table'!$AI$52*PODs*(TOU_High_Days + TOU_Low_Days)/12),0) -> 761.3291667 | F78: =IFERROR(IF(Table_1=1,'Rates Table'!$AI$52*1*(TOU_High_Days + TOU_Low_Days)/12,'Rates Table'!$AI$52*PODs*(TOU_High_Days + TOU_Low_Days)/12),0) -> 761.3291667 | G78: =IFERROR(IF(Table_1=1,'Rates Table'!$AI$52*1*(TOU_High_Days + TOU_Low_Days)/12,'Rates Table'!$AI$52*PODs*(TOU_High_Days + TOU_Low_Days)/12),0) -> 761.3291667 | H78: =IFERROR(IF(Table_1=1,'Rates Table'!$AI$52*1*(TOU_High_Days + TOU_Low_Days)/12,'Rates Table'!$AI$52*PODs*(TOU_High_Days + TOU_Low_Days)/12),0) -> 761.3291667 | I78: =IFERROR(IF(Table_1=1,'Rates Table'!$AI$52*1*(TOU_High_Days + TOU_Low_Days)/12,'Rates Table'!$AI$52*PODs*(TOU_High_Days + TOU_Low_Days)/12),0) -> 761.3291667 | J78: =IFERROR(IF(Table_1=1,'Rates Table'!$AI$52*1*(TOU_High_Days + TOU_Low_Days)/12,'Rates Table'!$AI$52*PODs*(TOU_High_Days + TOU_Low_Days)/12),0) -> 761.3291667 | K78: =IFERROR(IF(Table_1=1,'Rates Table'!$AI$52*1*(TOU_High_Days + TOU_Low_Days)/12,'Rates Table'!$AI$52*PODs*(TOU_High_Days + TOU_Low_Days)/12),0) -> 761.3291667 | L78: =IFERROR(IF(Table_1=1,'Rates Table'!$AI$52*1*(TOU_High_Days + TOU_Low_Days)/12,'Rates Table'!$AI$52*PODs*(TOU_High_Days + TOU_Low_Days)/12),0) -> 761.3291667 | M78: =IFERROR(IF(Table_1=1,'Rates Table'!$AI$52*1*(TOU_High_Days + TOU_Low_Days)/12,'Rates Table'!$AI$52*PODs*(TOU_High_Days + TOU_Low_Days)/12),0) -> 761.3291667 | N78: =IFERROR(IF(Table_1=1,'Rates Table'!$AI$52*1*(TOU_High_Days + TOU_Low_Days)/12,'Rates Table'!$AI$52*PODs*(TOU_High_Days + TOU_Low_Days)/12),0) -> 761.3291667 | O78: =IFERROR(IF(Table_1=1,'Rates Table'!$AI$52*1*(TOU_High_Days + TOU_Low_Days)/12,'Rates Table'!$AI$52*PODs*(TOU_High_Days + TOU_Low_Days)/12),0) -> 761.3291667 | P78: =IFERROR(IF(Table_1=1,'Rates Table'!$AI$52*1*(TOU_High_Days + TOU_Low_Days)/12,'Rates Table'!$AI$52*PODs*(TOU_High_Days + TOU_Low_Days)/12),0) -> 761.3291667 | Q78: =SUM(E78:P78) -> 9135.95 | AA78: ='Bill Comparison'!H97 -> 9135.95 | AB78: =IFERROR(Q78 - AA78, "") -> -1.818989404e-12
D79: =Current_Period -> 2020/2021 | E79: =IFERROR(IF(Table_1=1,'Rates Table'!$E$52*1*(TOU_High_Days + TOU_Low_Days)/12,'Rates Table'!$E$52*PODs*(TOU_High_Days + TOU_Low_Days)/12),0) -> 661.5625 | F79: =IFERROR(IF(Table_1=1,'Rates Table'!$E$52*1*(TOU_High_Days + TOU_Low_Days)/12,'Rates Table'!$E$52*PODs*(TOU_High_Days + TOU_Low_Days)/12),0) -> 661.5625 | G79: =IFERROR(IF(Table_1=1,'Rates Table'!$E$52*1*(TOU_High_Days + TOU_Low_Days)/12,'Rates Table'!$E$52*PODs*(TOU_High_Days + TOU_Low_Days)/12),0) -> 661.5625 | H79: =IFERROR(IF(Table_1=1,'Rates Table'!$E$52*1*(TOU_High_Days + TOU_Low_Days)/12,'Rates Table'!$E$52*PODs*(TOU_High_Days + TOU_Low_Days)/12),0) -> 661.5625 | I79: =IFERROR(IF(Table_1=1,'Rates Table'!$E$52*1*(TOU_High_Days + TOU_Low_Days)/12,'Rates Table'!$E$52*PODs*(TOU_High_Days + TOU_Low_Days)/12),0) -> 661.5625 | J79: =IFERROR(IF(Table_1=1,'Rates Table'!$E$52*1*(TOU_High_Days + TOU_Low_Days)/12,'Rates Table'!$E$52*PODs*(TOU_High_Days + TOU_Low_Days)/12),0) -> 661.5625 | K79: =IFERROR(IF(Table_1=1,'Rates Table'!$E$52*1*(TOU_High_Days + TOU_Low_Days)/12,'Rates Table'!$E$52*PODs*(TOU_High_Days + TOU_Low_Days)/12),0) -> 661.5625 | L79: =IFERROR(IF(Table_1=1,'Rates Table'!$E$52*1*(TOU_High_Days + TOU_Low_Days)/12,'Rates Table'!$E$52*PODs*(TOU_High_Days + TOU_Low_Days)/12),0) -> 661.5625 | M79: =IFERROR(IF(Table_1=1,'Rates Table'!$E$52*1*(TOU_High_Days + TOU_Low_Days)/12,'Rates Table'!$E$52*PODs*(TOU_High_Days + TOU_Low_Days)/12),0) -> 661.5625 | N79: =IFERROR(IF(Table_1=1,'Rates Table'!$E$52*1*(TOU_High_Days + TOU_Low_Days)/12,'Rates Table'!$E$52*PODs*(TOU_High_Days + TOU_Low_Days)/12),0) -> 661.5625 | O79: =IFERROR(IF(Table_1=1,'Rates Table'!$E$52*1*(TOU_High_Days + TOU_Low_Days)/12,'Rates Table'!$E$52*PODs*(TOU_High_Days + TOU_Low_Days)/12),0) -> 661.5625 | P79: =IFERROR(IF(Table_1=1,'Rates Table'!$E$52*1*(TOU_High_Days + TOU_Low_Days)/12,'Rates Table'!$E$52*PODs*(TOU_High_Days + TOU_Low_Days)/12),0) -> 661.5625 | Q79: =SUM(E79:P79) -> 7938.75 | AA79: ='Bill Comparison'!G97 -> 7938.75 | AB79: =IFERROR(Q79 - AA79, "") -> 0
D80: % change | E80: =IFERROR((E78 - E79) / E79, "") -> 0.1508045977 | F80: =IFERROR((F78 - F79) / F79, "") -> 0.1508045977 | G80: =IFERROR((G78 - G79) / G79, "") -> 0.1508045977 | H80: =IFERROR((H78 - H79) / H79, "") -> 0.1508045977 | I80: =IFERROR((I78 - I79) / I79, "") -> 0.1508045977 | J80: =IFERROR((J78 - J79) / J79, "") -> 0.1508045977 | K80: =IFERROR((K78 - K79) / K79, "") -> 0.1508045977 | L80: =IFERROR((L78 - L79) / L79, "") -> 0.1508045977 | M80: =IFERROR((M78 - M79) / M79, "") -> 0.1508045977 | N80: =IFERROR((N78 - N79) / N79, "") -> 0.1508045977 | O80: =IFERROR((O78 - O79) / O79, "") -> 0.1508045977 | P80: =IFERROR((P78 - P79) / P79, "") -> 0.1508045977 | Q80: =IFERROR((Q78 - Q79) / Q79, "") -> 0.1508045977
C81: Total other charges | D81: =New_Period -> 2021/2022 | E81: =SUM(E66,E69,E72,E75,E78,E63) -> 761.3291667 | F81: =SUM(F66,F69,F72,F75,F78,F63) -> 761.3291667 | G81: 761.3291667 | H81: 761.3291667 | I81: 761.3291667 | J81: 761.3291667 | K81: 761.3291667 | L81: 761.3291667 | M81: 761.3291667 | N81: 761.3291667 | O81: 761.3291667 | P81: 761.3291667 | Q81: =SUM(Q66,Q69,Q72,Q75,Q78,Q63) -> 9135.95
D82: =Current_Period -> 2020/2021 | E82: =SUM(E67,E70,E73,E76,E79,E64) -> 661.5625 | F82: 661.5625 | G82: 661.5625 | H82: 661.5625 | I82: 661.5625 | J82: 661.5625 | K82: 661.5625 | L82: 661.5625 | M82: 661.5625 | N82: 661.5625 | O82: 661.5625 | P82: 661.5625 | Q82: 7938.75
D83: % change | E83: =IFERROR((E81 - E82) / E82, "") -> 0.1508045977 | F83: =IFERROR((F81 - F82) / F82, "") -> 0.1508045977 | G83: =IFERROR((G81 - G82) / G82, "") -> 0.1508045977 | H83: =IFERROR((H81 - H82) / H82, "") -> 0.1508045977 | I83: =IFERROR((I81 - I82) / I82, "") -> 0.1508045977 | J83: =IFERROR((J81 - J82) / J82, "") -> 0.1508045977 | K83: =IFERROR((K81 - K82) / K82, "") -> 0.1508045977 | L83: =IFERROR((L81 - L82) / L82, "") -> 0.1508045977 | M83: =IFERROR((M81 - M82) / M82, "") -> 0.1508045977 | N83: =IFERROR((N81 - N82) / N82, "") -> 0.1508045977 | O83: =IFERROR((O81 - O82) / O82, "") -> 0.1508045977 | P83: =IFERROR((P81 - P82) / P82, "") -> 0.1508045977 | Q83: =IFERROR((Q81 - Q82) / Q82, "") -> 0.1508045977
B85: Total account charges | E85: =E$13 -> 2021-04-30 | F85: =F$13 -> 2021-05-31 | G85: 2021-06-30 | H85: 2021-07-31 | I85: 2021-08-31 | J85: 2021-09-30 | K85: 2021-10-31 | L85: 2021-11-30 | M85: 2021-12-31 | N85: 2022-01-31 | O85: 2022-02-28 | P85: 2022-03-31 | Q85: Total
C86: Total charges, excl VAT | D86: =New_Period -> 2021/2022 | E86: =SUM(E32, E58, E81) -> 1642.5 | F86: 1642.5 | G86: 1642.5 | H86: 1642.5 | I86: 1642.5 | J86: 1642.5 | K86: 1642.5 | L86: 1642.5 | M86: 1642.5 | N86: 1642.5 | O86: 1642.5 | P86: 1642.5 | Q86: 19710 | AA86: ='Bill Comparison'!H101 -> 19710 | AB86: =IFERROR(Q86 - AA86, "") -> 0
D87: =Current_Period -> 2020/2021 | E87: =SUM(E33, E59, E82) -> 1427.454167 | F87: 1427.454167 | G87: 1427.454167 | H87: 1427.454167 | I87: 1427.454167 | J87: 1427.454167 | K87: 1427.454167 | L87: 1427.454167 | M87: 1427.454167 | N87: 1427.454167 | O87: 1427.454167 | P87: 1427.454167 | Q87: 17129.45 | AA87: ='Bill Comparison'!G101 -> 17129.45 | AB87: =IFERROR(Q87 - AA87, "") -> -3.637978807e-12
D88: % change | E88: =IFERROR((E86 - E87) / E87, "") -> 0.1506499041 | F88: =IFERROR((F86 - F87) / F87, "") -> 0.1506499041 | G88: =IFERROR((G86 - G87) / G87, "") -> 0.1506499041 | H88: =IFERROR((H86 - H87) / H87, "") -> 0.1506499041 | I88: =IFERROR((I86 - I87) / I87, "") -> 0.1506499041 | J88: =IFERROR((J86 - J87) / J87, "") -> 0.1506499041 | K88: =IFERROR((K86 - K87) / K87, "") -> 0.1506499041 | L88: =IFERROR((L86 - L87) / L87, "") -> 0.1506499041 | M88: =IFERROR((M86 - M87) / M87, "") -> 0.1506499041 | N88: =IFERROR((N86 - N87) / N87, "") -> 0.1506499041 | O88: =IFERROR((O86 - O87) / O87, "") -> 0.1506499041 | P88: =IFERROR((P86 - P87) / P87, "") -> 0.1506499041 | Q88: =IFERROR((Q86 - Q87) / Q87, "") -> 0.1506499041
C90: Total account, incl VAT | D90: =New_Period -> 2021/2022 | E90: =E86 * (1 + VAT) -> 1888.875 | F90: 1888.875 | G90: 1888.875 | H90: 1888.875 | I90: 1888.875 | J90: 1888.875 | K90: 1888.875 | L90: 1888.875 | M90: 1888.875 | N90: 1888.875 | O90: 1888.875 | P90: 1888.875 | Q90: 22666.5
D91: =Current_Period -> 2020/2021 | E91: =E87 * (1 + VAT) -> 1641.572292 | F91: 1641.572292 | G91: 1641.572292 | H91: 1641.572292 | I91: 1641.572292 | J91: 1641.572292 | K91: 1641.572292 | L91: 1641.572292 | M91: 1641.572292 | N91: 1641.572292 | O91: 1641.572292 | P91: 1641.572292 | Q91: 19698.8675
D92: % change | E92: =IFERROR((E90 - E91) / E91, "") -> 0.1506499041 | F92: =IFERROR((F90 - F91) / F91, "") -> 0.1506499041 | G92: =IFERROR((G90 - G91) / G91, "") -> 0.1506499041 | H92: =IFERROR((H90 - H91) / H91, "") -> 0.1506499041 | I92: =IFERROR((I90 - I91) / I91, "") -> 0.1506499041 | J92: =IFERROR((J90 - J91) / J91, "") -> 0.1506499041 | K92: =IFERROR((K90 - K91) / K91, "") -> 0.1506499041 | L92: =IFERROR((L90 - L91) / L91, "") -> 0.1506499041 | M92: =IFERROR((M90 - M91) / M91, "") -> 0.1506499041 | N92: =IFERROR((N90 - N91) / N91, "") -> 0.1506499041 | O92: =IFERROR((O90 - O91) / O91, "") -> 0.1506499041 | P92: =IFERROR((P90 - P91) / P91, "") -> 0.1506499041 | Q92: =IFERROR((Q90 - Q91) / Q91, "") -> 0.1506499041

Sheet Tariff Comparison
H2: For comparative purposes, Utilised Capacity and Chargeable Demand figures are required for all LPU tariffs.
B4: Time of Use Comparison Data
H6: 13 | I6: =MATCH(Selected_Base_Tariff,Compare_Tariff_List,0) -> 1 | J6: =MATCH(H8,Full_Tariff_List,0) -> 22 | L6: 14 | N6: =MATCH(L8,Full_Tariff_List,0) -> 18 | P6: 7 | R6: =MATCH(P8,Full_Tariff_List,0) -> 15
D8: ='Bill Comparison'!I4 -> Businessrate 1 | H8: =IFERROR(INDEX(Compare_Tariff_List,Dropdown_Compare_1),$D$8) -> Ruraflex | L8: =IFERROR(INDEX(Compare_Tariff_List,Dropdown_Compare_2),$D$8) -> Miniflex | P8: =IFERROR(INDEX(Compare_Tariff_List,Dropdown_Compare_3),$D$8) -> Landrate 4
D9: =IFERROR(INDEX(Compare_Long_Type,Selected_Compare_Tariff_ID),"") -> Commercial Urban | H9: =IFERROR(INDEX(Compare_Long_Type,Dropdown_Compare_1),"") -> Rural | L9: =IFERROR(INDEX(Compare_Long_Type,Dropdown_Compare_2),"") -> Urban | P9: =IFERROR(INDEX(Compare_Long_Type,Dropdown_Compare_3),"") -> Rural
B10: Comparison Tariffs | D10: =Current_Period -> 2020/2021 | E10: =New_Period -> 2021/2022 | F10: % Change | H10: =Current_Period -> 2020/2021 | I10: =New_Period -> 2021/2022 | J10: % Change | L10: =Current_Period -> 2020/2021 | M10: =New_Period -> 2021/2022 | N10: % Change | P10: =Current_Period -> 2020/2021 | Q10: =New_Period -> 2021/2022 | R10: % Change
C12: High-demand | D12: ='Bill Comparison'!G110 -> 4965.194 | E12: ='Bill Comparison'!H110 -> 5713.2 | F12: =IFERROR(E12/D12-1,0) -> 0.1506499041 | H12: =IFERROR(INDEX(High_Total_Costs_Current,0,J$6),"") -> 2174.19 | I12: =IFERROR(INDEX(High_Total_Costs_New,0,J$6),"") -> 2502.17 | J12: =IFERROR(I12/H12-1,0) -> 0.1508515815 | L12: =IFERROR(INDEX(High_Total_Costs_Current,0,N$6),"") -> 2174.19 | M12: =IFERROR(INDEX(High_Total_Costs_New,0,N$6),"") -> 2502.17 | N12: =IFERROR(M12/L12-1,0) -> 0.1508515815 | P12: =IFERROR(INDEX(High_Total_Costs_Current,0,R$6),"") -> 2780.424 | Q12: =IFERROR(INDEX(High_Total_Costs_New,0,R$6),"") -> 3199.392 | R12: =IFERROR(Q12/P12-1,0) -> 0.1506849315
C13: Low demand | D13: ='Bill Comparison'!G111 -> 14733.6735 | E13: ='Bill Comparison'!H111 -> 16953.3 | F13: =IFERROR(E13/D13-1,0) -> 0.1506499041 | H13: =IFERROR(INDEX(Low_Total_Costs_Current,0,J$6),"") -> 6451.6725 | I13: =IFERROR(INDEX(Low_Total_Costs_New,0,J$6),"") -> 7424.9175 | J13: =IFERROR(I13/H13-1,0) -> 0.1508515815 | L13: =IFERROR(INDEX(Low_Total_Costs_Current,0,N$6),"") -> 6451.6725 | M13: =IFERROR(INDEX(Low_Total_Costs_New,0,N$6),"") -> 7424.9175 | N13: =IFERROR(M13/L13-1,0) -> 0.1508515815 | P13: =IFERROR(INDEX(Low_Total_Costs_Current,0,R$6),"") -> 8250.606 | Q13: =IFERROR(INDEX(Low_Total_Costs_New,0,R$6),"") -> 9493.848 | R13: =IFERROR(Q13/P13-1,0) -> 0.1506849315
C15: Total | D15: =SUM(D12:D13) -> 19698.8675 | E15: =SUM(E12:E13) -> 22666.5 | F15: =IFERROR(E15/D15-1,0) -> 0.1506499041 | H15: =SUM(H12:H13) -> 8625.8625 | I15: =SUM(I12:I13) -> 9927.0875 | J15: =IFERROR(I15/H15-1,0) -> 0.1508515815 | L15: =SUM(L12:L13) -> 8625.8625 | M15: =SUM(M12:M13) -> 9927.0875 | N15: =IFERROR(M15/L15-1,0) -> 0.1508515815 | P15: =SUM(P12:P13) -> 11031.03 | Q15: =SUM(Q12:Q13) -> 12693.24 | R15: =IFERROR(Q15/P15-1,0) -> 0.1506849315
C17: Average price c/kWh | D17: ='Bill Comparison'!G106 -> 0 | E17: ='Bill Comparison'!H106 -> 0 | F17: =IFERROR(E17/D17-1,0) -> 0 | H17: =IFERROR(H15/(High_Total_Energy+Low_Total_Energy)/1.14*100,0) -> 0 | I17: =IFERROR(I15/(High_Total_Energy+Low_Total_Energy)/1.14*100,0) -> 0 | J17: =IFERROR(I17/H17-1,0) -> 0 | L17: =IFERROR(L15/(High_Total_Energy+Low_Total_Energy)/1.14*100,0) -> 0 | M17: =IFERROR(M15/(High_Total_Energy+Low_Total_Energy)/1.14*100,0) -> 0 | N17: =IFERROR(M17/L17-1,0) -> 0 | P17: =IFERROR(P15/(High_Total_Energy+Low_Total_Energy)/1.14*100,0) -> 0 | Q17: =IFERROR(Q15/(High_Total_Energy+Low_Total_Energy)/1.14*100,0) -> 0 | R17: =IFERROR(Q17/P17-1,0) -> 0
B19: Annual Comparison | D19: =Current_Period -> 2020/2021 | E19: =New_Period -> 2021/2022 | F19: % Change
C21: =D8 -> Businessrate 1 | D21: =D15 -> 19698.8675 | E21: =E15 -> 22666.5 | F21: =IFERROR(E21/D21-1,0) -> 0.1506499041
C22: =H8 -> Ruraflex | D22: =H15 -> 8625.8625 | E22: =I15 -> 9927.0875 | F22: =IFERROR(E22/D22-1,0) -> 0.1508515815
C23: =L8 -> Miniflex | D23: =L15 -> 8625.8625 | E23: =M15 -> 9927.0875 | F23: =IFERROR(E23/D23-1,0) -> 0.1508515815
C24: =P8 -> Landrate 4 | D24: =P15 -> 11031.03 | E24: =Q15 -> 12693.24 | F24: =IFERROR(E24/D24-1,0) -> 0.1506849315

Sheet Workings High (hidden)
B4: Calculations for High Demand by Tariff
B6: Tariffs | E6: =Selected_Base_Tariff -> Businessrate 1 | F6: =INDEX(Full_Tariff_List,F$7,) -> Businessrate 1 | G6: Businessrate 2 | H6: Businessrate 3 | I6: Businessrate 4 | J6: Homelight 20A | K6: Homelight 60A | L6: Homepower 1 | M6: Homepower 2 | N6: Homepower 3 | O6: Homepower 4 | P6: Homepower Bulk | Q6: Landrate 1 | R6: Landrate 2 | S6: Landrate 3 | T6: Landrate 4 | U6: Landrate Dx | V6: Megaflex | W6: Miniflex | X6: Nightsave Large | Y6: Nightsave Rural | Z6: Nightsave Small | AA6: Ruraflex | AB6: Landlight 20A | AC6: Landlight 60A | AD6: Public Lighting 24 Hours | AE6: Public Lighting All Night | AF6: Public Lighting Urban Fixed | AI6: =E6 -> Businessrate 1 | AJ6: Businessrate 1 | AK6: Businessrate 2 | AL6: Businessrate 3 | AM6: Businessrate 4 | AN6: Homelight 20A | AO6: Homelight 60A | AP6: Homepower 1 | AQ6: Homepower 2 | AR6: Homepower 3 | AS6: Homepower 4 | AT6: Homepower Bulk | AU6: Landrate 1 | AV6: Landrate 2 | AW6: Landrate 3 | AX6: Landrate 4 | AY6: Landrate Dx | AZ6: Megaflex | BA6: Miniflex | BB6: Nightsave Large | BC6: Nightsave Rural | BD6: Nightsave Small | BE6: Ruraflex | BF6: =AB6 -> Landlight 20A | BG6: Landlight 60A | BH6: Public Lighting 24 Hours | BI6: Public Lighting All Night | BJ6: Public Lighting Urban Fixed
F7: 1 | G7: =F7+1 -> 2 | H7: =G7+1 -> 3 | I7: 4 | J7: 5 | K7: 6 | L7: 7 | M7: 8 | N7: 9 | O7: 10 | P7: 11 | Q7: 12 | R7: 13 | S7: 14 | T7: 15 | U7: 16 | V7: =U7+1 -> 17 | W7: 18 | X7: 19 | Y7: 20 | Z7: 21 | AA7: 22 | AB7: =AA7+1 -> 23 | AC7: =AB7+1 -> 24 | AD7: =AC7+1 -> 25 | AE7: =AD7+1 -> 26 | AF7: =AE7+1 -> 27
B8: Network charges | D8: Units | E8: =Current_Period&" Rates" -> 2020/2021 Rates | F8: =E8 -> 2020/2021 Rates | G8: =F8 -> 2020/2021 Rates | H8: 2020/2021 Rates | I8: 2020/2021 Rates | J8: 2020/2021 Rates | K8: 2020/2021 Rates | L8: 2020/2021 Rates | M8: 2020/2021 Rates | N8: 2020/2021 Rates | O8: 2020/2021 Rates | P8: 2020/2021 Rates | Q8: 2020/2021 Rates | R8: 2020/2021 Rates | S8: 2020/2021 Rates | T8: 2020/2021 Rates | U8: 2020/2021 Rates | V8: =U8 -> 2020/2021 Rates | W8: 2020/2021 Rates | X8: 2020/2021 Rates | Y8: 2020/2021 Rates | Z8: 2020/2021 Rates | AA8: 2020/2021 Rates | AB8: =AA8 -> 2020/2021 Rates | AC8: =AB8 -> 2020/2021 Rates | AD8: =AC8 -> 2020/2021 Rates | AE8: =AD8 -> 2020/2021 Rates | AF8: =AE8 -> 2020/2021 Rates | AI8: =New_Period&" Rates" -> 2021/2022 Rates | AJ8: =AI8 -> 2021/2022 Rates | AK8: =AJ8 -> 2021/2022 Rates | AL8: 2021/2022 Rates | AM8: 2021/2022 Rates | AN8: 2021/2022 Rates | AO8: 2021/2022 Rates | AP8: 2021/2022 Rates | AQ8: 2021/2022 Rates | AR8: 2021/2022 Rates | AS8: 2021/2022 Rates | AT8: 2021/2022 Rates | AU8: 2021/2022 Rates | AV8: 2021/2022 Rates | AW8: 2021/2022 Rates | AX8: 2021/2022 Rates | AY8: 2021/2022 Rates | AZ8: 2021/2022 Rates | BA8: 2021/2022 Rates | BB8: 2021/2022 Rates | BC8: 2021/2022 Rates | BD8: 2021/2022 Rates | BE8: 2021/2022 Rates | BF8: =BE8 -> 2021/2022 Rates | BG8: =BF8 -> 2021/2022 Rates | BH8: =BG8 -> 2021/2022 Rates | BI8: =BH8 -> 2021/2022 Rates | BJ8: =BI8 -> 2021/2022 Rates
C10: Transmission network charge | D10: R/kVA | E10: =INDEX(F10:AE10,0,Selected_Tariff_ID) -> 0 | F10: =IFERROR('Rates Table'!F10*High_Utilised_Capacity,0) -> 0 | G10: =IFERROR('Rates Table'!G10*High_Utilised_Capacity,0) -> 0 | H10: =IFERROR('Rates Table'!H10*High_Utilised_Capacity,0) -> 0 | I10: =IFERROR('Rates Table'!I10*High_Utilised_Capacity,0) -> 0 | J10: =IFERROR('Rates Table'!J10*High_Utilised_Capacity,0) -> 0 | K10: =IFERROR('Rates Table'!K10*High_Utilised_Capacity,0) -> 0 | L10: =IFERROR('Rates Table'!L10*High_Utilised_Capacity,0) -> 0 | M10: =IFERROR('Rates Table'!M10*High_Utilised_Capacity,0) -> 0 | N10: =IFERROR('Rates Table'!N10*High_Utilised_Capacity,0) -> 0 | O10: =IFERROR('Rates Table'!O10*High_Utilised_Capacity,0) -> 0 | P10: =IFERROR('Rates Table'!P10*High_Utilised_Capacity,0) -> 0 | Q10: =IFERROR('Rates Table'!Q10*High_Utilised_Capacity,0) -> 0 | R10: =IFERROR('Rates Table'!R10*High_Utilised_Capacity,0) -> 0 | S10: =IFERROR('Rates Table'!S10*High_Utilised_Capacity,0) -> 0 | T10: =IFERROR('Rates Table'!T10*High_Utilised_Capacity,0) -> 0 | U10: =IFERROR('Rates Table'!U10*High_Utilised_Capacity,0) -> 0 | V10: =IFERROR('Rates Table'!V10*High_Utilised_Capacity,0) -> 0 | W10: =IFERROR('Rates Table'!W10*High_Utilised_Capacity,0) -> 0 | X10: =IFERROR('Rates Table'!X10*High_Utilised_Capacity,0) -> 0 | Y10: =IFERROR('Rates Table'!Y10*High_Utilised_Capacity,0) -> 0 | Z10: =IFERROR('Rates Table'!Z10*High_Utilised_Capacity,0) -> 0 | AA10: =IFERROR('Rates Table'!AA10*High_Utilised_Capacity,0) -> 0 | AB10: =IFERROR('Rates Table'!AB10*High_Utilised_Capacity,0) -> 0 | AC10: =IFERROR('Rates Table'!AC10*High_Utilised_Capacity,0) -> 0 | AD10: =IFERROR('Rates Table'!AD10*High_Utilised_Capacity,0) -> 0 | AE10: =IFERROR('Rates Table'!AE10*High_Utilised_Capacity,0) -> 0 | AF10: =IFERROR('Rates Table'!AF10*High_Utilised_Capacity,0) -> 0 | AI10: =INDEX(AJ10:BI10,0,Selected_Tariff_ID) -> 0 | AJ10: =IFERROR('Rates Table'!AJ10*High_Utilised_Capacity,0) -> 0 | AK10: =IFERROR('Rates Table'!AK10*High_Utilised_Capacity,0) -> 0 | AL10: =IFERROR('Rates Table'!AL10*High_Utilised_Capacity,0) -> 0 | AM10: =IFERROR('Rates Table'!AM10*High_Utilised_Capacity,0) -> 0 | AN10: =IFERROR('Rates Table'!AN10*High_Utilised_Capacity,0) -> 0 | AO10: =IFERROR('Rates Table'!AO10*High_Utilised_Capacity,0) -> 0 | AP10: =IFERROR('Rates Table'!AP10*High_Utilised_Capacity,0) -> 0 | AQ10: =IFERROR('Rates Table'!AQ10*High_Utilised_Capacity,0) -> 0 | AR10: =IFERROR('Rates Table'!AR10*High_Utilised_Capacity,0) -> 0 | AS10: =IFERROR('Rates Table'!AS10*High_Utilised_Capacity,0) -> 0 | AT10: =IFERROR('Rates Table'!AT10*High_Utilised_Capacity,0) -> 0 | AU10: =IFERROR('Rates Table'!AU10*High_Utilised_Capacity,0) -> 0 | AV10: =IFERROR('Rates Table'!AV10*High_Utilised_Capacity,0) -> 0 | AW10: =IFERROR('Rates Table'!AW10*High_Utilised_Capacity,0) -> 0 | AX10: =IFERROR('Rates Table'!AX10*High_Utilised_Capacity,0) -> 0 | AY10: =IFERROR('Rates Table'!AY10*High_Utilised_Capacity,0) -> 0 | AZ10: =IFERROR('Rates Table'!AZ10*High_Utilised_Capacity,0) -> 0 | BA10: =IFERROR('Rates Table'!BA10*High_Utilised_Capacity,0) -> 0 | BB10: =IFERROR('Rates Table'!BB10*High_Utilised_Capacity,0) -> 0 | BC10: =IFERROR('Rates Table'!BC10*High_Utilised_Capacity,0) -> 0 | BD10: =IFERROR('Rates Table'!BD10*High_Utilised_Capacity,0) -> 0 | BE10: =IFERROR('Rates Table'!BE10*High_Utilised_Capacity,0) -> 0 | BF10: =IFERROR('Rates Table'!BF10*High_Utilised_Capacity,0) -> 0 | BG10: =IFERROR('Rates Table'!BG10*High_Utilised_Capacity,0) -> 0 | BH10: =IFERROR('Rates Table'!BH10*High_Utilised_Capacity,0) -> 0 | BI10: =IFERROR('Rates Table'!BI10*High_Utilised_Capacity,0) -> 0 | BJ10: =IFERROR('Rates Table'!BJ10*High_Utilised_Capacity,0) -> 0
C11: Distribution network capacity charge | D11: R/kVA | E11: 0 | F11: =IFERROR('Rates Table'!F11*High_Utilised_Capacity,0) -> 0 | G11: =IFERROR('Rates Table'!G11*High_Utilised_Capacity,0) -> 0 | H11: =IFERROR('Rates Table'!H11*High_Utilised_Capacity,0) -> 0 | I11: =IFERROR('Rates Table'!I11*High_Utilised_Capacity,0) -> 0 | J11: =IFERROR('Rates Table'!J11*High_Utilised_Capacity,0) -> 0 | K11: =IFERROR('Rates Table'!K11*High_Utilised_Capacity,0) -> 0 | L11: =IFERROR('Rates Table'!L11*High_Utilised_Capacity,0) -> 0 | M11: =IFERROR('Rates Table'!M11*High_Utilised_Capacity,0) -> 0 | N11: =IFERROR('Rates Table'!N11*High_Utilised_Capacity,0) -> 0 | O11: =IFERROR('Rates Table'!O11*High_Utilised_Capacity,0) -> 0 | P11: =IFERROR('Rates Table'!P11*High_Utilised_Capacity,0) -> 0 | Q11: =IFERROR('Rates Table'!Q11*High_Utilised_Capacity,0) -> 0 | R11: =IFERROR('Rates Table'!R11*High_Utilised_Capacity,0) -> 0 | S11: =IFERROR('Rates Table'!S11*High_Utilised_Capacity,0) -> 0 | T11: =IFERROR('Rates Table'!T11*High_Utilised_Capacity,0) -> 0 | U11: =IFERROR('Rates Table'!U11*High_Utilised_Capacity,0) -> 0 | V11: =IFERROR('Rates Table'!V11*High_Utilised_Capacity,0) -> 0 | W11: =IFERROR('Rates Table'!W11*High_Utilised_Capacity,0) -> 0 | X11: =IFERROR('Rates Table'!X11*High_Utilised_Capacity,0) -> 0 | Y11: =IFERROR('Rates Table'!Y11*High_Utilised_Capacity,0) -> 0 | Z11: =IFERROR('Rates Table'!Z11*High_Utilised_Capacity,0) -> 0 | AA11: =IFERROR('Rates Table'!AA11*High_Utilised_Capacity,0) -> 0 | AB11: =IFERROR('Rates Table'!AB11*High_Utilised_Capacity,0) -> 0 | AC11: =IFERROR('Rates Table'!AC11*High_Utilised_Capacity,0) -> 0 | AD11: =IFERROR('Rates Table'!AD11*High_Utilised_Capacity,0) -> 0 | AE11: =IFERROR('Rates Table'!AE11*High_Utilised_Capacity,0) -> 0 | AF11: =IFERROR('Rates Table'!AF11*High_Utilised_Capacity,0) -> 0 | AI11: 0 | AJ11: =IFERROR('Rates Table'!AJ11*High_Utilised_Capacity,0) -> 0 | AK11: =IFERROR('Rates Table'!AK11*High_Utilised_Capacity,0) -> 0 | AL11: =IFERROR('Rates Table'!AL11*High_Utilised_Capacity,0) -> 0 | AM11: =IFERROR('Rates Table'!AM11*High_Utilised_Capacity,0) -> 0 | AN11: =IFERROR('Rates Table'!AN11*High_Utilised_Capacity,0) -> 0 | AO11: =IFERROR('Rates Table'!AO11*High_Utilised_Capacity,0) -> 0 | AP11: =IFERROR('Rates Table'!AP11*High_Utilised_Capacity,0) -> 0 | AQ11: =IFERROR('Rates Table'!AQ11*High_Utilised_Capacity,0) -> 0 | AR11: =IFERROR('Rates Table'!AR11*High_Utilised_Capacity,0) -> 0 | AS11: =IFERROR('Rates Table'!AS11*High_Utilised_Capacity,0) -> 0 | AT11: =IFERROR('Rates Table'!AT11*High_Utilised_Capacity,0) -> 0 | AU11: =IFERROR('Rates Table'!AU11*High_Utilised_Capacity,0) -> 0 | AV11: =IFERROR('Rates Table'!AV11*High_Utilised_Capacity,0) -> 0 | AW11: =IFERROR('Rates Table'!AW11*High_Utilised_Capacity,0) -> 0 | AX11: =IFERROR('Rates Table'!AX11*High_Utilised_Capacity,0) -> 0 | AY11: =IFERROR('Rates Table'!AY11*High_Utilised_Capacity,0) -> 0 | AZ11: =IFERROR('Rates Table'!AZ11*High_Utilised_Capacity,0) -> 0 | BA11: =IFERROR('Rates Table'!BA11*High_Utilised_Capacity,0) -> 0 | BB11: =IFERROR('Rates Table'!BB11*High_Utilised_Capacity,0) -> 0 | BC11: =IFERROR('Rates Table'!BC11*High_Utilised_Capacity,0) -> 0 | BD11: =IFERROR('Rates Table'!BD11*High_Utilised_Capacity,0) -> 0 | BE11: =IFERROR('Rates Table'!BE11*High_Utilised_Capacity,0) -> 0 | BF11: =IFERROR('Rates Table'!BF11*High_Utilised_Capacity,0) -> 0 | BG11: =IFERROR('Rates Table'!BG11*High_Utilised_Capacity,0) -> 0 | BH11: =IFERROR('Rates Table'!BH11*High_Utilised_Capacity,0) -> 0 | BI11: =IFERROR('Rates Table'!BI11*High_Utilised_Capacity,0) -> 0 | BJ11: =IFERROR('Rates Table'!BJ11*High_Utilised_Capacity,0) -> 0
C12: Distribution network demand charge | D12: R/kVA | E12: 0 | F12: =IFERROR('Rates Table'!F12*High_Demand,0) -> 0 | G12: =IFERROR('Rates Table'!G12*High_Demand,0) -> 0 | H12: =IFERROR('Rates Table'!H12*High_Demand,0) -> 0 | I12: =IFERROR('Rates Table'!I12*High_Demand,0) -> 0 | J12: =IFERROR('Rates Table'!J12*High_Demand,0) -> 0 | K12: =IFERROR('Rates Table'!K12*High_Demand,0) -> 0 | L12: =IFERROR('Rates Table'!L12*High_Demand,0) -> 0 | M12: =IFERROR('Rates Table'!M12*High_Demand,0) -> 0 | N12: =IFERROR('Rates Table'!N12*High_Demand,0) -> 0 | O12: =IFERROR('Rates Table'!O12*High_Demand,0) -> 0 | P12: =IFERROR('Rates Table'!P12*High_Demand,0) -> 0 | Q12: =IFERROR('Rates Table'!Q12*High_Demand,0) -> 0 | R12: =IFERROR('Rates Table'!R12*High_Demand,0) -> 0 | S12: =IFERROR('Rates Table'!S12*High_Demand,0) -> 0 | T12: =IFERROR('Rates Table'!T12*High_Demand,0) -> 0 | U12: =IFERROR('Rates Table'!U12*High_Demand,0) -> 0 | V12: =IFERROR('Rates Table'!V12*High_Demand,0) -> 0 | W12: =IFERROR('Rates Table'!W12*High_Demand,0) -> 0 | X12: =IFERROR('Rates Table'!X12*High_Demand,0) -> 0 | Y12: =IFERROR('Rates Table'!Y12*High_Demand,0) -> 0 | Z12: =IFERROR('Rates Table'!Z12*High_Demand,0) -> 0 | AA12: =IFERROR('Rates Table'!AA12*High_Demand,0) -> 0 | AB12: =IFERROR('Rates Table'!AB12*High_Demand,0) -> 0 | AC12: =IFERROR('Rates Table'!AC12*High_Demand,0) -> 0 | AD12: =IFERROR('Rates Table'!AD12*High_Demand,0) -> 0 | AE12: =IFERROR('Rates Table'!AE12*High_Demand,0) -> 0 | AF12: =IFERROR('Rates Table'!AF12*High_Demand,0) -> 0 | AI12: 0 | AJ12: =IFERROR('Rates Table'!AJ12*High_Demand,0) -> 0 | AK12: =IFERROR('Rates Table'!AK12*High_Demand,0) -> 0 | AL12: =IFERROR('Rates Table'!AL12*High_Demand,0) -> 0 | AM12: =IFERROR('Rates Table'!AM12*High_Demand,0) -> 0 | AN12: =IFERROR('Rates Table'!AN12*High_Demand,0) -> 0 | AO12: =IFERROR('Rates Table'!AO12*High_Demand,0) -> 0 | AP12: =IFERROR('Rates Table'!AP12*High_Demand,0) -> 0 | AQ12: =IFERROR('Rates Table'!AQ12*High_Demand,0) -> 0 | AR12: =IFERROR('Rates Table'!AR12*High_Demand,0) -> 0 | AS12: =IFERROR('Rates Table'!AS12*High_Demand,0) -> 0 | AT12: =IFERROR('Rates Table'!AT12*High_Demand,0) -> 0 | AU12: =IFERROR('Rates Table'!AU12*High_Demand,0) -> 0 | AV12: =IFERROR('Rates Table'!AV12*High_Demand,0) -> 0 | AW12: =IFERROR('Rates Table'!AW12*High_Demand,0) -> 0 | AX12: =IFERROR('Rates Table'!AX12*High_Demand,0) -> 0 | AY12: =IFERROR('Rates Table'!AY12*High_Demand,0) -> 0 | AZ12: =IFERROR('Rates Table'!AZ12*High_Demand,0) -> 0 | BA12: =IFERROR('Rates Table'!BA12*High_Demand,0) -> 0 | BB12: =IFERROR('Rates Table'!BB12*High_Demand,0) -> 0 | BC12: =IFERROR('Rates Table'!BC12*High_Demand,0) -> 0 | BD12: =IFERROR('Rates Table'!BD12*High_Demand,0) -> 0 | BE12: =IFERROR('Rates Table'!BE12*High_Demand,0) -> 0 | BF12: =IFERROR('Rates Table'!BF12*High_Demand,0) -> 0 | BG12: =IFERROR('Rates Table'!BG12*High_Demand,0) -> 0 | BH12: =IFERROR('Rates Table'!BH12*High_Demand,0) -> 0 | BI12: =IFERROR('Rates Table'!BI12*High_Demand,0) -> 0 | BJ12: =IFERROR('Rates Table'!BJ12*High_Demand,0) -> 0
C13: Distribution network demand charge | D13: c/kWh | E13: 0 | F13: =IFERROR('Rates Table'!F13*IF(F$6="Miniflex",(High_Peak+High_Standard),High_Total_Energy),0)/100 -> 0 | G13: =IFERROR('Rates Table'!G13*IF(G$6="Miniflex",(High_Peak+High_Standard),High_Total_Energy),0)/100 -> 0 | H13: =IFERROR('Rates Table'!H13*IF(H$6="Miniflex",(High_Peak+High_Standard),High_Total_Energy),0)/100 -> 0 | I13: =IFERROR('Rates Table'!I13*IF(I$6="Miniflex",(High_Peak+High_Standard),High_Total_Energy),0)/100 -> 0 | J13: =IFERROR('Rates Table'!J13*IF(J$6="Miniflex",(High_Peak+High_Standard),High_Total_Energy),0)/100 -> 0 | K13: =IFERROR('Rates Table'!K13*IF(K$6="Miniflex",(High_Peak+High_Standard),High_Total_Energy),0)/100 -> 0 | L13: =IFERROR('Rates Table'!L13*IF(L$6="Miniflex",(High_Peak+High_Standard),High_Total_Energy),0)/100 -> 0 | M13: =IFERROR('Rates Table'!M13*IF(M$6="Miniflex",(High_Peak+High_Standard),High_Total_Energy),0)/100 -> 0 | N13: =IFERROR('Rates Table'!N13*IF(N$6="Miniflex",(High_Peak+High_Standard),High_Total_Energy),0)/100 -> 0 | O13: =IFERROR('Rates Table'!O13*IF(O$6="Miniflex",(High_Peak+High_Standard),High_Total_Energy),0)/100 -> 0 | P13: =IFERROR('Rates Table'!P13*IF(P$6="Miniflex",(High_Peak+High_Standard),High_Total_Energy),0)/100 -> 0 | Q13: =IFERROR('Rates Table'!Q13*IF(Q$6="Miniflex",(High_Peak+High_Standard),High_Total_Energy),0)/100 -> 0 | R13: =IFERROR('Rates Table'!R13*IF(R$6="Miniflex",(High_Peak+High_Standard),High_Total_Energy),0)/100 -> 0 | S13: =IFERROR('Rates Table'!S13*IF(S$6="Miniflex",(High_Peak+High_Standard),High_Total_Energy),0)/100 -> 0 | T13: =IFERROR('Rates Table'!T13*IF(T$6="Miniflex",(High_Peak+High_Standard),High_Total_Energy),0)/100 -> 0 | U13: =IFERROR('Rates Table'!U13*IF(U$6="Miniflex",(High_Peak+High_Standard),High_Total_Energy),0)/100 -> 0 | V13: =IFERROR('Rates Table'!V13*IF(V$6="Miniflex",(High_Peak+High_Standard),High_Total_Energy),0)/100 -> 0 | W13: =IFERROR('Rates Table'!W13*IF(W$6="Miniflex",(High_Peak+High_Standard),High_Total_Energy),0)/100 -> 0 | X13: =IFERROR('Rates Table'!X13*IF(X$6="Miniflex",(High_Peak+High_Standard),High_Total_Energy),0)/100 -> 0 | Y13: =IFERROR('Rates Table'!Y13*IF(Y$6="Miniflex",(High_Peak+High_Standard),High_Total_Energy),0)/100 -> 0 | Z13: =IFERROR('Rates Table'!Z13*IF(Z$6="Miniflex",(High_Peak+High_Standard),High_Total_Energy),0)/100 -> 0 | AA13: =IFERROR('Rates Table'!AA13*IF(AA$6="Miniflex",(High_Peak+High_Standard),High_Total_Energy),0)/100 -> 0 | AB13: =IFERROR('Rates Table'!AB13*IF(AB$6="Miniflex",(High_Peak+High_Standard),High_Total_Energy),0)/100 -> 0 | AC13: =IFERROR('Rates Table'!AC13*IF(AC$6="Miniflex",(High_Peak+High_Standard),High_Total_Energy),0)/100 -> 0 | AD13: =IFERROR('Rates Table'!AD13*IF(AD$6="Miniflex",(High_Peak+High_Standard),High_Total_Energy),0)/100 -> 0 | AE13: =IFERROR('Rates Table'!AE13*IF(AE$6="Miniflex",(High_Peak+High_Standard),High_Total_Energy),0)/100 -> 0 | AF13: =IFERROR('Rates Table'!AF13*IF(AF$6="Miniflex",(High_Peak+High_Standard),High_Total_Energy),0)/100 -> 0 | AI13: 0 | AJ13: =IFERROR('Rates Table'!AJ13*IF(AJ$6="Miniflex",(High_Peak+High_Standard),High_Total_Energy),0)/100 -> 0 | AK13: =IFERROR('Rates Table'!AK13*IF(AK$6="Miniflex",(High_Peak+High_Standard),High_Total_Energy),0)/100 -> 0 | AL13: =IFERROR('Rates Table'!AL13*IF(AL$6="Miniflex",(High_Peak+High_Standard),High_Total_Energy),0)/100 -> 0 | AM13: =IFERROR('Rates Table'!AM13*IF(AM$6="Miniflex",(High_Peak+High_Standard),High_Total_Energy),0)/100 -> 0 | AN13: =IFERROR('Rates Table'!AN13*IF(AN$6="Miniflex",(High_Peak+High_Standard),High_Total_Energy),0)/100 -> 0 | AO13: =IFERROR('Rates Table'!AO13*IF(AO$6="Miniflex",(High_Peak+High_Standard),High_Total_Energy),0)/100 -> 0 | AP13: =IFERROR('Rates Table'!AP13*IF(AP$6="Miniflex",(High_Peak+High_Standard),High_Total_Energy),0)/100 -> 0 | AQ13: =IFERROR('Rates Table'!AQ13*IF(AQ$6="Miniflex",(High_Peak+High_Standard),High_Total_Energy),0)/100 -> 0 | AR13: =IFERROR('Rates Table'!AR13*IF(AR$6="Miniflex",(High_Peak+High_Standard),High_Total_Energy),0)/100 -> 0 | AS13: =IFERROR('Rates Table'!AS13*IF(AS$6="Miniflex",(High_Peak+High_Standard),High_Total_Energy),0)/100 -> 0 | AT13: =IFERROR('Rates Table'!AT13*IF(AT$6="Miniflex",(High_Peak+High_Standard),High_Total_Energy),0)/100 -> 0 | AU13: =IFERROR('Rates Table'!AU13*IF(AU$6="Miniflex",(High_Peak+High_Standard),High_Total_Energy),0)/100 -> 0 | AV13: =IFERROR('Rates Table'!AV13*IF(AV$6="Miniflex",(High_Peak+High_Standard),High_Total_Energy),0)/100 -> 0 | AW13: =IFERROR('Rates Table'!AW13*IF(AW$6="Miniflex",(High_Peak+High_Standard),High_Total_Energy),0)/100 -> 0 | AX13: =IFERROR('Rates Table'!AX13*IF(AX$6="Miniflex",(High_Peak+High_Standard),High_Total_Energy),0)/100 -> 0 | AY13: =IFERROR('Rates Table'!AY13*IF(AY$6="Miniflex",(High_Peak+High_Standard),High_Total_Energy),0)/100 -> 0 | AZ13: =IFERROR('Rates Table'!AZ13*IF(AZ$6="Miniflex",(High_Peak+High_Standard),High_Total_Energy),0)/100 -> 0 | BA13: =IFERROR('Rates Table'!BA13*IF(BA$6="Miniflex",(High_Peak+High_Standard),High_Total_Energy),0)/100 -> 0 | BB13: =IFERROR('Rates Table'!BB13*IF(BB$6="Miniflex",(High_Peak+High_Standard),High_Total_Energy),0)/100 -> 0 | BC13: =IFERROR('Rates Table'!BC13*IF(BC$6="Miniflex",(High_Peak+High_Standard),High_Total_Energy),0)/100 -> 0 | BD13: =IFERROR('Rates Table'!BD13*IF(BD$6="Miniflex",(High_Peak+High_Standard),High_Total_Energy),0)/100 -> 0 | BE13: =IFERROR('Rates Table'!BE13*IF(BE$6="Miniflex",(High_Peak+High_Standard),High_Total_Energy),0)/100 -> 0 | BF13: =IFERROR('Rates Table'!BF13*IF(BF$6="Miniflex",(High_Peak+High_Standard),High_Total_Energy),0)/100 -> 0 | BG13: =IFERROR('Rates Table'!BG13*IF(BG$6="Miniflex",(High_Peak+High_Standard),High_Total_Energy),0)/100 -> 0 | BH13: =IFERROR('Rates Table'!BH13*IF(BH$6="Miniflex",(High_Peak+High_Standard),High_Total_Energy),0)/100 -> 0 | BI13: =IFERROR('Rates Table'!BI13*IF(BI$6="Miniflex",(High_Peak+High_Standard),High_Total_Energy),0)/100 -> 0 | BJ13: =IFERROR('Rates Table'!BJ13*IF(BJ$6="Miniflex",(High_Peak+High_Standard),High_Total_Energy),0)/100 -> 0
C14: LV Subsidy Charge | D14: R/kVA | E14: 0 | F14: =IFERROR('Rates Table'!F14*High_Utilised_Capacity,0) -> 0 | G14: =IFERROR('Rates Table'!G14*High_Utilised_Capacity,0) -> 0 | H14: =IFERROR('Rates Table'!H14*High_Utilised_Capacity,0) -> 0 | I14: =IFERROR('Rates Table'!I14*High_Utilised_Capacity,0) -> 0 | J14: =IFERROR('Rates Table'!J14*High_Utilised_Capacity,0) -> 0 | K14: =IFERROR('Rates Table'!K14*High_Utilised_Capacity,0) -> 0 | L14: =IFERROR('Rates Table'!L14*High_Utilised_Capacity,0) -> 0 | M14: =IFERROR('Rates Table'!M14*High_Utilised_Capacity,0) -> 0 | N14: =IFERROR('Rates Table'!N14*High_Utilised_Capacity,0) -> 0 | O14: =IFERROR('Rates Table'!O14*High_Utilised_Capacity,0) -> 0 | P14: =IFERROR('Rates Table'!P14*High_Utilised_Capacity,0) -> 0 | Q14: =IFERROR('Rates Table'!Q14*High_Utilised_Capacity,0) -> 0 | R14: =IFERROR('Rates Table'!R14*High_Utilised_Capacity,0) -> 0 | S14: =IFERROR('Rates Table'!S14*High_Utilised_Capacity,0) -> 0 | T14: =IFERROR('Rates Table'!T14*High_Utilised_Capacity,0) -> 0 | U14: =IFERROR('Rates Table'!U14*High_Utilised_Capacity,0) -> 0 | V14: =IFERROR('Rates Table'!V14*High_Utilised_Capacity,0) -> 0 | W14: =IFERROR('Rates Table'!W14*High_Utilised_Capacity,0) -> 0 | X14: =IFERROR('Rates Table'!X14*High_Utilised_Capacity,0) -> 0 | Y14: =IFERROR('Rates Table'!Y14*High_Utilised_Capacity,0) -> 0 | Z14: =IFERROR('Rates Table'!Z14*High_Utilised_Capacity,0) -> 0 | AA14: =IFERROR('Rates Table'!AA14*High_Utilised_Capacity,0) -> 0 | AB14: =IFERROR('Rates Table'!AB14*High_Utilised_Capacity,0) -> 0 | AC14: =IFERROR('Rates Table'!AC14*High_Utilised_Capacity,0) -> 0 | AD14: =IFERROR('Rates Table'!AD14*High_Utilised_Capacity,0) -> 0 | AE14: =IFERROR('Rates Table'!AE14*High_Utilised_Capacity,0) -> 0 | AF14: =IFERROR('Rates Table'!AF14*High_Utilised_Capacity,0) -> 0 | AI14: 0 | AJ14: =IFERROR('Rates Table'!AJ14*High_Utilised_Capacity,0) -> 0 | AK14: =IFERROR('Rates Table'!AK14*High_Utilised_Capacity,0) -> 0 | AL14: =IFERROR('Rates Table'!AL14*High_Utilised_Capacity,0) -> 0 | AM14: =IFERROR('Rates Table'!AM14*High_Utilised_Capacity,0) -> 0 | AN14: =IFERROR('Rates Table'!AN14*High_Utilised_Capacity,0) -> 0 | AO14: =IFERROR('Rates Table'!AO14*High_Utilised_Capacity,0) -> 0 | AP14: =IFERROR('Rates Table'!AP14*High_Utilised_Capacity,0) -> 0 | AQ14: =IFERROR('Rates Table'!AQ14*High_Utilised_Capacity,0) -> 0 | AR14: =IFERROR('Rates Table'!AR14*High_Utilised_Capacity,0) -> 0 | AS14: =IFERROR('Rates Table'!AS14*High_Utilised_Capacity,0) -> 0 | AT14: =IFERROR('Rates Table'!AT14*High_Utilised_Capacity,0) -> 0 | AU14: =IFERROR('Rates Table'!AU14*High_Utilised_Capacity,0) -> 0 | AV14: =IFERROR('Rates Table'!AV14*High_Utilised_Capacity,0) -> 0 | AW14: =IFERROR('Rates Table'!AW14*High_Utilised_Capacity,0) -> 0 | AX14: =IFERROR('Rates Table'!AX14*High_Utilised_Capacity,0) -> 0 | AY14: =IFERROR('Rates Table'!AY14*High_Utilised_Capacity,0) -> 0 | AZ14: =IFERROR('Rates Table'!AZ14*High_Utilised_Capacity,0) -> 0 | BA14: =IFERROR('Rates Table'!BA14*High_Utilised_Capacity,0) -> 0 | BB14: =IFERROR('Rates Table'!BB14*High_Utilised_Capacity,0) -> 0 | BC14: =IFERROR('Rates Table'!BC14*High_Utilised_Capacity,0) -> 0 | BD14: =IFERROR('Rates Table'!BD14*High_Utilised_Capacity,0) -> 0 | BE14: =IFERROR('Rates Table'!BE14*High_Utilised_Capacity,0) -> 0 | BF14: =IFERROR('Rates Table'!BF14*High_Utilised_Capacity,0) -> 0 | BG14: =IFERROR('Rates Table'!BG14*High_Utilised_Capacity,0) -> 0 | BH14: =IFERROR('Rates Table'!BH14*High_Utilised_Capacity,0) -> 0 | BI14: =IFERROR('Rates Table'!BI14*High_Utilised_Capacity,0) -> 0 | BJ14: =IFERROR('Rates Table'!BJ14*High_Utilised_Capacity,0) -> 0
C15: Network capacity charge | D15: =IF(Table_1=1,"R/kVA","R/day") -> R/day | E15: 2316.56 | F15: =IFERROR(IF(F51=1,'Rates Table'!F15*High_Utilised_Capacity,'Rates Table'!F15*PODs*High_Days),0) -> 2316.56 | G15: =IFERROR(IF(G51=1,'Rates Table'!G15*High_Utilised_Capacity,'Rates Table'!G15*PODs*High_Days),0) -> 3902.64 | H15: =IFERROR(IF(H51=1,'Rates Table'!H15*High_Utilised_Capacity,'Rates Table'!H15*PODs*High_Days),0) -> 6742.68 | I15: =IFERROR(IF(I51=1,'Rates Table'!I15*High_Utilised_Capacity,'Rates Table'!I15*PODs*High_Days),0) -> 0 | J15: =IFERROR(IF(J51=1,'Rates Table'!J15*High_Utilised_Capacity,'Rates Table'!J15*PODs*High_Days),0) -> 0 | K15: =IFERROR(IF(K51=1,'Rates Table'!K15*High_Utilised_Capacity,'Rates Table'!K15*PODs*High_Days),0) -> 0 | L15: =IFERROR(IF(L51=1,'Rates Table'!L15*High_Utilised_Capacity,'Rates Table'!L15*PODs*High_Days),0) -> 573.16 | M15: =IFERROR(IF(M51=1,'Rates Table'!M15*High_Utilised_Capacity,'Rates Table'!M15*PODs*High_Days),0) -> 1074.56 | N15: =IFERROR(IF(N51=1,'Rates Table'!N15*High_Utilised_Capacity,'Rates Table'!N15*PODs*High_Days),0) -> 2219.04 | O15: =IFERROR(IF(O51=1,'Rates Table'!O15*High_Utilised_Capacity,'Rates Table'!O15*PODs*High_Days),0) -> 350.52 | P15: =IFERROR(IF(P51=1,'Rates Table'!P15*High_Utilised_Capacity,'Rates Table'!P15*PODs*High_Days),0) -> 0 | Q15: =IFERROR(IF(Q51=1,'Rates Table'!Q15*High_Utilised_Capacity,'Rates Table'!Q15*PODs*High_Days),0) -> 3036.92 | R15: =IFERROR(IF(R51=1,'Rates Table'!R15*High_Utilised_Capacity,'Rates Table'!R15*PODs*High_Days),0) -> 4668.08 | S15: =IFERROR(IF(S51=1,'Rates Table'!S15*High_Utilised_Capacity,'Rates Table'!S15*PODs*High_Days),0) -> 7462.12 | T15: =IFERROR(IF(T51=1,'Rates Table'!T15*High_Utilised_Capacity,'Rates Table'!T15*PODs*High_Days),0) -> 2417.76 | U15: =IFERROR(IF(U51=1,'Rates Table'!U15*High_Utilised_Capacity,'Rates Table'!U15*PODs*High_Days),0) -> 0 | V15: =IFERROR(IF(V51=1,'Rates Table'!V15*High_Utilised_Capacity,'Rates Table'!V15*PODs*High_Days),0) -> 0 | W15: =IFERROR(IF(W51=1,'Rates Table'!W15*High_Utilised_Capacity,'Rates Table'!W15*PODs*High_Days),0) -> 0 | X15: =IFERROR(IF(X51=1,'Rates Table'!X15*High_Utilised_Capacity,'Rates Table'!X15*PODs*High_Days),0) -> 0 | Y15: =IFERROR(IF(Y51=1,'Rates Table'!Y15*High_Utilised_Capacity,'Rates Table'!Y15*PODs*High_Days),0) -> 0 | Z15: =IFERROR(IF(Z51=1,'Rates Table'!Z15*High_Utilised_Capacity,'Rates Table'!Z15*PODs*High_Days),0) -> 0 | AA15: =IFERROR(IF(AA51=1,'Rates Table'!AA15*High_Utilised_Capacity,'Rates Table'!AA15*PODs*High_Days),0) -> 0 | AB15: =IFERROR(IF(AB51=1,'Rates Table'!AB15*High_Utilised_Capacity,'Rates Table'!AB15*PODs*High_Days),0) -> 0 | AC15: =IFERROR(IF(AC51=1,'Rates Table'!AC15*High_Utilised_Capacity,'Rates Table'!AC15*PODs*High_Days),0) -> 0 | AD15: =IFERROR(IF(AD51=1,'Rates Table'!AD15*High_Utilised_Capacity,'Rates Table'!AD15*PODs*High_Days),0) -> 0 | AE15: =IFERROR(IF(AE51=1,'Rates Table'!AE15*High_Utilised_Capacity,'Rates Table'!AE15*PODs*High_Days),0) -> 0 | AF15: =IFERROR(IF(AF51=1,'Rates Table'!AF15*High_Utilised_Capacity,'Rates Table'!AF15*PODs*High_Days),0) -> 0 | AI15: 2665.24 | AJ15: =IFERROR(IF(AJ51=1,'Rates Table'!AJ15*High_Utilised_Capacity,'Rates Table'!AJ15*PODs*High_Days),0) -> 2665.24 | AK15: =IFERROR(IF(AK51=1,'Rates Table'!AK15*High_Utilised_Capacity,'Rates Table'!AK15*PODs*High_Days),0) -> 4490.52 | AL15: =IFERROR(IF(AL51=1,'Rates Table'!AL15*High_Utilised_Capacity,'Rates Table'!AL15*PODs*High_Days),0) -> 7758.36 | AM15: =IFERROR(IF(AM51=1,'Rates Table'!AM15*High_Utilised_Capacity,'Rates Table'!AM15*PODs*High_Days),0) -> 0 | AN15: =IFERROR(IF(AN51=1,'Rates Table'!AN15*High_Utilised_Capacity,'Rates Table'!AN15*PODs*High_Days),0) -> 0 | AO15: =IFERROR(IF(AO51=1,'Rates Table'!AO15*High_Utilised_Capacity,'Rates Table'!AO15*PODs*High_Days),0) -> 0 | AP15: =IFERROR(IF(AP51=1,'Rates Table'!AP15*High_Utilised_Capacity,'Rates Table'!AP15*PODs*High_Days),0) -> 659.64 | AQ15: =IFERROR(IF(AQ51=1,'Rates Table'!AQ15*High_Utilised_Capacity,'Rates Table'!AQ15*PODs*High_Days),0) -> 1236.48 | AR15: =IFERROR(IF(AR51=1,'Rates Table'!AR15*High_Utilised_Capacity,'Rates Table'!AR15*PODs*High_Days),0) -> 2553 | AS15: =IFERROR(IF(AS51=1,'Rates Table'!AS15*High_Utilised_Capacity,'Rates Table'!AS15*PODs*High_Days),0) -> 402.96 | AT15: =IFERROR(IF(AT51=1,'Rates Table'!AT15*High_Utilised_Capacity,'Rates Table'!AT15*PODs*High_Days),0) -> 4186.92 | AU15: =IFERROR(IF(AU51=1,'Rates Table'!AU15*High_Utilised_Capacity,'Rates Table'!AU15*PODs*High_Days),0) -> 3494.16 | AV15: =IFERROR(IF(AV51=1,'Rates Table'!AV15*High_Utilised_Capacity,'Rates Table'!AV15*PODs*High_Days),0) -> 5370.96 | AW15: =IFERROR(IF(AW51=1,'Rates Table'!AW15*High_Utilised_Capacity,'Rates Table'!AW15*PODs*High_Days),0) -> 8586.36 | AX15: =IFERROR(IF(AX51=1,'Rates Table'!AX15*High_Utilised_Capacity,'Rates Table'!AX15*PODs*High_Days),0) -> 2782.08 | AY15: =IFERROR(IF(AY51=1,'Rates Table'!AY15*High_Utilised_Capacity,'Rates Table'!AY15*PODs*High_Days),0) -> 0 | AZ15: =IFERROR(IF(AZ51=1,'Rates Table'!AZ15*High_Utilised_Capacity,'Rates Table'!AZ15*PODs*High_Days),0) -> 0 | BA15: =IFERROR(IF(BA51=1,'Rates Table'!BA15*High_Utilised_Capacity,'Rates Table'!BA15*PODs*High_Days),0) -> 0 | BB15: =IFERROR(IF(BB51=1,'Rates Table'!BB15*High_Utilised_Capacity,'Rates Table'!BB15*PODs*High_Days),0) -> 0 | BC15: =IFERROR(IF(BC51=1,'Rates Table'!BC15*High_Utilised_Capacity,'Rates Table'!BC15*PODs*High_Days),0) -> 0 | BD15: =IFERROR(IF(BD51=1,'Rates Table'!BD15*High_Utilised_Capacity,'Rates Table'!BD15*PODs*High_Days),0) -> 0 | BE15: =IFERROR(IF(BE51=1,'Rates Table'!BE15*High_Utilised_Capacity,'Rates Table'!BE15*PODs*High_Days),0) -> 0 | BF15: =IFERROR(IF(BF51=1,'Rates Table'!BF15*High_Utilised_Capacity,'Rates Table'!BF15*PODs*High_Days),0) -> 0 | BG15: =IFERROR(IF(BG51=1,'Rates Table'!BG15*High_Utilised_Capacity,'Rates Table'!BG15*PODs*High_Days),0) -> 0 | BH15: =IFERROR(IF(BH51=1,'Rates Table'!BH15*High_Utilised_Capacity,'Rates Table'!BH15*PODs*High_Days),0) -> 0 | BI15: =IFERROR(IF(BI51=1,'Rates Table'!BI15*High_Utilised_Capacity,'Rates Table'!BI15*PODs*High_Days),0) -> 0 | BJ15: =IFERROR(IF(BJ51=1,'Rates Table'!BJ15*High_Utilised_Capacity,'Rates Table'!BJ15*PODs*High_Days),0) -> 0
B17: Total network charges | E17: =SUM(E10:E15) -> 2316.56 | F17: =SUM(F10:F15) -> 2316.56 | G17: =SUM(G10:G15) -> 3902.64 | H17: 6742.68 | I17: 0 | J17: 0 | K17: 0 | L17: 573.16 | M17: 1074.56 | N17: 2219.04 | O17: 350.52 | P17: 0 | Q17: 3036.92 | R17: 4668.08 | S17: 7462.12 | T17: 2417.76 | U17: 0 | V17: 0 | W17: 0 | X17: 0 | Y17: 0 | Z17: 0 | AA17: 0 | AB17: =SUM(AB10:AB15) -> 0 | AC17: 0 | AD17: 0 | AE17: 0 | AF17: 0 | AI17: =SUM(AI10:AI15) -> 2665.24 | AJ17: =SUM(AJ10:AJ15) -> 2665.24 | AK17: 4490.52 | AL17: 7758.36 | AM17: 0 | AN17: 0 | AO17: 0 | AP17: 659.64 | AQ17: 1236.48 | AR17: 2553 | AS17: 402.96 | AT17: 4186.92 | AU17: 3494.16 | AV17: 5370.96 | AW17: 8586.36 | AX17: 2782.08 | AY17: 0 | AZ17: 0 | BA17: 0 | BB17: 0 | BC17: 0 | BD17: 0 | BE17: 0 | BF17: =SUM(BF10:BF15) -> 0 | BG17: 0 | BH17: 0 | BI17: 0 | BJ17: 0
B19: Energy charges - High | D19: Units | E19: =E$8 -> 2020/2021 Rates | F19: =F$8 -> 2020/2021 Rates | G19: 2020/2021 Rates | H19: 2020/2021 Rates | I19: 2020/2021 Rates | J19: 2020/2021 Rates | K19: 2020/2021 Rates | L19: 2020/2021 Rates | M19: 2020/2021 Rates | N19: 2020/2021 Rates | O19: 2020/2021 Rates | P19: 2020/2021 Rates | Q19: 2020/2021 Rates | R19: 2020/2021 Rates | S19: 2020/2021 Rates | T19: 2020/2021 Rates | U19: 2020/2021 Rates | V19: 2020/2021 Rates | W19: 2020/2021 Rates | X19: 2020/2021 Rates | Y19: 2020/2021 Rates | Z19: 2020/2021 Rates | AA19: 2020/2021 Rates | AB19: 2020/2021 Rates | AC19: 2020/2021 Rates | AD19: 2020/2021 Rates | AE19: 2020/2021 Rates | AF19: 2020/2021 Rates | AI19: =AI$8 -> 2021/2022 Rates | AJ19: =AJ$8 -> 2021/2022 Rates | AK19: 2021/2022 Rates | AL19: 2021/2022 Rates | AM19: 2021/2022 Rates | AN19: 2021/2022 Rates | AO19: 2021/2022 Rates | AP19: 2021/2022 Rates | AQ19: 2021/2022 Rates | AR19: 2021/2022 Rates | AS19: 2021/2022 Rates | AT19: 2021/2022 Rates | AU19: 2021/2022 Rates | AV19: 2021/2022 Rates | AW19: 2021/2022 Rates | AX19: 2021/2022 Rates | AY19: 2021/2022 Rates | AZ19: 2021/2022 Rates | BA19: 2021/2022 Rates | BB19: 2021/2022 Rates | BC19: 2021/2022 Rates | BD19: 2021/2022 Rates | BE19: 2021/2022 Rates | BF19: 2021/2022 Rates | BG19: 2021/2022 Rates | BH19: 2021/2022 Rates | BI19: 2021/2022 Rates | BJ19: 2021/2022 Rates
C21: Peak consumption | D21: c/kWh | E21: =INDEX(F21:AE21,0,Selected_Tariff_ID) -> 0 | F21: =IFERROR('Rates Table'!F21*High_Peak,0)/100 -> 0 | G21: =IFERROR('Rates Table'!G21*High_Peak,0)/100 -> 0 | H21: =IFERROR('Rates Table'!H21*High_Peak,0)/100 -> 0 | I21: =IFERROR('Rates Table'!I21*High_Peak,0)/100 -> 0 | J21: =IFERROR('Rates Table'!J21*High_Peak,0)/100 -> 0 | K21: =IFERROR('Rates Table'!K21*High_Peak,0)/100 -> 0 | L21: =IFERROR('Rates Table'!L21*High_Peak,0)/100 -> 0 | M21: =IFERROR('Rates Table'!M21*High_Peak,0)/100 -> 0 | N21: =IFERROR('Rates Table'!N21*High_Peak,0)/100 -> 0 | O21: =IFERROR('Rates Table'!O21*High_Peak,0)/100 -> 0 | P21: =IFERROR('Rates Table'!P21*High_Peak,0)/100 -> 0 | Q21: =IFERROR('Rates Table'!Q21*High_Peak,0)/100 -> 0 | R21: =IFERROR('Rates Table'!R21*High_Peak,0)/100 -> 0 | S21: =IFERROR('Rates Table'!S21*High_Peak,0)/100 -> 0 | T21: =IFERROR('Rates Table'!T21*High_Peak,0)/100 -> 0 | U21: =IFERROR('Rates Table'!U21*High_Peak,0)/100 -> 0 | V21: =IFERROR('Rates Table'!V21*High_Peak,0)/100 -> 0 | W21: =IFERROR('Rates Table'!W21*High_Peak,0)/100 -> 0 | X21: =IFERROR('Rates Table'!X21*High_Peak,0)/100 -> 0 | Y21: =IFERROR('Rates Table'!Y21*High_Peak,0)/100 -> 0 | Z21: =IFERROR('Rates Table'!Z21*High_Peak,0)/100 -> 0 | AA21: =IFERROR('Rates Table'!AA21*High_Peak,0)/100 -> 0 | AB21: =IFERROR('Rates Table'!AB21*High_Peak,0)/100 -> 0 | AC21: =IFERROR('Rates Table'!AC21*High_Peak,0)/100 -> 0 | AD21: =IFERROR('Rates Table'!AD21*High_Peak,0)/100 -> 0 | AE21: =IFERROR('Rates Table'!AE21*High_Peak,0)/100 -> 0 | AF21: =IFERROR('Rates Table'!AF21*High_Peak,0)/100 -> 0 | AI21: =INDEX(AJ21:BI21,0,Selected_Tariff_ID) -> 0 | AJ21: =IFERROR('Rates Table'!AJ21*High_Peak,0)/100 -> 0 | AK21: =IFERROR('Rates Table'!AK21*High_Peak,0)/100 -> 0 | AL21: =IFERROR('Rates Table'!AL21*High_Peak,0)/100 -> 0 | AM21: =IFERROR('Rates Table'!AM21*High_Peak,0)/100 -> 0 | AN21: =IFERROR('Rates Table'!AN21*High_Peak,0)/100 -> 0 | AO21: =IFERROR('Rates Table'!AO21*High_Peak,0)/100 -> 0 | AP21: =IFERROR('Rates Table'!AP21*High_Peak,0)/100 -> 0 | AQ21: =IFERROR('Rates Table'!AQ21*High_Peak,0)/100 -> 0 | AR21: =IFERROR('Rates Table'!AR21*High_Peak,0)/100 -> 0 | AS21: =IFERROR('Rates Table'!AS21*High_Peak,0)/100 -> 0 | AT21: =IFERROR('Rates Table'!AT21*High_Peak,0)/100 -> 0 | AU21: =IFERROR('Rates Table'!AU21*High_Peak,0)/100 -> 0 | AV21: =IFERROR('Rates Table'!AV21*High_Peak,0)/100 -> 0 | AW21: =IFERROR('Rates Table'!AW21*High_Peak,0)/100 -> 0 | AX21: =IFERROR('Rates Table'!AX21*High_Peak,0)/100 -> 0 | AY21: =IFERROR('Rates Table'!AY21*High_Peak,0)/100 -> 0 | AZ21: =IFERROR('Rates Table'!AZ21*High_Peak,0)/100 -> 0 | BA21: =IFERROR('Rates Table'!BA21*High_Peak,0)/100 -> 0 | BB21: =IFERROR('Rates Table'!BB21*High_Peak,0)/100 -> 0 | BC21: =IFERROR('Rates Table'!BC21*High_Peak,0)/100 -> 0 | BD21: =IFERROR('Rates Table'!BD21*High_Peak,0)/100 -> 0 | BE21: =IFERROR('Rates Table'!BE21*High_Peak,0)/100 -> 0 | BF21: =IFERROR('Rates Table'!BF21*High_Peak,0)/100 -> 0 | BG21: =IFERROR('Rates Table'!BG21*High_Peak,0)/100 -> 0 | BH21: =IFERROR('Rates Table'!BH21*High_Peak,0)/100 -> 0 | BI21: =IFERROR('Rates Table'!BI21*High_Peak,0)/100 -> 0 | BJ21: =IFERROR('Rates Table'!BJ21*High_Peak,0)/100 -> 0
C22: Standard consumption | D22: c/kWh | E22: 0 | F22: =IFERROR('Rates Table'!F22*High_Standard,0)/100 -> 0 | G22: =IFERROR('Rates Table'!G22*High_Standard,0)/100 -> 0 | H22: =IFERROR('Rates Table'!H22*High_Standard,0)/100 -> 0 | I22: =IFERROR('Rates Table'!I22*High_Standard,0)/100 -> 0 | J22: =IFERROR('Rates Table'!J22*High_Standard,0)/100 -> 0 | K22: =IFERROR('Rates Table'!K22*High_Standard,0)/100 -> 0 | L22: =IFERROR('Rates Table'!L22*High_Standard,0)/100 -> 0 | M22: =IFERROR('Rates Table'!M22*High_Standard,0)/100 -> 0 | N22: =IFERROR('Rates Table'!N22*High_Standard,0)/100 -> 0 | O22: =IFERROR('Rates Table'!O22*High_Standard,0)/100 -> 0 | P22: =IFERROR('Rates Table'!P22*High_Standard,0)/100 -> 0 | Q22: =IFERROR('Rates Table'!Q22*High_Standard,0)/100 -> 0 | R22: =IFERROR('Rates Table'!R22*High_Standard,0)/100 -> 0 | S22: =IFERROR('Rates Table'!S22*High_Standard,0)/100 -> 0 | T22: =IFERROR('Rates Table'!T22*High_Standard,0)/100 -> 0 | U22: =IFERROR('Rates Table'!U22*High_Standard,0)/100 -> 0 | V22: =IFERROR('Rates Table'!V22*High_Standard,0)/100 -> 0 | W22: =IFERROR('Rates Table'!W22*High_Standard,0)/100 -> 0 | X22: =IFERROR('Rates Table'!X22*High_Standard,0)/100 -> 0 | Y22: =IFERROR('Rates Table'!Y22*High_Standard,0)/100 -> 0 | Z22: =IFERROR('Rates Table'!Z22*High_Standard,0)/100 -> 0 | AA22: =IFERROR('Rates Table'!AA22*High_Standard,0)/100 -> 0 | AB22: =IFERROR('Rates Table'!AB22*High_Standard,0)/100 -> 0 | AC22: =IFERROR('Rates Table'!AC22*High_Standard,0)/100 -> 0 | AD22: =IFERROR('Rates Table'!AD22*High_Standard,0)/100 -> 0 | AE22: =IFERROR('Rates Table'!AE22*High_Standard,0)/100 -> 0 | AF22: =IFERROR('Rates Table'!AF22*High_Standard,0)/100 -> 0 | AI22: 0 | AJ22: =IFERROR('Rates Table'!AJ22*High_Standard,0)/100 -> 0 | AK22: =IFERROR('Rates Table'!AK22*High_Standard,0)/100 -> 0 | AL22: =IFERROR('Rates Table'!AL22*High_Standard,0)/100 -> 0 | AM22: =IFERROR('Rates Table'!AM22*High_Standard,0)/100 -> 0 | AN22: =IFERROR('Rates Table'!AN22*High_Standard,0)/100 -> 0 | AO22: =IFERROR('Rates Table'!AO22*High_Standard,0)/100 -> 0 | AP22: =IFERROR('Rates Table'!AP22*High_Standard,0)/100 -> 0 | AQ22: =IFERROR('Rates Table'!AQ22*High_Standard,0)/100 -> 0 | AR22: =IFERROR('Rates Table'!AR22*High_Standard,0)/100 -> 0 | AS22: =IFERROR('Rates Table'!AS22*High_Standard,0)/100 -> 0 | AT22: =IFERROR('Rates Table'!AT22*High_Standard,0)/100 -> 0 | AU22: =IFERROR('Rates Table'!AU22*High_Standard,0)/100 -> 0 | AV22: =IFERROR('Rates Table'!AV22*High_Standard,0)/100 -> 0 | AW22: =IFERROR('Rates Table'!AW22*High_Standard,0)/100 -> 0 | AX22: =IFERROR('Rates Table'!AX22*High_Standard,0)/100 -> 0 | AY22: =IFERROR('Rates Table'!AY22*High_Standard,0)/100 -> 0 | AZ22: =IFERROR('Rates Table'!AZ22*High_Standard,0)/100 -> 0 | BA22: =IFERROR('Rates Table'!BA22*High_Standard,0)/100 -> 0 | BB22: =IFERROR('Rates Table'!BB22*High_Standard,0)/100 -> 0 | BC22: =IFERROR('Rates Table'!BC22*High_Standard,0)/100 -> 0 | BD22: =IFERROR('Rates Table'!BD22*High_Standard,0)/100 -> 0 | BE22: =IFERROR('Rates Table'!BE22*High_Standard,0)/100 -> 0 | BF22: =IFERROR('Rates Table'!BF22*High_Standard,0)/100 -> 0 | BG22: =IFERROR('Rates Table'!BG22*High_Standard,0)/100 -> 0 | BH22: =IFERROR('Rates Table'!BH22*High_Standard,0)/100 -> 0 | BI22: =IFERROR('Rates Table'!BI22*High_Standard,0)/100 -> 0 | BJ22: =IFERROR('Rates Table'!BJ22*High_Standard,0)/100 -> 0
C23: Off-Peak consumption | D23: c/kWh | E23: 0 | F23: =IFERROR('Rates Table'!F23*High_OffPeak,0)/100 -> 0 | G23: =IFERROR('Rates Table'!G23*High_OffPeak,0)/100 -> 0 | H23: =IFERROR('Rates Table'!H23*High_OffPeak,0)/100 -> 0 | I23: =IFERROR('Rates Table'!I23*High_OffPeak,0)/100 -> 0 | J23: =IFERROR('Rates Table'!J23*High_OffPeak,0)/100 -> 0 | K23: =IFERROR('Rates Table'!K23*High_OffPeak,0)/100 -> 0 | L23: =IFERROR('Rates Table'!L23*High_OffPeak,0)/100 -> 0 | M23: =IFERROR('Rates Table'!M23*High_OffPeak,0)/100 -> 0 | N23: =IFERROR('Rates Table'!N23*High_OffPeak,0)/100 -> 0 | O23: =IFERROR('Rates Table'!O23*High_OffPeak,0)/100 -> 0 | P23: =IFERROR('Rates Table'!P23*High_OffPeak,0)/100 -> 0 | Q23: =IFERROR('Rates Table'!Q23*High_OffPeak,0)/100 -> 0 | R23: =IFERROR('Rates Table'!R23*High_OffPeak,0)/100 -> 0 | S23: =IFERROR('Rates Table'!S23*High_OffPeak,0)/100 -> 0 | T23: =IFERROR('Rates Table'!T23*High_OffPeak,0)/100 -> 0 | U23: =IFERROR('Rates Table'!U23*High_OffPeak,0)/100 -> 0 | V23: =IFERROR('Rates Table'!V23*High_OffPeak,0)/100 -> 0 | W23: =IFERROR('Rates Table'!W23*High_OffPeak,0)/100 -> 0 | X23: =IFERROR('Rates Table'!X23*High_OffPeak,0)/100 -> 0 | Y23: =IFERROR('Rates Table'!Y23*High_OffPeak,0)/100 -> 0 | Z23: =IFERROR('Rates Table'!Z23*High_OffPeak,0)/100 -> 0 | AA23: =IFERROR('Rates Table'!AA23*High_OffPeak,0)/100 -> 0 | AB23: =IFERROR('Rates Table'!AB23*High_OffPeak,0)/100 -> 0 | AC23: =IFERROR('Rates Table'!AC23*High_OffPeak,0)/100 -> 0 | AD23: =IFERROR('Rates Table'!AD23*High_OffPeak,0)/100 -> 0 | AE23: =IFERROR('Rates Table'!AE23*High_OffPeak,0)/100 -> 0 | AF23: =IFERROR('Rates Table'!AF23*High_OffPeak,0)/100 -> 0 | AI23: 0 | AJ23: =IFERROR('Rates Table'!AJ23*High_OffPeak,0)/100 -> 0 | AK23: =IFERROR('Rates Table'!AK23*High_OffPeak,0)/100 -> 0 | AL23: =IFERROR('Rates Table'!AL23*High_OffPeak,0)/100 -> 0 | AM23: =IFERROR('Rates Table'!AM23*High_OffPeak,0)/100 -> 0 | AN23: =IFERROR('Rates Table'!AN23*High_OffPeak,0)/100 -> 0 | AO23: =IFERROR('Rates Table'!AO23*High_OffPeak,0)/100 -> 0 | AP23: =IFERROR('Rates Table'!AP23*High_OffPeak,0)/100 -> 0 | AQ23: =IFERROR('Rates Table'!AQ23*High_OffPeak,0)/100 -> 0 | AR23: =IFERROR('Rates Table'!AR23*High_OffPeak,0)/100 -> 0 | AS23: =IFERROR('Rates Table'!AS23*High_OffPeak,0)/100 -> 0 | AT23: =IFERROR('Rates Table'!AT23*High_OffPeak,0)/100 -> 0 | AU23: =IFERROR('Rates Table'!AU23*High_OffPeak,0)/100 -> 0 | AV23: =IFERROR('Rates Table'!AV23*High_OffPeak,0)/100 -> 0 | AW23: =IFERROR('Rates Table'!AW23*High_OffPeak,0)/100 -> 0 | AX23: =IFERROR('Rates Table'!AX23*High_OffPeak,0)/100 -> 0 | AY23: =IFERROR('Rates Table'!AY23*High_OffPeak,0)/100 -> 0 | AZ23: =IFERROR('Rates Table'!AZ23*High_OffPeak,0)/100 -> 0 | BA23: =IFERROR('Rates Table'!BA23*High_OffPeak,0)/100 -> 0 | BB23: =IFERROR('Rates Table'!BB23*High_OffPeak,0)/100 -> 0 | BC23: =IFERROR('Rates Table'!BC23*High_OffPeak,0)/100 -> 0 | BD23: =IFERROR('Rates Table'!BD23*High_OffPeak,0)/100 -> 0 | BE23: =IFERROR('Rates Table'!BE23*High_OffPeak,0)/100 -> 0 | BF23: =IFERROR('Rates Table'!BF23*High_OffPeak,0)/100 -> 0 | BG23: =IFERROR('Rates Table'!BG23*High_OffPeak,0)/100 -> 0 | BH23: =IFERROR('Rates Table'!BH23*High_OffPeak,0)/100 -> 0 | BI23: =IFERROR('Rates Table'!BI23*High_OffPeak,0)/100 -> 0 | BJ23: =IFERROR('Rates Table'!BJ23*High_OffPeak,0)/100 -> 0
E24: 0 | AI24: 0
C25: Energy | D25: c/kWh | E25: 0 | F25: =IFERROR('Rates Table'!F25*(High_Total_Energy),0)/100 -> 0 | G25: =IFERROR('Rates Table'!G25*(High_Total_Energy),0)/100 -> 0 | H25: =IFERROR('Rates Table'!H25*(High_Total_Energy),0)/100 -> 0 | I25: =IFERROR('Rates Table'!I25*(High_Total_Energy),0)/100 -> 0 | J25: =IFERROR('Rates Table'!J25*(High_Total_Energy),0)/100 -> 0 | K25: =IFERROR('Rates Table'!K25*(High_Total_Energy),0)/100 -> 0 | L25: =IFERROR('Rates Table'!L25*(High_Total_Energy),0)/100 -> 0 | M25: =IFERROR('Rates Table'!M25*(High_Total_Energy),0)/100 -> 0 | N25: =IFERROR('Rates Table'!N25*(High_Total_Energy),0)/100 -> 0 | O25: =IFERROR('Rates Table'!O25*(High_Total_Energy),0)/100 -> 0 | P25: =IFERROR('Rates Table'!P25*(High_Total_Energy),0)/100 -> 0 | Q25: =IFERROR('Rates Table'!Q25*(High_Total_Energy),0)/100 -> 0 | R25: =IFERROR('Rates Table'!R25*(High_Total_Energy),0)/100 -> 0 | S25: =IFERROR('Rates Table'!S25*(High_Total_Energy),0)/100 -> 0 | T25: =IFERROR('Rates Table'!T25*(High_Total_Energy),0)/100 -> 0 | U25: =IFERROR('Rates Table'!U25*(High_Total_Energy),0)/100 -> 0 | V25: =IFERROR('Rates Table'!V25*(High_Total_Energy),0)/100 -> 0 | W25: =IFERROR('Rates Table'!W25*(High_Total_Energy),0)/100 -> 0 | X25: =IFERROR('Rates Table'!X25*(High_Total_Energy),0)/100 -> 0 | Y25: =IFERROR('Rates Table'!Y25*(High_Total_Energy),0)/100 -> 0 | Z25: =IFERROR('Rates Table'!Z25*(High_Total_Energy),0)/100 -> 0 | AA25: =IFERROR('Rates Table'!AA25*(High_Total_Energy),0)/100 -> 0 | AB25: =IFERROR('Rates Table'!AB25*(High_Total_Energy),0)/100 -> 0 | AC25: =IFERROR('Rates Table'!AC25*(High_Total_Energy),0)/100 -> 0 | AD25: =IFERROR('Rates Table'!AD25*(High_Total_Energy),0)/100 -> 0 | AE25: =IFERROR('Rates Table'!AE25*(High_Total_Energy),0)/100 -> 0 | AF25: =IFERROR('Rates Table'!AF25*(High_Total_Energy),0)/100 -> 0 | AI25: 0 | AJ25: =IFERROR('Rates Table'!AJ25*(High_Total_Energy),0)/100 -> 0 | AK25: =IFERROR('Rates Table'!AK25*(High_Total_Energy),0)/100 -> 0 | AL25: =IFERROR('Rates Table'!AL25*(High_Total_Energy),0)/100 -> 0 | AM25: =IFERROR('Rates Table'!AM25*(High_Total_Energy),0)/100 -> 0 | AN25: =IFERROR('Rates Table'!AN25*(High_Total_Energy),0)/100 -> 0 | AO25: =IFERROR('Rates Table'!AO25*(High_Total_Energy),0)/100 -> 0 | AP25: =IFERROR('Rates Table'!AP25*(High_Total_Energy),0)/100 -> 0 | AQ25: =IFERROR('Rates Table'!AQ25*(High_Total_Energy),0)/100 -> 0 | AR25: =IFERROR('Rates Table'!AR25*(High_Total_Energy),0)/100 -> 0 | AS25: =IFERROR('Rates Table'!AS25*(High_Total_Energy),0)/100 -> 0 | AT25: =IFERROR('Rates Table'!AT25*(High_Total_Energy),0)/100 -> 0 | AU25: =IFERROR('Rates Table'!AU25*(High_Total_Energy),0)/100 -> 0 | AV25: =IFERROR('Rates Table'!AV25*(High_Total_Energy),0)/100 -> 0 | AW25: =IFERROR('Rates Table'!AW25*(High_Total_Energy),0)/100 -> 0 | AX25: =IFERROR('Rates Table'!AX25*(High_Total_Energy),0)/100 -> 0 | AY25: =IFERROR('Rates Table'!AY25*(High_Total_Energy),0)/100 -> 0 | AZ25: =IFERROR('Rates Table'!AZ25*(High_Total_Energy),0)/100 -> 0 | BA25: =IFERROR('Rates Table'!BA25*(High_Total_Energy),0)/100 -> 0 | BB25: =IFERROR('Rates Table'!BB25*(High_Total_Energy),0)/100 -> 0 | BC25: =IFERROR('Rates Table'!BC25*(High_Total_Energy),0)/100 -> 0 | BD25: =IFERROR('Rates Table'!BD25*(High_Total_Energy),0)/100 -> 0 | BE25: =IFERROR('Rates Table'!BE25*(High_Total_Energy),0)/100 -> 0 | BF25: =IFERROR('Rates Table'!BF25*(High_Total_Energy),0)/100 -> 0 | BG25: =IFERROR('Rates Table'!BG25*(High_Total_Energy),0)/100 -> 0 | BH25: =IFERROR('Rates Table'!BH25*(High_Total_Energy),0)/100 -> 0 | BI25: =IFERROR('Rates Table'!BI25*(High_Total_Energy),0)/100 -> 0 | BJ25: =IFERROR('Rates Table'!BJ25*(High_Total_Energy),0)/100 -> 0
C26: Energy - Block 1 | D26: c/kWh | E26: 0 | F26: =IFERROR('Rates Table'!F26*(High_Block_1),0)/100 -> 0 | G26: =IFERROR('Rates Table'!G26*(High_Block_1),0)/100 -> 0 | H26: =IFERROR('Rates Table'!H26*(High_Block_1),0)/100 -> 0 | I26: =IFERROR('Rates Table'!I26*(High_Block_1),0)/100 -> 0 | J26: =IFERROR('Rates Table'!J26*(High_Block_1),0)/100 -> 0 | K26: =IFERROR('Rates Table'!K26*(High_Block_1),0)/100 -> 0 | L26: =IFERROR('Rates Table'!L26*(High_Block_1),0)/100 -> 0 | M26: =IFERROR('Rates Table'!M26*(High_Block_1),0)/100 -> 0 | N26: =IFERROR('Rates Table'!N26*(High_Block_1),0)/100 -> 0 | O26: =IFERROR('Rates Table'!O26*(High_Block_1),0)/100 -> 0 | P26: =IFERROR('Rates Table'!P26*(High_Block_1),0)/100 -> 0 | Q26: =IFERROR('Rates Table'!Q26*(High_Block_1),0)/100 -> 0 | R26: =IFERROR('Rates Table'!R26*(High_Block_1),0)/100 -> 0 | S26: =IFERROR('Rates Table'!S26*(High_Block_1),0)/100 -> 0 | T26: =IFERROR('Rates Table'!T26*(High_Block_1),0)/100 -> 0 | U26: =IFERROR('Rates Table'!U26*(High_Block_1),0)/100 -> 0 | V26: =IFERROR('Rates Table'!V26*(High_Block_1),0)/100 -> 0 | W26: =IFERROR('Rates Table'!W26*(High_Block_1),0)/100 -> 0 | X26: =IFERROR('Rates Table'!X26*(High_Block_1),0)/100 -> 0 | Y26: =IFERROR('Rates Table'!Y26*(High_Block_1),0)/100 -> 0 | Z26: =IFERROR('Rates Table'!Z26*(High_Block_1),0)/100 -> 0 | AA26: =IFERROR('Rates Table'!AA26*(High_Block_1),0)/100 -> 0 | AB26: =IFERROR('Rates Table'!AB26*(High_Block_1),0)/100 -> 0 | AC26: =IFERROR('Rates Table'!AC26*(High_Block_1),0)/100 -> 0 | AD26: =IFERROR('Rates Table'!AD26*(High_Block_1),0)/100 -> 0 | AE26: =IFERROR('Rates Table'!AE26*(High_Block_1),0)/100 -> 0 | AF26: =IFERROR('Rates Table'!AF26*(High_Block_1),0)/100 -> 0 | AI26: 0 | AJ26: =IFERROR('Rates Table'!AJ26*(High_Block_1),0)/100 -> 0 | AK26: =IFERROR('Rates Table'!AK26*(High_Block_1),0)/100 -> 0 | AL26: =IFERROR('Rates Table'!AL26*(High_Block_1),0)/100 -> 0 | AM26: =IFERROR('Rates Table'!AM26*(High_Block_1),0)/100 -> 0 | AN26: =IFERROR('Rates Table'!AN26*(High_Block_1),0)/100 -> 0 | AO26: =IFERROR('Rates Table'!AO26*(High_Block_1),0)/100 -> 0 | AP26: =IFERROR('Rates Table'!AP26*(High_Block_1),0)/100 -> 0 | AQ26: =IFERROR('Rates Table'!AQ26*(High_Block_1),0)/100 -> 0 | AR26: =IFERROR('Rates Table'!AR26*(High_Block_1),0)/100 -> 0 | AS26: =IFERROR('Rates Table'!AS26*(High_Block_1),0)/100 -> 0 | AT26: =IFERROR('Rates Table'!AT26*(High_Block_1),0)/100 -> 0 | AU26: =IFERROR('Rates Table'!AU26*(High_Block_1),0)/100 -> 0 | AV26: =IFERROR('Rates Table'!AV26*(High_Block_1),0)/100 -> 0 | AW26: =IFERROR('Rates Table'!AW26*(High_Block_1),0)/100 -> 0 | AX26: =IFERROR('Rates Table'!AX26*(High_Block_1),0)/100 -> 0 | AY26: =IFERROR('Rates Table'!AY26*(High_Block_1),0)/100 -> 0 | AZ26: =IFERROR('Rates Table'!AZ26*(High_Block_1),0)/100 -> 0 | BA26: =IFERROR('Rates Table'!BA26*(High_Block_1),0)/100 -> 0 | BB26: =IFERROR('Rates Table'!BB26*(High_Block_1),0)/100 -> 0 | BC26: =IFERROR('Rates Table'!BC26*(High_Block_1),0)/100 -> 0 | BD26: =IFERROR('Rates Table'!BD26*(High_Block_1),0)/100 -> 0 | BE26: =IFERROR('Rates Table'!BE26*(High_Block_1),0)/100 -> 0 | BF26: =IFERROR('Rates Table'!BF26*(High_Block_1),0)/100 -> 0 | BG26: =IFERROR('Rates Table'!BG26*(High_Block_1),0)/100 -> 0 | BH26: =IFERROR('Rates Table'!BH26*(High_Block_1),0)/100 -> 0 | BI26: =IFERROR('Rates Table'!BI26*(High_Block_1),0)/100 -> 0 | BJ26: =IFERROR('Rates Table'!BJ26*(High_Block_1),0)/100 -> 0
C27: Energy - Block 2 | D27: c/kWh | E27: 0 | F27: =IFERROR('Rates Table'!F27*(High_Block_2),0)/100 -> 0 | G27: =IFERROR('Rates Table'!G27*(High_Block_2),0)/100 -> 0 | H27: =IFERROR('Rates Table'!H27*(High_Block_2),0)/100 -> 0 | I27: =IFERROR('Rates Table'!I27*(High_Block_2),0)/100 -> 0 | J27: =IFERROR('Rates Table'!J27*(High_Block_2),0)/100 -> 0 | K27: =IFERROR('Rates Table'!K27*(High_Block_2),0)/100 -> 0 | L27: =IFERROR('Rates Table'!L27*(High_Block_2),0)/100 -> 0 | M27: =IFERROR('Rates Table'!M27*(High_Block_2),0)/100 -> 0 | N27: =IFERROR('Rates Table'!N27*(High_Block_2),0)/100 -> 0 | O27: =IFERROR('Rates Table'!O27*(High_Block_2),0)/100 -> 0 | P27: =IFERROR('Rates Table'!P27*(High_Block_2),0)/100 -> 0 | Q27: =IFERROR('Rates Table'!Q27*(High_Block_2),0)/100 -> 0 | R27: =IFERROR('Rates Table'!R27*(High_Block_2),0)/100 -> 0 | S27: =IFERROR('Rates Table'!S27*(High_Block_2),0)/100 -> 0 | T27: =IFERROR('Rates Table'!T27*(High_Block_2),0)/100 -> 0 | U27: =IFERROR('Rates Table'!U27*(High_Block_2),0)/100 -> 0 | V27: =IFERROR('Rates Table'!V27*(High_Block_2),0)/100 -> 0 | W27: =IFERROR('Rates Table'!W27*(High_Block_2),0)/100 -> 0 | X27: =IFERROR('Rates Table'!X27*(High_Block_2),0)/100 -> 0 | Y27: =IFERROR('Rates Table'!Y27*(High_Block_2),0)/100 -> 0 | Z27: =IFERROR('Rates Table'!Z27*(High_Block_2),0)/100 -> 0 | AA27: =IFERROR('Rates Table'!AA27*(High_Block_2),0)/100 -> 0 | AB27: =IFERROR('Rates Table'!AB27*(High_Block_2),0)/100 -> 0 | AC27: =IFERROR('Rates Table'!AC27*(High_Block_2),0)/100 -> 0 | AD27: =IFERROR('Rates Table'!AD27*(High_Block_2),0)/100 -> 0 | AE27: =IFERROR('Rates Table'!AE27*(High_Block_2),0)/100 -> 0 | AF27: =IFERROR('Rates Table'!AF27*(High_Block_2),0)/100 -> 0 | AI27: 0 | AJ27: =IFERROR('Rates Table'!AJ27*(High_Block_2),0)/100 -> 0 | AK27: =IFERROR('Rates Table'!AK27*(High_Block_2),0)/100 -> 0 | AL27: =IFERROR('Rates Table'!AL27*(High_Block_2),0)/100 -> 0 | AM27: =IFERROR('Rates Table'!AM27*(High_Block_2),0)/100 -> 0 | AN27: =IFERROR('Rates Table'!AN27*(High_Block_2),0)/100 -> 0 | AO27: =IFERROR('Rates Table'!AO27*(High_Block_2),0)/100 -> 0 | AP27: =IFERROR('Rates Table'!AP27*(High_Block_2),0)/100 -> 0 | AQ27: =IFERROR('Rates Table'!AQ27*(High_Block_2),0)/100 -> 0 | AR27: =IFERROR('Rates Table'!AR27*(High_Block_2),0)/100 -> 0 | AS27: =IFERROR('Rates Table'!AS27*(High_Block_2),0)/100 -> 0 | AT27: =IFERROR('Rates Table'!AT27*(High_Block_2),0)/100 -> 0 | AU27: =IFERROR('Rates Table'!AU27*(High_Block_2),0)/100 -> 0 | AV27: =IFERROR('Rates Table'!AV27*(High_Block_2),0)/100 -> 0 | AW27: =IFERROR('Rates Table'!AW27*(High_Block_2),0)/100 -> 0 | AX27: =IFERROR('Rates Table'!AX27*(High_Block_2),0)/100 -> 0 | AY27: =IFERROR('Rates Table'!AY27*(High_Block_2),0)/100 -> 0 | AZ27: =IFERROR('Rates Table'!AZ27*(High_Block_2),0)/100 -> 0 | BA27: =IFERROR('Rates Table'!BA27*(High_Block_2),0)/100 -> 0 | BB27: =IFERROR('Rates Table'!BB27*(High_Block_2),0)/100 -> 0 | BC27: =IFERROR('Rates Table'!BC27*(High_Block_2),0)/100 -> 0 | BD27: =IFERROR('Rates Table'!BD27*(High_Block_2),0)/100 -> 0 | BE27: =IFERROR('Rates Table'!BE27*(High_Block_2),0)/100 -> 0 | BF27: =IFERROR('Rates Table'!BF27*(High_Block_2),0)/100 -> 0 | BG27: =IFERROR('Rates Table'!BG27*(High_Block_2),0)/100 -> 0 | BH27: =IFERROR('Rates Table'!BH27*(High_Block_2),0)/100 -> 0 | BI27: =IFERROR('Rates Table'!BI27*(High_Block_2),0)/100 -> 0 | BJ27: =IFERROR('Rates Table'!BJ27*(High_Block_2),0)/100 -> 0
C28: Energy Demand | D28: R/kVA | E28: 0 | F28: =IFERROR('Rates Table'!F28*High_Demand,0) -> 0 | G28: =IFERROR('Rates Table'!G28*High_Demand,0) -> 0 | H28: =IFERROR('Rates Table'!H28*High_Demand,0) -> 0 | I28: =IFERROR('Rates Table'!I28*High_Demand,0) -> 0 | J28: =IFERROR('Rates Table'!J28*High_Demand,0) -> 0 | K28: =IFERROR('Rates Table'!K28*High_Demand,0) -> 0 | L28: =IFERROR('Rates Table'!L28*High_Demand,0) -> 0 | M28: =IFERROR('Rates Table'!M28*High_Demand,0) -> 0 | N28: =IFERROR('Rates Table'!N28*High_Demand,0) -> 0 | O28: =IFERROR('Rates Table'!O28*High_Demand,0) -> 0 | P28: =IFERROR('Rates Table'!P28*High_Demand,0) -> 0 | Q28: =IFERROR('Rates Table'!Q28*High_Demand,0) -> 0 | R28: =IFERROR('Rates Table'!R28*High_Demand,0) -> 0 | S28: =IFERROR('Rates Table'!S28*High_Demand,0) -> 0 | T28: =IFERROR('Rates Table'!T28*High_Demand,0) -> 0 | U28: =IFERROR('Rates Table'!U28*High_Demand,0) -> 0 | V28: =IFERROR('Rates Table'!V28*High_Demand,0) -> 0 | W28: =IFERROR('Rates Table'!W28*High_Demand,0) -> 0 | X28: =IFERROR('Rates Table'!X28*High_Demand,0) -> 0 | Y28: =IFERROR('Rates Table'!Y28*High_Demand,0) -> 0 | Z28: =IFERROR('Rates Table'!Z28*High_Demand,0) -> 0 | AA28: =IFERROR('Rates Table'!AA28*High_Demand,0) -> 0 | AB28: =IFERROR('Rates Table'!AB28*High_Demand,0) -> 0 | AC28: =IFERROR('Rates Table'!AC28*High_Demand,0) -> 0 | AD28: =IFERROR('Rates Table'!AD28*High_Demand,0) -> 0 | AE28: =IFERROR('Rates Table'!AE28*High_Demand,0) -> 0 | AF28: =IFERROR('Rates Table'!AF28*High_Demand,0) -> 0 | AI28: 0 | AJ28: =IFERROR('Rates Table'!AJ28*High_Demand,0) -> 0 | AK28: =IFERROR('Rates Table'!AK28*High_Demand,0) -> 0 | AL28: =IFERROR('Rates Table'!AL28*High_Demand,0) -> 0 | AM28: =IFERROR('Rates Table'!AM28*High_Demand,0) -> 0 | AN28: =IFERROR('Rates Table'!AN28*High_Demand,0) -> 0 | AO28: =IFERROR('Rates Table'!AO28*High_Demand,0) -> 0 | AP28: =IFERROR('Rates Table'!AP28*High_Demand,0) -> 0 | AQ28: =IFERROR('Rates Table'!AQ28*High_Demand,0) -> 0 | AR28: =IFERROR('Rates Table'!AR28*High_Demand,0) -> 0 | AS28: =IFERROR('Rates Table'!AS28*High_Demand,0) -> 0 | AT28: =IFERROR('Rates Table'!AT28*High_Demand,0) -> 0 | AU28: =IFERROR('Rates Table'!AU28*High_Demand,0) -> 0 | AV28: =IFERROR('Rates Table'!AV28*High_Demand,0) -> 0 | AW28: =IFERROR('Rates Table'!AW28*High_Demand,0) -> 0 | AX28: =IFERROR('Rates Table'!AX28*High_Demand,0) -> 0 | AY28: =IFERROR('Rates Table'!AY28*High_Demand,0) -> 0 | AZ28: =IFERROR('Rates Table'!AZ28*High_Demand,0) -> 0 | BA28: =IFERROR('Rates Table'!BA28*High_Demand,0) -> 0 | BB28: =IFERROR('Rates Table'!BB28*High_Demand,0) -> 0 | BC28: =IFERROR('Rates Table'!BC28*High_Demand,0) -> 0 | BD28: =IFERROR('Rates Table'!BD28*High_Demand,0) -> 0 | BE28: =IFERROR('Rates Table'!BE28*High_Demand,0) -> 0 | BF28: =IFERROR('Rates Table'!BF28*High_Demand,0) -> 0 | BG28: =IFERROR('Rates Table'!BG28*High_Demand,0) -> 0 | BH28: =IFERROR('Rates Table'!BH28*High_Demand,0) -> 0 | BI28: =IFERROR('Rates Table'!BI28*High_Demand,0) -> 0 | BJ28: =IFERROR('Rates Table'!BJ28*High_Demand,0) -> 0
B30: Total energy charges | E30: =SUM(E21:E28) -> 0 | F30: =SUM(F21:F28) -> 0 | G30: =SUM(G21:G28) -> 0 | H30: 0 | I30: 0 | J30: 0 | K30: 0 | L30: 0 | M30: 0 | N30: 0 | O30: 0 | P30: 0 | Q30: 0 | R30: 0 | S30: 0 | T30: 0 | U30: 0 | V30: 0 | W30: 0 | X30: 0 | Y30: 0 | Z30: 0 | AA30: 0 | AB30: =SUM(AB21:AB28) -> 0 | AC30: 0 | AD30: 0 | AE30: 0 | AF30: 0 | AI30: =SUM(AI21:AI28) -> 0 | AJ30: =SUM(AJ21:AJ28) -> 0 | AK30: 0 | AL30: 0 | AM30: 0 | AN30: 0 | AO30: 0 | AP30: 0 | AQ30: 0 | AR30: 0 | AS30: 0 | AT30: 0 | AU30: 0 | AV30: 0 | AW30: 0 | AX30: 0 | AY30: 0 | AZ30: 0 | BA30: 0 | BB30: 0 | BC30: 0 | BD30: 0 | BE30: 0 | BF30: =SUM(BF21:BF28) -> 0 | BG30: 0 | BH30: 0 | BI30: 0 | BJ30: 0
B32: Other charges | D32: Units | E32: =E$8 -> 2020/2021 Rates | F32: =F$8 -> 2020/2021 Rates | G32: 2020/2021 Rates | H32: 2020/2021 Rates | I32: 2020/2021 Rates | J32: 2020/2021 Rates | K32: 2020/2021 Rates | L32: 2020/2021 Rates | M32: 2020/2021 Rates | N32: 2020/2021 Rates | O32: 2020/2021 Rates | P32: 2020/2021 Rates | Q32: 2020/2021 Rates | R32: 2020/2021 Rates | S32: 2020/2021 Rates | T32: 2020/2021 Rates | U32: 2020/2021 Rates | V32: 2020/2021 Rates | W32: 2020/2021 Rates | X32: 2020/2021 Rates | Y32: 2020/2021 Rates | Z32: 2020/2021 Rates | AA32: 2020/2021 Rates | AB32: 2020/2021 Rates | AC32: 2020/2021 Rates | AD32: 2020/2021 Rates | AE32: 2020/2021 Rates | AF32: 2020/2021 Rates | AI32: =AI$8 -> 2021/2022 Rates | AJ32: =AJ$8 -> 2021/2022 Rates | AK32: 2021/2022 Rates | AL32: 2021/2022 Rates | AM32: 2021/2022 Rates | AN32: 2021/2022 Rates | AO32: 2021/2022 Rates | AP32: 2021/2022 Rates | AQ32: 2021/2022 Rates | AR32: 2021/2022 Rates | AS32: 2021/2022 Rates | AT32: 2021/2022 Rates | AU32: 2021/2022 Rates | AV32: 2021/2022 Rates | AW32: 2021/2022 Rates | AX32: 2021/2022 Rates | AY32: 2021/2022 Rates | AZ32: 2021/2022 Rates | BA32: 2021/2022 Rates | BB32: 2021/2022 Rates | BC32: 2021/2022 Rates | BD32: 2021/2022 Rates | BE32: 2021/2022 Rates | BF32: 2021/2022 Rates | BG32: 2021/2022 Rates | BH32: 2021/2022 Rates | BI32: 2021/2022 Rates | BJ32: 2021/2022 Rates
C34: Ancillary service charge | D34: c/kWh | E34: =INDEX(F34:AE34,0,Selected_Tariff_ID) -> 0 | F34: =IFERROR(High_Total_Energy*'Rates Table'!F47,0)/100 -> 0 | G34: =IFERROR(High_Total_Energy*'Rates Table'!G47,0)/100 -> 0 | H34: =IFERROR(High_Total_Energy*'Rates Table'!H47,0)/100 -> 0 | I34: =IFERROR(High_Total_Energy*'Rates Table'!I47,0)/100 -> 0 | J34: =IFERROR(High_Total_Energy*'Rates Table'!J47,0)/100 -> 0 | K34: =IFERROR(High_Total_Energy*'Rates Table'!K47,0)/100 -> 0 | L34: =IFERROR(High_Total_Energy*'Rates Table'!L47,0)/100 -> 0 | M34: =IFERROR(High_Total_Energy*'Rates Table'!M47,0)/100 -> 0 | N34: =IFERROR(High_Total_Energy*'Rates Table'!N47,0)/100 -> 0 | O34: =IFERROR(High_Total_Energy*'Rates Table'!O47,0)/100 -> 0 | P34: =IFERROR(High_Total_Energy*'Rates Table'!P47,0)/100 -> 0 | Q34: =IFERROR(High_Total_Energy*'Rates Table'!Q47,0)/100 -> 0 | R34: =IFERROR(High_Total_Energy*'Rates Table'!R47,0)/100 -> 0 | S34: =IFERROR(High_Total_Energy*'Rates Table'!S47,0)/100 -> 0 | T34: =IFERROR(High_Total_Energy*'Rates Table'!T47,0)/100 -> 0 | U34: =IFERROR(High_Total_Energy*'Rates Table'!U47,0)/100 -> 0 | V34: =IFERROR(High_Total_Energy*'Rates Table'!V47,0)/100 -> 0 | W34: =IFERROR(High_Total_Energy*'Rates Table'!W47,0)/100 -> 0 | X34: =IFERROR(High_Total_Energy*'Rates Table'!X47,0)/100 -> 0 | Y34: =IFERROR(High_Total_Energy*'Rates Table'!Y47,0)/100 -> 0 | Z34: =IFERROR(High_Total_Energy*'Rates Table'!Z47,0)/100 -> 0 | AA34: =IFERROR(High_Total_Energy*'Rates Table'!AA47,0)/100 -> 0 | AB34: =IFERROR(High_Total_Energy*'Rates Table'!AB47,0)/100 -> 0 | AC34: =IFERROR(High_Total_Energy*'Rates Table'!AC47,0)/100 -> 0 | AD34: =IFERROR(High_Total_Energy*'Rates Table'!AD47,0)/100 -> 0 | AE34: =IFERROR(High_Total_Energy*'Rates Table'!AE47,0)/100 -> 0 | AF34: =IFERROR(High_Total_Energy*'Rates Table'!AF47,0)/100 -> 0 | AI34: =INDEX(AJ34:BI34,0,Selected_Tariff_ID) -> 0 | AJ34: =IFERROR(High_Total_Energy*'Rates Table'!AJ47,0)/100 -> 0 | AK34: =IFERROR(High_Total_Energy*'Rates Table'!AK47,0)/100 -> 0 | AL34: =IFERROR(High_Total_Energy*'Rates Table'!AL47,0)/100 -> 0 | AM34: =IFERROR(High_Total_Energy*'Rates Table'!AM47,0)/100 -> 0 | AN34: =IFERROR(High_Total_Energy*'Rates Table'!AN47,0)/100 -> 0 | AO34: =IFERROR(High_Total_Energy*'Rates Table'!AO47,0)/100 -> 0 | AP34: =IFERROR(High_Total_Energy*'Rates Table'!AP47,0)/100 -> 0 | AQ34: =IFERROR(High_Total_Energy*'Rates Table'!AQ47,0)/100 -> 0 | AR34: =IFERROR(High_Total_Energy*'Rates Table'!AR47,0)/100 -> 0 | AS34: =IFERROR(High_Total_Energy*'Rates Table'!AS47,0)/100 -> 0 | AT34: =IFERROR(High_Total_Energy*'Rates Table'!AT47,0)/100 -> 0 | AU34: =IFERROR(High_Total_Energy*'Rates Table'!AU47,0)/100 -> 0 | AV34: =IFERROR(High_Total_Energy*'Rates Table'!AV47,0)/100 -> 0 | AW34: =IFERROR(High_Total_Energy*'Rates Table'!AW47,0)/100 -> 0 | AX34: =IFERROR(High_Total_Energy*'Rates Table'!AX47,0)/100 -> 0 | AY34: =IFERROR(High_Total_Energy*'Rates Table'!AY47,0)/100 -> 0 | AZ34: =IFERROR(High_Total_Energy*'Rates Table'!AZ47,0)/100 -> 0 | BA34: =IFERROR(High_Total_Energy*'Rates Table'!BA47,0)/100 -> 0 | BB34: =IFERROR(High_Total_Energy*'Rates Table'!BB47,0)/100 -> 0 | BC34: =IFERROR(High_Total_Energy*'Rates Table'!BC47,0)/100 -> 0 | BD34: =IFERROR(High_Total_Energy*'Rates Table'!BD47,0)/100 -> 0 | BE34: =IFERROR(High_Total_Energy*'Rates Table'!BE47,0)/100 -> 0 | BF34: =IFERROR(High_Total_Energy*'Rates Table'!BF47,0)/100 -> 0 | BG34: =IFERROR(High_Total_Energy*'Rates Table'!BG47,0)/100 -> 0 | BH34: =IFERROR(High_Total_Energy*'Rates Table'!BH47,0)/100 -> 0 | BI34: =IFERROR(High_Total_Energy*'Rates Table'!BI47,0)/100 -> 0 | BJ34: =IFERROR(High_Total_Energy*'Rates Table'!BJ47,0)/100 -> 0
C35: Reactive energy charge | D35: c/kVArh | E35: 0 | F35: =IFERROR(High_Excess_RE*'Rates Table'!F48,0)/100 -> 0 | G35: =IFERROR(High_Excess_RE*'Rates Table'!G48,0)/100 -> 0 | H35: =IFERROR(High_Excess_RE*'Rates Table'!H48,0)/100 -> 0 | I35: =IFERROR(High_Excess_RE*'Rates Table'!I48,0)/100 -> 0 | J35: =IFERROR(High_Excess_RE*'Rates Table'!J48,0)/100 -> 0 | K35: =IFERROR(High_Excess_RE*'Rates Table'!K48,0)/100 -> 0 | L35: =IFERROR(High_Excess_RE*'Rates Table'!L48,0)/100 -> 0 | M35: =IFERROR(High_Excess_RE*'Rates Table'!M48,0)/100 -> 0 | N35: =IFERROR(High_Excess_RE*'Rates Table'!N48,0)/100 -> 0 | O35: =IFERROR(High_Excess_RE*'Rates Table'!O48,0)/100 -> 0 | P35: =IFERROR(High_Excess_RE*'Rates Table'!P48,0)/100 -> 0 | Q35: =IFERROR(High_Excess_RE*'Rates Table'!Q48,0)/100 -> 0 | R35: =IFERROR(High_Excess_RE*'Rates Table'!R48,0)/100 -> 0 | S35: =IFERROR(High_Excess_RE*'Rates Table'!S48,0)/100 -> 0 | T35: =IFERROR(High_Excess_RE*'Rates Table'!T48,0)/100 -> 0 | U35: =IFERROR(High_Excess_RE*'Rates Table'!U48,0)/100 -> 0 | V35: =IFERROR(High_Excess_RE*'Rates Table'!V48,0)/100 -> 0 | W35: =IFERROR(High_Excess_RE*'Rates Table'!W48,0)/100 -> 0 | X35: =IFERROR(High_Excess_RE*'Rates Table'!X48,0)/100 -> 0 | Y35: =IFERROR(High_Excess_RE*'Rates Table'!Y48,0)/100 -> 0 | Z35: =IFERROR(High_Excess_RE*'Rates Table'!Z48,0)/100 -> 0 | AA35: =IFERROR(High_Excess_RE*'Rates Table'!AA48,0)/100 -> 0 | AB35: =IFERROR(High_Excess_RE*'Rates Table'!AB48,0)/100 -> 0 | AC35: =IFERROR(High_Excess_RE*'Rates Table'!AC48,0)/100 -> 0 | AD35: =IFERROR(High_Excess_RE*'Rates Table'!AD48,0)/100 -> 0 | AE35: =IFERROR(High_Excess_RE*'Rates Table'!AE48,0)/100 -> 0 | AF35: =IFERROR(High_Excess_RE*'Rates Table'!AF48,0)/100 -> 0 | AI35: 0 | AJ35: =IFERROR(High_Excess_RE*'Rates Table'!AJ48,0)/100 -> 0 | AK35: =IFERROR(High_Excess_RE*'Rates Table'!AK48,0)/100 -> 0 | AL35: =IFERROR(High_Excess_RE*'Rates Table'!AL48,0)/100 -> 0 | AM35: =IFERROR(High_Excess_RE*'Rates Table'!AM48,0)/100 -> 0 | AN35: =IFERROR(High_Excess_RE*'Rates Table'!AN48,0)/100 -> 0 | AO35: =IFERROR(High_Excess_RE*'Rates Table'!AO48,0)/100 -> 0 | AP35: =IFERROR(High_Excess_RE*'Rates Table'!AP48,0)/100 -> 0 | AQ35: =IFERROR(High_Excess_RE*'Rates Table'!AQ48,0)/100 -> 0 | AR35: =IFERROR(High_Excess_RE*'Rates Table'!AR48,0)/100 -> 0 | AS35: =IFERROR(High_Excess_RE*'Rates Table'!AS48,0)/100 -> 0 | AT35: =IFERROR(High_Excess_RE*'Rates Table'!AT48,0)/100 -> 0 | AU35: =IFERROR(High_Excess_RE*'Rates Table'!AU48,0)/100 -> 0 | AV35: =IFERROR(High_Excess_RE*'Rates Table'!AV48,0)/100 -> 0 | AW35: =IFERROR(High_Excess_RE*'Rates Table'!AW48,0)/100 -> 0 | AX35: =IFERROR(High_Excess_RE*'Rates Table'!AX48,0)/100 -> 0 | AY35: =IFERROR(High_Excess_RE*'Rates Table'!AY48,0)/100 -> 0 | AZ35: =IFERROR(High_Excess_RE*'Rates Table'!AZ48,0)/100 -> 0 | BA35: =IFERROR(High_Excess_RE*'Rates Table'!BA48,0)/100 -> 0 | BB35: =IFERROR(High_Excess_RE*'Rates Table'!BB48,0)/100 -> 0 | BC35: =IFERROR(High_Excess_RE*'Rates Table'!BC48,0)/100 -> 0 | BD35: =IFERROR(High_Excess_RE*'Rates Table'!BD48,0)/100 -> 0 | BE35: =IFERROR(High_Excess_RE*'Rates Table'!BE48,0)/100 -> 0 | BF35: =IFERROR(High_Excess_RE*'Rates Table'!BF48,0)/100 -> 0 | BG35: =IFERROR(High_Excess_RE*'Rates Table'!BG48,0)/100 -> 0 | BH35: =IFERROR(High_Excess_RE*'Rates Table'!BH48,0)/100 -> 0 | BI35: =IFERROR(High_Excess_RE*'Rates Table'!BI48,0)/100 -> 0 | BJ35: =IFERROR(High_Excess_RE*'Rates Table'!BJ48,0)/100 -> 0
C36: Electrification and rural subsidy | D36: c/kWh | E36: 0 | F36: =IFERROR(High_Total_Energy*'Rates Table'!F49,0)/100 -> 0 | G36: =IFERROR(High_Total_Energy*'Rates Table'!G49,0)/100 -> 0 | H36: =IFERROR(High_Total_Energy*'Rates Table'!H49,0)/100 -> 0 | I36: =IFERROR(High_Total_Energy*'Rates Table'!I49,0)/100 -> 0 | J36: =IFERROR(High_Total_Energy*'Rates Table'!J49,0)/100 -> 0 | K36: =IFERROR(High_Total_Energy*'Rates Table'!K49,0)/100 -> 0 | L36: =IFERROR(High_Total_Energy*'Rates Table'!L49,0)/100 -> 0 | M36: =IFERROR(High_Total_Energy*'Rates Table'!M49,0)/100 -> 0 | N36: =IFERROR(High_Total_Energy*'Rates Table'!N49,0)/100 -> 0 | O36: =IFERROR(High_Total_Energy*'Rates Table'!O49,0)/100 -> 0 | P36: =IFERROR(High_Total_Energy*'Rates Table'!P49,0)/100 -> 0 | Q36: =IFERROR(High_Total_Energy*'Rates Table'!Q49,0)/100 -> 0 | R36: =IFERROR(High_Total_Energy*'Rates Table'!R49,0)/100 -> 0 | S36: =IFERROR(High_Total_Energy*'Rates Table'!S49,0)/100 -> 0 | T36: =IFERROR(High_Total_Energy*'Rates Table'!T49,0)/100 -> 0 | U36: =IFERROR(High_Total_Energy*'Rates Table'!U49,0)/100 -> 0 | V36: =IFERROR(High_Total_Energy*'Rates Table'!V49,0)/100 -> 0 | W36: =IFERROR(High_Total_Energy*'Rates Table'!W49,0)/100 -> 0 | X36: =IFERROR(High_Total_Energy*'Rates Table'!X49,0)/100 -> 0 | Y36: =IFERROR(High_Total_Energy*'Rates Table'!Y49,0)/100 -> 0 | Z36: =IFERROR(High_Total_Energy*'Rates Table'!Z49,0)/100 -> 0 | AA36: =IFERROR(High_Total_Energy*'Rates Table'!AA49,0)/100 -> 0 | AB36: =IFERROR(High_Total_Energy*'Rates Table'!AB49,0)/100 -> 0 | AC36: =IFERROR(High_Total_Energy*'Rates Table'!AC49,0)/100 -> 0 | AD36: =IFERROR(High_Total_Energy*'Rates Table'!AD49,0)/100 -> 0 | AE36: =IFERROR(High_Total_Energy*'Rates Table'!AE49,0)/100 -> 0 | AF36: =IFERROR(High_Total_Energy*'Rates Table'!AF49,0)/100 -> 0 | AI36: 0 | AJ36: =IFERROR(High_Total_Energy*'Rates Table'!AJ49,0)/100 -> 0 | AK36: =IFERROR(High_Total_Energy*'Rates Table'!AK49,0)/100 -> 0 | AL36: =IFERROR(High_Total_Energy*'Rates Table'!AL49,0)/100 -> 0 | AM36: =IFERROR(High_Total_Energy*'Rates Table'!AM49,0)/100 -> 0 | AN36: =IFERROR(High_Total_Energy*'Rates Table'!AN49,0)/100 -> 0 | AO36: =IFERROR(High_Total_Energy*'Rates Table'!AO49,0)/100 -> 0 | AP36: =IFERROR(High_Total_Energy*'Rates Table'!AP49,0)/100 -> 0 | AQ36: =IFERROR(High_Total_Energy*'Rates Table'!AQ49,0)/100 -> 0 | AR36: =IFERROR(High_Total_Energy*'Rates Table'!AR49,0)/100 -> 0 | AS36: =IFERROR(High_Total_Energy*'Rates Table'!AS49,0)/100 -> 0 | AT36: =IFERROR(High_Total_Energy*'Rates Table'!AT49,0)/100 -> 0 | AU36: =IFERROR(High_Total_Energy*'Rates Table'!AU49,0)/100 -> 0 | AV36: =IFERROR(High_Total_Energy*'Rates Table'!AV49,0)/100 -> 0 | AW36: =IFERROR(High_Total_Energy*'Rates Table'!AW49,0)/100 -> 0 | AX36: =IFERROR(High_Total_Energy*'Rates Table'!AX49,0)/100 -> 0 | AY36: =IFERROR(High_Total_Energy*'Rates Table'!AY49,0)/100 -> 0 | AZ36: =IFERROR(High_Total_Energy*'Rates Table'!AZ49,0)/100 -> 0 | BA36: =IFERROR(High_Total_Energy*'Rates Table'!BA49,0)/100 -> 0 | BB36: =IFERROR(High_Total_Energy*'Rates Table'!BB49,0)/100 -> 0 | BC36: =IFERROR(High_Total_Energy*'Rates Table'!BC49,0)/100 -> 0 | BD36: =IFERROR(High_Total_Energy*'Rates Table'!BD49,0)/100 -> 0 | BE36: =IFERROR(High_Total_Energy*'Rates Table'!BE49,0)/100 -> 0 | BF36: =IFERROR(High_Total_Energy*'Rates Table'!BF49,0)/100 -> 0 | BG36: =IFERROR(High_Total_Energy*'Rates Table'!BG49,0)/100 -> 0 | BH36: =IFERROR(High_Total_Energy*'Rates Table'!BH49,0)/100 -> 0 | BI36: =IFERROR(High_Total_Energy*'Rates Table'!BI49,0)/100 -> 0 | BJ36: =IFERROR(High_Total_Energy*'Rates Table'!BJ49,0)/100 -> 0
C37: Affordability subsidy | D37: c/kWh | E37: 0 | F37: =IFERROR(High_Total_Energy*'Rates Table'!F50,0)/100 -> 0 | G37: =IFERROR(High_Total_Energy*'Rates Table'!G50,0)/100 -> 0 | H37: =IFERROR(High_Total_Energy*'Rates Table'!H50,0)/100 -> 0 | I37: =IFERROR(High_Total_Energy*'Rates Table'!I50,0)/100 -> 0 | J37: =IFERROR(High_Total_Energy*'Rates Table'!J50,0)/100 -> 0 | K37: =IFERROR(High_Total_Energy*'Rates Table'!K50,0)/100 -> 0 | L37: =IFERROR(High_Total_Energy*'Rates Table'!L50,0)/100 -> 0 | M37: =IFERROR(High_Total_Energy*'Rates Table'!M50,0)/100 -> 0 | N37: =IFERROR(High_Total_Energy*'Rates Table'!N50,0)/100 -> 0 | O37: =IFERROR(High_Total_Energy*'Rates Table'!O50,0)/100 -> 0 | P37: =IFERROR(High_Total_Energy*'Rates Table'!P50,0)/100 -> 0 | Q37: =IFERROR(High_Total_Energy*'Rates Table'!Q50,0)/100 -> 0 | R37: =IFERROR(High_Total_Energy*'Rates Table'!R50,0)/100 -> 0 | S37: =IFERROR(High_Total_Energy*'Rates Table'!S50,0)/100 -> 0 | T37: =IFERROR(High_Total_Energy*'Rates Table'!T50,0)/100 -> 0 | U37: =IFERROR(High_Total_Energy*'Rates Table'!U50,0)/100 -> 0 | V37: =IFERROR(High_Total_Energy*'Rates Table'!V50,0)/100 -> 0 | W37: =IFERROR(High_Total_Energy*'Rates Table'!W50,0)/100 -> 0 | X37: =IFERROR(High_Total_Energy*'Rates Table'!X50,0)/100 -> 0 | Y37: =IFERROR(High_Total_Energy*'Rates Table'!Y50,0)/100 -> 0 | Z37: =IFERROR(High_Total_Energy*'Rates Table'!Z50,0)/100 -> 0 | AA37: =IFERROR(High_Total_Energy*'Rates Table'!AA50,0)/100 -> 0 | AB37: =IFERROR(High_Total_Energy*'Rates Table'!AB50,0)/100 -> 0 | AC37: =IFERROR(High_Total_Energy*'Rates Table'!AC50,0)/100 -> 0 | AD37: =IFERROR(High_Total_Energy*'Rates Table'!AD50,0)/100 -> 0 | AE37: =IFERROR(High_Total_Energy*'Rates Table'!AE50,0)/100 -> 0 | AF37: =IFERROR(High_Total_Energy*'Rates Table'!AF50,0)/100 -> 0 | AI37: 0 | AJ37: =IFERROR(High_Total_Energy*'Rates Table'!AJ50,0)/100 -> 0 | AK37: =IFERROR(High_Total_Energy*'Rates Table'!AK50,0)/100 -> 0 | AL37: =IFERROR(High_Total_Energy*'Rates Table'!AL50,0)/100 -> 0 | AM37: =IFERROR(High_Total_Energy*'Rates Table'!AM50,0)/100 -> 0 | AN37: =IFERROR(High_Total_Energy*'Rates Table'!AN50,0)/100 -> 0 | AO37: =IFERROR(High_Total_Energy*'Rates Table'!AO50,0)/100 -> 0 | AP37: =IFERROR(High_Total_Energy*'Rates Table'!AP50,0)/100 -> 0 | AQ37: =IFERROR(High_Total_Energy*'Rates Table'!AQ50,0)/100 -> 0 | AR37: =IFERROR(High_Total_Energy*'Rates Table'!AR50,0)/100 -> 0 | AS37: =IFERROR(High_Total_Energy*'Rates Table'!AS50,0)/100 -> 0 | AT37: =IFERROR(High_Total_Energy*'Rates Table'!AT50,0)/100 -> 0 | AU37: =IFERROR(High_Total_Energy*'Rates Table'!AU50,0)/100 -> 0 | AV37: =IFERROR(High_Total_Energy*'Rates Table'!AV50,0)/100 -> 0 | AW37: =IFERROR(High_Total_Energy*'Rates Table'!AW50,0)/100 -> 0 | AX37: =IFERROR(High_Total_Energy*'Rates Table'!AX50,0)/100 -> 0 | AY37: =IFERROR(High_Total_Energy*'Rates Table'!AY50,0)/100 -> 0 | AZ37: =IFERROR(High_Total_Energy*'Rates Table'!AZ50,0)/100 -> 0 | BA37: =IFERROR(High_Total_Energy*'Rates Table'!BA50,0)/100 -> 0 | BB37: =IFERROR(High_Total_Energy*'Rates Table'!BB50,0)/100 -> 0 | BC37: =IFERROR(High_Total_Energy*'Rates Table'!BC50,0)/100 -> 0 | BD37: =IFERROR(High_Total_Energy*'Rates Table'!BD50,0)/100 -> 0 | BE37: =IFERROR(High_Total_Energy*'Rates Table'!BE50,0)/100 -> 0 | BF37: =IFERROR(High_Total_Energy*'Rates Table'!BF50,0)/100 -> 0 | BG37: =IFERROR(High_Total_Energy*'Rates Table'!BG50,0)/100 -> 0 | BH37: =IFERROR(High_Total_Energy*'Rates Table'!BH50,0)/100 -> 0 | BI37: =IFERROR(High_Total_Energy*'Rates Table'!BI50,0)/100 -> 0 | BJ37: =IFERROR(High_Total_Energy*'Rates Table'!BJ50,0)/100 -> 0
C38: Administration charge | D38: R/day | E38: 0 | F38: =IFERROR('Rates Table'!F51*PODs*High_Days,0) -> 0 | G38: =IFERROR('Rates Table'!G51*PODs*High_Days,0) -> 0 | H38: =IFERROR('Rates Table'!H51*PODs*High_Days,0) -> 0 | I38: =IFERROR('Rates Table'!I51*PODs*High_Days,0) -> 0 | J38: =IFERROR('Rates Table'!J51*PODs*High_Days,0) -> 0 | K38: =IFERROR('Rates Table'!K51*PODs*High_Days,0) -> 0 | L38: =IFERROR('Rates Table'!L51*PODs*High_Days,0) -> 0 | M38: =IFERROR('Rates Table'!M51*PODs*High_Days,0) -> 0 | N38: =IFERROR('Rates Table'!N51*PODs*High_Days,0) -> 0 | O38: =IFERROR('Rates Table'!O51*PODs*High_Days,0) -> 0 | P38: =IFERROR('Rates Table'!P51*PODs*High_Days,0) -> 0 | Q38: =IFERROR('Rates Table'!Q51*PODs*High_Days,0) -> 0 | R38: =IFERROR('Rates Table'!R51*PODs*High_Days,0) -> 0 | S38: =IFERROR('Rates Table'!S51*PODs*High_Days,0) -> 0 | T38: =IFERROR('Rates Table'!T51*PODs*High_Days,0) -> 0 | U38: =IFERROR('Rates Table'!U51*PODs*High_Days,0) -> 0 | V38: =IFERROR('Rates Table'!V51*PODs*High_Days,0) -> 340.4 | W38: =IFERROR('Rates Table'!W51*PODs*High_Days,0) -> 340.4 | X38: =IFERROR('Rates Table'!X51*PODs*High_Days,0) -> 340.4 | Y38: =IFERROR('Rates Table'!Y51*PODs*High_Days,0) -> 340.4 | Z38: =IFERROR('Rates Table'!Z51*PODs*High_Days,0) -> 340.4 | AA38: =IFERROR('Rates Table'!AA51*PODs*High_Days,0) -> 340.4 | AB38: =IFERROR('Rates Table'!AB51*PODs*High_Days,0) -> 0 | AC38: =IFERROR('Rates Table'!AC51*PODs*High_Days,0) -> 0 | AD38: =IFERROR('Rates Table'!AD51*PODs*High_Days,0) -> 0 | AE38: =IFERROR('Rates Table'!AE51*PODs*High_Days,0) -> 0 | AF38: =IFERROR('Rates Table'!AF51*PODs*High_Days,0) -> 0 | AI38: 0 | AJ38: =IFERROR('Rates Table'!AJ51*PODs*High_Days,0) -> 0 | AK38: =IFERROR('Rates Table'!AK51*PODs*High_Days,0) -> 0 | AL38: =IFERROR('Rates Table'!AL51*PODs*High_Days,0) -> 0 | AM38: =IFERROR('Rates Table'!AM51*PODs*High_Days,0) -> 0 | AN38: =IFERROR('Rates Table'!AN51*PODs*High_Days,0) -> 0 | AO38: =IFERROR('Rates Table'!AO51*PODs*High_Days,0) -> 0 | AP38: =IFERROR('Rates Table'!AP51*PODs*High_Days,0) -> 0 | AQ38: =IFERROR('Rates Table'!AQ51*PODs*High_Days,0) -> 0 | AR38: =IFERROR('Rates Table'!AR51*PODs*High_Days,0) -> 0 | AS38: =IFERROR('Rates Table'!AS51*PODs*High_Days,0) -> 0 | AT38: =IFERROR('Rates Table'!AT51*PODs*High_Days,0) -> 0 | AU38: =IFERROR('Rates Table'!AU51*PODs*High_Days,0) -> 0 | AV38: =IFERROR('Rates Table'!AV51*PODs*High_Days,0) -> 0 | AW38: =IFERROR('Rates Table'!AW51*PODs*High_Days,0) -> 0 | AX38: =IFERROR('Rates Table'!AX51*PODs*High_Days,0) -> 0 | AY38: =IFERROR('Rates Table'!AY51*PODs*High_Days,0) -> 0 | AZ38: =IFERROR('Rates Table'!AZ51*PODs*High_Days,0) -> 391.92 | BA38: =IFERROR('Rates Table'!BA51*PODs*High_Days,0) -> 391.92 | BB38: =IFERROR('Rates Table'!BB51*PODs*High_Days,0) -> 391.92 | BC38: =IFERROR('Rates Table'!BC51*PODs*High_Days,0) -> 391.92 | BD38: =IFERROR('Rates Table'!BD51*PODs*High_Days,0) -> 391.92 | BE38: =IFERROR('Rates Table'!BE51*PODs*High_Days,0) -> 391.92 | BF38: =IFERROR('Rates Table'!BF51*PODs*High_Days,0) -> 0 | BG38: =IFERROR('Rates Table'!BG51*PODs*High_Days,0) -> 0 | BH38: =IFERROR('Rates Table'!BH51*PODs*High_Days,0) -> 0 | BI38: =IFERROR('Rates Table'!BI51*PODs*High_Days,0) -> 0 | BJ38: =IFERROR('Rates Table'!BJ51*PODs*High_Days,0) -> 0
C39: Service charge | D39: =IF(Table_1=1,"R/day","R/day") -> R/day | E39: 2001 | F39: =IFERROR(IF(F$51=1,'Rates Table'!F52*PODs*High_Days,'Rates Table'!F52*PODs*High_Days),0) -> 2001 | G39: =IFERROR(IF(G$51=1,'Rates Table'!G52*PODs*High_Days,'Rates Table'!G52*PODs*High_Days),0) -> 2001 | H39: =IFERROR(IF(H$51=1,'Rates Table'!H52*PODs*High_Days,'Rates Table'!H52*PODs*High_Days),0) -> 2001 | I39: =IFERROR(IF(I$51=1,'Rates Table'!I52*PODs*High_Days,'Rates Table'!I52*PODs*High_Days),0) -> 0 | J39: =IFERROR(IF(J$51=1,'Rates Table'!J52*PODs*High_Days,'Rates Table'!J52*PODs*High_Days),0) -> 0 | K39: =IFERROR(IF(K$51=1,'Rates Table'!K52*PODs*High_Days,'Rates Table'!K52*PODs*High_Days),0) -> 0 | L39: =IFERROR(IF(L$51=1,'Rates Table'!L52*PODs*High_Days,'Rates Table'!L52*PODs*High_Days),0) -> 0 | M39: =IFERROR(IF(M$51=1,'Rates Table'!M52*PODs*High_Days,'Rates Table'!M52*PODs*High_Days),0) -> 0 | N39: =IFERROR(IF(N$51=1,'Rates Table'!N52*PODs*High_Days,'Rates Table'!N52*PODs*High_Days),0) -> 0 | O39: =IFERROR(IF(O$51=1,'Rates Table'!O52*PODs*High_Days,'Rates Table'!O52*PODs*High_Days),0) -> 0 | P39: =IFERROR(IF(P$51=1,'Rates Table'!P52*PODs*High_Days,'Rates Table'!P52*PODs*High_Days),0) -> 0 | Q39: =IFERROR(IF(Q$51=1,'Rates Table'!Q52*PODs*High_Days,'Rates Table'!Q52*PODs*High_Days),0) -> 2521.72 | R39: =IFERROR(IF(R$51=1,'Rates Table'!R52*PODs*High_Days,'Rates Table'!R52*PODs*High_Days),0) -> 2521.72 | S39: =IFERROR(IF(S$51=1,'Rates Table'!S52*PODs*High_Days,'Rates Table'!S52*PODs*High_Days),0) -> 2521.72 | T39: =IFERROR(IF(T$51=1,'Rates Table'!T52*PODs*High_Days,'Rates Table'!T52*PODs*High_Days),0) -> 0 | U39: =IFERROR(IF(U$51=1,'Rates Table'!U52*PODs*High_Days,'Rates Table'!U52*PODs*High_Days),0) -> 5408.1188 | V39: =IFERROR(IF(V$51=1,'Rates Table'!V52*PODs*High_Days,'Rates Table'!V52*PODs*High_Days),0) -> 1550.2 | W39: =IFERROR(IF(W$51=1,'Rates Table'!W52*PODs*High_Days,'Rates Table'!W52*PODs*High_Days),0) -> 1550.2 | X39: =IFERROR(IF(X$51=1,'Rates Table'!X52*PODs*High_Days,'Rates Table'!X52*PODs*High_Days),0) -> 1550.2 | Y39: =IFERROR(IF(Y$51=1,'Rates Table'!Y52*PODs*High_Days,'Rates Table'!Y52*PODs*High_Days),0) -> 1550.2 | Z39: =IFERROR(IF(Z$51=1,'Rates Table'!Z52*PODs*High_Days,'Rates Table'!Z52*PODs*High_Days),0) -> 1550.2 | AA39: =IFERROR(IF(AA$51=1,'Rates Table'!AA52*PODs*High_Days,'Rates Table'!AA52*PODs*High_Days),0) -> 1550.2 | AB39: =IFERROR(IF(AB$51=1,'Rates Table'!AB52*PODs*High_Days,'Rates Table'!AB52*PODs*High_Days),0) -> 0 | AC39: =IFERROR(IF(AC$51=1,'Rates Table'!AC52*PODs*High_Days,'Rates Table'!AC52*PODs*High_Days),0) -> 0 | AD39: =IFERROR(IF(AD$51=1,'Rates Table'!AD52*PODs*High_Days,'Rates Table'!AD52*PODs*High_Days),0) -> 0 | AE39: =IFERROR(IF(AE$51=1,'Rates Table'!AE52*PODs*High_Days,'Rates Table'!AE52*PODs*High_Days),0) -> 0 | AF39: =IFERROR(IF(AF$51=1,'Rates Table'!AF52*PODs*High_Days,'Rates Table'!AF52*PODs*High_Days),0) -> 598 | AI39: 2302.76 | AJ39: =IFERROR(IF(AJ$51=1,'Rates Table'!AJ52*PODs*High_Days,'Rates Table'!AJ52*PODs*High_Days),0) -> 2302.76 | AK39: =IFERROR(IF(AK$51=1,'Rates Table'!AK52*PODs*High_Days,'Rates Table'!AK52*PODs*High_Days),0) -> 2302.76 | AL39: =IFERROR(IF(AL$51=1,'Rates Table'!AL52*PODs*High_Days,'Rates Table'!AL52*PODs*High_Days),0) -> 2302.76 | AM39: =IFERROR(IF(AM$51=1,'Rates Table'!AM52*PODs*High_Days,'Rates Table'!AM52*PODs*High_Days),0) -> 0 | AN39: =IFERROR(IF(AN$51=1,'Rates Table'!AN52*PODs*High_Days,'Rates Table'!AN52*PODs*High_Days),0) -> 0 | AO39: =IFERROR(IF(AO$51=1,'Rates Table'!AO52*PODs*High_Days,'Rates Table'!AO52*PODs*High_Days),0) -> 0 | AP39: =IFERROR(IF(AP$51=1,'Rates Table'!AP52*PODs*High_Days,'Rates Table'!AP52*PODs*High_Days),0) -> 0 | AQ39: =IFERROR(IF(AQ$51=1,'Rates Table'!AQ52*PODs*High_Days,'Rates Table'!AQ52*PODs*High_Days),0) -> 0 | AR39: =IFERROR(IF(AR$51=1,'Rates Table'!AR52*PODs*High_Days,'Rates Table'!AR52*PODs*High_Days),0) -> 0 | AS39: =IFERROR(IF(AS$51=1,'Rates Table'!AS52*PODs*High_Days,'Rates Table'!AS52*PODs*High_Days),0) -> 0 | AT39: =IFERROR(IF(AT$51=1,'Rates Table'!AT52*PODs*High_Days,'Rates Table'!AT52*PODs*High_Days),0) -> 0 | AU39: =IFERROR(IF(AU$51=1,'Rates Table'!AU52*PODs*High_Days,'Rates Table'!AU52*PODs*High_Days),0) -> 2901.68 | AV39: =IFERROR(IF(AV$51=1,'Rates Table'!AV52*PODs*High_Days,'Rates Table'!AV52*PODs*High_Days),0) -> 2901.68 | AW39: =IFERROR(IF(AW$51=1,'Rates Table'!AW52*PODs*High_Days,'Rates Table'!AW52*PODs*High_Days),0) -> 2901.68 | AX39: =IFERROR(IF(AX$51=1,'Rates Table'!AX52*PODs*High_Days,'Rates Table'!AX52*PODs*High_Days),0) -> 0 | AY39: =IFERROR(IF(AY$51=1,'Rates Table'!AY52*PODs*High_Days,'Rates Table'!AY52*PODs*High_Days),0) -> 6222.9628 | AZ39: =IFERROR(IF(AZ$51=1,'Rates Table'!AZ52*PODs*High_Days,'Rates Table'!AZ52*PODs*High_Days),0) -> 1783.88 | BA39: =IFERROR(IF(BA$51=1,'Rates Table'!BA52*PODs*High_Days,'Rates Table'!BA52*PODs*High_Days),0) -> 1783.88 | BB39: =IFERROR(IF(BB$51=1,'Rates Table'!BB52*PODs*High_Days,'Rates Table'!BB52*PODs*High_Days),0) -> 1783.88 | BC39: =IFERROR(IF(BC$51=1,'Rates Table'!BC52*PODs*High_Days,'Rates Table'!BC52*PODs*High_Days),0) -> 1783.88 | BD39: =IFERROR(IF(BD$51=1,'Rates Table'!BD52*PODs*High_Days,'Rates Table'!BD52*PODs*High_Days),0) -> 1783.88 | BE39: =IFERROR(IF(BE$51=1,'Rates Table'!BE52*PODs*High_Days,'Rates Table'!BE52*PODs*High_Days),0) -> 1783.88 | BF39: =IFERROR(IF(BF$51=1,'Rates Table'!BF52*PODs*High_Days,'Rates Table'!BF52*PODs*High_Days),0) -> 0 | BG39: =IFERROR(IF(BG$51=1,'Rates Table'!BG52*PODs*High_Days,'Rates Table'!BG52*PODs*High_Days),0) -> 0 | BH39: =IFERROR(IF(BH$51=1,'Rates Table'!BH52*PODs*High_Days,'Rates Table'!BH52*PODs*High_Days),0) -> 0 | BI39: =IFERROR(IF(BI$51=1,'Rates Table'!BI52*PODs*High_Days,'Rates Table'!BI52*PODs*High_Days),0) -> 0 | BJ39: =IFERROR(IF(BJ$51=1,'Rates Table'!BJ52*PODs*High_Days,'Rates Table'!BJ52*PODs*High_Days),0) -> 688.16
B41: Total other charges | E41: =SUM(E33:E39) -> 2001 | F41: 2001 | G41: 2001 | H41: 2001 | I41: 0 | J41: 0 | K41: 0 | L41: 0 | M41: 0 | N41: 0 | O41: 0 | P41: 0 | Q41: 2521.72 | R41: 2521.72 | S41: 2521.72 | T41: 0 | U41: 5408.1188 | V41: 1890.6 | W41: 1890.6 | X41: 1890.6 | Y41: 1890.6 | Z41: 1890.6 | AA41: 1890.6 | AB41: =SUM(AB33:AB39) -> 0 | AC41: 0 | AD41: 0 | AE41: 0 | AF41: 598 | AI41: =SUM(AI33:AI39) -> 2302.76 | AJ41: 2302.76 | AK41: 2302.76 | AL41: 2302.76 | AM41: 0 | AN41: 0 | AO41: 0 | AP41: 0 | AQ41: 0 | AR41: 0 | AS41: 0 | AT41: 0 | AU41: 2901.68 | AV41: 2901.68 | AW41: 2901.68 | AX41: 0 | AY41: 6222.9628 | AZ41: 2175.8 | BA41: 2175.8 | BB41: 2175.8 | BC41: 2175.8 | BD41: 2175.8 | BE41: 2175.8 | BF41: =SUM(BF33:BF39) -> 0 | BG41: 0 | BH41: 0 | BI41: 0 | BJ41: 688.16
B43: Total excl VAT | E43: =E41+E30+E17 -> 4317.56 | F43: 4317.56 | G43: 5903.64 | H43: 8743.68 | I43: 0 | J43: 0 | K43: 0 | L43: 573.16 | M43: 1074.56 | N43: 2219.04 | O43: 350.52 | P43: 0 | Q43: 5558.64 | R43: 7189.8 | S43: 9983.84 | T43: 2417.76 | U43: 5408.1188 | V43: 1890.6 | W43: 1890.6 | X43: 1890.6 | Y43: 1890.6 | Z43: 1890.6 | AA43: 1890.6 | AB43: =AB41+AB30+AB17 -> 0 | AC43: 0 | AD43: 0 | AE43: 0 | AF43: 598 | AI43: =AI41+AI30+AI17 -> 4968 | AJ43: 4968 | AK43: 6793.28 | AL43: 10061.12 | AM43: 0 | AN43: 0 | AO43: 0 | AP43: 659.64 | AQ43: 1236.48 | AR43: 2553 | AS43: 402.96 | AT43: 4186.92 | AU43: 6395.84 | AV43: 8272.64 | AW43: 11488.04 | AX43: 2782.08 | AY43: 6222.9628 | AZ43: 2175.8 | BA43: 2175.8 | BB43: 2175.8 | BC43: 2175.8 | BD43: 2175.8 | BE43: 2175.8 | BF43: =BF41+BF30+BF17 -> 0 | BG43: 0 | BH43: 0 | BI43: 0 | BJ43: 688.16
B44: VAT | D44: ='Bill Comparison'!D56 -> 0.15 | E44: =E43*$D44 -> 647.634 | F44: =F43*$D44 -> 647.634 | G44: 885.546 | H44: 1311.552 | I44: 0 | J44: 0 | K44: 0 | L44: 85.974 | M44: 161.184 | N44: 332.856 | O44: 52.578 | P44: 0 | Q44: 833.796 | R44: 1078.47 | S44: 1497.576 | T44: 362.664 | U44: 811.21782 | V44: 283.59 | W44: 283.59 | X44: 283.59 | Y44: 283.59 | Z44: 283.59 | AA44: 283.59 | AB44: =AB43*$D44 -> 0 | AC44: 0 | AD44: 0 | AE44: 0 | AF44: 89.7 | AI44: =AI43*$D44 -> 745.2 | AJ44: =AJ43*$D44 -> 745.2 | AK44: =AK43*$D44 -> 1018.992 | AL44: =AL43*$D44 -> 1509.168 | AM44: =AM43*$D44 -> 0 | AN44: =AN43*$D44 -> 0 | AO44: =AO43*$D44 -> 0 | AP44: =AP43*$D44 -> 98.946 | AQ44: =AQ43*$D44 -> 185.472 | AR44: =AR43*$D44 -> 382.95 | AS44: =AS43*$D44 -> 60.444 | AT44: =AT43*$D44 -> 628.038 | AU44: =AU43*$D44 -> 959.376 | AV44: =AV43*$D44 -> 1240.896 | AW44: =AW43*$D44 -> 1723.206 | AX44: =AX43*$D44 -> 417.312 | AY44: =AY43*$D44 -> 933.44442 | AZ44: =AZ43*$D44 -> 326.37 | BA44: =BA43*$D44 -> 326.37 | BB44: =BB43*$D44 -> 326.37 | BC44: =BC43*$D44 -> 326.37 | BD44: =BD43*$D44 -> 326.37 | BE44: =BE43*$D44 -> 326.37 | BF44: 0 | BG44: 0 | BH44: 0 | BI44: 0 | BJ44: 103.224
B46: Total account | E46: =SUM(E43:E44) -> 4965.194 | F46: =SUM(F43:F44) -> 4965.194 | G46: 6789.186 | H46: 10055.232 | I46: 0 | J46: 0 | K46: 0 | L46: 659.134 | M46: 1235.744 | N46: 2551.896 | O46: 403.098 | P46: 0 | Q46: 6392.436 | R46: 8268.27 | S46: 11481.416 | T46: 2780.424 | U46: 6219.33662 | V46: 2174.19 | W46: 2174.19 | X46: 2174.19 | Y46: 2174.19 | Z46: 2174.19 | AA46: 2174.19 | AB46: =SUM(AB43:AB44) -> 0 | AC46: 0 | AD46: 0 | AE46: 0 | AF46: 687.7 | AI46: =SUM(AI43:AI44) -> 5713.2 | AJ46: =SUM(AJ43:AJ44) -> 5713.2 | AK46: 7812.272 | AL46: 11570.288 | AM46: 0 | AN46: 0 | AO46: 0 | AP46: 758.586 | AQ46: 1421.952 | AR46: 2935.95 | AS46: 463.404 | AT46: 4814.958 | AU46: 7355.216 | AV46: 9513.536 | AW46: 13211.246 | AX46: 3199.392 | AY46: 7156.40722 | AZ46: 2502.17 | BA46: 2502.17 | BB46: 2502.17 | BC46: 2502.17 | BD46: 2502.17 | BE46: 2502.17 | BF46: =SUM(BF43:BF44) -> 0 | BG46: 0 | BH46: 0 | BI46: 0 | BJ46: 791.384
B48: Average price c/kWh | E48: =E43/High_Total_Energy*100 ->  | AB48: =AB43/High_Total_Energy*100 ->  | AI48: =AI43/High_Total_Energy*100 ->  | BF48: =BF43/High_Total_Energy*100 -> 
B50: Check tables
C51: Table 1 | E51: =INDEX(F51:AE51,0,Selected_Tariff_ID) -> 0 | F51: ='Rates Table'!F63 -> 0 | G51: ='Rates Table'!G63 -> 0 | H51: ='Rates Table'!H63 -> 0 | I51: ='Rates Table'!I63 -> 0 | J51: ='Rates Table'!J63 -> 0 | K51: ='Rates Table'!K63 -> 0 | L51: ='Rates Table'!L63 -> 0 | M51: ='Rates Table'!M63 -> 0 | N51: ='Rates Table'!N63 -> 0 | O51: ='Rates Table'!O63 -> 0 | P51: ='Rates Table'!P63 -> 0 | Q51: ='Rates Table'!Q63 -> 0 | R51: ='Rates Table'!R63 -> 0 | S51: ='Rates Table'!S63 -> 0 | T51: ='Rates Table'!T63 -> 0 | U51: ='Rates Table'!U63 -> 0 | V51: ='Rates Table'!V63 -> 1 | W51: ='Rates Table'!W63 -> 1 | X51: ='Rates Table'!X63 -> 1 | Y51: ='Rates Table'!Y63 -> 1 | Z51: ='Rates Table'!Z63 -> 1 | AA51: ='Rates Table'!AA63 -> 1 | AB51: ='Rates Table'!AB63 -> 0 | AC51: ='Rates Table'!AC63 -> 0 | AD51: ='Rates Table'!AD63 -> 0 | AE51: ='Rates Table'!AE63 -> 0 | AF51: ='Rates Table'!AF63 -> 0 | AI51: =INDEX(AJ51:BI51,0,Selected_Tariff_ID) -> 0 | AJ51: =F51 -> 0 | AK51: 0 | AL51: 0 | AM51: 0 | AN51: 0 | AO51: 0 | AP51: 0 | AQ51: 0 | AR51: 0 | AS51: 0 | AT51: 0 | AU51: 0 | AV51: 0 | AW51: 0 | AX51: 0 | AY51: 0 | AZ51: =V51 -> 1 | BA51: 1 | BB51: 1 | BC51: 1 | BD51: 1 | BE51: 1 | BF51: =AB51 -> 0 | BG51: =AC51 -> 0 | BH51: =AD51 -> 0 | BI51: =AE51 -> 0 | BJ51: =AF51 -> 0
C52: Tariff Type | E52: =Selected_Tariff_Type -> Urban | F52: =INDEX(Full_Tariff_Type,F$7,) -> Urban | G52: Urban | H52: Urban | I52: Urban | J52: Urban | K52: Urban | L52: Urban | M52: Urban | N52: Urban | O52: Urban | P52: Urban | Q52: Rural | R52: Rural | S52: Rural | T52: Rural | U52: Rural | V52: Urban | W52: Urban | X52: Urban | Y52: Rural | Z52: Urban | AA52: Rural | AB52: Rural | AC52: Rural | AD52: Urban | AE52: Urban | AF52: Urban | AI52: =E52 -> Urban | AJ52: Urban | AK52: Urban | AL52: Urban | AM52: Urban | AN52: Urban | AO52: Urban | AP52: Urban | AQ52: Urban | AR52: Urban | AS52: Urban | AT52: Urban | AU52: Rural | AV52: Rural | AW52: Rural | AX52: Rural | AY52: Rural | AZ52: Urban | BA52: Urban | BB52: Urban | BC52: Rural | BD52: Urban | BE52: Rural | BF52: Rural | BG52: Rural | BH52: Urban | BI52: Urban | BJ52: Urban

Sheet Workings Low (hidden)
B4: Calculations for Low Demand by Tariff
B6: Tariffs | E6: =Selected_Base_Tariff -> Businessrate 1 | F6: =INDEX(Full_Tariff_List,F$7,) -> Businessrate 1 | G6: Businessrate 2 | H6: Businessrate 3 | I6: Businessrate 4 | J6: Homelight 20A | K6: Homelight 60A | L6: Homepower 1 | M6: Homepower 2 | N6: Homepower 3 | O6: Homepower 4 | P6: Homepower Bulk | Q6: Landrate 1 | R6: Landrate 2 | S6: Landrate 3 | T6: Landrate 4 | U6: Landrate Dx | V6: Megaflex | W6: Miniflex | X6: Nightsave Large | Y6: Nightsave Rural | Z6: Nightsave Small | AA6: Ruraflex | AB6: Landlight 20A | AC6: Landlight 60A | AD6: Public Lighting 24 Hours | AE6: Public Lighting All Night | AF6: Public Lighting Urban Fixed | AI6: =E6 -> Businessrate 1 | AJ6: Businessrate 1 | AK6: Businessrate 2 | AL6: Businessrate 3 | AM6: Businessrate 4 | AN6: Homelight 20A | AO6: Homelight 60A | AP6: Homepower 1 | AQ6: Homepower 2 | AR6: Homepower 3 | AS6: Homepower 4 | AT6: Homepower Bulk | AU6: Landrate 1 | AV6: Landrate 2 | AW6: Landrate 3 | AX6: Landrate 4 | AY6: Landrate Dx | AZ6: Megaflex | BA6: Miniflex | BB6: Nightsave Large | BC6: Nightsave Rural | BD6: Nightsave Small | BE6: Ruraflex | BF6: =AB6 -> Landlight 20A | BG6: Landlight 60A | BH6: Public Lighting 24 Hours | BI6: Public Lighting All Night | BJ6: Public Lighting Urban Fixed
F7: 1 | G7: =F7+1 -> 2 | H7: =G7+1 -> 3 | I7: 4 | J7: 5 | K7: 6 | L7: 7 | M7: 8 | N7: 9 | O7: 10 | P7: 11 | Q7: 12 | R7: 13 | S7: 14 | T7: 15 | U7: 16 | V7: 17 | W7: 18 | X7: 19 | Y7: 20 | Z7: 21 | AA7: 22 | AB7: =AA7+1 -> 23 | AC7: =AB7+1 -> 24 | AD7: =AC7+1 -> 25 | AE7: =AD7+1 -> 26 | AF7: =AE7+1 -> 27
B8: Network charges | D8: Units | E8: =Current_Period&" Rates" -> 2020/2021 Rates | F8: =E8 -> 2020/2021 Rates | G8: =F8 -> 2020/2021 Rates | H8: 2020/2021 Rates | I8: 2020/2021 Rates | J8: 2020/2021 Rates | K8: 2020/2021 Rates | L8: 2020/2021 Rates | M8: 2020/2021 Rates | N8: 2020/2021 Rates | O8: 2020/2021 Rates | P8: 2020/2021 Rates | Q8: 2020/2021 Rates | R8: 2020/2021 Rates | S8: 2020/2021 Rates | T8: 2020/2021 Rates | U8: 2020/2021 Rates | V8: 2020/2021 Rates | W8: 2020/2021 Rates | X8: 2020/2021 Rates | Y8: 2020/2021 Rates | Z8: 2020/2021 Rates | AA8: 2020/2021 Rates | AB8: =AA8 -> 2020/2021 Rates | AC8: =AB8 -> 2020/2021 Rates | AD8: =AC8 -> 2020/2021 Rates | AE8: =AD8 -> 2020/2021 Rates | AF8: =AE8 -> 2020/2021 Rates | AI8: =New_Period&" Rates" -> 2021/2022 Rates | AJ8: =AI8 -> 2021/2022 Rates | AK8: =AJ8 -> 2021/2022 Rates | AL8: 2021/2022 Rates | AM8: 2021/2022 Rates | AN8: 2021/2022 Rates | AO8: 2021/2022 Rates | AP8: 2021/2022 Rates | AQ8: 2021/2022 Rates | AR8: 2021/2022 Rates | AS8: 2021/2022 Rates | AT8: 2021/2022 Rates | AU8: 2021/2022 Rates | AV8: 2021/2022 Rates | AW8: 2021/2022 Rates | AX8: 2021/2022 Rates | AY8: 2021/2022 Rates | AZ8: 2021/2022 Rates | BA8: 2021/2022 Rates | BB8: 2021/2022 Rates | BC8: 2021/2022 Rates | BD8: 2021/2022 Rates | BE8: 2021/2022 Rates | BF8: =BE8 -> 2021/2022 Rates | BG8: =BF8 -> 2021/2022 Rates | BH8: =BG8 -> 2021/2022 Rates | BI8: =BH8 -> 2021/2022 Rates | BJ8: =BI8 -> 2021/2022 Rates
C10: Transmission network charge | D10: R/kVA | E10: =INDEX(F10:AE10,0,Selected_Tariff_ID) -> 0 | F10: =IFERROR('Rates Table'!F10*Low_Utilised_Capacity,0) -> 0 | G10: =IFERROR('Rates Table'!G10*Low_Utilised_Capacity,0) -> 0 | H10: =IFERROR('Rates Table'!H10*Low_Utilised_Capacity,0) -> 0 | I10: =IFERROR('Rates Table'!I10*Low_Utilised_Capacity,0) -> 0 | J10: =IFERROR('Rates Table'!J10*Low_Utilised_Capacity,0) -> 0 | K10: =IFERROR('Rates Table'!K10*Low_Utilised_Capacity,0) -> 0 | L10: =IFERROR('Rates Table'!L10*Low_Utilised_Capacity,0) -> 0 | M10: =IFERROR('Rates Table'!M10*Low_Utilised_Capacity,0) -> 0 | N10: =IFERROR('Rates Table'!N10*Low_Utilised_Capacity,0) -> 0 | O10: =IFERROR('Rates Table'!O10*Low_Utilised_Capacity,0) -> 0 | P10: =IFERROR('Rates Table'!P10*Low_Utilised_Capacity,0) -> 0 | Q10: =IFERROR('Rates Table'!Q10*Low_Utilised_Capacity,0) -> 0 | R10: =IFERROR('Rates Table'!R10*Low_Utilised_Capacity,0) -> 0 | S10: =IFERROR('Rates Table'!S10*Low_Utilised_Capacity,0) -> 0 | T10: =IFERROR('Rates Table'!T10*Low_Utilised_Capacity,0) -> 0 | U10: =IFERROR('Rates Table'!U10*Low_Utilised_Capacity,0) -> 0 | V10: =IFERROR('Rates Table'!V10*Low_Utilised_Capacity,0) -> 0 | W10: =IFERROR('Rates Table'!W10*Low_Utilised_Capacity,0) -> 0 | X10: =IFERROR('Rates Table'!X10*Low_Utilised_Capacity,0) -> 0 | Y10: =IFERROR('Rates Table'!Y10*Low_Utilised_Capacity,0) -> 0 | Z10: =IFERROR('Rates Table'!Z10*Low_Utilised_Capacity,0) -> 0 | AA10: =IFERROR('Rates Table'!AA10*Low_Utilised_Capacity,0) -> 0 | AB10: =IFERROR('Rates Table'!AB10*Low_Utilised_Capacity,0) -> 0 | AC10: =IFERROR('Rates Table'!AC10*Low_Utilised_Capacity,0) -> 0 | AD10: =IFERROR('Rates Table'!AD10*Low_Utilised_Capacity,0) -> 0 | AE10: =IFERROR('Rates Table'!AE10*Low_Utilised_Capacity,0) -> 0 | AF10: =IFERROR('Rates Table'!AF10*Low_Utilised_Capacity,0) -> 0 | AI10: =INDEX(AJ10:BI10,0,Selected_Tariff_ID) -> 0 | AJ10: =IFERROR('Rates Table'!AJ10*Low_Utilised_Capacity,0) -> 0 | AK10: =IFERROR('Rates Table'!AK10*Low_Utilised_Capacity,0) -> 0 | AL10: =IFERROR('Rates Table'!AL10*Low_Utilised_Capacity,0) -> 0 | AM10: =IFERROR('Rates Table'!AM10*Low_Utilised_Capacity,0) -> 0 | AN10: =IFERROR('Rates Table'!AN10*Low_Utilised_Capacity,0) -> 0 | AO10: =IFERROR('Rates Table'!AO10*Low_Utilised_Capacity,0) -> 0 | AP10: =IFERROR('Rates Table'!AP10*Low_Utilised_Capacity,0) -> 0 | AQ10: =IFERROR('Rates Table'!AQ10*Low_Utilised_Capacity,0) -> 0 | AR10: =IFERROR('Rates Table'!AR10*Low_Utilised_Capacity,0) -> 0 | AS10: =IFERROR('Rates Table'!AS10*Low_Utilised_Capacity,0) -> 0 | AT10: =IFERROR('Rates Table'!AT10*Low_Utilised_Capacity,0) -> 0 | AU10: =IFERROR('Rates Table'!AU10*Low_Utilised_Capacity,0) -> 0 | AV10: =IFERROR('Rates Table'!AV10*Low_Utilised_Capacity,0) -> 0 | AW10: =IFERROR('Rates Table'!AW10*Low_Utilised_Capacity,0) -> 0 | AX10: =IFERROR('Rates Table'!AX10*Low_Utilised_Capacity,0) -> 0 | AY10: =IFERROR('Rates Table'!AY10*Low_Utilised_Capacity,0) -> 0 | AZ10: =IFERROR('Rates Table'!AZ10*Low_Utilised_Capacity,0) -> 0 | BA10: =IFERROR('Rates Table'!BA10*Low_Utilised_Capacity,0) -> 0 | BB10: =IFERROR('Rates Table'!BB10*Low_Utilised_Capacity,0) -> 0 | BC10: =IFERROR('Rates Table'!BC10*Low_Utilised_Capacity,0) -> 0 | BD10: =IFERROR('Rates Table'!BD10*Low_Utilised_Capacity,0) -> 0 | BE10: =IFERROR('Rates Table'!BE10*Low_Utilised_Capacity,0) -> 0 | BF10: =IFERROR('Rates Table'!BF10*Low_Utilised_Capacity,0) -> 0 | BG10: =IFERROR('Rates Table'!BG10*Low_Utilised_Capacity,0) -> 0 | BH10: =IFERROR('Rates Table'!BH10*Low_Utilised_Capacity,0) -> 0 | BI10: =IFERROR('Rates Table'!BI10*Low_Utilised_Capacity,0) -> 0 | BJ10: =IFERROR('Rates Table'!BJ10*Low_Utilised_Capacity,0) -> 0
C11: Distribution network capacity charge | D11: R/kVA | E11: 0 | F11: =IFERROR('Rates Table'!F11*Low_Utilised_Capacity,0) -> 0 | G11: =IFERROR('Rates Table'!G11*Low_Utilised_Capacity,0) -> 0 | H11: =IFERROR('Rates Table'!H11*Low_Utilised_Capacity,0) -> 0 | I11: =IFERROR('Rates Table'!I11*Low_Utilised_Capacity,0) -> 0 | J11: =IFERROR('Rates Table'!J11*Low_Utilised_Capacity,0) -> 0 | K11: =IFERROR('Rates Table'!K11*Low_Utilised_Capacity,0) -> 0 | L11: =IFERROR('Rates Table'!L11*Low_Utilised_Capacity,0) -> 0 | M11: =IFERROR('Rates Table'!M11*Low_Utilised_Capacity,0) -> 0 | N11: =IFERROR('Rates Table'!N11*Low_Utilised_Capacity,0) -> 0 | O11: =IFERROR('Rates Table'!O11*Low_Utilised_Capacity,0) -> 0 | P11: =IFERROR('Rates Table'!P11*Low_Utilised_Capacity,0) -> 0 | Q11: =IFERROR('Rates Table'!Q11*Low_Utilised_Capacity,0) -> 0 | R11: =IFERROR('Rates Table'!R11*Low_Utilised_Capacity,0) -> 0 | S11: =IFERROR('Rates Table'!S11*Low_Utilised_Capacity,0) -> 0 | T11: =IFERROR('Rates Table'!T11*Low_Utilised_Capacity,0) -> 0 | U11: =IFERROR('Rates Table'!U11*Low_Utilised_Capacity,0) -> 0 | V11: =IFERROR('Rates Table'!V11*Low_Utilised_Capacity,0) -> 0 | W11: =IFERROR('Rates Table'!W11*Low_Utilised_Capacity,0) -> 0 | X11: =IFERROR('Rates Table'!X11*Low_Utilised_Capacity,0) -> 0 | Y11: =IFERROR('Rates Table'!Y11*Low_Utilised_Capacity,0) -> 0 | Z11: =IFERROR('Rates Table'!Z11*Low_Utilised_Capacity,0) -> 0 | AA11: =IFERROR('Rates Table'!AA11*Low_Utilised_Capacity,0) -> 0 | AB11: =IFERROR('Rates Table'!AB11*Low_Utilised_Capacity,0) -> 0 | AC11: =IFERROR('Rates Table'!AC11*Low_Utilised_Capacity,0) -> 0 | AD11: =IFERROR('Rates Table'!AD11*Low_Utilised_Capacity,0) -> 0 | AE11: =IFERROR('Rates Table'!AE11*Low_Utilised_Capacity,0) -> 0 | AF11: =IFERROR('Rates Table'!AF11*Low_Utilised_Capacity,0) -> 0 | AI11: 0 | AJ11: =IFERROR('Rates Table'!AJ11*Low_Utilised_Capacity,0) -> 0 | AK11: =IFERROR('Rates Table'!AK11*Low_Utilised_Capacity,0) -> 0 | AL11: =IFERROR('Rates Table'!AL11*Low_Utilised_Capacity,0) -> 0 | AM11: =IFERROR('Rates Table'!AM11*Low_Utilised_Capacity,0) -> 0 | AN11: =IFERROR('Rates Table'!AN11*Low_Utilised_Capacity,0) -> 0 | AO11: =IFERROR('Rates Table'!AO11*Low_Utilised_Capacity,0) -> 0 | AP11: =IFERROR('Rates Table'!AP11*Low_Utilised_Capacity,0) -> 0 | AQ11: =IFERROR('Rates Table'!AQ11*Low_Utilised_Capacity,0) -> 0 | AR11: =IFERROR('Rates Table'!AR11*Low_Utilised_Capacity,0) -> 0 | AS11: =IFERROR('Rates Table'!AS11*Low_Utilised_Capacity,0) -> 0 | AT11: =IFERROR('Rates Table'!AT11*Low_Utilised_Capacity,0) -> 0 | AU11: =IFERROR('Rates Table'!AU11*Low_Utilised_Capacity,0) -> 0 | AV11: =IFERROR('Rates Table'!AV11*Low_Utilised_Capacity,0) -> 0 | AW11: =IFERROR('Rates Table'!AW11*Low_Utilised_Capacity,0) -> 0 | AX11: =IFERROR('Rates Table'!AX11*Low_Utilised_Capacity,0) -> 0 | AY11: =IFERROR('Rates Table'!AY11*Low_Utilised_Capacity,0) -> 0 | AZ11: =IFERROR('Rates Table'!AZ11*Low_Utilised_Capacity,0) -> 0 | BA11: =IFERROR('Rates Table'!BA11*Low_Utilised_Capacity,0) -> 0 | BB11: =IFERROR('Rates Table'!BB11*Low_Utilised_Capacity,0) -> 0 | BC11: =IFERROR('Rates Table'!BC11*Low_Utilised_Capacity,0) -> 0 | BD11: =IFERROR('Rates Table'!BD11*Low_Utilised_Capacity,0) -> 0 | BE11: =IFERROR('Rates Table'!BE11*Low_Utilised_Capacity,0) -> 0 | BF11: =IFERROR('Rates Table'!BF11*Low_Utilised_Capacity,0) -> 0 | BG11: =IFERROR('Rates Table'!BG11*Low_Utilised_Capacity,0) -> 0 | BH11: =IFERROR('Rates Table'!BH11*Low_Utilised_Capacity,0) -> 0 | BI11: =IFERROR('Rates Table'!BI11*Low_Utilised_Capacity,0) -> 0 | BJ11: =IFERROR('Rates Table'!BJ11*Low_Utilised_Capacity,0) -> 0
C12: Distribution network demand charge | D12: R/kVA | E12: 0 | F12: =IFERROR('Rates Table'!F12*Low_Demand,0) -> 0 | G12: =IFERROR('Rates Table'!G12*Low_Demand,0) -> 0 | H12: =IFERROR('Rates Table'!H12*Low_Demand,0) -> 0 | I12: =IFERROR('Rates Table'!I12*Low_Demand,0) -> 0 | J12: =IFERROR('Rates Table'!J12*Low_Demand,0) -> 0 | K12: =IFERROR('Rates Table'!K12*Low_Demand,0) -> 0 | L12: =IFERROR('Rates Table'!L12*Low_Demand,0) -> 0 | M12: =IFERROR('Rates Table'!M12*Low_Demand,0) -> 0 | N12: =IFERROR('Rates Table'!N12*Low_Demand,0) -> 0 | O12: =IFERROR('Rates Table'!O12*Low_Demand,0) -> 0 | P12: =IFERROR('Rates Table'!P12*Low_Demand,0) -> 0 | Q12: =IFERROR('Rates Table'!Q12*Low_Demand,0) -> 0 | R12: =IFERROR('Rates Table'!R12*Low_Demand,0) -> 0 | S12: =IFERROR('Rates Table'!S12*Low_Demand,0) -> 0 | T12: =IFERROR('Rates Table'!T12*Low_Demand,0) -> 0 | U12: =IFERROR('Rates Table'!U12*Low_Demand,0) -> 0 | V12: =IFERROR('Rates Table'!V12*Low_Demand,0) -> 0 | W12: =IFERROR('Rates Table'!W12*Low_Demand,0) -> 0 | X12: =IFERROR('Rates Table'!X12*Low_Demand,0) -> 0 | Y12: =IFERROR('Rates Table'!Y12*Low_Demand,0) -> 0 | Z12: =IFERROR('Rates Table'!Z12*Low_Demand,0) -> 0 | AA12: =IFERROR('Rates Table'!AA12*Low_Demand,0) -> 0 | AB12: =IFERROR('Rates Table'!AB12*Low_Demand,0) -> 0 | AC12: =IFERROR('Rates Table'!AC12*Low_Demand,0) -> 0 | AD12: =IFERROR('Rates Table'!AD12*Low_Demand,0) -> 0 | AE12: =IFERROR('Rates Table'!AE12*Low_Demand,0) -> 0 | AF12: =IFERROR('Rates Table'!AF12*Low_Demand,0) -> 0 | AI12: 0 | AJ12: =IFERROR('Rates Table'!AJ12*Low_Demand,0) -> 0 | AK12: =IFERROR('Rates Table'!AK12*Low_Demand,0) -> 0 | AL12: =IFERROR('Rates Table'!AL12*Low_Demand,0) -> 0 | AM12: =IFERROR('Rates Table'!AM12*Low_Demand,0) -> 0 | AN12: =IFERROR('Rates Table'!AN12*Low_Demand,0) -> 0 | AO12: =IFERROR('Rates Table'!AO12*Low_Demand,0) -> 0 | AP12: =IFERROR('Rates Table'!AP12*Low_Demand,0) -> 0 | AQ12: =IFERROR('Rates Table'!AQ12*Low_Demand,0) -> 0 | AR12: =IFERROR('Rates Table'!AR12*Low_Demand,0) -> 0 | AS12: =IFERROR('Rates Table'!AS12*Low_Demand,0) -> 0 | AT12: =IFERROR('Rates Table'!AT12*Low_Demand,0) -> 0 | AU12: =IFERROR('Rates Table'!AU12*Low_Demand,0) -> 0 | AV12: =IFERROR('Rates Table'!AV12*Low_Demand,0) -> 0 | AW12: =IFERROR('Rates Table'!AW12*Low_Demand,0) -> 0 | AX12: =IFERROR('Rates Table'!AX12*Low_Demand,0) -> 0 | AY12: =IFERROR('Rates Table'!AY12*Low_Demand,0) -> 0 | AZ12: =IFERROR('Rates Table'!AZ12*Low_Demand,0) -> 0 | BA12: =IFERROR('Rates Table'!BA12*Low_Demand,0) -> 0 | BB12: =IFERROR('Rates Table'!BB12*Low_Demand,0) -> 0 | BC12: =IFERROR('Rates Table'!BC12*Low_Demand,0) -> 0 | BD12: =IFERROR('Rates Table'!BD12*Low_Demand,0) -> 0 | BE12: =IFERROR('Rates Table'!BE12*Low_Demand,0) -> 0 | BF12: =IFERROR('Rates Table'!BF12*Low_Demand,0) -> 0 | BG12: =IFERROR('Rates Table'!BG12*Low_Demand,0) -> 0 | BH12: =IFERROR('Rates Table'!BH12*Low_Demand,0) -> 0 | BI12: =IFERROR('Rates Table'!BI12*Low_Demand,0) -> 0 | BJ12: =IFERROR('Rates Table'!BJ12*Low_Demand,0) -> 0
C13: Distribution network demand charge | D13: c/kWh | E13: 0 | F13: =IFERROR('Rates Table'!F13*IF(F$6="Miniflex",(Low_Peak+Low_Standard),Low_Total_Energy),0)/100 -> 0 | G13: =IFERROR('Rates Table'!G13*IF(G$6="Miniflex",(Low_Peak+Low_Standard),Low_Total_Energy),0)/100 -> 0 | H13: =IFERROR('Rates Table'!H13*IF(H$6="Miniflex",(Low_Peak+Low_Standard),Low_Total_Energy),0)/100 -> 0 | I13: =IFERROR('Rates Table'!I13*IF(I$6="Miniflex",(Low_Peak+Low_Standard),Low_Total_Energy),0)/100 -> 0 | J13: =IFERROR('Rates Table'!J13*IF(J$6="Miniflex",(Low_Peak+Low_Standard),Low_Total_Energy),0)/100 -> 0 | K13: =IFERROR('Rates Table'!K13*IF(K$6="Miniflex",(Low_Peak+Low_Standard),Low_Total_Energy),0)/100 -> 0 | L13: =IFERROR('Rates Table'!L13*IF(L$6="Miniflex",(Low_Peak+Low_Standard),Low_Total_Energy),0)/100 -> 0 | M13: =IFERROR('Rates Table'!M13*IF(M$6="Miniflex",(Low_Peak+Low_Standard),Low_Total_Energy),0)/100 -> 0 | N13: =IFERROR('Rates Table'!N13*IF(N$6="Miniflex",(Low_Peak+Low_Standard),Low_Total_Energy),0)/100 -> 0 | O13: =IFERROR('Rates Table'!O13*IF(O$6="Miniflex",(Low_Peak+Low_Standard),Low_Total_Energy),0)/100 -> 0 | P13: =IFERROR('Rates Table'!P13*IF(P$6="Miniflex",(Low_Peak+Low_Standard),Low_Total_Energy),0)/100 -> 0 | Q13: =IFERROR('Rates Table'!Q13*IF(Q$6="Miniflex",(Low_Peak+Low_Standard),Low_Total_Energy),0)/100 -> 0 | R13: =IFERROR('Rates Table'!R13*IF(R$6="Miniflex",(Low_Peak+Low_Standard),Low_Total_Energy),0)/100 -> 0 | S13: =IFERROR('Rates Table'!S13*IF(S$6="Miniflex",(Low_Peak+Low_Standard),Low_Total_Energy),0)/100 -> 0 | T13: =IFERROR('Rates Table'!T13*IF(T$6="Miniflex",(Low_Peak+Low_Standard),Low_Total_Energy),0)/100 -> 0 | U13: =IFERROR('Rates Table'!U13*IF(U$6="Miniflex",(Low_Peak+Low_Standard),Low_Total_Energy),0)/100 -> 0 | V13: =IFERROR('Rates Table'!V13*IF(V$6="Miniflex",(Low_Peak+Low_Standard),Low_Total_Energy),0)/100 -> 0 | W13: =IFERROR('Rates Table'!W13*IF(W$6="Miniflex",(Low_Peak+Low_Standard),Low_Total_Energy),0)/100 -> 0 | X13: =IFERROR('Rates Table'!X13*IF(X$6="Miniflex",(Low_Peak+Low_Standard),Low_Total_Energy),0)/100 -> 0 | Y13: =IFERROR('Rates Table'!Y13*IF(Y$6="Miniflex",(Low_Peak+Low_Standard),Low_Total_Energy),0)/100 -> 0 | Z13: =IFERROR('Rates Table'!Z13*IF(Z$6="Miniflex",(Low_Peak+Low_Standard),Low_Total_Energy),0)/100 -> 0 | AA13: =IFERROR('Rates Table'!AA13*IF(AA$6="Miniflex",(Low_Peak+Low_Standard),Low_Total_Energy),0)/100 -> 0 | AB13: =IFERROR('Rates Table'!AB13*IF(AB$6="Miniflex",(Low_Peak+Low_Standard),Low_Total_Energy),0)/100 -> 0 | AC13: =IFERROR('Rates Table'!AC13*IF(AC$6="Miniflex",(Low_Peak+Low_Standard),Low_Total_Energy),0)/100 -> 0 | AD13: =IFERROR('Rates Table'!AD13*IF(AD$6="Miniflex",(Low_Peak+Low_Standard),Low_Total_Energy),0)/100 -> 0 | AE13: =IFERROR('Rates Table'!AE13*IF(AE$6="Miniflex",(Low_Peak+Low_Standard),Low_Total_Energy),0)/100 -> 0 | AF13: =IFERROR('Rates Table'!AF13*IF(AF$6="Miniflex",(Low_Peak+Low_Standard),Low_Total_Energy),0)/100 -> 0 | AI13: 0 | AJ13: =IFERROR('Rates Table'!AJ13*IF(AJ$6="Miniflex",(Low_Peak+Low_Standard),Low_Total_Energy),0)/100 -> 0 | AK13: =IFERROR('Rates Table'!AK13*IF(AK$6="Miniflex",(Low_Peak+Low_Standard),Low_Total_Energy),0)/100 -> 0 | AL13: =IFERROR('Rates Table'!AL13*IF(AL$6="Miniflex",(Low_Peak+Low_Standard),Low_Total_Energy),0)/100 -> 0 | AM13: =IFERROR('Rates Table'!AM13*IF(AM$6="Miniflex",(Low_Peak+Low_Standard),Low_Total_Energy),0)/100 -> 0 | AN13: =IFERROR('Rates Table'!AN13*IF(AN$6="Miniflex",(Low_Peak+Low_Standard),Low_Total_Energy),0)/100 -> 0 | AO13: =IFERROR('Rates Table'!AO13*IF(AO$6="Miniflex",(Low_Peak+Low_Standard),Low_Total_Energy),0)/100 -> 0 | AP13: =IFERROR('Rates Table'!AP13*IF(AP$6="Miniflex",(Low_Peak+Low_Standard),Low_Total_Energy),0)/100 -> 0 | AQ13: =IFERROR('Rates Table'!AQ13*IF(AQ$6="Miniflex",(Low_Peak+Low_Standard),Low_Total_Energy),0)/100 -> 0 | AR13: =IFERROR('Rates Table'!AR13*IF(AR$6="Miniflex",(Low_Peak+Low_Standard),Low_Total_Energy),0)/100 -> 0 | AS13: =IFERROR('Rates Table'!AS13*IF(AS$6="Miniflex",(Low_Peak+Low_Standard),Low_Total_Energy),0)/100 -> 0 | AT13: =IFERROR('Rates Table'!AT13*IF(AT$6="Miniflex",(Low_Peak+Low_Standard),Low_Total_Energy),0)/100 -> 0 | AU13: =IFERROR('Rates Table'!AU13*IF(AU$6="Miniflex",(Low_Peak+Low_Standard),Low_Total_Energy),0)/100 -> 0 | AV13: =IFERROR('Rates Table'!AV13*IF(AV$6="Miniflex",(Low_Peak+Low_Standard),Low_Total_Energy),0)/100 -> 0 | AW13: =IFERROR('Rates Table'!AW13*IF(AW$6="Miniflex",(Low_Peak+Low_Standard),Low_Total_Energy),0)/100 -> 0 | AX13: =IFERROR('Rates Table'!AX13*IF(AX$6="Miniflex",(Low_Peak+Low_Standard),Low_Total_Energy),0)/100 -> 0 | AY13: =IFERROR('Rates Table'!AY13*IF(AY$6="Miniflex",(Low_Peak+Low_Standard),Low_Total_Energy),0)/100 -> 0 | AZ13: =IFERROR('Rates Table'!AZ13*IF(AZ$6="Miniflex",(Low_Peak+Low_Standard),Low_Total_Energy),0)/100 -> 0 | BA13: =IFERROR('Rates Table'!BA13*IF(BA$6="Miniflex",(Low_Peak+Low_Standard),Low_Total_Energy),0)/100 -> 0 | BB13: =IFERROR('Rates Table'!BB13*IF(BB$6="Miniflex",(Low_Peak+Low_Standard),Low_Total_Energy),0)/100 -> 0 | BC13: =IFERROR('Rates Table'!BC13*IF(BC$6="Miniflex",(Low_Peak+Low_Standard),Low_Total_Energy),0)/100 -> 0 | BD13: =IFERROR('Rates Table'!BD13*IF(BD$6="Miniflex",(Low_Peak+Low_Standard),Low_Total_Energy),0)/100 -> 0 | BE13: =IFERROR('Rates Table'!BE13*IF(BE$6="Miniflex",(Low_Peak+Low_Standard),Low_Total_Energy),0)/100 -> 0 | BF13: =IFERROR('Rates Table'!BF13*IF(BF$6="Miniflex",(Low_Peak+Low_Standard),Low_Total_Energy),0)/100 -> 0 | BG13: =IFERROR('Rates Table'!BG13*IF(BG$6="Miniflex",(Low_Peak+Low_Standard),Low_Total_Energy),0)/100 -> 0 | BH13: =IFERROR('Rates Table'!BH13*IF(BH$6="Miniflex",(Low_Peak+Low_Standard),Low_Total_Energy),0)/100 -> 0 | BI13: =IFERROR('Rates Table'!BI13*IF(BI$6="Miniflex",(Low_Peak+Low_Standard),Low_Total_Energy),0)/100 -> 0 | BJ13: =IFERROR('Rates Table'!BJ13*IF(BJ$6="Miniflex",(Low_Peak+Low_Standard),Low_Total_Energy),0)/100 -> 0
C14: LV Subsidy Charge | D14: R/kVA | E14: 0 | F14: =IFERROR('Rates Table'!F14*Low_Utilised_Capacity,0) -> 0 | G14: =IFERROR('Rates Table'!G14*Low_Utilised_Capacity,0) -> 0 | H14: =IFERROR('Rates Table'!H14*Low_Utilised_Capacity,0) -> 0 | I14: =IFERROR('Rates Table'!I14*Low_Utilised_Capacity,0) -> 0 | J14: =IFERROR('Rates Table'!J14*Low_Utilised_Capacity,0) -> 0 | K14: =IFERROR('Rates Table'!K14*Low_Utilised_Capacity,0) -> 0 | L14: =IFERROR('Rates Table'!L14*Low_Utilised_Capacity,0) -> 0 | M14: =IFERROR('Rates Table'!M14*Low_Utilised_Capacity,0) -> 0 | N14: =IFERROR('Rates Table'!N14*Low_Utilised_Capacity,0) -> 0 | O14: =IFERROR('Rates Table'!O14*Low_Utilised_Capacity,0) -> 0 | P14: =IFERROR('Rates Table'!P14*Low_Utilised_Capacity,0) -> 0 | Q14: =IFERROR('Rates Table'!Q14*Low_Utilised_Capacity,0) -> 0 | R14: =IFERROR('Rates Table'!R14*Low_Utilised_Capacity,0) -> 0 | S14: =IFERROR('Rates Table'!S14*Low_Utilised_Capacity,0) -> 0 | T14: =IFERROR('Rates Table'!T14*Low_Utilised_Capacity,0) -> 0 | U14: =IFERROR('Rates Table'!U14*Low_Utilised_Capacity,0) -> 0 | V14: =IFERROR('Rates Table'!V14*Low_Utilised_Capacity,0) -> 0 | W14: =IFERROR('Rates Table'!W14*Low_Utilised_Capacity,0) -> 0 | X14: =IFERROR('Rates Table'!X14*Low_Utilised_Capacity,0) -> 0 | Y14: =IFERROR('Rates Table'!Y14*Low_Utilised_Capacity,0) -> 0 | Z14: =IFERROR('Rates Table'!Z14*Low_Utilised_Capacity,0) -> 0 | AA14: =IFERROR('Rates Table'!AA14*Low_Utilised_Capacity,0) -> 0 | AB14: =IFERROR('Rates Table'!AB14*Low_Utilised_Capacity,0) -> 0 | AC14: =IFERROR('Rates Table'!AC14*Low_Utilised_Capacity,0) -> 0 | AD14: =IFERROR('Rates Table'!AD14*Low_Utilised_Capacity,0) -> 0 | AE14: =IFERROR('Rates Table'!AE14*Low_Utilised_Capacity,0) -> 0 | AF14: =IFERROR('Rates Table'!AF14*Low_Utilised_Capacity,0) -> 0 | AI14: 0 | AJ14: =IFERROR('Rates Table'!AJ14*Low_Utilised_Capacity,0) -> 0 | AK14: =IFERROR('Rates Table'!AK14*Low_Utilised_Capacity,0) -> 0 | AL14: =IFERROR('Rates Table'!AL14*Low_Utilised_Capacity,0) -> 0 | AM14: =IFERROR('Rates Table'!AM14*Low_Utilised_Capacity,0) -> 0 | AN14: =IFERROR('Rates Table'!AN14*Low_Utilised_Capacity,0) -> 0 | AO14: =IFERROR('Rates Table'!AO14*Low_Utilised_Capacity,0) -> 0 | AP14: =IFERROR('Rates Table'!AP14*Low_Utilised_Capacity,0) -> 0 | AQ14: =IFERROR('Rates Table'!AQ14*Low_Utilised_Capacity,0) -> 0 | AR14: =IFERROR('Rates Table'!AR14*Low_Utilised_Capacity,0) -> 0 | AS14: =IFERROR('Rates Table'!AS14*Low_Utilised_Capacity,0) -> 0 | AT14: =IFERROR('Rates Table'!AT14*Low_Utilised_Capacity,0) -> 0 | AU14: =IFERROR('Rates Table'!AU14*Low_Utilised_Capacity,0) -> 0 | AV14: =IFERROR('Rates Table'!AV14*Low_Utilised_Capacity,0) -> 0 | AW14: =IFERROR('Rates Table'!AW14*Low_Utilised_Capacity,0) -> 0 | AX14: =IFERROR('Rates Table'!AX14*Low_Utilised_Capacity,0) -> 0 | AY14: =IFERROR('Rates Table'!AY14*Low_Utilised_Capacity,0) -> 0 | AZ14: =IFERROR('Rates Table'!AZ14*Low_Utilised_Capacity,0) -> 0 | BA14: =IFERROR('Rates Table'!BA14*Low_Utilised_Capacity,0) -> 0 | BB14: =IFERROR('Rates Table'!BB14*Low_Utilised_Capacity,0) -> 0 | BC14: =IFERROR('Rates Table'!BC14*Low_Utilised_Capacity,0) -> 0 | BD14: =IFERROR('Rates Table'!BD14*Low_Utilised_Capacity,0) -> 0 | BE14: =IFERROR('Rates Table'!BE14*Low_Utilised_Capacity,0) -> 0 | BF14: =IFERROR('Rates Table'!BF14*Low_Utilised_Capacity,0) -> 0 | BG14: =IFERROR('Rates Table'!BG14*Low_Utilised_Capacity,0) -> 0 | BH14: =IFERROR('Rates Table'!BH14*Low_Utilised_Capacity,0) -> 0 | BI14: =IFERROR('Rates Table'!BI14*Low_Utilised_Capacity,0) -> 0 | BJ14: =IFERROR('Rates Table'!BJ14*Low_Utilised_Capacity,0) -> 0
C15: Network capacity charge | D15: =IF(Table_1=1,"R/kVA","R/day") -> R/day | E15: 6874.14 | F15: =IFERROR(IF(F51=1,'Rates Table'!F15*Low_Utilised_Capacity,'Rates Table'!F15*PODs*Low_Days),0) -> 6874.14 | G15: =IFERROR(IF(G51=1,'Rates Table'!G15*Low_Utilised_Capacity,'Rates Table'!G15*PODs*Low_Days),0) -> 11580.66 | H15: =IFERROR(IF(H51=1,'Rates Table'!H15*Low_Utilised_Capacity,'Rates Table'!H15*PODs*Low_Days),0) -> 20008.17 | I15: =IFERROR(IF(I51=1,'Rates Table'!I15*Low_Utilised_Capacity,'Rates Table'!I15*PODs*Low_Days),0) -> 0 | J15: =IFERROR(IF(J51=1,'Rates Table'!J15*Low_Utilised_Capacity,'Rates Table'!J15*PODs*Low_Days),0) -> 0 | K15: =IFERROR(IF(K51=1,'Rates Table'!K15*Low_Utilised_Capacity,'Rates Table'!K15*PODs*Low_Days),0) -> 0 | L15: =IFERROR(IF(L51=1,'Rates Table'!L15*Low_Utilised_Capacity,'Rates Table'!L15*PODs*Low_Days),0) -> 1700.79 | M15: =IFERROR(IF(M51=1,'Rates Table'!M15*Low_Utilised_Capacity,'Rates Table'!M15*PODs*Low_Days),0) -> 3188.64 | N15: =IFERROR(IF(N51=1,'Rates Table'!N15*Low_Utilised_Capacity,'Rates Table'!N15*PODs*Low_Days),0) -> 6584.76 | O15: =IFERROR(IF(O51=1,'Rates Table'!O15*Low_Utilised_Capacity,'Rates Table'!O15*PODs*Low_Days),0) -> 1040.13 | P15: =IFERROR(IF(P51=1,'Rates Table'!P15*Low_Utilised_Capacity,'Rates Table'!P15*PODs*Low_Days),0) -> 0 | Q15: =IFERROR(IF(Q51=1,'Rates Table'!Q15*Low_Utilised_Capacity,'Rates Table'!Q15*PODs*Low_Days),0) -> 9011.73 | R15: =IFERROR(IF(R51=1,'Rates Table'!R15*Low_Utilised_Capacity,'Rates Table'!R15*PODs*Low_Days),0) -> 13852.02 | S15: =IFERROR(IF(S51=1,'Rates Table'!S15*Low_Utilised_Capacity,'Rates Table'!S15*PODs*Low_Days),0) -> 22143.03 | T15: =IFERROR(IF(T51=1,'Rates Table'!T15*Low_Utilised_Capacity,'Rates Table'!T15*PODs*Low_Days),0) -> 7174.44 | U15: =IFERROR(IF(U51=1,'Rates Table'!U15*Low_Utilised_Capacity,'Rates Table'!U15*PODs*Low_Days),0) -> 0 | V15: =IFERROR(IF(V51=1,'Rates Table'!V15*Low_Utilised_Capacity,'Rates Table'!V15*PODs*Low_Days),0) -> 0 | W15: =IFERROR(IF(W51=1,'Rates Table'!W15*Low_Utilised_Capacity,'Rates Table'!W15*PODs*Low_Days),0) -> 0 | X15: =IFERROR(IF(X51=1,'Rates Table'!X15*Low_Utilised_Capacity,'Rates Table'!X15*PODs*Low_Days),0) -> 0 | Y15: =IFERROR(IF(Y51=1,'Rates Table'!Y15*Low_Utilised_Capacity,'Rates Table'!Y15*PODs*Low_Days),0) -> 0 | Z15: =IFERROR(IF(Z51=1,'Rates Table'!Z15*Low_Utilised_Capacity,'Rates Table'!Z15*PODs*Low_Days),0) -> 0 | AA15: =IFERROR(IF(AA51=1,'Rates Table'!AA15*Low_Utilised_Capacity,'Rates Table'!AA15*PODs*Low_Days),0) -> 0 | AB15: =IFERROR(IF(AB51=1,'Rates Table'!AB15*Low_Utilised_Capacity,'Rates Table'!AB15*PODs*Low_Days),0) -> 0 | AC15: =IFERROR(IF(AC51=1,'Rates Table'!AC15*Low_Utilised_Capacity,'Rates Table'!AC15*PODs*Low_Days),0) -> 0 | AD15: =IFERROR(IF(AD51=1,'Rates Table'!AD15*Low_Utilised_Capacity,'Rates Table'!AD15*PODs*Low_Days),0) -> 0 | AE15: =IFERROR(IF(AE51=1,'Rates Table'!AE15*Low_Utilised_Capacity,'Rates Table'!AE15*PODs*Low_Days),0) -> 0 | AF15: =IFERROR(IF(AF51=1,'Rates Table'!AF15*Low_Utilised_Capacity,'Rates Table'!AF15*PODs*Low_Days),0) -> 0 | AI15: 7908.81 | AJ15: =IFERROR(IF(AJ51=1,'Rates Table'!AJ15*Low_Utilised_Capacity,'Rates Table'!AJ15*PODs*Low_Days),0) -> 7908.81 | AK15: =IFERROR(IF(AK51=1,'Rates Table'!AK15*Low_Utilised_Capacity,'Rates Table'!AK15*PODs*Low_Days),0) -> 13325.13 | AL15: =IFERROR(IF(AL51=1,'Rates Table'!AL15*Low_Utilised_Capacity,'Rates Table'!AL15*PODs*Low_Days),0) -> 23022.09 | AM15: =IFERROR(IF(AM51=1,'Rates Table'!AM15*Low_Utilised_Capacity,'Rates Table'!AM15*PODs*Low_Days),0) -> 0 | AN15: =IFERROR(IF(AN51=1,'Rates Table'!AN15*Low_Utilised_Capacity,'Rates Table'!AN15*PODs*Low_Days),0) -> 0 | AO15: =IFERROR(IF(AO51=1,'Rates Table'!AO15*Low_Utilised_Capacity,'Rates Table'!AO15*PODs*Low_Days),0) -> 0 | AP15: =IFERROR(IF(AP51=1,'Rates Table'!AP15*Low_Utilised_Capacity,'Rates Table'!AP15*PODs*Low_Days),0) -> 1957.41 | AQ15: =IFERROR(IF(AQ51=1,'Rates Table'!AQ15*Low_Utilised_Capacity,'Rates Table'!AQ15*PODs*Low_Days),0) -> 3669.12 | AR15: =IFERROR(IF(AR51=1,'Rates Table'!AR15*Low_Utilised_Capacity,'Rates Table'!AR15*PODs*Low_Days),0) -> 7575.75 | AS15: =IFERROR(IF(AS51=1,'Rates Table'!AS15*Low_Utilised_Capacity,'Rates Table'!AS15*PODs*Low_Days),0) -> 1195.74 | AT15: =IFERROR(IF(AT51=1,'Rates Table'!AT15*Low_Utilised_Capacity,'Rates Table'!AT15*PODs*Low_Days),0) -> 12424.23 | AU15: =IFERROR(IF(AU51=1,'Rates Table'!AU15*Low_Utilised_Capacity,'Rates Table'!AU15*PODs*Low_Days),0) -> 10368.54 | AV15: =IFERROR(IF(AV51=1,'Rates Table'!AV15*Low_Utilised_Capacity,'Rates Table'!AV15*PODs*Low_Days),0) -> 15937.74 | AW15: =IFERROR(IF(AW51=1,'Rates Table'!AW15*Low_Utilised_Capacity,'Rates Table'!AW15*PODs*Low_Days),0) -> 25479.09 | AX15: =IFERROR(IF(AX51=1,'Rates Table'!AX15*Low_Utilised_Capacity,'Rates Table'!AX15*PODs*Low_Days),0) -> 8255.52 | AY15: =IFERROR(IF(AY51=1,'Rates Table'!AY15*Low_Utilised_Capacity,'Rates Table'!AY15*PODs*Low_Days),0) -> 0 | AZ15: =IFERROR(IF(AZ51=1,'Rates Table'!AZ15*Low_Utilised_Capacity,'Rates Table'!AZ15*PODs*Low_Days),0) -> 0 | BA15: =IFERROR(IF(BA51=1,'Rates Table'!BA15*Low_Utilised_Capacity,'Rates Table'!BA15*PODs*Low_Days),0) -> 0 | BB15: =IFERROR(IF(BB51=1,'Rates Table'!BB15*Low_Utilised_Capacity,'Rates Table'!BB15*PODs*Low_Days),0) -> 0 | BC15: =IFERROR(IF(BC51=1,'Rates Table'!BC15*Low_Utilised_Capacity,'Rates Table'!BC15*PODs*Low_Days),0) -> 0 | BD15: =IFERROR(IF(BD51=1,'Rates Table'!BD15*Low_Utilised_Capacity,'Rates Table'!BD15*PODs*Low_Days),0) -> 0 | BE15: =IFERROR(IF(BE51=1,'Rates Table'!BE15*Low_Utilised_Capacity,'Rates Table'!BE15*PODs*Low_Days),0) -> 0 | BF15: =IFERROR(IF(BF51=1,'Rates Table'!BF15*Low_Utilised_Capacity,'Rates Table'!BF15*PODs*Low_Days),0) -> 0 | BG15: =IFERROR(IF(BG51=1,'Rates Table'!BG15*Low_Utilised_Capacity,'Rates Table'!BG15*PODs*Low_Days),0) -> 0 | BH15: =IFERROR(IF(BH51=1,'Rates Table'!BH15*Low_Utilised_Capacity,'Rates Table'!BH15*PODs*Low_Days),0) -> 0 | BI15: =IFERROR(IF(BI51=1,'Rates Table'!BI15*Low_Utilised_Capacity,'Rates Table'!BI15*PODs*Low_Days),0) -> 0 | BJ15: =IFERROR(IF(BJ51=1,'Rates Table'!BJ15*Low_Utilised_Capacity,'Rates Table'!BJ15*PODs*Low_Days),0) -> 0
B17: Total network charges | E17: =SUM(E10:E15) -> 6874.14 | F17: =SUM(F10:F15) -> 6874.14 | G17: 11580.66 | H17: 20008.17 | I17: 0 | J17: 0 | K17: 0 | L17: 1700.79 | M17: 3188.64 | N17: 6584.76 | O17: 1040.13 | P17: 0 | Q17: 9011.73 | R17: 13852.02 | S17: 22143.03 | T17: 7174.44 | U17: 0 | V17: 0 | W17: 0 | X17: 0 | Y17: 0 | Z17: 0 | AA17: 0 | AB17: =SUM(AB10:AB15) -> 0 | AC17: 0 | AD17: 0 | AE17: 0 | AF17: 0 | AI17: =SUM(AI10:AI15) -> 7908.81 | AJ17: =SUM(AJ10:AJ15) -> 7908.81 | AK17: 13325.13 | AL17: 23022.09 | AM17: 0 | AN17: 0 | AO17: 0 | AP17: 1957.41 | AQ17: 3669.12 | AR17: 7575.75 | AS17: 1195.74 | AT17: 12424.23 | AU17: 10368.54 | AV17: 15937.74 | AW17: 25479.09 | AX17: 8255.52 | AY17: 0 | AZ17: 0 | BA17: 0 | BB17: 0 | BC17: 0 | BD17: 0 | BE17: 0 | BF17: =SUM(BF10:BF15) -> 0 | BG17: 0 | BH17: 0 | BI17: 0 | BJ17: 0
B19: Energy charges - low | D19: Units | E19: =E$8 -> 2020/2021 Rates | F19: =F$8 -> 2020/2021 Rates | G19: 2020/2021 Rates | H19: 2020/2021 Rates | I19: 2020/2021 Rates | J19: 2020/2021 Rates | K19: 2020/2021 Rates | L19: 2020/2021 Rates | M19: 2020/2021 Rates | N19: 2020/2021 Rates | O19: 2020/2021 Rates | P19: 2020/2021 Rates | Q19: 2020/2021 Rates | R19: 2020/2021 Rates | S19: 2020/2021 Rates | T19: 2020/2021 Rates | U19: 2020/2021 Rates | V19: 2020/2021 Rates | W19: 2020/2021 Rates | X19: 2020/2021 Rates | Y19: 2020/2021 Rates | Z19: 2020/2021 Rates | AA19: 2020/2021 Rates | AB19: 2020/2021 Rates | AC19: 2020/2021 Rates | AD19: 2020/2021 Rates | AE19: 2020/2021 Rates | AF19: 2020/2021 Rates | AI19: =AI$8 -> 2021/2022 Rates | AJ19: =AJ$8 -> 2021/2022 Rates | AK19: 2021/2022 Rates | AL19: 2021/2022 Rates | AM19: 2021/2022 Rates | AN19: 2021/2022 Rates | AO19: 2021/2022 Rates | AP19: 2021/2022 Rates | AQ19: 2021/2022 Rates | AR19: 2021/2022 Rates | AS19: 2021/2022 Rates | AT19: 2021/2022 Rates | AU19: 2021/2022 Rates | AV19: 2021/2022 Rates | AW19: 2021/2022 Rates | AX19: 2021/2022 Rates | AY19: 2021/2022 Rates | AZ19: 2021/2022 Rates | BA19: 2021/2022 Rates | BB19: 2021/2022 Rates | BC19: 2021/2022 Rates | BD19: 2021/2022 Rates | BE19: 2021/2022 Rates | BF19: 2021/2022 Rates | BG19: 2021/2022 Rates | BH19: 2021/2022 Rates | BI19: 2021/2022 Rates | BJ19: 2021/2022 Rates
C21: Peak consumption | D21: c/kWh | E21: =INDEX(F21:AE21,0,Selected_Tariff_ID) -> 0 | F21: =IFERROR('Rates Table'!F34*Low_Peak,0)/100 -> 0 | G21: =IFERROR('Rates Table'!G34*Low_Peak,0)/100 -> 0 | H21: =IFERROR('Rates Table'!H34*Low_Peak,0)/100 -> 0 | I21: =IFERROR('Rates Table'!I34*Low_Peak,0)/100 -> 0 | J21: =IFERROR('Rates Table'!J34*Low_Peak,0)/100 -> 0 | K21: =IFERROR('Rates Table'!K34*Low_Peak,0)/100 -> 0 | L21: =IFERROR('Rates Table'!L34*Low_Peak,0)/100 -> 0 | M21: =IFERROR('Rates Table'!M34*Low_Peak,0)/100 -> 0 | N21: =IFERROR('Rates Table'!N34*Low_Peak,0)/100 -> 0 | O21: =IFERROR('Rates Table'!O34*Low_Peak,0)/100 -> 0 | P21: =IFERROR('Rates Table'!P34*Low_Peak,0)/100 -> 0 | Q21: =IFERROR('Rates Table'!Q34*Low_Peak,0)/100 -> 0 | R21: =IFERROR('Rates Table'!R34*Low_Peak,0)/100 -> 0 | S21: =IFERROR('Rates Table'!S34*Low_Peak,0)/100 -> 0 | T21: =IFERROR('Rates Table'!T34*Low_Peak,0)/100 -> 0 | U21: =IFERROR('Rates Table'!U34*Low_Peak,0)/100 -> 0 | V21: =IFERROR('Rates Table'!V34*Low_Peak,0)/100 -> 0 | W21: =IFERROR('Rates Table'!W34*Low_Peak,0)/100 -> 0 | X21: =IFERROR('Rates Table'!X34*Low_Peak,0)/100 -> 0 | Y21: =IFERROR('Rates Table'!Y34*Low_Peak,0)/100 -> 0 | Z21: =IFERROR('Rates Table'!Z34*Low_Peak,0)/100 -> 0 | AA21: =IFERROR('Rates Table'!AA34*Low_Peak,0)/100 -> 0 | AB21: =IFERROR('Rates Table'!AB34*Low_Peak,0)/100 -> 0 | AC21: =IFERROR('Rates Table'!AC34*Low_Peak,0)/100 -> 0 | AD21: =IFERROR('Rates Table'!AD34*Low_Peak,0)/100 -> 0 | AE21: =IFERROR('Rates Table'!AE34*Low_Peak,0)/100 -> 0 | AF21: =IFERROR('Rates Table'!AF34*Low_Peak,0)/100 -> 0 | AI21: =INDEX(AJ21:BI21,0,Selected_Tariff_ID) -> 0 | AJ21: =IFERROR('Rates Table'!AJ34*Low_Peak,0)/100 -> 0 | AK21: =IFERROR('Rates Table'!AK34*Low_Peak,0)/100 -> 0 | AL21: =IFERROR('Rates Table'!AL34*Low_Peak,0)/100 -> 0 | AM21: =IFERROR('Rates Table'!AM34*Low_Peak,0)/100 -> 0 | AN21: =IFERROR('Rates Table'!AN34*Low_Peak,0)/100 -> 0 | AO21: =IFERROR('Rates Table'!AO34*Low_Peak,0)/100 -> 0 | AP21: =IFERROR('Rates Table'!AP34*Low_Peak,0)/100 -> 0 | AQ21: =IFERROR('Rates Table'!AQ34*Low_Peak,0)/100 -> 0 | AR21: =IFERROR('Rates Table'!AR34*Low_Peak,0)/100 -> 0 | AS21: =IFERROR('Rates Table'!AS34*Low_Peak,0)/100 -> 0 | AT21: =IFERROR('Rates Table'!AT34*Low_Peak,0)/100 -> 0 | AU21: =IFERROR('Rates Table'!AU34*Low_Peak,0)/100 -> 0 | AV21: =IFERROR('Rates Table'!AV34*Low_Peak,0)/100 -> 0 | AW21: =IFERROR('Rates Table'!AW34*Low_Peak,0)/100 -> 0 | AX21: =IFERROR('Rates Table'!AX34*Low_Peak,0)/100 -> 0 | AY21: =IFERROR('Rates Table'!AY34*Low_Peak,0)/100 -> 0 | AZ21: =IFERROR('Rates Table'!AZ34*Low_Peak,0)/100 -> 0 | BA21: =IFERROR('Rates Table'!BA34*Low_Peak,0)/100 -> 0 | BB21: =IFERROR('Rates Table'!BB34*Low_Peak,0)/100 -> 0 | BC21: =IFERROR('Rates Table'!BC34*Low_Peak,0)/100 -> 0 | BD21: =IFERROR('Rates Table'!BD34*Low_Peak,0)/100 -> 0 | BE21: =IFERROR('Rates Table'!BE34*Low_Peak,0)/100 -> 0 | BF21: =IFERROR('Rates Table'!BF34*Low_Peak,0)/100 -> 0 | BG21: =IFERROR('Rates Table'!BG34*Low_Peak,0)/100 -> 0 | BH21: =IFERROR('Rates Table'!BH34*Low_Peak,0)/100 -> 0 | BI21: =IFERROR('Rates Table'!BI34*Low_Peak,0)/100 -> 0 | BJ21: =IFERROR('Rates Table'!BJ34*Low_Peak,0)/100 -> 0
C22: Standard consumption | D22: c/kWh | E22: 0 | F22: =IFERROR('Rates Table'!F35*Low_Standard,0)/100 -> 0 | G22: =IFERROR('Rates Table'!G35*Low_Standard,0)/100 -> 0 | H22: =IFERROR('Rates Table'!H35*Low_Standard,0)/100 -> 0 | I22: =IFERROR('Rates Table'!I35*Low_Standard,0)/100 -> 0 | J22: =IFERROR('Rates Table'!J35*Low_Standard,0)/100 -> 0 | K22: =IFERROR('Rates Table'!K35*Low_Standard,0)/100 -> 0 | L22: =IFERROR('Rates Table'!L35*Low_Standard,0)/100 -> 0 | M22: =IFERROR('Rates Table'!M35*Low_Standard,0)/100 -> 0 | N22: =IFERROR('Rates Table'!N35*Low_Standard,0)/100 -> 0 | O22: =IFERROR('Rates Table'!O35*Low_Standard,0)/100 -> 0 | P22: =IFERROR('Rates Table'!P35*Low_Standard,0)/100 -> 0 | Q22: =IFERROR('Rates Table'!Q35*Low_Standard,0)/100 -> 0 | R22: =IFERROR('Rates Table'!R35*Low_Standard,0)/100 -> 0 | S22: =IFERROR('Rates Table'!S35*Low_Standard,0)/100 -> 0 | T22: =IFERROR('Rates Table'!T35*Low_Standard,0)/100 -> 0 | U22: =IFERROR('Rates Table'!U35*Low_Standard,0)/100 -> 0 | V22: =IFERROR('Rates Table'!V35*Low_Standard,0)/100 -> 0 | W22: =IFERROR('Rates Table'!W35*Low_Standard,0)/100 -> 0 | X22: =IFERROR('Rates Table'!X35*Low_Standard,0)/100 -> 0 | Y22: =IFERROR('Rates Table'!Y35*Low_Standard,0)/100 -> 0 | Z22: =IFERROR('Rates Table'!Z35*Low_Standard,0)/100 -> 0 | AA22: =IFERROR('Rates Table'!AA35*Low_Standard,0)/100 -> 0 | AB22: =IFERROR('Rates Table'!AB35*Low_Standard,0)/100 -> 0 | AC22: =IFERROR('Rates Table'!AC35*Low_Standard,0)/100 -> 0 | AD22: =IFERROR('Rates Table'!AD35*Low_Standard,0)/100 -> 0 | AE22: =IFERROR('Rates Table'!AE35*Low_Standard,0)/100 -> 0 | AF22: =IFERROR('Rates Table'!AF35*Low_Standard,0)/100 -> 0 | AI22: 0 | AJ22: =IFERROR('Rates Table'!AJ35*Low_Standard,0)/100 -> 0 | AK22: =IFERROR('Rates Table'!AK35*Low_Standard,0)/100 -> 0 | AL22: =IFERROR('Rates Table'!AL35*Low_Standard,0)/100 -> 0 | AM22: =IFERROR('Rates Table'!AM35*Low_Standard,0)/100 -> 0 | AN22: =IFERROR('Rates Table'!AN35*Low_Standard,0)/100 -> 0 | AO22: =IFERROR('Rates Table'!AO35*Low_Standard,0)/100 -> 0 | AP22: =IFERROR('Rates Table'!AP35*Low_Standard,0)/100 -> 0 | AQ22: =IFERROR('Rates Table'!AQ35*Low_Standard,0)/100 -> 0 | AR22: =IFERROR('Rates Table'!AR35*Low_Standard,0)/100 -> 0 | AS22: =IFERROR('Rates Table'!AS35*Low_Standard,0)/100 -> 0 | AT22: =IFERROR('Rates Table'!AT35*Low_Standard,0)/100 -> 0 | AU22: =IFERROR('Rates Table'!AU35*Low_Standard,0)/100 -> 0 | AV22: =IFERROR('Rates Table'!AV35*Low_Standard,0)/100 -> 0 | AW22: =IFERROR('Rates Table'!AW35*Low_Standard,0)/100 -> 0 | AX22: =IFERROR('Rates Table'!AX35*Low_Standard,0)/100 -> 0 | AY22: =IFERROR('Rates Table'!AY35*Low_Standard,0)/100 -> 0 | AZ22: =IFERROR('Rates Table'!AZ35*Low_Standard,0)/100 -> 0 | BA22: =IFERROR('Rates Table'!BA35*Low_Standard,0)/100 -> 0 | BB22: =IFERROR('Rates Table'!BB35*Low_Standard,0)/100 -> 0 | BC22: =IFERROR('Rates Table'!BC35*Low_Standard,0)/100 -> 0 | BD22: =IFERROR('Rates Table'!BD35*Low_Standard,0)/100 -> 0 | BE22: =IFERROR('Rates Table'!BE35*Low_Standard,0)/100 -> 0 | BF22: =IFERROR('Rates Table'!BF35*Low_Standard,0)/100 -> 0 | BG22: =IFERROR('Rates Table'!BG35*Low_Standard,0)/100 -> 0 | BH22: =IFERROR('Rates Table'!BH35*Low_Standard,0)/100 -> 0 | BI22: =IFERROR('Rates Table'!BI35*Low_Standard,0)/100 -> 0 | BJ22: =IFERROR('Rates Table'!BJ35*Low_Standard,0)/100 -> 0
C23: Off-Peak consumption | D23: c/kWh | E23: 0 | F23: =IFERROR('Rates Table'!F36*Low_OffPeak,0)/100 -> 0 | G23: =IFERROR('Rates Table'!G36*Low_OffPeak,0)/100 -> 0 | H23: =IFERROR('Rates Table'!H36*Low_OffPeak,0)/100 -> 0 | I23: =IFERROR('Rates Table'!I36*Low_OffPeak,0)/100 -> 0 | J23: =IFERROR('Rates Table'!J36*Low_OffPeak,0)/100 -> 0 | K23: =IFERROR('Rates Table'!K36*Low_OffPeak,0)/100 -> 0 | L23: =IFERROR('Rates Table'!L36*Low_OffPeak,0)/100 -> 0 | M23: =IFERROR('Rates Table'!M36*Low_OffPeak,0)/100 -> 0 | N23: =IFERROR('Rates Table'!N36*Low_OffPeak,0)/100 -> 0 | O23: =IFERROR('Rates Table'!O36*Low_OffPeak,0)/100 -> 0 | P23: =IFERROR('Rates Table'!P36*Low_OffPeak,0)/100 -> 0 | Q23: =IFERROR('Rates Table'!Q36*Low_OffPeak,0)/100 -> 0 | R23: =IFERROR('Rates Table'!R36*Low_OffPeak,0)/100 -> 0 | S23: =IFERROR('Rates Table'!S36*Low_OffPeak,0)/100 -> 0 | T23: =IFERROR('Rates Table'!T36*Low_OffPeak,0)/100 -> 0 | U23: =IFERROR('Rates Table'!U36*Low_OffPeak,0)/100 -> 0 | V23: =IFERROR('Rates Table'!V36*Low_OffPeak,0)/100 -> 0 | W23: =IFERROR('Rates Table'!W36*Low_OffPeak,0)/100 -> 0 | X23: =IFERROR('Rates Table'!X36*Low_OffPeak,0)/100 -> 0 | Y23: =IFERROR('Rates Table'!Y36*Low_OffPeak,0)/100 -> 0 | Z23: =IFERROR('Rates Table'!Z36*Low_OffPeak,0)/100 -> 0 | AA23: =IFERROR('Rates Table'!AA36*Low_OffPeak,0)/100 -> 0 | AB23: =IFERROR('Rates Table'!AB36*Low_OffPeak,0)/100 -> 0 | AC23: =IFERROR('Rates Table'!AC36*Low_OffPeak,0)/100 -> 0 | AD23: =IFERROR('Rates Table'!AD36*Low_OffPeak,0)/100 -> 0 | AE23: =IFERROR('Rates Table'!AE36*Low_OffPeak,0)/100 -> 0 | AF23: =IFERROR('Rates Table'!AF36*Low_OffPeak,0)/100 -> 0 | AI23: 0 | AJ23: =IFERROR('Rates Table'!AJ36*Low_OffPeak,0)/100 -> 0 | AK23: =IFERROR('Rates Table'!AK36*Low_OffPeak,0)/100 -> 0 | AL23: =IFERROR('Rates Table'!AL36*Low_OffPeak,0)/100 -> 0 | AM23: =IFERROR('Rates Table'!AM36*Low_OffPeak,0)/100 -> 0 | AN23: =IFERROR('Rates Table'!AN36*Low_OffPeak,0)/100 -> 0 | AO23: =IFERROR('Rates Table'!AO36*Low_OffPeak,0)/100 -> 0 | AP23: =IFERROR('Rates Table'!AP36*Low_OffPeak,0)/100 -> 0 | AQ23: =IFERROR('Rates Table'!AQ36*Low_OffPeak,0)/100 -> 0 | AR23: =IFERROR('Rates Table'!AR36*Low_OffPeak,0)/100 -> 0 | AS23: =IFERROR('Rates Table'!AS36*Low_OffPeak,0)/100 -> 0 | AT23: =IFERROR('Rates Table'!AT36*Low_OffPeak,0)/100 -> 0 | AU23: =IFERROR('Rates Table'!AU36*Low_OffPeak,0)/100 -> 0 | AV23: =IFERROR('Rates Table'!AV36*Low_OffPeak,0)/100 -> 0 | AW23: =IFERROR('Rates Table'!AW36*Low_OffPeak,0)/100 -> 0 | AX23: =IFERROR('Rates Table'!AX36*Low_OffPeak,0)/100 -> 0 | AY23: =IFERROR('Rates Table'!AY36*Low_OffPeak,0)/100 -> 0 | AZ23: =IFERROR('Rates Table'!AZ36*Low_OffPeak,0)/100 -> 0 | BA23: =IFERROR('Rates Table'!BA36*Low_OffPeak,0)/100 -> 0 | BB23: =IFERROR('Rates Table'!BB36*Low_OffPeak,0)/100 -> 0 | BC23: =IFERROR('Rates Table'!BC36*Low_OffPeak,0)/100 -> 0 | BD23: =IFERROR('Rates Table'!BD36*Low_OffPeak,0)/100 -> 0 | BE23: =IFERROR('Rates Table'!BE36*Low_OffPeak,0)/100 -> 0 | BF23: =IFERROR('Rates Table'!BF36*Low_OffPeak,0)/100 -> 0 | BG23: =IFERROR('Rates Table'!BG36*Low_OffPeak,0)/100 -> 0 | BH23: =IFERROR('Rates Table'!BH36*Low_OffPeak,0)/100 -> 0 | BI23: =IFERROR('Rates Table'!BI36*Low_OffPeak,0)/100 -> 0 | BJ23: =IFERROR('Rates Table'!BJ36*Low_OffPeak,0)/100 -> 0
E24: 0 | AI24: 0
C25: Energy | D25: c/kWh | E25: 0 | F25: =IFERROR('Rates Table'!F38*(Low_Total_Energy),0)/100 -> 0 | G25: =IFERROR('Rates Table'!G38*(Low_Total_Energy),0)/100 -> 0 | H25: =IFERROR('Rates Table'!H38*(Low_Total_Energy),0)/100 -> 0 | I25: =IFERROR('Rates Table'!I38*(Low_Total_Energy),0)/100 -> 0 | J25: =IFERROR('Rates Table'!J38*(Low_Total_Energy),0)/100 -> 0 | K25: =IFERROR('Rates Table'!K38*(Low_Total_Energy),0)/100 -> 0 | L25: =IFERROR('Rates Table'!L38*(Low_Total_Energy),0)/100 -> 0 | M25: =IFERROR('Rates Table'!M38*(Low_Total_Energy),0)/100 -> 0 | N25: =IFERROR('Rates Table'!N38*(Low_Total_Energy),0)/100 -> 0 | O25: =IFERROR('Rates Table'!O38*(Low_Total_Energy),0)/100 -> 0 | P25: =IFERROR('Rates Table'!P38*(Low_Total_Energy),0)/100 -> 0 | Q25: =IFERROR('Rates Table'!Q38*(Low_Total_Energy),0)/100 -> 0 | R25: =IFERROR('Rates Table'!R38*(Low_Total_Energy),0)/100 -> 0 | S25: =IFERROR('Rates Table'!S38*(Low_Total_Energy),0)/100 -> 0 | T25: =IFERROR('Rates Table'!T38*(Low_Total_Energy),0)/100 -> 0 | U25: =IFERROR('Rates Table'!U38*(Low_Total_Energy),0)/100 -> 0 | V25: =IFERROR('Rates Table'!V38*(Low_Total_Energy),0)/100 -> 0 | W25: =IFERROR('Rates Table'!W38*(Low_Total_Energy),0)/100 -> 0 | X25: =IFERROR('Rates Table'!X38*(Low_Total_Energy),0)/100 -> 0 | Y25: =IFERROR('Rates Table'!Y38*(Low_Total_Energy),0)/100 -> 0 | Z25: =IFERROR('Rates Table'!Z38*(Low_Total_Energy),0)/100 -> 0 | AA25: =IFERROR('Rates Table'!AA38*(Low_Total_Energy),0)/100 -> 0 | AB25: =IFERROR('Rates Table'!AB38*(Low_Total_Energy),0)/100 -> 0 | AC25: =IFERROR('Rates Table'!AC38*(Low_Total_Energy),0)/100 -> 0 | AD25: =IFERROR('Rates Table'!AD38*(Low_Total_Energy),0)/100 -> 0 | AE25: =IFERROR('Rates Table'!AE38*(Low_Total_Energy),0)/100 -> 0 | AF25: =IFERROR('Rates Table'!AF38*(Low_Total_Energy),0)/100 -> 0 | AI25: 0 | AJ25: =IFERROR('Rates Table'!AJ38*(Low_Total_Energy),0)/100 -> 0 | AK25: =IFERROR('Rates Table'!AK38*(Low_Total_Energy),0)/100 -> 0 | AL25: =IFERROR('Rates Table'!AL38*(Low_Total_Energy),0)/100 -> 0 | AM25: =IFERROR('Rates Table'!AM38*(Low_Total_Energy),0)/100 -> 0 | AN25: =IFERROR('Rates Table'!AN38*(Low_Total_Energy),0)/100 -> 0 | AO25: =IFERROR('Rates Table'!AO38*(Low_Total_Energy),0)/100 -> 0 | AP25: =IFERROR('Rates Table'!AP38*(Low_Total_Energy),0)/100 -> 0 | AQ25: =IFERROR('Rates Table'!AQ38*(Low_Total_Energy),0)/100 -> 0 | AR25: =IFERROR('Rates Table'!AR38*(Low_Total_Energy),0)/100 -> 0 | AS25: =IFERROR('Rates Table'!AS38*(Low_Total_Energy),0)/100 -> 0 | AT25: =IFERROR('Rates Table'!AT38*(Low_Total_Energy),0)/100 -> 0 | AU25: =IFERROR('Rates Table'!AU38*(Low_Total_Energy),0)/100 -> 0 | AV25: =IFERROR('Rates Table'!AV38*(Low_Total_Energy),0)/100 -> 0 | AW25: =IFERROR('Rates Table'!AW38*(Low_Total_Energy),0)/100 -> 0 | AX25: =IFERROR('Rates Table'!AX38*(Low_Total_Energy),0)/100 -> 0 | AY25: =IFERROR('Rates Table'!AY38*(Low_Total_Energy),0)/100 -> 0 | AZ25: =IFERROR('Rates Table'!AZ38*(Low_Total_Energy),0)/100 -> 0 | BA25: =IFERROR('Rates Table'!BA38*(Low_Total_Energy),0)/100 -> 0 | BB25: =IFERROR('Rates Table'!BB38*(Low_Total_Energy),0)/100 -> 0 | BC25: =IFERROR('Rates Table'!BC38*(Low_Total_Energy),0)/100 -> 0 | BD25: =IFERROR('Rates Table'!BD38*(Low_Total_Energy),0)/100 -> 0 | BE25: =IFERROR('Rates Table'!BE38*(Low_Total_Energy),0)/100 -> 0 | BF25: =IFERROR('Rates Table'!BF38*(Low_Total_Energy),0)/100 -> 0 | BG25: =IFERROR('Rates Table'!BG38*(Low_Total_Energy),0)/100 -> 0 | BH25: =IFERROR('Rates Table'!BH38*(Low_Total_Energy),0)/100 -> 0 | BI25: =IFERROR('Rates Table'!BI38*(Low_Total_Energy),0)/100 -> 0 | BJ25: =IFERROR('Rates Table'!BJ38*(Low_Total_Energy),0)/100 -> 0
C26: Energy - Block 1 | D26: c/kWh | E26: 0 | F26: =IFERROR('Rates Table'!F39*(Low_Block_1),0)/100 -> 0 | G26: =IFERROR('Rates Table'!G39*(Low_Block_1),0)/100 -> 0 | H26: =IFERROR('Rates Table'!H39*(Low_Block_1),0)/100 -> 0 | I26: =IFERROR('Rates Table'!I39*(Low_Block_1),0)/100 -> 0 | J26: =IFERROR('Rates Table'!J39*(Low_Block_1),0)/100 -> 0 | K26: =IFERROR('Rates Table'!K39*(Low_Block_1),0)/100 -> 0 | L26: =IFERROR('Rates Table'!L39*(Low_Block_1),0)/100 -> 0 | M26: =IFERROR('Rates Table'!M39*(Low_Block_1),0)/100 -> 0 | N26: =IFERROR('Rates Table'!N39*(Low_Block_1),0)/100 -> 0 | O26: =IFERROR('Rates Table'!O39*(Low_Block_1),0)/100 -> 0 | P26: =IFERROR('Rates Table'!P39*(Low_Block_1),0)/100 -> 0 | Q26: =IFERROR('Rates Table'!Q39*(Low_Block_1),0)/100 -> 0 | R26: =IFERROR('Rates Table'!R39*(Low_Block_1),0)/100 -> 0 | S26: =IFERROR('Rates Table'!S39*(Low_Block_1),0)/100 -> 0 | T26: =IFERROR('Rates Table'!T39*(Low_Block_1),0)/100 -> 0 | U26: =IFERROR('Rates Table'!U39*(Low_Block_1),0)/100 -> 0 | V26: =IFERROR('Rates Table'!V39*(Low_Block_1),0)/100 -> 0 | W26: =IFERROR('Rates Table'!W39*(Low_Block_1),0)/100 -> 0 | X26: =IFERROR('Rates Table'!X39*(Low_Block_1),0)/100 -> 0 | Y26: =IFERROR('Rates Table'!Y39*(Low_Block_1),0)/100 -> 0 | Z26: =IFERROR('Rates Table'!Z39*(Low_Block_1),0)/100 -> 0 | AA26: =IFERROR('Rates Table'!AA39*(Low_Block_1),0)/100 -> 0 | AB26: =IFERROR('Rates Table'!AB39*(Low_Block_1),0)/100 -> 0 | AC26: =IFERROR('Rates Table'!AC39*(Low_Block_1),0)/100 -> 0 | AD26: =IFERROR('Rates Table'!AD39*(Low_Block_1),0)/100 -> 0 | AE26: =IFERROR('Rates Table'!AE39*(Low_Block_1),0)/100 -> 0 | AF26: =IFERROR('Rates Table'!AF39*(Low_Block_1),0)/100 -> 0 | AI26: 0 | AJ26: =IFERROR('Rates Table'!AJ39*(Low_Block_1),0)/100 -> 0 | AK26: =IFERROR('Rates Table'!AK39*(Low_Block_1),0)/100 -> 0 | AL26: =IFERROR('Rates Table'!AL39*(Low_Block_1),0)/100 -> 0 | AM26: =IFERROR('Rates Table'!AM39*(Low_Block_1),0)/100 -> 0 | AN26: =IFERROR('Rates Table'!AN39*(Low_Block_1),0)/100 -> 0 | AO26: =IFERROR('Rates Table'!AO39*(Low_Block_1),0)/100 -> 0 | AP26: =IFERROR('Rates Table'!AP39*(Low_Block_1),0)/100 -> 0 | AQ26: =IFERROR('Rates Table'!AQ39*(Low_Block_1),0)/100 -> 0 | AR26: =IFERROR('Rates Table'!AR39*(Low_Block_1),0)/100 -> 0 | AS26: =IFERROR('Rates Table'!AS39*(Low_Block_1),0)/100 -> 0 | AT26: =IFERROR('Rates Table'!AT39*(Low_Block_1),0)/100 -> 0 | AU26: =IFERROR('Rates Table'!AU39*(Low_Block_1),0)/100 -> 0 | AV26: =IFERROR('Rates Table'!AV39*(Low_Block_1),0)/100 -> 0 | AW26: =IFERROR('Rates Table'!AW39*(Low_Block_1),0)/100 -> 0 | AX26: =IFERROR('Rates Table'!AX39*(Low_Block_1),0)/100 -> 0 | AY26: =IFERROR('Rates Table'!AY39*(Low_Block_1),0)/100 -> 0 | AZ26: =IFERROR('Rates Table'!AZ39*(Low_Block_1),0)/100 -> 0 | BA26: =IFERROR('Rates Table'!BA39*(Low_Block_1),0)/100 -> 0 | BB26: =IFERROR('Rates Table'!BB39*(Low_Block_1),0)/100 -> 0 | BC26: =IFERROR('Rates Table'!BC39*(Low_Block_1),0)/100 -> 0 | BD26: =IFERROR('Rates Table'!BD39*(Low_Block_1),0)/100 -> 0 | BE26: =IFERROR('Rates Table'!BE39*(Low_Block_1),0)/100 -> 0 | BF26: =IFERROR('Rates Table'!BF39*(Low_Block_1),0)/100 -> 0 | BG26: =IFERROR('Rates Table'!BG39*(Low_Block_1),0)/100 -> 0 | BH26: =IFERROR('Rates Table'!BH39*(Low_Block_1),0)/100 -> 0 | BI26: =IFERROR('Rates Table'!BI39*(Low_Block_1),0)/100 -> 0 | BJ26: =IFERROR('Rates Table'!BJ39*(Low_Block_1),0)/100 -> 0
C27: Energy - Block 2 | D27: c/kWh | E27: 0 | F27: =IFERROR('Rates Table'!F40*(Low_Block_2),0)/100 -> 0 | G27: =IFERROR('Rates Table'!G40*(Low_Block_2),0)/100 -> 0 | H27: =IFERROR('Rates Table'!H40*(Low_Block_2),0)/100 -> 0 | I27: =IFERROR('Rates Table'!I40*(Low_Block_2),0)/100 -> 0 | J27: =IFERROR('Rates Table'!J40*(Low_Block_2),0)/100 -> 0 | K27: =IFERROR('Rates Table'!K40*(Low_Block_2),0)/100 -> 0 | L27: =IFERROR('Rates Table'!L40*(Low_Block_2),0)/100 -> 0 | M27: =IFERROR('Rates Table'!M40*(Low_Block_2),0)/100 -> 0 | N27: =IFERROR('Rates Table'!N40*(Low_Block_2),0)/100 -> 0 | O27: =IFERROR('Rates Table'!O40*(Low_Block_2),0)/100 -> 0 | P27: =IFERROR('Rates Table'!P40*(Low_Block_2),0)/100 -> 0 | Q27: =IFERROR('Rates Table'!Q40*(Low_Block_2),0)/100 -> 0 | R27: =IFERROR('Rates Table'!R40*(Low_Block_2),0)/100 -> 0 | S27: =IFERROR('Rates Table'!S40*(Low_Block_2),0)/100 -> 0 | T27: =IFERROR('Rates Table'!T40*(Low_Block_2),0)/100 -> 0 | U27: =IFERROR('Rates Table'!U40*(Low_Block_2),0)/100 -> 0 | V27: =IFERROR('Rates Table'!V40*(Low_Block_2),0)/100 -> 0 | W27: =IFERROR('Rates Table'!W40*(Low_Block_2),0)/100 -> 0 | X27: =IFERROR('Rates Table'!X40*(Low_Block_2),0)/100 -> 0 | Y27: =IFERROR('Rates Table'!Y40*(Low_Block_2),0)/100 -> 0 | Z27: =IFERROR('Rates Table'!Z40*(Low_Block_2),0)/100 -> 0 | AA27: =IFERROR('Rates Table'!AA40*(Low_Block_2),0)/100 -> 0 | AB27: =IFERROR('Rates Table'!AB40*(Low_Block_2),0)/100 -> 0 | AC27: =IFERROR('Rates Table'!AC40*(Low_Block_2),0)/100 -> 0 | AD27: =IFERROR('Rates Table'!AD40*(Low_Block_2),0)/100 -> 0 | AE27: =IFERROR('Rates Table'!AE40*(Low_Block_2),0)/100 -> 0 | AF27: =IFERROR('Rates Table'!AF40*(Low_Block_2),0)/100 -> 0 | AI27: 0 | AJ27: =IFERROR('Rates Table'!AJ40*(Low_Block_2),0)/100 -> 0 | AK27: =IFERROR('Rates Table'!AK40*(Low_Block_2),0)/100 -> 0 | AL27: =IFERROR('Rates Table'!AL40*(Low_Block_2),0)/100 -> 0 | AM27: =IFERROR('Rates Table'!AM40*(Low_Block_2),0)/100 -> 0 | AN27: =IFERROR('Rates Table'!AN40*(Low_Block_2),0)/100 -> 0 | AO27: =IFERROR('Rates Table'!AO40*(Low_Block_2),0)/100 -> 0 | AP27: =IFERROR('Rates Table'!AP40*(Low_Block_2),0)/100 -> 0 | AQ27: =IFERROR('Rates Table'!AQ40*(Low_Block_2),0)/100 -> 0 | AR27: =IFERROR('Rates Table'!AR40*(Low_Block_2),0)/100 -> 0 | AS27: =IFERROR('Rates Table'!AS40*(Low_Block_2),0)/100 -> 0 | AT27: =IFERROR('Rates Table'!AT40*(Low_Block_2),0)/100 -> 0 | AU27: =IFERROR('Rates Table'!AU40*(Low_Block_2),0)/100 -> 0 | AV27: =IFERROR('Rates Table'!AV40*(Low_Block_2),0)/100 -> 0 | AW27: =IFERROR('Rates Table'!AW40*(Low_Block_2),0)/100 -> 0 | AX27: =IFERROR('Rates Table'!AX40*(Low_Block_2),0)/100 -> 0 | AY27: =IFERROR('Rates Table'!AY40*(Low_Block_2),0)/100 -> 0 | AZ27: =IFERROR('Rates Table'!AZ40*(Low_Block_2),0)/100 -> 0 | BA27: =IFERROR('Rates Table'!BA40*(Low_Block_2),0)/100 -> 0 | BB27: =IFERROR('Rates Table'!BB40*(Low_Block_2),0)/100 -> 0 | BC27: =IFERROR('Rates Table'!BC40*(Low_Block_2),0)/100 -> 0 | BD27: =IFERROR('Rates Table'!BD40*(Low_Block_2),0)/100 -> 0 | BE27: =IFERROR('Rates Table'!BE40*(Low_Block_2),0)/100 -> 0 | BF27: =IFERROR('Rates Table'!BF40*(Low_Block_2),0)/100 -> 0 | BG27: =IFERROR('Rates Table'!BG40*(Low_Block_2),0)/100 -> 0 | BH27: =IFERROR('Rates Table'!BH40*(Low_Block_2),0)/100 -> 0 | BI27: =IFERROR('Rates Table'!BI40*(Low_Block_2),0)/100 -> 0 | BJ27: =IFERROR('Rates Table'!BJ40*(Low_Block_2),0)/100 -> 0
C28: Energy Demand | D28: R/kVA | E28: 0 | F28: =IFERROR('Rates Table'!F41*Low_Demand,0) -> 0 | G28: =IFERROR('Rates Table'!G41*Low_Demand,0) -> 0 | H28: =IFERROR('Rates Table'!H41*Low_Demand,0) -> 0 | I28: =IFERROR('Rates Table'!I41*Low_Demand,0) -> 0 | J28: =IFERROR('Rates Table'!J41*Low_Demand,0) -> 0 | K28: =IFERROR('Rates Table'!K41*Low_Demand,0) -> 0 | L28: =IFERROR('Rates Table'!L41*Low_Demand,0) -> 0 | M28: =IFERROR('Rates Table'!M41*Low_Demand,0) -> 0 | N28: =IFERROR('Rates Table'!N41*Low_Demand,0) -> 0 | O28: =IFERROR('Rates Table'!O41*Low_Demand,0) -> 0 | P28: =IFERROR('Rates Table'!P41*Low_Demand,0) -> 0 | Q28: =IFERROR('Rates Table'!Q41*Low_Demand,0) -> 0 | R28: =IFERROR('Rates Table'!R41*Low_Demand,0) -> 0 | S28: =IFERROR('Rates Table'!S41*Low_Demand,0) -> 0 | T28: =IFERROR('Rates Table'!T41*Low_Demand,0) -> 0 | U28: =IFERROR('Rates Table'!U41*Low_Demand,0) -> 0 | V28: =IFERROR('Rates Table'!V41*Low_Demand,0) -> 0 | W28: =IFERROR('Rates Table'!W41*Low_Demand,0) -> 0 | X28: =IFERROR('Rates Table'!X41*Low_Demand,0) -> 0 | Y28: =IFERROR('Rates Table'!Y41*Low_Demand,0) -> 0 | Z28: =IFERROR('Rates Table'!Z41*Low_Demand,0) -> 0 | AA28: =IFERROR('Rates Table'!AA41*Low_Demand,0) -> 0 | AB28: =IFERROR('Rates Table'!AB41*Low_Demand,0) -> 0 | AC28: =IFERROR('Rates Table'!AC41*Low_Demand,0) -> 0 | AD28: =IFERROR('Rates Table'!AD41*Low_Demand,0) -> 0 | AE28: =IFERROR('Rates Table'!AE41*Low_Demand,0) -> 0 | AF28: =IFERROR('Rates Table'!AF41*Low_Demand,0) -> 0 | AI28: 0 | AJ28: =IFERROR('Rates Table'!AJ41*Low_Demand,0) -> 0 | AK28: =IFERROR('Rates Table'!AK41*Low_Demand,0) -> 0 | AL28: =IFERROR('Rates Table'!AL41*Low_Demand,0) -> 0 | AM28: =IFERROR('Rates Table'!AM41*Low_Demand,0) -> 0 | AN28: =IFERROR('Rates Table'!AN41*Low_Demand,0) -> 0 | AO28: =IFERROR('Rates Table'!AO41*Low_Demand,0) -> 0 | AP28: =IFERROR('Rates Table'!AP41*Low_Demand,0) -> 0 | AQ28: =IFERROR('Rates Table'!AQ41*Low_Demand,0) -> 0 | AR28: =IFERROR('Rates Table'!AR41*Low_Demand,0) -> 0 | AS28: =IFERROR('Rates Table'!AS41*Low_Demand,0) -> 0 | AT28: =IFERROR('Rates Table'!AT41*Low_Demand,0) -> 0 | AU28: =IFERROR('Rates Table'!AU41*Low_Demand,0) -> 0 | AV28: =IFERROR('Rates Table'!AV41*Low_Demand,0) -> 0 | AW28: =IFERROR('Rates Table'!AW41*Low_Demand,0) -> 0 | AX28: =IFERROR('Rates Table'!AX41*Low_Demand,0) -> 0 | AY28: =IFERROR('Rates Table'!AY41*Low_Demand,0) -> 0 | AZ28: =IFERROR('Rates Table'!AZ41*Low_Demand,0) -> 0 | BA28: =IFERROR('Rates Table'!BA41*Low_Demand,0) -> 0 | BB28: =IFERROR('Rates Table'!BB41*Low_Demand,0) -> 0 | BC28: =IFERROR('Rates Table'!BC41*Low_Demand,0) -> 0 | BD28: =IFERROR('Rates Table'!BD41*Low_Demand,0) -> 0 | BE28: =IFERROR('Rates Table'!BE41*Low_Demand,0) -> 0 | BF28: =IFERROR('Rates Table'!BF41*Low_Demand,0) -> 0 | BG28: =IFERROR('Rates Table'!BG41*Low_Demand,0) -> 0 | BH28: =IFERROR('Rates Table'!BH41*Low_Demand,0) -> 0 | BI28: =IFERROR('Rates Table'!BI41*Low_Demand,0) -> 0 | BJ28: =IFERROR('Rates Table'!BJ41*Low_Demand,0) -> 0
B30: Total energy charges | E30: =SUM(E21:E28) -> 0 | F30: =SUM(F21:F28) -> 0 | G30: 0 | H30: 0 | I30: 0 | J30: 0 | K30: 0 | L30: 0 | M30: 0 | N30: 0 | O30: 0 | P30: 0 | Q30: 0 | R30: 0 | S30: 0 | T30: 0 | U30: 0 | V30: 0 | W30: 0 | X30: 0 | Y30: 0 | Z30: 0 | AA30: 0 | AB30: =SUM(AB21:AB28) -> 0 | AC30: 0 | AD30: 0 | AE30: 0 | AF30: 0 | AI30: =SUM(AI21:AI28) -> 0 | AJ30: =SUM(AJ21:AJ28) -> 0 | AK30: 0 | AL30: 0 | AM30: 0 | AN30: 0 | AO30: 0 | AP30: 0 | AQ30: 0 | AR30: 0 | AS30: 0 | AT30: 0 | AU30: 0 | AV30: 0 | AW30: 0 | AX30: 0 | AY30: 0 | AZ30: 0 | BA30: 0 | BB30: 0 | BC30: 0 | BD30: 0 | BE30: 0 | BF30: =SUM(BF21:BF28) -> 0 | BG30: 0 | BH30: 0 | BI30: 0 | BJ30: 0
B32: Other charges | D32: Units | E32: =E$8 -> 2020/2021 Rates | F32: =F$8 -> 2020/2021 Rates | G32: 2020/2021 Rates | H32: 2020/2021 Rates | I32: 2020/2021 Rates | J32: 2020/2021 Rates | K32: 2020/2021 Rates | L32: 2020/2021 Rates | M32: 2020/2021 Rates | N32: 2020/2021 Rates | O32: 2020/2021 Rates | P32: 2020/2021 Rates | Q32: 2020/2021 Rates | R32: 2020/2021 Rates | S32: 2020/2021 Rates | T32: 2020/2021 Rates | U32: 2020/2021 Rates | V32: 2020/2021 Rates | W32: 2020/2021 Rates | X32: 2020/2021 Rates | Y32: 2020/2021 Rates | Z32: 2020/2021 Rates | AA32: 2020/2021 Rates | AB32: 2020/2021 Rates | AC32: 2020/2021 Rates | AD32: 2020/2021 Rates | AE32: 2020/2021 Rates | AF32: 2020/2021 Rates | AI32: =AI$8 -> 2021/2022 Rates | AJ32: =AJ$8 -> 2021/2022 Rates | AK32: 2021/2022 Rates | AL32: 2021/2022 Rates | AM32: 2021/2022 Rates | AN32: 2021/2022 Rates | AO32: 2021/2022 Rates | AP32: 2021/2022 Rates | AQ32: 2021/2022 Rates | AR32: 2021/2022 Rates | AS32: 2021/2022 Rates | AT32: 2021/2022 Rates | AU32: 2021/2022 Rates | AV32: 2021/2022 Rates | AW32: 2021/2022 Rates | AX32: 2021/2022 Rates | AY32: 2021/2022 Rates | AZ32: 2021/2022 Rates | BA32: 2021/2022 Rates | BB32: 2021/2022 Rates | BC32: 2021/2022 Rates | BD32: 2021/2022 Rates | BE32: 2021/2022 Rates | BF32: 2021/2022 Rates | BG32: 2021/2022 Rates | BH32: 2021/2022 Rates | BI32: 2021/2022 Rates | BJ32: 2021/2022 Rates
C34: Ancillary service charge | D34: c/kWh | E34: =INDEX(F34:AE34,0,Selected_Tariff_ID) -> 0 | F34: =IFERROR(Low_Total_Energy*'Rates Table'!F47,0)/100 -> 0 | G34: =IFERROR(Low_Total_Energy*'Rates Table'!G47,0)/100 -> 0 | H34: =IFERROR(Low_Total_Energy*'Rates Table'!H47,0)/100 -> 0 | I34: =IFERROR(Low_Total_Energy*'Rates Table'!I47,0)/100 -> 0 | J34: =IFERROR(Low_Total_Energy*'Rates Table'!J47,0)/100 -> 0 | K34: =IFERROR(Low_Total_Energy*'Rates Table'!K47,0)/100 -> 0 | L34: =IFERROR(Low_Total_Energy*'Rates Table'!L47,0)/100 -> 0 | M34: =IFERROR(Low_Total_Energy*'Rates Table'!M47,0)/100 -> 0 | N34: =IFERROR(Low_Total_Energy*'Rates Table'!N47,0)/100 -> 0 | O34: =IFERROR(Low_Total_Energy*'Rates Table'!O47,0)/100 -> 0 | P34: =IFERROR(Low_Total_Energy*'Rates Table'!P47,0)/100 -> 0 | Q34: =IFERROR(Low_Total_Energy*'Rates Table'!Q47,0)/100 -> 0 | R34: =IFERROR(Low_Total_Energy*'Rates Table'!R47,0)/100 -> 0 | S34: =IFERROR(Low_Total_Energy*'Rates Table'!S47,0)/100 -> 0 | T34: =IFERROR(Low_Total_Energy*'Rates Table'!T47,0)/100 -> 0 | U34: =IFERROR(Low_Total_Energy*'Rates Table'!U47,0)/100 -> 0 | V34: =IFERROR(Low_Total_Energy*'Rates Table'!V47,0)/100 -> 0 | W34: =IFERROR(Low_Total_Energy*'Rates Table'!W47,0)/100 -> 0 | X34: =IFERROR(Low_Total_Energy*'Rates Table'!X47,0)/100 -> 0 | Y34: =IFERROR(Low_Total_Energy*'Rates Table'!Y47,0)/100 -> 0 | Z34: =IFERROR(Low_Total_Energy*'Rates Table'!Z47,0)/100 -> 0 | AA34: =IFERROR(Low_Total_Energy*'Rates Table'!AA47,0)/100 -> 0 | AB34: =IFERROR(Low_Total_Energy*'Rates Table'!AB47,0)/100 -> 0 | AC34: =IFERROR(Low_Total_Energy*'Rates Table'!AC47,0)/100 -> 0 | AD34: =IFERROR(Low_Total_Energy*'Rates Table'!AD47,0)/100 -> 0 | AE34: =IFERROR(Low_Total_Energy*'Rates Table'!AE47,0)/100 -> 0 | AF34: =IFERROR(Low_Total_Energy*'Rates Table'!AF47,0)/100 -> 0 | AI34: =INDEX(AJ34:BI34,0,Selected_Tariff_ID) -> 0 | AJ34: =IFERROR(Low_Total_Energy*'Rates Table'!AJ47,0)/100 -> 0 | AK34: =IFERROR(Low_Total_Energy*'Rates Table'!AK47,0)/100 -> 0 | AL34: =IFERROR(Low_Total_Energy*'Rates Table'!AL47,0)/100 -> 0 | AM34: =IFERROR(Low_Total_Energy*'Rates Table'!AM47,0)/100 -> 0 | AN34: =IFERROR(Low_Total_Energy*'Rates Table'!AN47,0)/100 -> 0 | AO34: =IFERROR(Low_Total_Energy*'Rates Table'!AO47,0)/100 -> 0 | AP34: =IFERROR(Low_Total_Energy*'Rates Table'!AP47,0)/100 -> 0 | AQ34: =IFERROR(Low_Total_Energy*'Rates Table'!AQ47,0)/100 -> 0 | AR34: =IFERROR(Low_Total_Energy*'Rates Table'!AR47,0)/100 -> 0 | AS34: =IFERROR(Low_Total_Energy*'Rates Table'!AS47,0)/100 -> 0 | AT34: =IFERROR(Low_Total_Energy*'Rates Table'!AT47,0)/100 -> 0 | AU34: =IFERROR(Low_Total_Energy*'Rates Table'!AU47,0)/100 -> 0 | AV34: =IFERROR(Low_Total_Energy*'Rates Table'!AV47,0)/100 -> 0 | AW34: =IFERROR(Low_Total_Energy*'Rates Table'!AW47,0)/100 -> 0 | AX34: =IFERROR(Low_Total_Energy*'Rates Table'!AX47,0)/100 -> 0 | AY34: =IFERROR(Low_Total_Energy*'Rates Table'!AY47,0)/100 -> 0 | AZ34: =IFERROR(Low_Total_Energy*'Rates Table'!AZ47,0)/100 -> 0 | BA34: =IFERROR(Low_Total_Energy*'Rates Table'!BA47,0)/100 -> 0 | BB34: =IFERROR(Low_Total_Energy*'Rates Table'!BB47,0)/100 -> 0 | BC34: =IFERROR(Low_Total_Energy*'Rates Table'!BC47,0)/100 -> 0 | BD34: =IFERROR(Low_Total_Energy*'Rates Table'!BD47,0)/100 -> 0 | BE34: =IFERROR(Low_Total_Energy*'Rates Table'!BE47,0)/100 -> 0 | BF34: =IFERROR(Low_Total_Energy*'Rates Table'!BF47,0)/100 -> 0 | BG34: =IFERROR(Low_Total_Energy*'Rates Table'!BG47,0)/100 -> 0 | BH34: =IFERROR(Low_Total_Energy*'Rates Table'!BH47,0)/100 -> 0 | BI34: =IFERROR(Low_Total_Energy*'Rates Table'!BI47,0)/100 -> 0 | BJ34: =IFERROR(Low_Total_Energy*'Rates Table'!BJ47,0)/100 -> 0
C35: Reactive energy charge | D35: c/kVArh | E35: 0 | F35: 0 | G35: 0 | H35: 0 | I35: 0 | J35: 0 | K35: 0 | L35: 0 | M35: 0 | N35: 0 | O35: 0 | P35: 0 | Q35: 0 | R35: 0 | S35: 0 | T35: 0 | U35: 0 | V35: 0 | W35: 0 | X35: 0 | Y35: 0 | Z35: 0 | AA35: 0 | AB35: 0 | AC35: 0 | AD35: 0 | AE35: 0 | AF35: 0 | AI35: 0 | AJ35: 0 | AK35: 0 | AL35: 0 | AM35: 0 | AN35: 0 | AO35: 0 | AP35: 0 | AQ35: 0 | AR35: 0 | AS35: 0 | AT35: 0 | AU35: 0 | AV35: 0 | AW35: 0 | AX35: 0 | AY35: 0 | AZ35: 0 | BA35: 0 | BB35: 0 | BC35: 0 | BD35: 0 | BE35: 0 | BF35: 0 | BG35: 0 | BH35: 0 | BI35: 0 | BJ35: 0
C36: Electrification and rural subsidy | D36: c/kWh | E36: 0 | F36: =IFERROR(Low_Total_Energy*'Rates Table'!F49,0)/100 -> 0 | G36: =IFERROR(Low_Total_Energy*'Rates Table'!G49,0)/100 -> 0 | H36: =IFERROR(Low_Total_Energy*'Rates Table'!H49,0)/100 -> 0 | I36: =IFERROR(Low_Total_Energy*'Rates Table'!I49,0)/100 -> 0 | J36: =IFERROR(Low_Total_Energy*'Rates Table'!J49,0)/100 -> 0 | K36: =IFERROR(Low_Total_Energy*'Rates Table'!K49,0)/100 -> 0 | L36: =IFERROR(Low_Total_Energy*'Rates Table'!L49,0)/100 -> 0 | M36: =IFERROR(Low_Total_Energy*'Rates Table'!M49,0)/100 -> 0 | N36: =IFERROR(Low_Total_Energy*'Rates Table'!N49,0)/100 -> 0 | O36: =IFERROR(Low_Total_Energy*'Rates Table'!O49,0)/100 -> 0 | P36: =IFERROR(Low_Total_Energy*'Rates Table'!P49,0)/100 -> 0 | Q36: =IFERROR(Low_Total_Energy*'Rates Table'!Q49,0)/100 -> 0 | R36: =IFERROR(Low_Total_Energy*'Rates Table'!R49,0)/100 -> 0 | S36: =IFERROR(Low_Total_Energy*'Rates Table'!S49,0)/100 -> 0 | T36: =IFERROR(Low_Total_Energy*'Rates Table'!T49,0)/100 -> 0 | U36: =IFERROR(Low_Total_Energy*'Rates Table'!U49,0)/100 -> 0 | V36: =IFERROR(Low_Total_Energy*'Rates Table'!V49,0)/100 -> 0 | W36: =IFERROR(Low_Total_Energy*'Rates Table'!W49,0)/100 -> 0 | X36: =IFERROR(Low_Total_Energy*'Rates Table'!X49,0)/100 -> 0 | Y36: =IFERROR(Low_Total_Energy*'Rates Table'!Y49,0)/100 -> 0 | Z36: =IFERROR(Low_Total_Energy*'Rates Table'!Z49,0)/100 -> 0 | AA36: =IFERROR(Low_Total_Energy*'Rates Table'!AA49,0)/100 -> 0 | AB36: =IFERROR(Low_Total_Energy*'Rates Table'!AB49,0)/100 -> 0 | AC36: =IFERROR(Low_Total_Energy*'Rates Table'!AC49,0)/100 -> 0 | AD36: =IFERROR(Low_Total_Energy*'Rates Table'!AD49,0)/100 -> 0 | AE36: =IFERROR(Low_Total_Energy*'Rates Table'!AE49,0)/100 -> 0 | AF36: =IFERROR(Low_Total_Energy*'Rates Table'!AF49,0)/100 -> 0 | AI36: 0 | AJ36: =IFERROR(Low_Total_Energy*'Rates Table'!AJ49,0)/100 -> 0 | AK36: =IFERROR(Low_Total_Energy*'Rates Table'!AK49,0)/100 -> 0 | AL36: =IFERROR(Low_Total_Energy*'Rates Table'!AL49,0)/100 -> 0 | AM36: =IFERROR(Low_Total_Energy*'Rates Table'!AM49,0)/100 -> 0 | AN36: =IFERROR(Low_Total_Energy*'Rates Table'!AN49,0)/100 -> 0 | AO36: =IFERROR(Low_Total_Energy*'Rates Table'!AO49,0)/100 -> 0 | AP36: =IFERROR(Low_Total_Energy*'Rates Table'!AP49,0)/100 -> 0 | AQ36: =IFERROR(Low_Total_Energy*'Rates Table'!AQ49,0)/100 -> 0 | AR36: =IFERROR(Low_Total_Energy*'Rates Table'!AR49,0)/100 -> 0 | AS36: =IFERROR(Low_Total_Energy*'Rates Table'!AS49,0)/100 -> 0 | AT36: =IFERROR(Low_Total_Energy*'Rates Table'!AT49,0)/100 -> 0 | AU36: =IFERROR(Low_Total_Energy*'Rates Table'!AU49,0)/100 -> 0 | AV36: =IFERROR(Low_Total_Energy*'Rates Table'!AV49,0)/100 -> 0 | AW36: =IFERROR(Low_Total_Energy*'Rates Table'!AW49,0)/100 -> 0 | AX36: =IFERROR(Low_Total_Energy*'Rates Table'!AX49,0)/100 -> 0 | AY36: =IFERROR(Low_Total_Energy*'Rates Table'!AY49,0)/100 -> 0 | AZ36: =IFERROR(Low_Total_Energy*'Rates Table'!AZ49,0)/100 -> 0 | BA36: =IFERROR(Low_Total_Energy*'Rates Table'!BA49,0)/100 -> 0 | BB36: =IFERROR(Low_Total_Energy*'Rates Table'!BB49,0)/100 -> 0 | BC36: =IFERROR(Low_Total_Energy*'Rates Table'!BC49,0)/100 -> 0 | BD36: =IFERROR(Low_Total_Energy*'Rates Table'!BD49,0)/100 -> 0 | BE36: =IFERROR(Low_Total_Energy*'Rates Table'!BE49,0)/100 -> 0 | BF36: =IFERROR(Low_Total_Energy*'Rates Table'!BF49,0)/100 -> 0 | BG36: =IFERROR(Low_Total_Energy*'Rates Table'!BG49,0)/100 -> 0 | BH36: =IFERROR(Low_Total_Energy*'Rates Table'!BH49,0)/100 -> 0 | BI36: =IFERROR(Low_Total_Energy*'Rates Table'!BI49,0)/100 -> 0 | BJ36: =IFERROR(Low_Total_Energy*'Rates Table'!BJ49,0)/100 -> 0
C37: Affordability subsidy | D37: c/kWh | E37: 0 | F37: =IFERROR(Low_Total_Energy*'Rates Table'!F50,0)/100 -> 0 | G37: =IFERROR(Low_Total_Energy*'Rates Table'!G50,0)/100 -> 0 | H37: =IFERROR(Low_Total_Energy*'Rates Table'!H50,0)/100 -> 0 | I37: =IFERROR(Low_Total_Energy*'Rates Table'!I50,0)/100 -> 0 | J37: =IFERROR(Low_Total_Energy*'Rates Table'!J50,0)/100 -> 0 | K37: =IFERROR(Low_Total_Energy*'Rates Table'!K50,0)/100 -> 0 | L37: =IFERROR(Low_Total_Energy*'Rates Table'!L50,0)/100 -> 0 | M37: =IFERROR(Low_Total_Energy*'Rates Table'!M50,0)/100 -> 0 | N37: =IFERROR(Low_Total_Energy*'Rates Table'!N50,0)/100 -> 0 | O37: =IFERROR(Low_Total_Energy*'Rates Table'!O50,0)/100 -> 0 | P37: =IFERROR(Low_Total_Energy*'Rates Table'!P50,0)/100 -> 0 | Q37: =IFERROR(Low_Total_Energy*'Rates Table'!Q50,0)/100 -> 0 | R37: =IFERROR(Low_Total_Energy*'Rates Table'!R50,0)/100 -> 0 | S37: =IFERROR(Low_Total_Energy*'Rates Table'!S50,0)/100 -> 0 | T37: =IFERROR(Low_Total_Energy*'Rates Table'!T50,0)/100 -> 0 | U37: =IFERROR(Low_Total_Energy*'Rates Table'!U50,0)/100 -> 0 | V37: =IFERROR(Low_Total_Energy*'Rates Table'!V50,0)/100 -> 0 | W37: =IFERROR(Low_Total_Energy*'Rates Table'!W50,0)/100 -> 0 | X37: =IFERROR(Low_Total_Energy*'Rates Table'!X50,0)/100 -> 0 | Y37: =IFERROR(Low_Total_Energy*'Rates Table'!Y50,0)/100 -> 0 | Z37: =IFERROR(Low_Total_Energy*'Rates Table'!Z50,0)/100 -> 0 | AA37: =IFERROR(Low_Total_Energy*'Rates Table'!AA50,0)/100 -> 0 | AB37: =IFERROR(Low_Total_Energy*'Rates Table'!AB50,0)/100 -> 0 | AC37: =IFERROR(Low_Total_Energy*'Rates Table'!AC50,0)/100 -> 0 | AD37: =IFERROR(Low_Total_Energy*'Rates Table'!AD50,0)/100 -> 0 | AE37: =IFERROR(Low_Total_Energy*'Rates Table'!AE50,0)/100 -> 0 | AF37: =IFERROR(Low_Total_Energy*'Rates Table'!AF50,0)/100 -> 0 | AI37: 0 | AJ37: =IFERROR(Low_Total_Energy*'Rates Table'!AJ50,0)/100 -> 0 | AK37: =IFERROR(Low_Total_Energy*'Rates Table'!AK50,0)/100 -> 0 | AL37: =IFERROR(Low_Total_Energy*'Rates Table'!AL50,0)/100 -> 0 | AM37: =IFERROR(Low_Total_Energy*'Rates Table'!AM50,0)/100 -> 0 | AN37: =IFERROR(Low_Total_Energy*'Rates Table'!AN50,0)/100 -> 0 | AO37: =IFERROR(Low_Total_Energy*'Rates Table'!AO50,0)/100 -> 0 | AP37: =IFERROR(Low_Total_Energy*'Rates Table'!AP50,0)/100 -> 0 | AQ37: =IFERROR(Low_Total_Energy*'Rates Table'!AQ50,0)/100 -> 0 | AR37: =IFERROR(Low_Total_Energy*'Rates Table'!AR50,0)/100 -> 0 | AS37: =IFERROR(Low_Total_Energy*'Rates Table'!AS50,0)/100 -> 0 | AT37: =IFERROR(Low_Total_Energy*'Rates Table'!AT50,0)/100 -> 0 | AU37: =IFERROR(Low_Total_Energy*'Rates Table'!AU50,0)/100 -> 0 | AV37: =IFERROR(Low_Total_Energy*'Rates Table'!AV50,0)/100 -> 0 | AW37: =IFERROR(Low_Total_Energy*'Rates Table'!AW50,0)/100 -> 0 | AX37: =IFERROR(Low_Total_Energy*'Rates Table'!AX50,0)/100 -> 0 | AY37: =IFERROR(Low_Total_Energy*'Rates Table'!AY50,0)/100 -> 0 | AZ37: =IFERROR(Low_Total_Energy*'Rates Table'!AZ50,0)/100 -> 0 | BA37: =IFERROR(Low_Total_Energy*'Rates Table'!BA50,0)/100 -> 0 | BB37: =IFERROR(Low_Total_Energy*'Rates Table'!BB50,0)/100 -> 0 | BC37: =IFERROR(Low_Total_Energy*'Rates Table'!BC50,0)/100 -> 0 | BD37: =IFERROR(Low_Total_Energy*'Rates Table'!BD50,0)/100 -> 0 | BE37: =IFERROR(Low_Total_Energy*'Rates Table'!BE50,0)/100 -> 0 | BF37: =IFERROR(Low_Total_Energy*'Rates Table'!BF50,0)/100 -> 0 | BG37: =IFERROR(Low_Total_Energy*'Rates Table'!BG50,0)/100 -> 0 | BH37: =IFERROR(Low_Total_Energy*'Rates Table'!BH50,0)/100 -> 0 | BI37: =IFERROR(Low_Total_Energy*'Rates Table'!BI50,0)/100 -> 0 | BJ37: =IFERROR(Low_Total_Energy*'Rates Table'!BJ50,0)/100 -> 0
C38: Administration charge | D38: R/day | E38: 0 | F38: =IFERROR('Rates Table'!F51*PODs*Low_Days,0) -> 0 | G38: =IFERROR('Rates Table'!G51*PODs*Low_Days,0) -> 0 | H38: =IFERROR('Rates Table'!H51*PODs*Low_Days,0) -> 0 | I38: =IFERROR('Rates Table'!I51*PODs*Low_Days,0) -> 0 | J38: =IFERROR('Rates Table'!J51*PODs*Low_Days,0) -> 0 | K38: =IFERROR('Rates Table'!K51*PODs*Low_Days,0) -> 0 | L38: =IFERROR('Rates Table'!L51*PODs*Low_Days,0) -> 0 | M38: =IFERROR('Rates Table'!M51*PODs*Low_Days,0) -> 0 | N38: =IFERROR('Rates Table'!N51*PODs*Low_Days,0) -> 0 | O38: =IFERROR('Rates Table'!O51*PODs*Low_Days,0) -> 0 | P38: =IFERROR('Rates Table'!P51*PODs*Low_Days,0) -> 0 | Q38: =IFERROR('Rates Table'!Q51*PODs*Low_Days,0) -> 0 | R38: =IFERROR('Rates Table'!R51*PODs*Low_Days,0) -> 0 | S38: =IFERROR('Rates Table'!S51*PODs*Low_Days,0) -> 0 | T38: =IFERROR('Rates Table'!T51*PODs*Low_Days,0) -> 0 | U38: =IFERROR('Rates Table'!U51*PODs*Low_Days,0) -> 0 | V38: =IFERROR('Rates Table'!V51*PODs*Low_Days,0) -> 1010.1 | W38: =IFERROR('Rates Table'!W51*PODs*Low_Days,0) -> 1010.1 | X38: =IFERROR('Rates Table'!X51*PODs*Low_Days,0) -> 1010.1 | Y38: =IFERROR('Rates Table'!Y51*PODs*Low_Days,0) -> 1010.1 | Z38: =IFERROR('Rates Table'!Z51*PODs*Low_Days,0) -> 1010.1 | AA38: =IFERROR('Rates Table'!AA51*PODs*Low_Days,0) -> 1010.1 | AB38: =IFERROR('Rates Table'!AB51*PODs*Low_Days,0) -> 0 | AC38: =IFERROR('Rates Table'!AC51*PODs*Low_Days,0) -> 0 | AD38: =IFERROR('Rates Table'!AD51*PODs*Low_Days,0) -> 0 | AE38: =IFERROR('Rates Table'!AE51*PODs*Low_Days,0) -> 0 | AF38: =IFERROR('Rates Table'!AF51*PODs*Low_Days,0) -> 0 | AI38: 0 | AJ38: =IFERROR('Rates Table'!AJ51*PODs*Low_Days,0) -> 0 | AK38: =IFERROR('Rates Table'!AK51*PODs*Low_Days,0) -> 0 | AL38: =IFERROR('Rates Table'!AL51*PODs*Low_Days,0) -> 0 | AM38: =IFERROR('Rates Table'!AM51*PODs*Low_Days,0) -> 0 | AN38: =IFERROR('Rates Table'!AN51*PODs*Low_Days,0) -> 0 | AO38: =IFERROR('Rates Table'!AO51*PODs*Low_Days,0) -> 0 | AP38: =IFERROR('Rates Table'!AP51*PODs*Low_Days,0) -> 0 | AQ38: =IFERROR('Rates Table'!AQ51*PODs*Low_Days,0) -> 0 | AR38: =IFERROR('Rates Table'!AR51*PODs*Low_Days,0) -> 0 | AS38: =IFERROR('Rates Table'!AS51*PODs*Low_Days,0) -> 0 | AT38: =IFERROR('Rates Table'!AT51*PODs*Low_Days,0) -> 0 | AU38: =IFERROR('Rates Table'!AU51*PODs*Low_Days,0) -> 0 | AV38: =IFERROR('Rates Table'!AV51*PODs*Low_Days,0) -> 0 | AW38: =IFERROR('Rates Table'!AW51*PODs*Low_Days,0) -> 0 | AX38: =IFERROR('Rates Table'!AX51*PODs*Low_Days,0) -> 0 | AY38: =IFERROR('Rates Table'!AY51*PODs*Low_Days,0) -> 0 | AZ38: =IFERROR('Rates Table'!AZ51*PODs*Low_Days,0) -> 1162.98 | BA38: =IFERROR('Rates Table'!BA51*PODs*Low_Days,0) -> 1162.98 | BB38: =IFERROR('Rates Table'!BB51*PODs*Low_Days,0) -> 1162.98 | BC38: =IFERROR('Rates Table'!BC51*PODs*Low_Days,0) -> 1162.98 | BD38: =IFERROR('Rates Table'!BD51*PODs*Low_Days,0) -> 1162.98 | BE38: =IFERROR('Rates Table'!BE51*PODs*Low_Days,0) -> 1162.98 | BF38: =IFERROR('Rates Table'!BF51*PODs*Low_Days,0) -> 0 | BG38: =IFERROR('Rates Table'!BG51*PODs*Low_Days,0) -> 0 | BH38: =IFERROR('Rates Table'!BH51*PODs*Low_Days,0) -> 0 | BI38: =IFERROR('Rates Table'!BI51*PODs*Low_Days,0) -> 0 | BJ38: =IFERROR('Rates Table'!BJ51*PODs*Low_Days,0) -> 0
C39: Service charge | D39: =IF(Table_1=1,"R/day","R/day") -> R/day | E39: 5937.75 | F39: =IFERROR(IF(F$51=1,'Rates Table'!F52*PODs*Low_Days,'Rates Table'!F52*PODs*Low_Days),0) -> 5937.75 | G39: =IFERROR(IF(G$51=1,'Rates Table'!G52*PODs*Low_Days,'Rates Table'!G52*PODs*Low_Days),0) -> 5937.75 | H39: =IFERROR(IF(H$51=1,'Rates Table'!H52*PODs*Low_Days,'Rates Table'!H52*PODs*Low_Days),0) -> 5937.75 | I39: =IFERROR(IF(I$51=1,'Rates Table'!I52*PODs*Low_Days,'Rates Table'!I52*PODs*Low_Days),0) -> 0 | J39: =IFERROR(IF(J$51=1,'Rates Table'!J52*PODs*Low_Days,'Rates Table'!J52*PODs*Low_Days),0) -> 0 | K39: =IFERROR(IF(K$51=1,'Rates Table'!K52*PODs*Low_Days,'Rates Table'!K52*PODs*Low_Days),0) -> 0 | L39: =IFERROR(IF(L$51=1,'Rates Table'!L52*PODs*Low_Days,'Rates Table'!L52*PODs*Low_Days),0) -> 0 | M39: =IFERROR(IF(M$51=1,'Rates Table'!M52*PODs*Low_Days,'Rates Table'!M52*PODs*Low_Days),0) -> 0 | N39: =IFERROR(IF(N$51=1,'Rates Table'!N52*PODs*Low_Days,'Rates Table'!N52*PODs*Low_Days),0) -> 0 | O39: =IFERROR(IF(O$51=1,'Rates Table'!O52*PODs*Low_Days,'Rates Table'!O52*PODs*Low_Days),0) -> 0 | P39: =IFERROR(IF(P$51=1,'Rates Table'!P52*PODs*Low_Days,'Rates Table'!P52*PODs*Low_Days),0) -> 0 | Q39: =IFERROR(IF(Q$51=1,'Rates Table'!Q52*PODs*Low_Days,'Rates Table'!Q52*PODs*Low_Days),0) -> 7482.93 | R39: =IFERROR(IF(R$51=1,'Rates Table'!R52*PODs*Low_Days,'Rates Table'!R52*PODs*Low_Days),0) -> 7482.93 | S39: =IFERROR(IF(S$51=1,'Rates Table'!S52*PODs*Low_Days,'Rates Table'!S52*PODs*Low_Days),0) -> 7482.93 | T39: =IFERROR(IF(T$51=1,'Rates Table'!T52*PODs*Low_Days,'Rates Table'!T52*PODs*Low_Days),0) -> 0 | U39: =IFERROR(IF(U$51=1,'Rates Table'!U52*PODs*Low_Days,'Rates Table'!U52*PODs*Low_Days),0) -> 16048.0047 | V39: =IFERROR(IF(V$51=1,'Rates Table'!V52*PODs*Low_Days,'Rates Table'!V52*PODs*Low_Days),0) -> 4600.05 | W39: =IFERROR(IF(W$51=1,'Rates Table'!W52*PODs*Low_Days,'Rates Table'!W52*PODs*Low_Days),0) -> 4600.05 | X39: =IFERROR(IF(X$51=1,'Rates Table'!X52*PODs*Low_Days,'Rates Table'!X52*PODs*Low_Days),0) -> 4600.05 | Y39: =IFERROR(IF(Y$51=1,'Rates Table'!Y52*PODs*Low_Days,'Rates Table'!Y52*PODs*Low_Days),0) -> 4600.05 | Z39: =IFERROR(IF(Z$51=1,'Rates Table'!Z52*PODs*Low_Days,'Rates Table'!Z52*PODs*Low_Days),0) -> 4600.05 | AA39: =IFERROR(IF(AA$51=1,'Rates Table'!AA52*PODs*Low_Days,'Rates Table'!AA52*PODs*Low_Days),0) -> 4600.05 | AB39: =IFERROR(IF(AB$51=1,'Rates Table'!AB52*PODs*Low_Days,'Rates Table'!AB52*PODs*Low_Days),0) -> 0 | AC39: =IFERROR(IF(AC$51=1,'Rates Table'!AC52*PODs*Low_Days,'Rates Table'!AC52*PODs*Low_Days),0) -> 0 | AD39: =IFERROR(IF(AD$51=1,'Rates Table'!AD52*PODs*Low_Days,'Rates Table'!AD52*PODs*Low_Days),0) -> 0 | AE39: =IFERROR(IF(AE$51=1,'Rates Table'!AE52*PODs*Low_Days,'Rates Table'!AE52*PODs*Low_Days),0) -> 0 | AF39: =IFERROR(IF(AF$51=1,'Rates Table'!AF52*PODs*Low_Days,'Rates Table'!AF52*PODs*Low_Days),0) -> 1774.5 | AI39: 6833.19 | AJ39: =IFERROR(IF(AJ$51=1,'Rates Table'!AJ52*PODs*Low_Days,'Rates Table'!AJ52*PODs*Low_Days),0) -> 6833.19 | AK39: =IFERROR(IF(AK$51=1,'Rates Table'!AK52*PODs*Low_Days,'Rates Table'!AK52*PODs*Low_Days),0) -> 6833.19 | AL39: =IFERROR(IF(AL$51=1,'Rates Table'!AL52*PODs*Low_Days,'Rates Table'!AL52*PODs*Low_Days),0) -> 6833.19 | AM39: =IFERROR(IF(AM$51=1,'Rates Table'!AM52*PODs*Low_Days,'Rates Table'!AM52*PODs*Low_Days),0) -> 0 | AN39: =IFERROR(IF(AN$51=1,'Rates Table'!AN52*PODs*Low_Days,'Rates Table'!AN52*PODs*Low_Days),0) -> 0 | AO39: =IFERROR(IF(AO$51=1,'Rates Table'!AO52*PODs*Low_Days,'Rates Table'!AO52*PODs*Low_Days),0) -> 0 | AP39: =IFERROR(IF(AP$51=1,'Rates Table'!AP52*PODs*Low_Days,'Rates Table'!AP52*PODs*Low_Days),0) -> 0 | AQ39: =IFERROR(IF(AQ$51=1,'Rates Table'!AQ52*PODs*Low_Days,'Rates Table'!AQ52*PODs*Low_Days),0) -> 0 | AR39: =IFERROR(IF(AR$51=1,'Rates Table'!AR52*PODs*Low_Days,'Rates Table'!AR52*PODs*Low_Days),0) -> 0 | AS39: =IFERROR(IF(AS$51=1,'Rates Table'!AS52*PODs*Low_Days,'Rates Table'!AS52*PODs*Low_Days),0) -> 0 | AT39: =IFERROR(IF(AT$51=1,'Rates Table'!AT52*PODs*Low_Days,'Rates Table'!AT52*PODs*Low_Days),0) -> 0 | AU39: =IFERROR(IF(AU$51=1,'Rates Table'!AU52*PODs*Low_Days,'Rates Table'!AU52*PODs*Low_Days),0) -> 8610.42 | AV39: =IFERROR(IF(AV$51=1,'Rates Table'!AV52*PODs*Low_Days,'Rates Table'!AV52*PODs*Low_Days),0) -> 8610.42 | AW39: =IFERROR(IF(AW$51=1,'Rates Table'!AW52*PODs*Low_Days,'Rates Table'!AW52*PODs*Low_Days),0) -> 8610.42 | AX39: =IFERROR(IF(AX$51=1,'Rates Table'!AX52*PODs*Low_Days,'Rates Table'!AX52*PODs*Low_Days),0) -> 0 | AY39: =IFERROR(IF(AY$51=1,'Rates Table'!AY52*PODs*Low_Days,'Rates Table'!AY52*PODs*Low_Days),0) -> 18465.9657 | AZ39: =IFERROR(IF(AZ$51=1,'Rates Table'!AZ52*PODs*Low_Days,'Rates Table'!AZ52*PODs*Low_Days),0) -> 5293.47 | BA39: =IFERROR(IF(BA$51=1,'Rates Table'!BA52*PODs*Low_Days,'Rates Table'!BA52*PODs*Low_Days),0) -> 5293.47 | BB39: =IFERROR(IF(BB$51=1,'Rates Table'!BB52*PODs*Low_Days,'Rates Table'!BB52*PODs*Low_Days),0) -> 5293.47 | BC39: =IFERROR(IF(BC$51=1,'Rates Table'!BC52*PODs*Low_Days,'Rates Table'!BC52*PODs*Low_Days),0) -> 5293.47 | BD39: =IFERROR(IF(BD$51=1,'Rates Table'!BD52*PODs*Low_Days,'Rates Table'!BD52*PODs*Low_Days),0) -> 5293.47 | BE39: =IFERROR(IF(BE$51=1,'Rates Table'!BE52*PODs*Low_Days,'Rates Table'!BE52*PODs*Low_Days),0) -> 5293.47 | BF39: =IFERROR(IF(BF$51=1,'Rates Table'!BF52*PODs*Low_Days,'Rates Table'!BF52*PODs*Low_Days),0) -> 0 | BG39: =IFERROR(IF(BG$51=1,'Rates Table'!BG52*PODs*Low_Days,'Rates Table'!BG52*PODs*Low_Days),0) -> 0 | BH39: =IFERROR(IF(BH$51=1,'Rates Table'!BH52*PODs*Low_Days,'Rates Table'!BH52*PODs*Low_Days),0) -> 0 | BI39: =IFERROR(IF(BI$51=1,'Rates Table'!BI52*PODs*Low_Days,'Rates Table'!BI52*PODs*Low_Days),0) -> 0 | BJ39: =IFERROR(IF(BJ$51=1,'Rates Table'!BJ52*PODs*Low_Days,'Rates Table'!BJ52*PODs*Low_Days),0) -> 2042.04
B41: Total other charges | E41: =SUM(E33:E39) -> 5937.75 | F41: 5937.75 | G41: 5937.75 | H41: 5937.75 | I41: 0 | J41: 0 | K41: 0 | L41: 0 | M41: 0 | N41: 0 | O41: 0 | P41: 0 | Q41: 7482.93 | R41: 7482.93 | S41: 7482.93 | T41: 0 | U41: 16048.0047 | V41: 5610.15 | W41: 5610.15 | X41: 5610.15 | Y41: 5610.15 | Z41: 5610.15 | AA41: 5610.15 | AB41: =SUM(AB33:AB39) -> 0 | AC41: 0 | AD41: 0 | AE41: 0 | AF41: 1774.5 | AI41: =SUM(AI33:AI39) -> 6833.19 | AJ41: 6833.19 | AK41: 6833.19 | AL41: 6833.19 | AM41: 0 | AN41: 0 | AO41: 0 | AP41: 0 | AQ41: 0 | AR41: 0 | AS41: 0 | AT41: 0 | AU41: 8610.42 | AV41: 8610.42 | AW41: 8610.42 | AX41: 0 | AY41: 18465.9657 | AZ41: 6456.45 | BA41: 6456.45 | BB41: 6456.45 | BC41: 6456.45 | BD41: 6456.45 | BE41: 6456.45 | BF41: =SUM(BF33:BF39) -> 0 | BG41: 0 | BH41: 0 | BI41: 0 | BJ41: 2042.04
B43: Total excl VAT | E43: =E41+E30+E17 -> 12811.89 | F43: 12811.89 | G43: 17518.41 | H43: 25945.92 | I43: 0 | J43: 0 | K43: 0 | L43: 1700.79 | M43: 3188.64 | N43: 6584.76 | O43: 1040.13 | P43: 0 | Q43: 16494.66 | R43: 21334.95 | S43: 29625.96 | T43: 7174.44 | U43: 16048.0047 | V43: 5610.15 | W43: 5610.15 | X43: 5610.15 | Y43: 5610.15 | Z43: 5610.15 | AA43: 5610.15 | AB43: =AB41+AB30+AB17 -> 0 | AC43: 0 | AD43: 0 | AE43: 0 | AF43: 1774.5 | AI43: =AI41+AI30+AI17 -> 14742 | AJ43: 14742 | AK43: 20158.32 | AL43: 29855.28 | AM43: 0 | AN43: 0 | AO43: 0 | AP43: 1957.41 | AQ43: 3669.12 | AR43: 7575.75 | AS43: 1195.74 | AT43: 12424.23 | AU43: 18978.96 | AV43: 24548.16 | AW43: 34089.51 | AX43: 8255.52 | AY43: 18465.9657 | AZ43: 6456.45 | BA43: 6456.45 | BB43: 6456.45 | BC43: 6456.45 | BD43: 6456.45 | BE43: 6456.45 | BF43: =BF41+BF30+BF17 -> 0 | BG43: 0 | BH43: 0 | BI43: 0 | BJ43: 2042.04
B44: VAT | D44: ='Bill Comparison'!D56 -> 0.15 | E44: =E43*$D44 -> 1921.7835 | F44: =F43*$D44 -> 1921.7835 | G44: 2627.7615 | H44: 3891.888 | I44: 0 | J44: 0 | K44: 0 | L44: 255.1185 | M44: 478.296 | N44: 987.714 | O44: 156.0195 | P44: 0 | Q44: 2474.199 | R44: 3200.2425 | S44: 4443.894 | T44: 1076.166 | U44: 2407.200705 | V44: 841.5225 | W44: 841.5225 | X44: 841.5225 | Y44: 841.5225 | Z44: 841.5225 | AA44: 841.5225 | AB44: =AB43*$D44 -> 0 | AC44: 0 | AD44: 0 | AE44: 0 | AF44: 266.175 | AI44: =AI43*$D44 -> 2211.3 | AJ44: =AJ43*$D44 -> 2211.3 | AK44: 3023.748 | AL44: 4478.292 | AM44: 0 | AN44: 0 | AO44: 0 | AP44: 293.6115 | AQ44: 550.368 | AR44: 1136.3625 | AS44: 179.361 | AT44: 1863.6345 | AU44: 2846.844 | AV44: 3682.224 | AW44: 5113.4265 | AX44: 1238.328 | AY44: 2769.894855 | AZ44: 968.4675 | BA44: 968.4675 | BB44: 968.4675 | BC44: 968.4675 | BD44: 968.4675 | BE44: 968.4675 | BF44: =BF43*$D44 -> 0 | BG44: 0 | BH44: 0 | BI44: 0 | BJ44: 306.306
B46: Total account | E46: =SUM(E43:E44) -> 14733.6735 | F46: =SUM(F43:F44) -> 14733.6735 | G46: 20146.1715 | H46: 29837.808 | I46: 0 | J46: 0 | K46: 0 | L46: 1955.9085 | M46: 3666.936 | N46: 7572.474 | O46: 1196.1495 | P46: 0 | Q46: 18968.859 | R46: 24535.1925 | S46: 34069.854 | T46: 8250.606 | U46: 18455.20541 | V46: 6451.6725 | W46: 6451.6725 | X46: 6451.6725 | Y46: 6451.6725 | Z46: 6451.6725 | AA46: 6451.6725 | AB46: =SUM(AB43:AB44) -> 0 | AC46: 0 | AD46: 0 | AE46: 0 | AF46: 2040.675 | AI46: =SUM(AI43:AI44) -> 16953.3 | AJ46: =SUM(AJ43:AJ44) -> 16953.3 | AK46: 23182.068 | AL46: 34333.572 | AM46: 0 | AN46: 0 | AO46: 0 | AP46: 2251.0215 | AQ46: 4219.488 | AR46: 8712.1125 | AS46: 1375.101 | AT46: 14287.8645 | AU46: 21825.804 | AV46: 28230.384 | AW46: 39202.9365 | AX46: 9493.848 | AY46: 21235.86055 | AZ46: 7424.9175 | BA46: 7424.9175 | BB46: 7424.9175 | BC46: 7424.9175 | BD46: 7424.9175 | BE46: 7424.9175 | BF46: =SUM(BF43:BF44) -> 0 | BG46: 0 | BH46: 0 | BI46: 0 | BJ46: 2348.346
B48: Average price c/kWh | E48: =E43/Low_Total_Energy*100 ->  | AB48: =AB43/Low_Total_Energy*100 ->  | AI48: =AI43/Low_Total_Energy*100 ->  | BF48: =BF43/Low_Total_Energy*100 -> 
B50: Check tables
C51: Table 1 | E51: =INDEX(F51:AE51,0,Selected_Tariff_ID) -> 0 | F51: ='Rates Table'!F63 -> 0 | G51: ='Rates Table'!G63 -> 0 | H51: ='Rates Table'!H63 -> 0 | I51: ='Rates Table'!I63 -> 0 | J51: ='Rates Table'!J63 -> 0 | K51: ='Rates Table'!K63 -> 0 | L51: ='Rates Table'!L63 -> 0 | M51: ='Rates Table'!M63 -> 0 | N51: ='Rates Table'!N63 -> 0 | O51: ='Rates Table'!O63 -> 0 | P51: ='Rates Table'!P63 -> 0 | Q51: ='Rates Table'!Q63 -> 0 | R51: ='Rates Table'!R63 -> 0 | S51: ='Rates Table'!S63 -> 0 | T51: ='Rates Table'!T63 -> 0 | U51: ='Rates Table'!U63 -> 0 | V51: ='Rates Table'!V63 -> 1 | W51: ='Rates Table'!W63 -> 1 | X51: ='Rates Table'!X63 -> 1 | Y51: ='Rates Table'!Y63 -> 1 | Z51: ='Rates Table'!Z63 -> 1 | AA51: ='Rates Table'!AA63 -> 1 | AB51: ='Rates Table'!AB63 -> 0 | AC51: ='Rates Table'!AC63 -> 0 | AD51: ='Rates Table'!AD63 -> 0 | AE51: ='Rates Table'!AE63 -> 0 | AF51: ='Rates Table'!AF63 -> 0 | AI51: =INDEX(AJ51:BI51,0,Selected_Tariff_ID) -> 0 | AJ51: =F51 -> 0 | AK51: 0 | AL51: 0 | AM51: 0 | AN51: 0 | AO51: 0 | AP51: 0 | AQ51: 0 | AR51: 0 | AS51: 0 | AT51: 0 | AU51: 0 | AV51: 0 | AW51: 0 | AX51: 0 | AY51: 0 | AZ51: 1 | BA51: 1 | BB51: 1 | BC51: 1 | BD51: 1 | BE51: 1 | BF51: =AB51 -> 0 | BG51: =AC51 -> 0 | BH51: =AD51 -> 0 | BI51: =AE51 -> 0 | BJ51: =AF51 -> 0
C52: Tariff Type | E52: =Selected_Tariff_Type -> Urban | F52: =INDEX(Full_Tariff_Type,F$7,) -> Urban | G52: Urban | H52: Urban | I52: Urban | J52: Urban | K52: Urban | L52: Urban | M52: Urban | N52: Urban | O52: Urban | P52: Urban | Q52: Rural | R52: Rural | S52: Rural | T52: Rural | U52: Rural | V52: Urban | W52: Urban | X52: Urban | Y52: Rural | Z52: Urban | AA52: Rural | AB52: Rural | AC52: Rural | AD52: Urban | AE52: Urban | AF52: Urban | AI52: =E52 -> Urban | AJ52: Urban | AK52: Urban | AL52: Urban | AM52: Urban | AN52: Urban | AO52: Urban | AP52: Urban | AQ52: Urban | AR52: Urban | AS52: Urban | AT52: Urban | AU52: Rural | AV52: Rural | AW52: Rural | AX52: Rural | AY52: Rural | AZ52: Urban | BA52: Urban | BB52: Urban | BC52: Rural | BD52: Urban | BE52: Rural | BF52: Rural | BG52: Rural | BH52: Urban | BI52: Urban | BJ52: Urban

Sheet Rates Table (hidden)
B4: Rates by Tariff
B6: Tariffs | E6: =Selected_Base_Tariff -> Businessrate 1 | F6: =INDEX(Full_Tariff_List,F$7,) -> Businessrate 1 | G6: Businessrate 2 | H6: Businessrate 3 | I6: Businessrate 4 | J6: Homelight 20A | K6: Homelight 60A | L6: Homepower 1 | M6: Homepower 2 | N6: Homepower 3 | O6: Homepower 4 | P6: Homepower Bulk | Q6: Landrate 1 | R6: Landrate 2 | S6: Landrate 3 | T6: Landrate 4 | U6: Landrate Dx | V6: Megaflex | W6: Miniflex | X6: Nightsave Large | Y6: Nightsave Rural | Z6: Nightsave Small | AA6: Ruraflex | AB6: Landlight 20A | AC6: Landlight 60A | AD6: Public Lighting 24 Hours | AE6: Public Lighting All Night | AF6: Public Lighting Urban Fixed | AI6: =E6 -> Businessrate 1 | AJ6: Businessrate 1 | AK6: Businessrate 2 | AL6: Businessrate 3 | AM6: Businessrate 4 | AN6: Homelight 20A | AO6: Homelight 60A | AP6: Homepower 1 | AQ6: Homepower 2 | AR6: Homepower 3 | AS6: Homepower 4 | AT6: Homepower Bulk | AU6: Landrate 1 | AV6: Landrate 2 | AW6: Landrate 3 | AX6: Landrate 4 | AY6: Landrate Dx | AZ6: Megaflex | BA6: Miniflex | BB6: Nightsave Large | BC6: Nightsave Rural | BD6: Nightsave Small | BE6: Ruraflex | BF6: =AB6 -> Landlight 20A | BG6: Landlight 60A | BH6: Public Lighting 24 Hours | BI6: Public Lighting All Night | BJ6: Public Lighting Urban Fixed
F7: 1 | G7: =F7+1 -> 2 | H7: =G7+1 -> 3 | I7: 4 | J7: 5 | K7: 6 | L7: 7 | M7: 8 | N7: 9 | O7: 10 | P7: 11 | Q7: 12 | R7: 13 | S7: 14 | T7: 15 | U7: 16 | V7: =U7+1 -> 17 | W7: 18 | X7: 19 | Y7: 20 | Z7: 21 | AA7: 22 | AB7: =AA7+1 -> 23 | AC7: =AB7+1 -> 24 | AD7: =AC7+1 -> 25 | AE7: =AD7+1 -> 26 | AF7: 27
B8: Network charges | D8: Units | E8: =Current_Period&" Rates" -> 2020/2021 Rates | F8: 2020/2021 Rates | G8: 2020/2021 Rates | H8: 2020/2021 Rates | I8: 2020/2021 Rates | J8: 2020/2021 Rates | K8: 2020/2021 Rates | L8: 2020/2021 Rates | M8: 2020/2021 Rates | N8: 2020/2021 Rates | O8: 2020/2021 Rates | P8: 2020/2021 Rates | Q8: 2020/2021 Rates | R8: 2020/2021 Rates | S8: 2020/2021 Rates | T8: 2020/2021 Rates | U8: 2020/2021 Rates | V8: 2020/2021 Rates | W8: 2020/2021 Rates | X8: 2020/2021 Rates | Y8: 2020/2021 Rates | Z8: 2020/2021 Rates | AA8: 2020/2021 Rates | AB8: 2020/2021 Rates | AC8: 2020/2021 Rates | AD8: 2020/2021 Rates | AE8: 2020/2021 Rates | AF8: 2020/2021 Rates | AI8: =New_Period&" Rates" -> 2021/2022 Rates | AJ8: =AI8 -> 2021/2022 Rates | AK8: =AJ8 -> 2021/2022 Rates | AL8: 2021/2022 Rates | AM8: 2021/2022 Rates | AN8: 2021/2022 Rates | AO8: 2021/2022 Rates | AP8: 2021/2022 Rates | AQ8: 2021/2022 Rates | AR8: 2021/2022 Rates | AS8: 2021/2022 Rates | AT8: 2021/2022 Rates | AU8: 2021/2022 Rates | AV8: 2021/2022 Rates | AW8: 2021/2022 Rates | AX8: 2021/2022 Rates | AY8: 2021/2022 Rates | AZ8: 2021/2022 Rates | BA8: 2021/2022 Rates | BB8: 2021/2022 Rates | BC8: 2021/2022 Rates | BD8: 2021/2022 Rates | BE8: 2021/2022 Rates | BF8: =BE8 -> 2021/2022 Rates | BG8: =BF8 -> 2021/2022 Rates | BH8: =BG8 -> 2021/2022 Rates | BI8: =BH8 -> 2021/2022 Rates | BJ8: =BI8 -> 2021/2022 Rates
C10: Transmission network charge | D10: R/kVA | E10: =INDEX(F10:AG10,0,Selected_Tariff_ID) -> n/a | F10: =IF(F$63=1,INDEX(Rates_Energy_Current[Transmission Network Charges],MATCH(F$57,Rates_Energy_Current[Code],0)),"n/a") -> n/a | G10: =IF(G$63=1,INDEX(Rates_Energy_Current[Transmission Network Charges],MATCH(G$57,Rates_Energy_Current[Code],0)),"n/a") -> n/a | H10: =IF(H$63=1,INDEX(Rates_Energy_Current[Transmission Network Charges],MATCH(H$57,Rates_Energy_Current[Code],0)),"n/a") -> n/a | I10: =IF(I$63=1,INDEX(Rates_Energy_Current[Transmission Network Charges],MATCH(I$57,Rates_Energy_Current[Code],0)),"n/a") -> n/a | J10: =IF(J$63=1,INDEX(Rates_Energy_Current[Transmission Network Charges],MATCH(J$57,Rates_Energy_Current[Code],0)),"n/a") -> n/a | K10: =IF(K$63=1,INDEX(Rates_Energy_Current[Transmission Network Charges],MATCH(K$57,Rates_Energy_Current[Code],0)),"n/a") -> n/a | L10: =IF(L$63=1,INDEX(Rates_Energy_Current[Transmission Network Charges],MATCH(L$57,Rates_Energy_Current[Code],0)),"n/a") -> n/a | M10: =IF(M$63=1,INDEX(Rates_Energy_Current[Transmission Network Charges],MATCH(M$57,Rates_Energy_Current[Code],0)),"n/a") -> n/a | N10: =IF(N$63=1,INDEX(Rates_Energy_Current[Transmission Network Charges],MATCH(N$57,Rates_Energy_Current[Code],0)),"n/a") -> n/a | O10: =IF(O$63=1,INDEX(Rates_Energy_Current[Transmission Network Charges],MATCH(O$57,Rates_Energy_Current[Code],0)),"n/a") -> n/a | P10: =IF(P$63=1,INDEX(Rates_Energy_Current[Transmission Network Charges],MATCH(P$57,Rates_Energy_Current[Code],0)),"n/a") -> n/a | Q10: =IF(Q$63=1,INDEX(Rates_Energy_Current[Transmission Network Charges],MATCH(Q$57,Rates_Energy_Current[Code],0)),"n/a") -> n/a | R10: =IF(R$63=1,INDEX(Rates_Energy_Current[Transmission Network Charges],MATCH(R$57,Rates_Energy_Current[Code],0)),"n/a") -> n/a | S10: =IF(S$63=1,INDEX(Rates_Energy_Current[Transmission Network Charges],MATCH(S$57,Rates_Energy_Current[Code],0)),"n/a") -> n/a | T10: =IF(T$63=1,INDEX(Rates_Energy_Current[Transmission Network Charges],MATCH(T$57,Rates_Energy_Current[Code],0)),"n/a") -> n/a | U10: =IF(U$63=1,INDEX(Rates_Energy_Current[Transmission Network Charges],MATCH(U$57,Rates_Energy_Current[Code],0)),"n/a") -> n/a | V10: =IF(V$63=1,INDEX(Rates_Energy_Current[Transmission Network Charges],MATCH(V$57,Rates_Energy_Current[Code],0)),"n/a") -> 10.45 | W10: =IF(W$63=1,INDEX(Rates_Energy_Current[Transmission Network Charges],MATCH(W$57,Rates_Energy_Current[Code],0)),"n/a") -> n/a | X10: =IF(X$63=1,INDEX(Rates_Energy_Current[Transmission Network Charges],MATCH(X$57,Rates_Energy_Current[Code],0)),"n/a") -> 10.45 | Y10: =IF(Y$63=1,INDEX(Rates_Energy_Current[Transmission Network Charges],MATCH(Y$57,Rates_Energy_Current[Code],0)),"n/a") -> n/a | Z10: =IF(Z$63=1,INDEX(Rates_Energy_Current[Transmission Network Charges],MATCH(Z$57,Rates_Energy_Current[Code],0)),"n/a") -> 10.45 | AA10: =IF(AA$63=1,INDEX(Rates_Energy_Current[Transmission Network Charges],MATCH(AA$57,Rates_Energy_Current[Code],0)),"n/a") -> n/a | AB10: =IF(AB$63=1,INDEX(Rates_Energy_Current[Transmission Network Charges],MATCH(AB$57,Rates_Energy_Current[Code],0)),"n/a") -> n/a | AC10: =IF(AC$63=1,INDEX(Rates_Energy_Current[Transmission Network Charges],MATCH(AC$57,Rates_Energy_Current[Code],0)),"n/a") -> n/a | AD10: =IF(AD$63=1,INDEX(Rates_Energy_Current[Transmission Network Charges],MATCH(AD$57,Rates_Energy_Current[Code],0)),"n/a") -> n/a | AE10: =IF(AE$63=1,INDEX(Rates_Energy_Current[Transmission Network Charges],MATCH(AE$57,Rates_Energy_Current[Code],0)),"n/a") -> n/a | AF10: =IF(AF$63=1,INDEX(Rates_Energy_Current[Transmission Network Charges],MATCH(AF$57,Rates_Energy_Current[Code],0)),"n/a") -> n/a | AI10: =INDEX(AJ10:BK10,0,Selected_Tariff_ID) -> n/a | AJ10: =IF(AJ$63=1,INDEX(Rates_Energy_New[Transmission Network Charges],MATCH(AJ$57,Rates_Energy_New[Code],0)),"n/a") -> n/a | AK10: =IF(AK$63=1,INDEX(Rates_Energy_New[Transmission Network Charges],MATCH(AK$57,Rates_Energy_New[Code],0)),"n/a") -> n/a | AL10: =IF(AL$63=1,INDEX(Rates_Energy_New[Transmission Network Charges],MATCH(AL$57,Rates_Energy_New[Code],0)),"n/a") -> n/a | AM10: =IF(AM$63=1,INDEX(Rates_Energy_New[Transmission Network Charges],MATCH(AM$57,Rates_Energy_New[Code],0)),"n/a") -> n/a | AN10: =IF(AN$63=1,INDEX(Rates_Energy_New[Transmission Network Charges],MATCH(AN$57,Rates_Energy_New[Code],0)),"n/a") -> n/a | AO10: =IF(AO$63=1,INDEX(Rates_Energy_New[Transmission Network Charges],MATCH(AO$57,Rates_Energy_New[Code],0)),"n/a") -> n/a | AP10: =IF(AP$63=1,INDEX(Rates_Energy_New[Transmission Network Charges],MATCH(AP$57,Rates_Energy_New[Code],0)),"n/a") -> n/a | AQ10: =IF(AQ$63=1,INDEX(Rates_Energy_New[Transmission Network Charges],MATCH(AQ$57,Rates_Energy_New[Code],0)),"n/a") -> n/a | AR10: =IF(AR$63=1,INDEX(Rates_Energy_New[Transmission Network Charges],MATCH(AR$57,Rates_Energy_New[Code],0)),"n/a") -> n/a | AS10: =IF(AS$63=1,INDEX(Rates_Energy_New[Transmission Network Charges],MATCH(AS$57,Rates_Energy_New[Code],0)),"n/a") -> n/a | AT10: =IF(AT$63=1,INDEX(Rates_Energy_New[Transmission Network Charges],MATCH(AT$57,Rates_Energy_New[Code],0)),"n/a") -> n/a | AU10: =IF(AU$63=1,INDEX(Rates_Energy_New[Transmission Network Charges],MATCH(AU$57,Rates_Energy_New[Code],0)),"n/a") -> n/a | AV10: =IF(AV$63=1,INDEX(Rates_Energy_New[Transmission Network Charges],MATCH(AV$57,Rates_Energy_New[Code],0)),"n/a") -> n/a | AW10: =IF(AW$63=1,INDEX(Rates_Energy_New[Transmission Network Charges],MATCH(AW$57,Rates_Energy_New[Code],0)),"n/a") -> n/a | AX10: =IF(AX$63=1,INDEX(Rates_Energy_New[Transmission Network Charges],MATCH(AX$57,Rates_Energy_New[Code],0)),"n/a") -> n/a | AY10: =IF(AY$63=1,INDEX(Rates_Energy_New[Transmission Network Charges],MATCH(AY$57,Rates_Energy_New[Code],0)),"n/a") -> n/a | AZ10: =IF(AZ$63=1,INDEX(Rates_Energy_New[Transmission Network Charges],MATCH(AZ$57,Rates_Energy_New[Code],0)),"n/a") -> 12.02 | BA10: =IF(BA$63=1,INDEX(Rates_Energy_New[Transmission Network Charges],MATCH(BA$57,Rates_Energy_New[Code],0)),"n/a") -> n/a | BB10: =IF(BB$63=1,INDEX(Rates_Energy_New[Transmission Network Charges],MATCH(BB$57,Rates_Energy_New[Code],0)),"n/a") -> 12.02 | BC10: =IF(BC$63=1,INDEX(Rates_Energy_New[Transmission Network Charges],MATCH(BC$57,Rates_Energy_New[Code],0)),"n/a") -> n/a | BD10: =IF(BD$63=1,INDEX(Rates_Energy_New[Transmission Network Charges],MATCH(BD$57,Rates_Energy_New[Code],0)),"n/a") -> 12.02 | BE10: =IF(BE$63=1,INDEX(Rates_Energy_New[Transmission Network Charges],MATCH(BE$57,Rates_Energy_New[Code],0)),"n/a") -> n/a | BF10: =IF(BF$63=1,INDEX(Rates_Energy_New[Transmission Network Charges],MATCH(BF$57,Rates_Energy_New[Code],0)),"n/a") -> n/a | BG10: =IF(BG$63=1,INDEX(Rates_Energy_New[Transmission Network Charges],MATCH(BG$57,Rates_Energy_New[Code],0)),"n/a") -> n/a | BH10: =IF(BH$63=1,INDEX(Rates_Energy_New[Transmission Network Charges],MATCH(BH$57,Rates_Energy_New[Code],0)),"n/a") -> n/a | BI10: =IF(BI$63=1,INDEX(Rates_Energy_New[Transmission Network Charges],MATCH(BI$57,Rates_Energy_New[Code],0)),"n/a") -> n/a | BJ10: =IF(BJ$63=1,INDEX(Rates_Energy_New[Transmission Network Charges],MATCH(BJ$57,Rates_Energy_New[Code],0)),"n/a") -> n/a
C11: Distribution network capacity charge | D11: R/kVA | E11: n/a | F11: =IF(F$63=1,INDEX(Rates_Distr_Network_Current[Network capacity charge R/kVA/m],MATCH(F$58,Rates_Distr_Network_Current[Code],0)),"n/a") -> n/a | G11: =IF(G$63=1,INDEX(Rates_Distr_Network_Current[Network capacity charge R/kVA/m],MATCH(G$58,Rates_Distr_Network_Current[Code],0)),"n/a") -> n/a | H11: =IF(H$63=1,INDEX(Rates_Distr_Network_Current[Network capacity charge R/kVA/m],MATCH(H$58,Rates_Distr_Network_Current[Code],0)),"n/a") -> n/a | I11: =IF(I$63=1,INDEX(Rates_Distr_Network_Current[Network capacity charge R/kVA/m],MATCH(I$58,Rates_Distr_Network_Current[Code],0)),"n/a") -> n/a | J11: =IF(J$63=1,INDEX(Rates_Distr_Network_Current[Network capacity charge R/kVA/m],MATCH(J$58,Rates_Distr_Network_Current[Code],0)),"n/a") -> n/a | K11: =IF(K$63=1,INDEX(Rates_Distr_Network_Current[Network capacity charge R/kVA/m],MATCH(K$58,Rates_Distr_Network_Current[Code],0)),"n/a") -> n/a | L11: =IF(L$63=1,INDEX(Rates_Distr_Network_Current[Network capacity charge R/kVA/m],MATCH(L$58,Rates_Distr_Network_Current[Code],0)),"n/a") -> n/a | M11: =IF(M$63=1,INDEX(Rates_Distr_Network_Current[Network capacity charge R/kVA/m],MATCH(M$58,Rates_Distr_Network_Current[Code],0)),"n/a") -> n/a | N11: =IF(N$63=1,INDEX(Rates_Distr_Network_Current[Network capacity charge R/kVA/m],MATCH(N$58,Rates_Distr_Network_Current[Code],0)),"n/a") -> n/a | O11: =IF(O$63=1,INDEX(Rates_Distr_Network_Current[Network capacity charge R/kVA/m],MATCH(O$58,Rates_Distr_Network_Current[Code],0)),"n/a") -> n/a | P11: =IF(P$63=1,INDEX(Rates_Distr_Network_Current[Network capacity charge R/kVA/m],MATCH(P$58,Rates_Distr_Network_Current[Code],0)),"n/a") -> n/a | Q11: =IF(Q$63=1,INDEX(Rates_Distr_Network_Current[Network capacity charge R/kVA/m],MATCH(Q$58,Rates_Distr_Network_Current[Code],0)),"n/a") -> n/a | R11: =IF(R$63=1,INDEX(Rates_Distr_Network_Current[Network capacity charge R/kVA/m],MATCH(R$58,Rates_Distr_Network_Current[Code],0)),"n/a") -> n/a | S11: =IF(S$63=1,INDEX(Rates_Distr_Network_Current[Network capacity charge R/kVA/m],MATCH(S$58,Rates_Distr_Network_Current[Code],0)),"n/a") -> n/a | T11: =IF(T$63=1,INDEX(Rates_Distr_Network_Current[Network capacity charge R/kVA/m],MATCH(T$58,Rates_Distr_Network_Current[Code],0)),"n/a") -> n/a | U11: =IF(U$63=1,INDEX(Rates_Distr_Network_Current[Network capacity charge R/kVA/m],MATCH(U$58,Rates_Distr_Network_Current[Code],0)),"n/a") -> n/a | V11: =IF(V$63=1,INDEX(Rates_Distr_Network_Current[Network capacity charge R/kVA/m],MATCH(V$58,Rates_Distr_Network_Current[Code],0)),"n/a") -> 20.62 | W11: =IF(W$63=1,INDEX(Rates_Distr_Network_Current[Network capacity charge R/kVA/m],MATCH(W$58,Rates_Distr_Network_Current[Code],0)),"n/a") -> n/a | X11: =IF(X$63=1,INDEX(Rates_Distr_Network_Current[Network capacity charge R/kVA/m],MATCH(X$58,Rates_Distr_Network_Current[Code],0)),"n/a") -> 20.62 | Y11: =IF(Y$63=1,INDEX(Rates_Distr_Network_Current[Network capacity charge R/kVA/m],MATCH(Y$58,Rates_Distr_Network_Current[Code],0)),"n/a") -> n/a | Z11: =IF(Z$63=1,INDEX(Rates_Distr_Network_Current[Network capacity charge R/kVA/m],MATCH(Z$58,Rates_Distr_Network_Current[Code],0)),"n/a") -> 20.62 | AA11: =IF(AA$63=1,INDEX(Rates_Distr_Network_Current[Network capacity charge R/kVA/m],MATCH(AA$58,Rates_Distr_Network_Current[Code],0)),"n/a") -> n/a | AB11: =IF(AB$63=1,INDEX(Rates_Distr_Network_Current[Network capacity charge R/kVA/m],MATCH(AB$58,Rates_Distr_Network_Current[Code],0)),"n/a") -> n/a | AC11: =IF(AC$63=1,INDEX(Rates_Distr_Network_Current[Network capacity charge R/kVA/m],MATCH(AC$58,Rates_Distr_Network_Current[Code],0)),"n/a") -> n/a | AD11: =IF(AD$63=1,INDEX(Rates_Distr_Network_Current[Network capacity charge R/kVA/m],MATCH(AD$58,Rates_Distr_Network_Current[Code],0)),"n/a") -> n/a | AE11: =IF(AE$63=1,INDEX(Rates_Distr_Network_Current[Network capacity charge R/kVA/m],MATCH(AE$58,Rates_Distr_Network_Current[Code],0)),"n/a") -> n/a | AF11: =IF(AF$63=1,INDEX(Rates_Distr_Network_Current[Network capacity charge R/kVA/m],MATCH(AF$58,Rates_Distr_Network_Current[Code],0)),"n/a") -> n/a | AI11: n/a | AJ11: =IF(AJ$63=1,INDEX(Rates_Distr_Network_New[Network capacity charge R/kVA/m],MATCH(AJ$58,Rates_Distr_Network_New[Code],0)),"n/a") -> n/a | AK11: =IF(AK$63=1,INDEX(Rates_Distr_Network_New[Network capacity charge R/kVA/m],MATCH(AK$58,Rates_Distr_Network_New[Code],0)),"n/a") -> n/a | AL11: =IF(AL$63=1,INDEX(Rates_Distr_Network_New[Network capacity charge R/kVA/m],MATCH(AL$58,Rates_Distr_Network_New[Code],0)),"n/a") -> n/a | AM11: =IF(AM$63=1,INDEX(Rates_Distr_Network_New[Network capacity charge R/kVA/m],MATCH(AM$58,Rates_Distr_Network_New[Code],0)),"n/a") -> n/a | AN11: =IF(AN$63=1,INDEX(Rates_Distr_Network_New[Network capacity charge R/kVA/m],MATCH(AN$58,Rates_Distr_Network_New[Code],0)),"n/a") -> n/a | AO11: =IF(AO$63=1,INDEX(Rates_Distr_Network_New[Network capacity charge R/kVA/m],MATCH(AO$58,Rates_Distr_Network_New[Code],0)),"n/a") -> n/a | AP11: =IF(AP$63=1,INDEX(Rates_Distr_Network_New[Network capacity charge R/kVA/m],MATCH(AP$58,Rates_Distr_Network_New[Code],0)),"n/a") -> n/a | AQ11: =IF(AQ$63=1,INDEX(Rates_Distr_Network_New[Network capacity charge R/kVA/m],MATCH(AQ$58,Rates_Distr_Network_New[Code],0)),"n/a") -> n/a | AR11: =IF(AR$63=1,INDEX(Rates_Distr_Network_New[Network capacity charge R/kVA/m],MATCH(AR$58,Rates_Distr_Network_New[Code],0)),"n/a") -> n/a | AS11: =IF(AS$63=1,INDEX(Rates_Distr_Network_New[Network capacity charge R/kVA/m],MATCH(AS$58,Rates_Distr_Network_New[Code],0)),"n/a") -> n/a | AT11: =IF(AT$63=1,INDEX(Rates_Distr_Network_New[Network capacity charge R/kVA/m],MATCH(AT$58,Rates_Distr_Network_New[Code],0)),"n/a") -> n/a | AU11: =IF(AU$63=1,INDEX(Rates_Distr_Network_New[Network capacity charge R/kVA/m],MATCH(AU$58,Rates_Distr_Network_New[Code],0)),"n/a") -> n/a | AV11: =IF(AV$63=1,INDEX(Rates_Distr_Network_New[Network capacity charge R/kVA/m],MATCH(AV$58,Rates_Distr_Network_New[Code],0)),"n/a") -> n/a | AW11: =IF(AW$63=1,INDEX(Rates_Distr_Network_New[Network capacity charge R/kVA/m],MATCH(AW$58,Rates_Distr_Network_New[Code],0)),"n/a") -> n/a | AX11: =IF(AX$63=1,INDEX(Rates_Distr_Network_New[Network capacity charge R/kVA/m],MATCH(AX$58,Rates_Distr_Network_New[Code],0)),"n/a") -> n/a | AY11: =IF(AY$63=1,INDEX(Rates_Distr_Network_New[Network capacity charge R/kVA/m],MATCH(AY$58,Rates_Distr_Network_New[Code],0)),"n/a") -> n/a | AZ11: =IF(AZ$63=1,INDEX(Rates_Distr_Network_New[Network capacity charge R/kVA/m],MATCH(AZ$58,Rates_Distr_Network_New[Code],0)),"n/a") -> 23.73 | BA11: =IF(BA$63=1,INDEX(Rates_Distr_Network_New[Network capacity charge R/kVA/m],MATCH(BA$58,Rates_Distr_Network_New[Code],0)),"n/a") -> n/a | BB11: =IF(BB$63=1,INDEX(Rates_Distr_Network_New[Network capacity charge R/kVA/m],MATCH(BB$58,Rates_Distr_Network_New[Code],0)),"n/a") -> 23.73 | BC11: =IF(BC$63=1, INDEX(Rates_Distr_Network_New[Network capacity charge R/kVA/m], MATCH(BC$58,Rates_Distr_Network_New[Code],0)),"n/a") -> n/a | BD11: =IF(BD$63=1,INDEX(Rates_Distr_Network_New[Network capacity charge R/kVA/m],MATCH(BD$58,Rates_Distr_Network_New[Code],0)),"n/a") -> 23.73 | BE11: =IF(BE$63=1,INDEX(Rates_Distr_Network_New[Network capacity charge R/kVA/m],MATCH(BE$58,Rates_Distr_Network_New[Code],0)),"n/a") -> n/a | BF11: =IF(BF$63=1,INDEX(Rates_Distr_Network_New[Network capacity charge R/kVA/m],MATCH(BF$58,Rates_Distr_Network_New[Code],0)),"n/a") -> n/a | BG11: =IF(BG$63=1,INDEX(Rates_Distr_Network_New[Network capacity charge R/kVA/m],MATCH(BG$58,Rates_Distr_Network_New[Code],0)),"n/a") -> n/a | BH11: =IF(BH$63=1,INDEX(Rates_Distr_Network_New[Network capacity charge R/kVA/m],MATCH(BH$58,Rates_Distr_Network_New[Code],0)),"n/a") -> n/a | BI11: =IF(BI$63=1,INDEX(Rates_Distr_Network_New[Network capacity charge R/kVA/m],MATCH(BI$58,Rates_Distr_Network_New[Code],0)),"n/a") -> n/a | BJ11: =IF(BJ$63=1,INDEX(Rates_Distr_Network_New[Network capacity charge R/kVA/m],MATCH(BJ$58,Rates_Distr_Network_New[Code],0)),"n/a") -> n/a
C12: Distribution network demand charge | D12: R/kVA | E12: n/a | F12: =IF(F$63=1,INDEX(Rates_Distr_Network_Current[Network demand charge R/kVA/m],MATCH(F$58,Rates_Distr_Network_Current[Code],0)),"n/a") -> n/a | G12: =IF(G$63=1,INDEX(Rates_Distr_Network_Current[Network demand charge R/kVA/m],MATCH(G$58,Rates_Distr_Network_Current[Code],0)),"n/a") -> n/a | H12: =IF(H$63=1,INDEX(Rates_Distr_Network_Current[Network demand charge R/kVA/m],MATCH(H$58,Rates_Distr_Network_Current[Code],0)),"n/a") -> n/a | I12: =IF(I$63=1,INDEX(Rates_Distr_Network_Current[Network demand charge R/kVA/m],MATCH(I$58,Rates_Distr_Network_Current[Code],0)),"n/a") -> n/a | J12: =IF(J$63=1,INDEX(Rates_Distr_Network_Current[Network demand charge R/kVA/m],MATCH(J$58,Rates_Distr_Network_Current[Code],0)),"n/a") -> n/a | K12: =IF(K$63=1,INDEX(Rates_Distr_Network_Current[Network demand charge R/kVA/m],MATCH(K$58,Rates_Distr_Network_Current[Code],0)),"n/a") -> n/a | L12: =IF(L$63=1,INDEX(Rates_Distr_Network_Current[Network demand charge R/kVA/m],MATCH(L$58,Rates_Distr_Network_Current[Code],0)),"n/a") -> n/a | M12: =IF(M$63=1,INDEX(Rates_Distr_Network_Current[Network demand charge R/kVA/m],MATCH(M$58,Rates_Distr_Network_Current[Code],0)),"n/a") -> n/a | N12: =IF(N$63=1,INDEX(Rates_Distr_Network_Current[Network demand charge R/kVA/m],MATCH(N$58,Rates_Distr_Network_Current[Code],0)),"n/a") -> n/a | O12: =IF(O$63=1,INDEX(Rates_Distr_Network_Current[Network demand charge R/kVA/m],MATCH(O$58,Rates_Distr_Network_Current[Code],0)),"n/a") -> n/a | P12: =IF(P$63=1,INDEX(Rates_Distr_Network_Current[Network demand charge R/kVA/m],MATCH(P$58,Rates_Distr_Network_Current[Code],0)),"n/a") -> n/a | Q12: =IF(Q$63=1,INDEX(Rates_Distr_Network_Current[Network demand charge R/kVA/m],MATCH(Q$58,Rates_Distr_Network_Current[Code],0)),"n/a") -> n/a | R12: =IF(R$63=1,INDEX(Rates_Distr_Network_Current[Network demand charge R/kVA/m],MATCH(R$58,Rates_Distr_Network_Current[Code],0)),"n/a") -> n/a | S12: =IF(S$63=1,INDEX(Rates_Distr_Network_Current[Network demand charge R/kVA/m],MATCH(S$58,Rates_Distr_Network_Current[Code],0)),"n/a") -> n/a | T12: =IF(T$63=1,INDEX(Rates_Distr_Network_Current[Network demand charge R/kVA/m],MATCH(T$58,Rates_Distr_Network_Current[Code],0)),"n/a") -> n/a | U12: =IF(U$63=1,INDEX(Rates_Distr_Network_Current[Network demand charge R/kVA/m],MATCH(U$58,Rates_Distr_Network_Current[Code],0)),"n/a") -> n/a | V12: =IF(V$63=1,INDEX(Rates_Distr_Network_Current[Network demand charge R/kVA/m],MATCH(V$58,Rates_Distr_Network_Current[Code],0)),"n/a") -> 39.1 | W12: =IF(W$63=1,INDEX(Rates_Distr_Network_Current[Network demand charge R/kVA/m],MATCH(W$58,Rates_Distr_Network_Current[Code],0)),"n/a") -> 0 | X12: =IF(X$63=1,INDEX(Rates_Distr_Network_Current[Network demand charge R/kVA/m],MATCH(X$58,Rates_Distr_Network_Current[Code],0)),"n/a") -> 39.1 | Y12: =IF(Y$63=1,INDEX(Rates_Distr_Network_Current[Network demand charge R/kVA/m],MATCH(Y$58,Rates_Distr_Network_Current[Code],0)),"n/a") -> 0 | Z12: =IF(Z$63=1,INDEX(Rates_Distr_Network_Current[Network demand charge R/kVA/m],MATCH(Z$58,Rates_Distr_Network_Current[Code],0)),"n/a") -> 39.1 | AA12: =IF(AA$63=1,INDEX(Rates_Distr_Network_Current[Network demand charge R/kVA/m],MATCH(AA$58,Rates_Distr_Network_Current[Code],0)),"n/a") -> 0 | AB12: =IF(AB$63=1,INDEX(Rates_Distr_Network_Current[Network demand charge R/kVA/m],MATCH(AB$58,Rates_Distr_Network_Current[Code],0)),"n/a") -> n/a | AC12: =IF(AC$63=1,INDEX(Rates_Distr_Network_Current[Network demand charge R/kVA/m],MATCH(AC$58,Rates_Distr_Network_Current[Code],0)),"n/a") -> n/a | AD12: =IF(AD$63=1,INDEX(Rates_Distr_Network_Current[Network demand charge R/kVA/m],MATCH(AD$58,Rates_Distr_Network_Current[Code],0)),"n/a") -> n/a | AE12: =IF(AE$63=1,INDEX(Rates_Distr_Network_Current[Network demand charge R/kVA/m],MATCH(AE$58,Rates_Distr_Network_Current[Code],0)),"n/a") -> n/a | AF12: =IF(AF$63=1,INDEX(Rates_Distr_Network_Current[Network demand charge R/kVA/m],MATCH(AF$58,Rates_Distr_Network_Current[Code],0)),"n/a") -> n/a | AI12: n/a | AJ12: =IF(AJ$63=1,INDEX(Rates_Distr_Network_New[Network demand charge R/kVA/m],MATCH(AJ$58,Rates_Distr_Network_New[Code],0)),"n/a") -> n/a | AK12: =IF(AK$63=1,INDEX(Rates_Distr_Network_New[Network demand charge R/kVA/m],MATCH(AK$58,Rates_Distr_Network_New[Code],0)),"n/a") -> n/a | AL12: =IF(AL$63=1,INDEX(Rates_Distr_Network_New[Network demand charge R/kVA/m],MATCH(AL$58,Rates_Distr_Network_New[Code],0)),"n/a") -> n/a | AM12: =IF(AM$63=1,INDEX(Rates_Distr_Network_New[Network demand charge R/kVA/m],MATCH(AM$58,Rates_Distr_Network_New[Code],0)),"n/a") -> n/a | AN12: =IF(AN$63=1,INDEX(Rates_Distr_Network_New[Network demand charge R/kVA/m],MATCH(AN$58,Rates_Distr_Network_New[Code],0)),"n/a") -> n/a | AO12: =IF(AO$63=1,INDEX(Rates_Distr_Network_New[Network demand charge R/kVA/m],MATCH(AO$58,Rates_Distr_Network_New[Code],0)),"n/a") -> n/a | AP12: =IF(AP$63=1,INDEX(Rates_Distr_Network_New[Network demand charge R/kVA/m],MATCH(AP$58,Rates_Distr_Network_New[Code],0)),"n/a") -> n/a | AQ12: =IF(AQ$63=1,INDEX(Rates_Distr_Network_New[Network demand charge R/kVA/m],MATCH(AQ$58,Rates_Distr_Network_New[Code],0)),"n/a") -> n/a | AR12: =IF(AR$63=1,INDEX(Rates_Distr_Network_New[Network demand charge R/kVA/m],MATCH(AR$58,Rates_Distr_Network_New[Code],0)),"n/a") -> n/a | AS12: =IF(AS$63=1,INDEX(Rates_Distr_Network_New[Network demand charge R/kVA/m],MATCH(AS$58,Rates_Distr_Network_New[Code],0)),"n/a") -> n/a | AT12: =IF(AT$63=1,INDEX(Rates_Distr_Network_New[Network demand charge R/kVA/m],MATCH(AT$58,Rates_Distr_Network_New[Code],0)),"n/a") -> n/a | AU12: =IF(AU$63=1,INDEX(Rates_Distr_Network_New[Network demand charge R/kVA/m],MATCH(AU$58,Rates_Distr_Network_New[Code],0)),"n/a") -> n/a | AV12: =IF(AV$63=1,INDEX(Rates_Distr_Network_New[Network demand charge R/kVA/m],MATCH(AV$58,Rates_Distr_Network_New[Code],0)),"n/a") -> n/a | AW12: =IF(AW$63=1,INDEX(Rates_Distr_Network_New[Network demand charge R/kVA/m],MATCH(AW$58,Rates_Distr_Network_New[Code],0)),"n/a") -> n/a | AX12: =IF(AX$63=1,INDEX(Rates_Distr_Network_New[Network demand charge R/kVA/m],MATCH(AX$58,Rates_Distr_Network_New[Code],0)),"n/a") -> n/a | AY12: =IF(AY$63=1,INDEX(Rates_Distr_Network_New[Network demand charge R/kVA/m],MATCH(AY$58,Rates_Distr_Network_New[Code],0)),"n/a") -> n/a | AZ12: =IF(AZ$63=1,INDEX(Rates_Distr_Network_New[Network demand charge R/kVA/m],MATCH(AZ$58,Rates_Distr_Network_New[Code],0)),"n/a") -> 44.99 | BA12: =IF(BA$63=1,INDEX(Rates_Distr_Network_New[Network demand charge R/kVA/m],MATCH(BA$58,Rates_Distr_Network_New[Code],0)),"n/a") -> 0 | BB12: =IF(BB$63=1,INDEX(Rates_Distr_Network_New[Network demand charge R/kVA/m],MATCH(BB$58,Rates_Distr_Network_New[Code],0)),"n/a") -> 44.99 | BC12: =IF(BC$63=1,INDEX(Rates_Distr_Network_New[Network demand charge R/kVA/m],MATCH(BC$58,Rates_Distr_Network_New[Code],0)),"n/a") -> 0 | BD12: =IF(BD$63=1,INDEX(Rates_Distr_Network_New[Network demand charge R/kVA/m],MATCH(BD$58,Rates_Distr_Network_New[Code],0)),"n/a") -> 44.99 | BE12: =IF(BE$63=1,INDEX(Rates_Distr_Network_New[Network demand charge R/kVA/m],MATCH(BE$58,Rates_Distr_Network_New[Code],0)),"n/a") -> 0 | BF12: =IF(BF$63=1,INDEX(Rates_Distr_Network_New[Network demand charge R/kVA/m],MATCH(BF$58,Rates_Distr_Network_New[Code],0)),"n/a") -> n/a | BG12: =IF(BG$63=1,INDEX(Rates_Distr_Network_New[Network demand charge R/kVA/m],MATCH(BG$58,Rates_Distr_Network_New[Code],0)),"n/a") -> n/a | BH12: =IF(BH$63=1,INDEX(Rates_Distr_Network_New[Network demand charge R/kVA/m],MATCH(BH$58,Rates_Distr_Network_New[Code],0)),"n/a") -> n/a | BI12: =IF(BI$63=1,INDEX(Rates_Distr_Network_New[Network demand charge R/kVA/m],MATCH(BI$58,Rates_Distr_Network_New[Code],0)),"n/a") -> n/a | BJ12: =IF(BJ$63=1,INDEX(Rates_Distr_Network_New[Network demand charge R/kVA/m],MATCH(BJ$58,Rates_Distr_Network_New[Code],0)),"n/a") -> n/a
